Workbook

Sheet SolCotizacion
B1: Solicitud de Cotización
B3: Acuerdo Marco Vehículos
B4: Versión:51 | C4: 2018-10-23
B7: Nombre de la Entidad: | E7: Universidad Distrital Francisco José de Caldas | K7: NIT: | L7: 899999230-7
B9: Dirección de la Entidad: | E9: Cra 7 #40b-53 | K9: Municipio: | L9: Bogotá D.C.
B11: Nombre del Comprador: | E11: Universidad Distrital Francisco José de Caldas | K11: Teléfono: | L11: 3239300 | N11: Ext 1801-1802-1804
B13: Correo del comprador: | E13: vicerrecadmin@udistrital.edu.co
B15: Fechas estimadas
E17: Fecha creación solicitud cotización: | I17: 2018-10-17
B19: Artículos Solicitud de Cotización
B24: Segmento | D24: =IF(B25="","No Aplica",VLOOKUP(B25,Listas!$A:$B,2,0)) -> Cilindraje | F24: Adecuación (sólo para vehículos especiales) | H24: Intervalo de precio | J24: =IF(B25="","No Aplica",VLOOKUP(B25,Listas!A:C,3,0)) -> Transmisión | L24: =IF(B25="","No Aplica",VLOOKUP(B25,Listas!A:D,4,0)) -> No Aplica | N24: Unidades
A25: =VLOOKUP(SUBSTITUTE(SUBSTITUTE(SUBSTITUTE(B25&D25&F25&H25,".","")," ",""),"-",""),Consolidado!B:BV,73,0) -> S179 | B25: Campero Camioneta 4x2 Gasolina | D25: 1.549cc - 1.849cc | H25: Intervalo de precio 2 | J25: Mecánico | N25: 4
B27: Adecuaciones y Accesorios
B28: Descripción | H28: Cantidad | J28: Sí / No | K28: Observaciones
B29: Adaptación a gas natural (Cuando el Vehículo es a gasolina) | J29: NO
B30: Defensa | J30: NO
B31: Pintura (10% del exterior del Vehículo) | J31: NO
B32: Piso en poliuretano | J32: NO
B33: Llantas doble propósito | J33: NO
B34: Cojinería en cuero | J34: NO
B35: Sistema de rastreo satelital con monitoreo | J35: NO
B36: Adhesivos de emblemas (por metro cuadrado) | J36: NO
B37: Alarma | J37: NO
B38: Exploradoras adicionales | J38: NO
B39: Forros para los asientos (por asiento) | J39: NO
B40: Barra de luces, sistema de perifoneo y sirena | J40: NO
B41: Winche y bomper | J41: NO
B42: Cámara de reversa | J42: NO
B43: Gancho trasero de fijación | J43: NO
B44: Luces perimetrales | J44: NO
B45: Película de seguridad (por vidrio) | J45: NO
B46: Sensor de reversa | J46: NO
B47: Dispositivo de localización vehicular AVL | J47: NO
B48: Seguros antirrobo, para espejos, pernos y repuesto | J48: NO
B49: Vidrio polarizado (por vidrio) | J49: NO
B50: Radio Móvil | J50: NO
B52: Caracteristicas del Vehiculo y Tiempo de Entrega Requerido
B55: Mantenimiento Preventivo
B56: Descripción | N56: Sí / No
B57: 50 mil Km o 2 años | N57: SI
B58: 75 mil Km o 3 años | N58: NO
B59: 100 mil Km o 4 años | N59: NO
B60: 125 mil Km o 5 años | N60: NO
B62: Requerimientos de la Matricula
B63: MATRICULA OFICIAL PARA CADA VEHÍCULO
B65: Impuesto de Rodamiento
B66: Si la presente adquisición da lugar al pago del impuesto de rodamiento y la Entidad requiere que el Proveedor incluya el valor en su cotización, indicar el valor exacto. | N66: 0
B68: Lugar de Entrega
B69: Ciudad de Entrega | L69: otra | N69: Unidades
B70: Bogotá, D.C. | N70: 4
B71: Si requiere agregue o elimine filas
B73: Incluye SOAT
B74: Sí / No | I74: Vigencia
B75: SI | I75: 12 meses
B77: Gravámenes adicionales (estampillas)
B79: Indique los gravámenes adicionales (estampilllas) a los que está sujeta la Orden de Compra. Son gravámens adiconales por ejemplo; estampillas y demás impuestos territoriales. Los impuestos como ICA y retención en la fuente NO son gravámenes adicionales.
B80: ¿Como debe calcular el proveedor el valor de las estampillas? | F80: Sobre el valor con impuestos
B82: No. | C82: Descripción | N82: % Gravamen
B83: 1 | C83: Estampilla "Universidad Distrital Francisco José de Caldas"-50 Años | N83: 0.011
B84: 2 | C84: Pro Adulto Mayor | N84: 0.02
B85: 3 | C85: Pro Cultura | N85: 0.005
J87: Total Gravámenes adicionales | N87: =SUM(N83:N85) -> 0.036

Sheet Cotizacion
B1: Cotización
B3: Acuerdo Marco Vehículos
B5: Información de la Entidad Compradora | P5: Proveedor
B7: Nombre de la Entidad: | E7: Universidad Distrital Francisco José de Caldas | K7: NIT: | L7: 899999230-7 | P7: Nombre Proveedor: | Q7: Distribuidora Nissan S.A.
B9: Dirección de la Entidad: | E9: Cra 7 #40b-53 | K9: Municipio: | L9: Bogotá D.C. | P9: Nit Proveedor: | Q9: 860.001.307-0
B11: Nombre del Comprador: | E11: Universidad Distrital Francisco José de Caldas | K11: Teléfono: | L11: 3239300 | N11: Ext 1801-1802-1804
B13: Correo del comprador: | E13: vicerrecadmin@udistrital.edu.co
B15: Fechas estimadas | P15: Cotización
P16: Cod Facecolda | Q16: Marca | R16: Referencia
E17: Fecha creación solicitud cotización: | I17: 2018-10-17 | P17: =VLOOKUP($R$17,Consolidado!$C:$L,10,0) -> 6406130 | Q17: =VLOOKUP($R$17,Consolidado!$C:$L,9,0) -> NISSAN | R17: NISSAN KICKS SENSE MT 1600CC R16
B19: Artículos de Cotización | P19: Cotización
B24: Segmento | D24: =IF(B25="","No Aplica",VLOOKUP(B25,Listas!$A$2:$B$19,2,0)) -> Cilindraje | F24: Adecuación (sólo para vehículos especiales) | H24: Intervalo de precio | J24: =IF(B25="","No Aplica",VLOOKUP(B25,Listas!$A$1:$C$19,3,0)) -> Transmisión | L24: =IF(B25="","No Aplica",VLOOKUP(B25,Listas!$A$1:$D$19,4,0)) -> No Aplica | N24: Unidades | P24: valor unidad (Precio en el Catálogo incluido el descuento por volumen ) | Q24: valor total | R24: % descuento adicional | S24: Total con Descuento
B25: Campero Camioneta 4x2 Gasolina | D25: 1.549cc - 1.849cc | H25: Intervalo de precio 2 | J25: Mecánico | N25: 4 | P25: =VLOOKUP(SUBSTITUTE(SUBSTITUTE(SUBSTITUTE($B$25&$D$25&$F$25&$H$25,".",""),"-","")," ","")&$R$17&$Q$7,Consolidado!$A:$CN,IF(N25=1,18,IF(AND(N25>=2,N25<=10),20,IF(AND(N25>=11,N25<=20),22,IF(AND(N25>=21,N25<=30),24,IF(AND(N25>=31,N25<=40),26,28))))),0)+VLOOKUP(SUBSTITUTE(SUBSTITUTE(SUBSTITUTE($B$25&$D$25&$F$25&$H$25,".",""),"-","")," ","")&$R$17&$Q$7,Consolidado!$A:$CN,MATCH("Precio de la Adecuación",Consolidado!$A$1:$CN$1,0),0) -> 56320000 | Q25: =N25*P25 -> 225280000 | R25: 0.0148 | S25: =Q25*(1-R25) -> 221945856
B27: Adecuaciones y Accesorios | P27: Cotización
B28: Descripción | H28: Cantidad | J28: Sí / No | K28: Observaciones | P28: Valor Unitario | Q28: valor total | R28: % descuento adicional | S28: Total con Descuento
B29: Adaptación a gas natural (Cuando el Vehículo es a gasolina) | J29: NO | P29: =IF(J29="SI",VLOOKUP(SUBSTITUTE(SUBSTITUTE(SUBSTITUTE($B$25&$D$25&$F$25&$H$25,".",""),"-","")," ","")&$R$17&$Q$7,Consolidado!$A:$CI,MATCH(B29,Consolidado!$A$1:$CI$1,0),0),0) -> 0 | Q29: =H29*P29 -> 0 | S29: =Q29*(1-R29) -> 0
B30: Defensa | J30: NO | P30: =IF(J30="SI",VLOOKUP(SUBSTITUTE(SUBSTITUTE(SUBSTITUTE($B$25&$D$25&$F$25&$H$25,".",""),"-","")," ","")&$R$17&$Q$7,Consolidado!$A:$CI,MATCH(B30,Consolidado!$A$1:$CI$1,0),0),0) -> 0 | Q30: =H30*P30 -> 0 | S30: =Q30*(1-R30) -> 0
B31: Pintura (10% del exterior del Vehículo) | J31: NO | P31: =IF(J31="SI",VLOOKUP(SUBSTITUTE(SUBSTITUTE(SUBSTITUTE($B$25&$D$25&$F$25&$H$25,".",""),"-","")," ","")&$R$17&$Q$7,Consolidado!$A:$CI,MATCH(B31,Consolidado!$A$1:$CI$1,0),0),0) -> 0 | Q31: 0 | S31: 0
B32: Piso en poliuretano | J32: NO | P32: =IF(J32="SI",VLOOKUP(SUBSTITUTE(SUBSTITUTE(SUBSTITUTE($B$25&$D$25&$F$25&$H$25,".",""),"-","")," ","")&$R$17&$Q$7,Consolidado!$A:$CI,MATCH(B32,Consolidado!$A$1:$CI$1,0),0),0) -> 0 | Q32: 0 | S32: 0
B33: Llantas doble propósito | J33: NO | P33: =IF(J33="SI",VLOOKUP(SUBSTITUTE(SUBSTITUTE(SUBSTITUTE($B$25&$D$25&$F$25&$H$25,".",""),"-","")," ","")&$R$17&$Q$7,Consolidado!$A:$CI,MATCH(B33,Consolidado!$A$1:$CI$1,0),0),0) -> 0 | Q33: 0 | S33: 0
B34: Cojinería en cuero | J34: NO | P34: =IF(J34="SI",VLOOKUP(SUBSTITUTE(SUBSTITUTE(SUBSTITUTE($B$25&$D$25&$F$25&$H$25,".",""),"-","")," ","")&$R$17&$Q$7,Consolidado!$A:$CI,MATCH(B34,Consolidado!$A$1:$CI$1,0),0),0) -> 0 | Q34: 0 | S34: 0
B35: Sistema de rastreo satelital con monitoreo | J35: NO | P35: =IF(J35="SI",VLOOKUP(SUBSTITUTE(SUBSTITUTE(SUBSTITUTE($B$25&$D$25&$F$25&$H$25,".",""),"-","")," ","")&$R$17&$Q$7,Consolidado!$A:$CI,MATCH(B35,Consolidado!$A$1:$CI$1,0),0),0) -> 0 | Q35: 0 | S35: 0
B36: Adhesivos de emblemas (por metro cuadrado) | J36: NO | P36: =IF(J36="SI",VLOOKUP(SUBSTITUTE(SUBSTITUTE(SUBSTITUTE($B$25&$D$25&$F$25&$H$25,".",""),"-","")," ","")&$R$17&$Q$7,Consolidado!$A:$CI,MATCH(B36,Consolidado!$A$1:$CI$1,0),0),0) -> 0 | Q36: 0 | S36: 0
B37: Alarma | J37: NO | P37: =IF(J37="SI",VLOOKUP(SUBSTITUTE(SUBSTITUTE(SUBSTITUTE($B$25&$D$25&$F$25&$H$25,".",""),"-","")," ","")&$R$17&$Q$7,Consolidado!$A:$CI,MATCH(B37,Consolidado!$A$1:$CI$1,0),0),0) -> 0 | Q37: 0 | S37: 0
B38: Exploradoras adicionales | J38: NO | P38: =IF(J38="SI",VLOOKUP(SUBSTITUTE(SUBSTITUTE(SUBSTITUTE($B$25&$D$25&$F$25&$H$25,".",""),"-","")," ","")&$R$17&$Q$7,Consolidado!$A:$CI,MATCH(B38,Consolidado!$A$1:$CI$1,0),0),0) -> 0 | Q38: 0 | S38: 0
B39: Forros para los asientos (por asiento) | J39: NO | P39: =IF(J39="SI",VLOOKUP(SUBSTITUTE(SUBSTITUTE(SUBSTITUTE($B$25&$D$25&$F$25&$H$25,".",""),"-","")," ","")&$R$17&$Q$7,Consolidado!$A:$CI,MATCH(B39,Consolidado!$A$1:$CI$1,0),0),0) -> 0 | Q39: 0 | S39: 0
B40: Barra de luces, sistema de perifoneo y sirena | J40: NO | P40: =IF(J40="SI",VLOOKUP(SUBSTITUTE(SUBSTITUTE(SUBSTITUTE($B$25&$D$25&$F$25&$H$25,".",""),"-","")," ","")&$R$17&$Q$7,Consolidado!$A:$CI,MATCH(B40,Consolidado!$A$1:$CI$1,0),0),0) -> 0 | Q40: 0 | S40: 0
B41: Winche y bomper | J41: NO | P41: =IF(J41="SI",VLOOKUP(SUBSTITUTE(SUBSTITUTE(SUBSTITUTE($B$25&$D$25&$F$25&$H$25,".",""),"-","")," ","")&$R$17&$Q$7,Consolidado!$A:$CI,MATCH(B41,Consolidado!$A$1:$CI$1,0),0),0) -> 0 | Q41: 0 | S41: 0
B42: Cámara de reversa | J42: NO | P42: =IF(J42="SI",VLOOKUP(SUBSTITUTE(SUBSTITUTE(SUBSTITUTE($B$25&$D$25&$F$25&$H$25,".",""),"-","")," ","")&$R$17&$Q$7,Consolidado!$A:$CI,MATCH(B42,Consolidado!$A$1:$CI$1,0),0),0) -> 0 | Q42: 0 | S42: 0
B43: Gancho trasero de fijación | J43: NO | P43: =IF(J43="SI",VLOOKUP(SUBSTITUTE(SUBSTITUTE(SUBSTITUTE($B$25&$D$25&$F$25&$H$25,".",""),"-","")," ","")&$R$17&$Q$7,Consolidado!$A:$CI,MATCH(B43,Consolidado!$A$1:$CI$1,0),0),0) -> 0 | Q43: 0 | S43: 0
B44: Luces perimetrales | J44: NO | P44: =IF(J44="SI",VLOOKUP(SUBSTITUTE(SUBSTITUTE(SUBSTITUTE($B$25&$D$25&$F$25&$H$25,".",""),"-","")," ","")&$R$17&$Q$7,Consolidado!$A:$CI,MATCH(B44,Consolidado!$A$1:$CI$1,0),0),0) -> 0 | Q44: 0 | S44: 0
B45: Película de seguridad (por vidrio) | J45: NO | P45: =IF(J45="SI",VLOOKUP(SUBSTITUTE(SUBSTITUTE(SUBSTITUTE($B$25&$D$25&$F$25&$H$25,".",""),"-","")," ","")&$R$17&$Q$7,Consolidado!$A:$CI,MATCH(B45,Consolidado!$A$1:$CI$1,0),0),0) -> 0 | Q45: 0 | S45: 0
B46: Sensor de reversa | J46: NO | P46: =IF(J46="SI",VLOOKUP(SUBSTITUTE(SUBSTITUTE(SUBSTITUTE($B$25&$D$25&$F$25&$H$25,".",""),"-","")," ","")&$R$17&$Q$7,Consolidado!$A:$CI,MATCH(B46,Consolidado!$A$1:$CI$1,0),0),0) -> 0 | Q46: 0 | S46: 0
B47: Dispositivo de localización vehicular AVL | J47: NO | P47: =IF(J47="SI",VLOOKUP(SUBSTITUTE(SUBSTITUTE(SUBSTITUTE($B$25&$D$25&$F$25&$H$25,".",""),"-","")," ","")&$R$17&$Q$7,Consolidado!$A:$CI,MATCH(B47,Consolidado!$A$1:$CI$1,0),0),0) -> 0 | Q47: 0 | S47: 0
B48: Seguros antirrobo, para espejos, pernos y repuesto | J48: NO | P48: =IF(J48="SI",VLOOKUP(SUBSTITUTE(SUBSTITUTE(SUBSTITUTE($B$25&$D$25&$F$25&$H$25,".",""),"-","")," ","")&$R$17&$Q$7,Consolidado!$A:$CI,MATCH(B48,Consolidado!$A$1:$CI$1,0),0),0) -> 0 | Q48: 0 | S48: 0
B49: Vidrio polarizado (por vidrio) | J49: NO | P49: =IF(J49="SI",VLOOKUP(SUBSTITUTE(SUBSTITUTE(SUBSTITUTE($B$25&$D$25&$F$25&$H$25,".",""),"-","")," ","")&$R$17&$Q$7,Consolidado!$A:$CI,MATCH(B49,Consolidado!$A$1:$CI$1,0),0),0) -> 0 | Q49: 0 | S49: 0
B50: Radio Móvil | J50: NO | P50: =IF(J50="SI",VLOOKUP(SUBSTITUTE(SUBSTITUTE(SUBSTITUTE($B$25&$D$25&$F$25&$H$25,".",""),"-","")," ","")&$R$17&$Q$7,Consolidado!$A:$CI,MATCH(B50,Consolidado!$A$1:$CI$1,0),0),0) -> 0 | Q50: 0 | S50: 0
B52: Caracteristicas del Vehiculo y Tiempo de Entrega Requerido
B55: Mantenimiento Preventivo | P55: Cotización
B56: Descripción | N56: Sí / No | P56: Valor Unitario | Q56: valor total | R56: % descuento adicional | S56: Total con Descuento
B57: 50 mil Km o 2 años | N57: SI | P57: =IF(N57="SI",(VLOOKUP(SUBSTITUTE(SUBSTITUTE(SUBSTITUTE($B$25&$D$25&$F$25&$H$25,".",""),"-","")," ","")&$R$17&$Q$7,Consolidado!$A:$CI,MATCH("Precio del Mantenimiento Preventivo",Consolidado!$A$1:$CI$1,0),0)/2)*2,0) -> 6890000 | Q57: =$N$25*P57 -> 27560000 | S57: =Q57*(1-R57) -> 27560000
B58: 75 mil Km o 3 años | N58: NO | P58: =IF(N58="SI",(VLOOKUP(SUBSTITUTE(SUBSTITUTE(SUBSTITUTE($B$25&$D$25&$F$25&$H$25,".",""),"-","")," ","")&$R$17&$Q$7,Consolidado!$A:$CI,MATCH("Precio del Mantenimiento Preventivo",Consolidado!$A$1:$CI$1,0),0)/2)*3,0) -> 0 | Q58: =$N$25*P58 -> 0 | S58: =Q58*(1-R58) -> 0
B59: 100 mil Km o 4 años | N59: NO | P59: =IF(N59="SI",(VLOOKUP(SUBSTITUTE(SUBSTITUTE(SUBSTITUTE($B$25&$D$25&$F$25&$H$25,".",""),"-","")," ","")&$R$17&$Q$7,Consolidado!$A:$CI,MATCH("Precio del Mantenimiento Preventivo",Consolidado!$A$1:$CI$1,0),0)/2)*4,0) -> 0 | Q59: 0 | S59: 0
B60: 125 mil Km o 5 años | N60: NO | P60: =IF(N60="SI",(VLOOKUP(SUBSTITUTE(SUBSTITUTE(SUBSTITUTE($B$25&$D$25&$F$25&$H$25,".",""),"-","")," ","")&$R$17&$Q$7,Consolidado!$A:$CI,MATCH("Precio del Mantenimiento Preventivo",Consolidado!$A$1:$CI$1,0),0)/2)*5,0) -> 0 | Q60: 0 | S60: 0
B62: Requerimientos de la Matricula | P62: Valor de la Matricula
B63: MATRICULA OFICIAL PARA CADA VEHÍCULO | P63: =650000*4 -> 2600000
B65: Impuesto de Rodamiento | P65: Impuesto de Rodamiento
B66: Si la presente adquisición da lugar al pago del impuesto de rodamiento y la Entidad requiere que el Proveedor incluya el valor en su cotización, indicar el valor exacto. | N66: 0
B68: Lugar de Entrega | P68: Lugar de Entrega
B69: Ciudad de Entrega | L69: otra | N69: Unidades | P69: Valor Ciudad de Entrega
B70: Bogotá, D.C. | N70: 4
B71: Si requiere agregue o elimine filas
R72: Cuadro Resumen
B73: Incluye SOAT | P73: SOAT | R73: Descripción | S73: Valor
B74: Sí / No | I74: Vigencia | P74: Valor del SOAT | R74: Valor Total Vehículos: | S74: =ROUND($S$25,0) -> 221945856
B75: SI | I75: 12 meses | P75: =635910*4 -> 2543640 | R75: Valor Total Accesorios y Adecuaciones: | S75: =ROUND(SUM(S$29:S$50),0) -> 0
R76: Valor Total Mantenimiento Preventivo: | S76: =ROUND(SUM(S$57:S$60),0) -> 27560000
B77: Gravámenes adicionales (estampillas) | R77: Valor Total Matricula: | S77: =ROUND($P$63,0) -> 2600000
R78: Valor Total Impuesto de Rodamiento: | S78: =ROUND($P$66,0) -> 0
B79: Indique los gravámenes adicionales (estampilllas) a los que está sujeta la Orden de Compra. Son gravámens adiconales por ejemplo; estampillas y demás impuestos territoriales. Los impuestos como ICA y retención en la fuente NO son gravámenes adicionales. | R79: Valor Total Lugar Entraga: | S79: =ROUND(SUM($P$70:$P$70),0) -> 0
B80: ¿Como debe calcular el proveedor el valor de las estampillas? | F80: Sobre el valor con impuestos | R80: Valor Total Soat: | S80: =ROUND($P$75,0) -> 2543640
R81: Valor Gravamenes Adicionales: | S81: =ROUND($P$87,0) -> 9144000
B82: No. | C82: Descripción | N82: % Gravamen | P82: $ Gravamen
B83: 1 | C83: Estampilla "Universidad Distrital Francisco José de Caldas"-50 Años | N83: 0.011 | P83: 2794000 | R83: Descripción del Vehículo
B84: 2 | C84: Pro Adulto Mayor | N84: 0.02 | P84: 5080000 | R84: =CONCATENATE($B$25,"-",$R$17,"-","(",$P$17,")") -> Campero Camioneta 4x2 Gasolina-NISSAN KICKS SENSE MT 1600CC R16-(6406130)
B85: 3 | C85: Pro Cultura | N85: 0.005 | P85: 1270000
R86: Total | S86: =ROUND(SUM(S74:S81),0) -> 263793496
J87: Total Gravámenes adicionales | N87: =SUM(N83:N85) -> 0.036 | P87: =SUM(P$83:P85) -> 9144000

Sheet ActFasecolda (hidden)
A1: Directorio | B1: C:\Users\michel.lopez\Downloads\Guia_Excel_266\Guia_Excel_266.xls
D2: 1

Sheet FormatosIndividuales (hidden)
B2: Valor de la Matricula | G2: Lugar de Entrega | L2: Cuadro Resumen
G3: Valor Ciudad de Entrega | L3: Descripción | M3: Valor
L4: Valor Total Vehículos: | M4: =ROUND($R$25,0) -> 0
B5: Impuesto de Rodamiento | L5: Valor Total Accesorios y Adecuaciones: | M5: =ROUND(SUM(M$31:M$46),0) -> 0
G6: SOAT | L6: Valor Total Mantenimiento Preventivo: | M6: =ROUND(SUM(M$50:M$53),0) -> 0
G7: Valor del SOAT | I7: $ Gravamen | L7: Valor Total Matricula: | M7: =ROUND($O$54,0) -> 0
B8: valor unidad (Precio en el Catálogo incluido el descuento por volumen ) | C8: valor total | D8: % descuento adicional | E8: Total con Descuento | L8: Valor Total Impuesto de Rodamiento:
E9: =C9*(1-D9) -> 0 | L9: Valor Total Lugar Entraga:
L10: Valor Total Soat: | M10: =ROUND($K$65,0) -> 0
L11: Valor Gravamenes Adicionales: | M11: =ROUND($K$65,0) -> 0
L13: Descripción del Vehículo
L16: Total | M16: =ROUND(SUM(M4:M10),0) -> 0

Sheet Listas (hidden)
A1: segmentoC1 | B1: TipCaracteristica | C1: Tramsmisiontipouso | D1: carroceriaarea | E1: CaracteristicasC2 | F1: AdecuacionesC3 | G1: IntervaloC4 | H1: Vehiculos | I1: Proveedores | J1: Transmisión | K1: Carroceria | L1: Tipodeuso | M1: Area | N1: CiudadesEntrega | O1: otraCiudad | P1: Unidad | Q1: SISOAT
A2: Automovil | B2: Cilindraje | C2: Transmisión | D2: Carroceria | E2: 1.549cc - 1.849cc | G2: Intervalo de precio 1 | H2: NISSAN KICKS ADVANCE MT 1600CC R17 | I2: Distribuidora Nissan S.A. | J2: Automático | K2: Sedan | L2: Carga | M2: Urbana | N2: Armenia | O2: Abejorral | P2: 1 | Q2: 12 meses
A3: Bus Buseta | B3: Numero de pasajeros | C3: No Aplica | D3: No Aplica | E3: 1.850cc - 2.049cc | G3: Intervalo de precio 2 | H3: NISSAN KICKS SENSE MT 1600CC R16 | J3: Mecánico | K3: Hatchback | L3: Pasajeros | M3: Municipal | N3: Barranquilla | O3: Ábrego | P3: 2 | Q3: 13 meses
A4: Camiones | B4: Peso bruto vehícular | C4: No Aplica | D4: No Aplica | E4: 2.050cc - 2.549cc | G4: Intervalo de precio 3 | N4: Bogotá, D.C. | O4: Abriaquí | P4: 3 | Q4: 14 meses
A5: Campero Camioneta 4x2 Gasolina | B5: Cilindraje | C5: Transmisión | D5: No Aplica | E5: mayor a 2.549cc | N5: Bucaramanga | O5: Acacías | P5: 4 | Q5: 15 meses
A6: Campero Camioneta 4x4 Diésel | B6: Cilindraje | C6: Transmisión | D6: No Aplica | N6: Cali | O6: Acandí | P6: 5 | Q6: 16 meses
A7: Campero Camioneta 4x4 Gasolina | B7: Cilindraje | C7: Transmisión | D7: No Aplica | N7: Cartagena De Indias | O7: Acevedo | P7: 6 | Q7: 17 meses
A8: Microbús | B8: Numero de pasajeros | C8: Tipo de uso | D8: Area | N8: Cúcuta | O8: Achí | P8: 7 | Q8: 18 meses
A9: Pick Up cabina sencilla 4x2 gasolina | B9: Cilindraje | C9: Transmisión | D9: No Aplica | N9: Ibagué | O9: Agrado | P9: 8 | Q9: 19 meses
A10: Pick Up cabina sencilla 4x4 diésel | B10: Cilindraje | C10: Transmisión | D10: No Aplica | N10: Manizales | O10: Agua De Dios | P10: 9 | Q10: 20 meses
A11: Pick Up cabina sencilla 4x4 gasolina | B11: Cilindraje | C11: Transmisión | D11: No Aplica | N11: Medellín | O11: Aguachica | P11: 10 | Q11: 21 meses
A12: Pick Up doble cabina 4x2 diésel | B12: Cilindraje | C12: Transmisión | D12: No Aplica | N12: Montería | O12: Aguada | P12: 11 | Q12: 22 meses
A13: Pick Up doble cabina 4x2 gasolina | B13: Cilindraje | C13: Transmisión | D13: No Aplica | N13: Neiva | O13: Aguadas | P13: 12 | Q13: 23 meses
A14: Pick Up doble cabina 4x4 diésel | B14: Cilindraje | C14: Transmisión | D14: No Aplica | N14: Pasto | O14: Aguazul | P14: 13 | Q14: 24 meses
A15: Pick Up doble cabina 4x4 gasolina | B15: Cilindraje | C15: Transmisión | D15: No Aplica | N15: Pereira | O15: Agustín Codazzi | P15: 14 | Q15: 25 meses
A16: Van | B16: Numero de pasajeros | C16: Tipo de uso | D16: Area | N16: Popayán | O16: Aipe | P16: 15 | Q16: 26 meses
A17: Vehículo Eléctrico | B17: Tipo | C17: No Aplica | D17: No Aplica | N17: Riohacha | O17: Albán | P17: 16 | Q17: 27 meses
A18: Vehículo Especial | B18: Caracteristica | C18: No Aplica | D18: No Aplica | N18: Santa Marta | O18: Albania | P18: 17 | Q18: 28 meses
A19: Vehículo Híbrido | B19: Tipo | C19: No Aplica | D19: No Aplica | N19: Sincelejo | O19: Alcalá | P19: 18 | Q19: 29 meses
N20: Tunja | O20: Aldana | P20: 19 | Q20: 30 meses
N21: Valledupar | O21: Alejandría | P21: 20 | Q21: 31 meses
N22: Villavicencio | O22: Algarrobo | P22: 21 | Q22: 32 meses
N23: Yopal | O23: Algeciras | P23: 22 | Q23: 33 meses
N24: Otra | O24: Almaguer | P24: 23 | Q24: 34 meses
O25: Almeida | P25: 24 | Q25: 35 meses
O26: Alpujarra | P26: 25 | Q26: 36 meses
O27: Altamira | P27: 26 | Q27: 37 meses
O28: Alto Baudó | P28: 27 | Q28: 38 meses
O29: Altos Del Rosario | P29: 28 | Q29: 39 meses
O30: Alvarado | P30: 29 | Q30: 40 meses
O31: Amagá | P31: 30 | Q31: 41 meses
O32: Amalfi | P32: 31 | Q32: 42 meses
O33: Ambalema | P33: 32 | Q33: 43 meses
O34: Anapoima | P34: 33 | Q34: 44 meses
O35: Ancuyá | P35: 34 | Q35: 45 meses
O36: Andalucía | P36: 35 | Q36: 46 meses
O37: Andes | P37: 36 | Q37: 47 meses
O38: Angelópolis | P38: 37 | Q38: 48 meses
O39: Angostura | P39: 38 | Q39: 49 meses
O40: Anolaima | P40: 39 | Q40: 50 meses
O41: Anorí | P41: 40 | Q41: 51 meses
O42: Anserma | P42: 41 | Q42: 52 meses
O43: Ansermanuevo | P43: 42 | Q43: 53 meses
O44: Anzá | P44: 43 | Q44: 54 meses
O45: Anzoátegui | P45: 44 | Q45: 55 meses
O46: Apartadó | P46: 45 | Q46: 56 meses
O47: Apía | P47: 46 | Q47: 57 meses
O48: Apulo | P48: 47 | Q48: 58 meses
O49: Aquitania | P49: 48 | Q49: 59 meses
O50: Aracataca | P50: 49 | Q50: 60 meses
O51: Aranzazu | P51: 50 | Q51: 61 meses
O52: Aratoca | P52: 51 | Q52: 62 meses
O53: Arauca | P53: 52 | Q53: 63 meses
O54: Arauquita | P54: 53 | Q54: 64 meses
O55: Arbeláez | P55: 54 | Q55: 65 meses
O56: Arboleda | P56: 55 | Q56: 66 meses
O57: Arboledas | P57: 56 | Q57: 67 meses
O58: Arboletes | P58: 57 | Q58: 68 meses
O59: Arcabuco | P59: 58 | Q59: 69 meses
O60: Arenal | P60: 59 | Q60: 70 meses
O61: Argelia | P61: 60 | Q61: 71 meses
O62: Ariguaní | P62: 61 | Q62: 72 meses
O63: Arjona | P63: 62 | Q63: 73 meses
O64: Armero Guayabal | P64: 63 | Q64: 74 meses
O65: Arroyohondo | P65: 64 | Q65: 75 meses
O66: Astrea | P66: 65 | Q66: 76 meses
O67: Ataco | P67: 66 | Q67: 77 meses
O68: Atrato | P68: 67 | Q68: 78 meses
O69: Ayapel | P69: 68 | Q69: 79 meses
O70: Bagadó | P70: 69 | Q70: 80 meses
O71: Bahía Solano | P71: 70 | Q71: 81 meses
O72: Bajo Baudó | P72: 71 | Q72: 82 meses
O73: Balboa | P73: 72 | Q73: 83 meses
O74: Baranoa | P74: 73 | Q74: 84 meses
O75: Baraya | P75: 74 | Q75: 85 meses
O76: Barbacoas | P76: 75 | Q76: 86 meses
O77: Barbosa | P77: 76 | Q77: 87 meses
O78: Barichara | P78: 77 | Q78: 88 meses
O79: Barranca De Upía | P79: 78 | Q79: 89 meses
O80: Barrancabermeja | P80: 79 | Q80: 90 meses
O81: Barrancas | P81: 80 | Q81: 91 meses
O82: Barranco De Loba | P82: 81 | Q82: 92 meses
O83: Barranco Minas | P83: 82 | Q83: 93 meses
O84: Becerril | P84: 83 | Q84: 94 meses
O85: Belalcázar | P85: 84 | Q85: 95 meses
O86: Belén | P86: 85 | Q86: 96 meses
O87: Belén De Los Andaquíes | P87: 86 | Q87: 97 meses
O88: Belén De Umbría | P88: 87 | Q88: 98 meses
O89: Bello | P89: 88 | Q89: 99 meses
O90: Belmira | P90: 89 | Q90: 100 meses
O91: Beltrán | P91: 90
O92: Berbeo | P92: 91
O93: Betania | P93: 92
O94: Betéitiva | P94: 93
O95: Betulia | P95: 94
O96: Bituima | P96: 95
O97: Boavita | P97: 96
O98: Bochalema | P98: 97
O99: Bojacá | P99: 98
O100: Bojayá | P100: 99
O101: Bolívar | P101: 100
O102: Bosconia | P102: 101
O103: Boyacá | P103: 102
O104: Briceño | P104: 103
O105: Bucarasica | P105: 104
O106: Buenaventura | P106: 105
O107: Buenavista | P107: 106
O108: Buenos Aires | P108: 107
O109: Buesaco | P109: 108
O110: Bugalagrande | P110: 109
O111: Buriticá | P111: 110
O112: Busbanzá | P112: 111
O113: Cabrera | P113: 112
O114: Cabuyaro | P114: 113
O115: Cacahual | P115: 114
O116: Cáceres | P116: 115
O117: Cachipay | P117: 116
O118: Cáchira | P118: 117
O119: Cácota | P119: 118
O120: Caicedo | P120: 119
O121: Caicedonia | P121: 120
O122: Caimito | P122: 121
O123: Cajamarca | P123: 122
O124: Cajibío | P124: 123
O125: Cajicá | P125: 124
O126: Calamar | P126: 125
O127: Calarcá | P127: 126
O128: Caldas | P128: 127
O129: Caldono | P129: 128
O130: California | P130: 129
O131: Calima | P131: 130
O132: Caloto | P132: 131
O133: Campamento | P133: 132
O134: Campo De La Cruz | P134: 133
O135: Campoalegre | P135: 134
O136: Campohermoso | P136: 135
O137: Canalete | P137: 136
O138: Candelaria | P138: 137
O139: Cantagallo | P139: 138
O140: Cañasgordas | P140: 139
O141: Caparrapí | P141: 140
O142: Capitanejo | P142: 141
O143: Cáqueza | P143: 142
O144: Caracolí | P144: 143
O145: Caramanta | P145: 144
O146: Carcasí | P146: 145
O147: Carepa | P147: 146
O148: Carmen De Apicalá | P148: 147
O149: Carmen De Carupa | P149: 148
O150: Carmen Del Darién | P150: 149
O151: Carolina | P151: 150
O152: Cartagena Del Chairá | P152: 151
O153: Cartago | P153: 152
O154: Carurú | P154: 153
O155: Casabianca | P155: 154
O156: Castilla La Nueva | P156: 155
O157: Caucasia | P157: 156
O158: Cepitá | P158: 157
O159: Cereté | P159: 158
O160: Cerinza | P160: 159
O161: Cerrito | P161: 160
O162: Cerro De San Antonio | P162: 161
O163: Cértegui | P163: 162
O164: Chachagüí | P164: 163
O165: Chaguaní | P165: 164
O166: Chalán | P166: 165
O167: Chámeza | P167: 166
O168: Chaparral | P168: 167
O169: Charalá | P169: 168
O170: Charta | P170: 169
O171: Chía | P171: 170
O172: Chigorodó | P172: 171
O173: Chima | P173: 172
O174: Chimá | P174: 173
O175: Chimichagua | P175: 174
O176: Chinácota | P176: 175
O177: Chinavita | P177: 176
O178: Chinchiná | P178: 177
O179: Chinú | P179: 178
O180: Chipaque | P180: 179
O181: Chipatá | P181: 180
O182: Chiquinquirá | P182: 181
O183: Chíquiza | P183: 182
O184: Chiriguaná | P184: 183
O185: Chiscas | P185: 184
O186: Chita | P186: 185
O187: Chitagá | P187: 186
O188: Chitaraque | P188: 187
O189: Chivatá | P189: 188
O190: Chivolo | P190: 189
O191: Chivor | P191: 190
O192: Choachí | P192: 191
O193: Chocontá | P193: 192
O194: Cicuco | P194: 193
O195: Ciénaga | P195: 194
O196: Ciénaga De Oro | P196: 195
O197: Ciénega | P197: 196
O198: Cimitarra | P198: 197
O199: Circasia | P199: 198
O200: Cisneros | P200: 199
... 816 more rows

Sheet tempListas (hidden)
A1: Proveedor | B1: TipCaracteristica | C1: Tramsmisiontipouso | D1: carroceriaarea
A2: Distribuidora Nissan S.A. | B2: Cilindraje | C2: Transmisión | D2: Carroceria
B3: Numero de pasajeros | C3: No Aplica | D3: No Aplica
B4: Peso bruto vehícular | C4: No Aplica | D4: No Aplica
B5: Cilindraje | C5: Transmisión | D5: No Aplica
B6: Cilindraje | C6: Transmisión | D6: No Aplica
B7: Cilindraje | C7: Transmisión | D7: No Aplica
B8: Numero de pasajeros | C8: Tipo de uso | D8: Area
B9: Cilindraje | C9: Transmisión | D9: No Aplica
B10: Cilindraje | C10: Transmisión | D10: No Aplica
B11: Cilindraje | C11: Transmisión | D11: No Aplica
B12: Cilindraje | C12: Transmisión | D12: No Aplica
B13: Cilindraje | C13: Transmisión | D13: No Aplica
B14: Cilindraje | C14: Transmisión | D14: No Aplica
B15: Cilindraje | C15: Transmisión | D15: No Aplica
B16: Numero de pasajeros | C16: Tipo de uso | D16: Area
B17: Tipo | C17: No Aplica | D17: No Aplica
B18: Caracteristica | C18: No Aplica | D18: No Aplica
B19: Tipo | C19: No Aplica | D19: No Aplica

Sheet solCotizacionCSV (hidden)
A1: Tipo (servicio o artÃ­culo) | B1: Cantidad | C1: CÃ³digo de unidad de medida* | D1: PosiciÃ³n | E1: Precio base | F1: Divisa | G1: DescripciÃ³n | H1: MercancÃ­a
A2: item | B2: 4 | C2: Und | E2: 0 | F2: COP | G2: veh02--VehÃ­culo S179
A3: item | B3: 1 | C3: Und | E3: 0 | F3: COP | G3: veh02--Adecuaciones y Accesorios Adicionales
A4: item | B4: 1 | C4: Und | E4: 0 | F4: COP | G4: veh02--Mantenimiento Preventivo
A5: item | B5: 1 | C5: Und | E5: 0 | F5: COP | G5: veh02--Requerimientos de la Matricula
A6: item | B6: 1 | C6: Und | E6: 0 | F6: COP | G6: veh02--Impuesto de Rodamiento
A7: item | B7: 1 | C7: Und | E7: 0 | F7: COP | G7: veh02--GravÃ¡menes adicionales
A8: item | B8: 1 | C8: Und | E8: 0 | F8: COP | G8: veh02--SOAT
A9: item | B9: 1 | C9: Und | E9: 0 | F9: COP | G9: veh02--Lugar de Entrega

Sheet Accesorios (hidden)
A1: segmento | B1: Descripción | H1: Cantidad de Vehículos | J1: Sí / No | K1: Observaciones
A2: Automovil | B2: Adaptación a gas natural (Cuando el Vehículo es a gasolina) | J2: NO
A3: Automovil | B3: Pintura (10% del exterior del Vehículo) | J3: NO
A4: Automovil | B4: Cojinería en cuero | J4: NO
A5: Automovil | B5: Adhesivos de emblemas (por metro cuadrado) | J5: NO
A6: Automovil | B6: Alarma | J6: NO
A7: Automovil | B7: Barra de luces, sistema de perifoneo y sirena | J7: NO
A8: Automovil | B8: Cámara de reversa | J8: NO
A9: Automovil | B9: Forros para los asientos | J9: NO
A10: Automovil | B10: Dispositivo de localización vehicular AVL | J10: NO
A11: Automovil | B11: Gancho trasero de fijación | J11: NO
A12: Automovil | B12: Luces perimetrales | J12: NO
A13: Automovil | B13: Película de seguridad (por vidrio) | J13: NO
A14: Automovil | B14: Sensor de reversa | J14: NO
A15: Automovil | B15: Seguros antirrobo, para espejos, pernos y repuesto | J15: NO
A16: Automovil | B16: Vidrio polarizado (por vidrio) | J16: NO
A17: Automovil | B17: Radio Móvil | J17: NO
A18: Campero Camioneta 4x2 gasolina | B18: Adaptación a gas natural (Cuando el Vehículo es a gasolina) | J18: NO
A19: Campero Camioneta 4x2 gasolina | B19: Defensa | J19: NO
A20: Campero Camioneta 4x2 gasolina | B20: Pintura (10% del exterior del Vehículo) | J20: NO
A21: Campero Camioneta 4x2 gasolina | B21: Piso en poliuretano | J21: NO
A22: Campero Camioneta 4x2 gasolina | B22: Llantas doble propósito | J22: NO
A23: Campero Camioneta 4x2 gasolina | B23: Cojinería en cuero | J23: NO
A24: Campero Camioneta 4x2 gasolina | B24: Sistema de rastreo satelital con monitoreo | J24: NO
A25: Campero Camioneta 4x2 gasolina | B25: Adhesivos de emblemas (por metro cuadrado) | J25: NO
A26: Campero Camioneta 4x2 gasolina | B26: Alarma | J26: NO
A27: Campero Camioneta 4x2 gasolina | B27: Exploradoras adicionales | J27: NO
A28: Campero Camioneta 4x2 gasolina | B28: Forros para los asientos (por asiento) | J28: NO
A29: Campero Camioneta 4x2 gasolina | B29: Barra de luces, sistema de perifoneo y sirena | J29: NO
A30: Campero Camioneta 4x2 gasolina | B30: Winche y bomper | J30: NO
A31: Campero Camioneta 4x2 gasolina | B31: Cámara de reversa | J31: NO
A32: Campero Camioneta 4x2 gasolina | B32: Gancho trasero de fijación | J32: NO
A33: Campero Camioneta 4x2 gasolina | B33: Luces perimetrales | J33: NO
A34: Campero Camioneta 4x2 gasolina | B34: Película de seguridad (por vidrio) | J34: NO
A35: Campero Camioneta 4x2 gasolina | B35: Sensor de reversa | J35: NO
A36: Campero Camioneta 4x2 gasolina | B36: Dispositivo de localización vehicular AVL | J36: NO
A37: Campero Camioneta 4x2 gasolina | B37: Seguros antirrobo, para espejos, pernos y repuesto | J37: NO
A38: Campero Camioneta 4x2 gasolina | B38: Vidrio polarizado (por vidrio) | J38: NO
A39: Campero Camioneta 4x2 gasolina | B39: Radio Móvil | J39: NO
A40: Campero Camioneta 4x4 diésel | B40: Adaptación a gas natural (Cuando el Vehículo es a gasolina) | J40: NO
A41: Campero Camioneta 4x4 diésel | B41: Defensa | J41: NO
A42: Campero Camioneta 4x4 diésel | B42: Pintura (10% del exterior del Vehículo) | J42: NO
A43: Campero Camioneta 4x4 diésel | B43: Piso en poliuretano | J43: NO
A44: Campero Camioneta 4x4 diésel | B44: Llantas doble propósito | J44: NO
A45: Campero Camioneta 4x4 diésel | B45: Cojinería en cuero | J45: NO
A46: Campero Camioneta 4x4 diésel | B46: Sistema de rastreo satelital con monitoreo | J46: NO
A47: Campero Camioneta 4x4 diésel | B47: Adhesivos de emblemas (por metro cuadrado) | J47: NO
A48: Campero Camioneta 4x4 diésel | B48: Alarma | J48: NO
A49: Campero Camioneta 4x4 diésel | B49: Exploradoras adicionales | J49: NO
A50: Campero Camioneta 4x4 diésel | B50: Forros para los asientos (por asiento) | J50: NO
A51: Campero Camioneta 4x4 diésel | B51: Barra de luces, sistema de perifoneo y sirena | J51: NO
A52: Campero Camioneta 4x4 diésel | B52: Winche y bomper | J52: NO
A53: Campero Camioneta 4x4 diésel | B53: Cámara de reversa | J53: NO
A54: Campero Camioneta 4x4 diésel | B54: Gancho trasero de fijación | J54: NO
A55: Campero Camioneta 4x4 diésel | B55: Luces perimetrales | J55: NO
A56: Campero Camioneta 4x4 diésel | B56: Película de seguridad (por vidrio) | J56: NO
A57: Campero Camioneta 4x4 diésel | B57: Sensor de reversa | J57: NO
A58: Campero Camioneta 4x4 diésel | B58: Dispositivo de localización vehicular AVL | J58: NO
A59: Campero Camioneta 4x4 diésel | B59: Seguros antirrobo, para espejos, pernos y repuesto | J59: NO
A60: Campero Camioneta 4x4 diésel | B60: Vidrio polarizado (por vidrio) | J60: NO
A61: Campero Camioneta 4x4 diésel | B61: Radio Móvil | J61: NO
A62: Campero Camioneta 4x4 gasolina | B62: Adaptación a gas natural (Cuando el Vehículo es a gasolina) | J62: NO
A63: Campero Camioneta 4x4 gasolina | B63: Defensa | J63: NO
A64: Campero Camioneta 4x4 gasolina | B64: Pintura (10% del exterior del Vehículo) | J64: NO
A65: Campero Camioneta 4x4 gasolina | B65: Piso en poliuretano | J65: NO
A66: Campero Camioneta 4x4 gasolina | B66: Llantas doble propósito | J66: NO
A67: Campero Camioneta 4x4 gasolina | B67: Cojinería en cuero | J67: NO
A68: Campero Camioneta 4x4 gasolina | B68: Sistema de rastreo satelital con monitoreo | J68: NO
A69: Campero Camioneta 4x4 gasolina | B69: Adhesivos de emblemas (por metro cuadrado) | J69: NO
A70: Campero Camioneta 4x4 gasolina | B70: Alarma | J70: NO
A71: Campero Camioneta 4x4 gasolina | B71: Exploradoras adicionales | J71: NO
A72: Campero Camioneta 4x4 gasolina | B72: Forros para los asientos (por asiento) | J72: NO
A73: Campero Camioneta 4x4 gasolina | B73: Barra de luces, sistema de perifoneo y sirena | J73: NO
A74: Campero Camioneta 4x4 gasolina | B74: Winche y bomper | J74: NO
A75: Campero Camioneta 4x4 gasolina | B75: Cámara de reversa | J75: NO
A76: Campero Camioneta 4x4 gasolina | B76: Gancho trasero de fijación | J76: NO
A77: Campero Camioneta 4x4 gasolina | B77: Luces perimetrales | J77: NO
A78: Campero Camioneta 4x4 gasolina | B78: Película de seguridad (por vidrio) | J78: NO
A79: Campero Camioneta 4x4 gasolina | B79: Sensor de reversa | J79: NO
A80: Campero Camioneta 4x4 gasolina | B80: Dispositivo de localización vehicular AVL | J80: NO
A81: Campero Camioneta 4x4 gasolina | B81: Seguros antirrobo, para espejos, pernos y repuesto | J81: NO
A82: Campero Camioneta 4x4 gasolina | B82: Vidrio polarizado (por vidrio) | J82: NO
A83: Campero Camioneta 4x4 gasolina | B83: Radio Móvil | J83: NO
A84: Pick Up cabina sencilla 4x4 diésel | B84: Adaptación a gas natural (cuando el Vehículo es a gasolina) | J84: NO
A85: Pick Up cabina sencilla 4x4 diésel | B85: Bancas centrales | J85: NO
A86: Pick Up cabina sencilla 4x4 diésel | B86: Defensa | J86: NO
A87: Pick Up cabina sencilla 4x4 diésel | B87: Carpa de platón | J87: NO
A88: Pick Up cabina sencilla 4x4 diésel | B88: Pintura (10% del exterior del Vehículo) | J88: NO
A89: Pick Up cabina sencilla 4x4 diésel | B89: Protector de platón | J89: NO
A90: Pick Up cabina sencilla 4x4 diésel | B90: Llantas doble propósito | J90: NO
A91: Pick Up cabina sencilla 4x4 diésel | B91: Barra antivuelco | J91: NO
A92: Pick Up cabina sencilla 4x4 diésel | B92: Sistema de rastreo satelital con monitoreo | J92: NO
A93: Pick Up cabina sencilla 4x4 diésel | B93: Adhesivos de emblemas (por metro cuadrado) | J93: NO
A94: Pick Up cabina sencilla 4x4 diésel | B94: Alarma | J94: NO
A95: Pick Up cabina sencilla 4x4 diésel | B95: Exploradoras adicionales | J95: NO
A96: Pick Up cabina sencilla 4x4 diésel | B96: Forros para los asientos | J96: NO
A97: Pick Up cabina sencilla 4x4 diésel | B97: Barra de luces, sistema de perifoneo y sirena | J97: NO
A98: Pick Up cabina sencilla 4x4 diésel | B98: Winche y bomper | J98: NO
A99: Pick Up cabina sencilla 4x4 diésel | B99: Cámara de reversa | J99: NO
A100: Pick Up cabina sencilla 4x4 diésel | B100: Dispositivo de localización vehicular AVL | J100: NO
A101: Pick Up cabina sencilla 4x4 diésel | B101: Gancho trasero de fijación | J101: NO
A102: Pick Up cabina sencilla 4x4 diésel | B102: Luces perimetrales | J102: NO
A103: Pick Up cabina sencilla 4x4 diésel | B103: Película de seguridad (por vidrio) | J103: NO
A104: Pick Up cabina sencilla 4x4 diésel | B104: Sensor de reversa | J104: NO
A105: Pick Up cabina sencilla 4x4 diésel | B105: Seguros antirrobo, para espejos, pernos y repuesto | J105: NO
A106: Pick Up cabina sencilla 4x4 diésel | B106: Vidrio polarizado (por vidrio) | J106: NO
A107: Pick Up cabina sencilla 4x4 diésel | B107: Radio Móvil | J107: NO
A108: Pick Up doble cabina 4x4 gasolina | B108: Adaptación a gas natural (cuando el Vehículo es a gasolina) | J108: NO
A109: Pick Up doble cabina 4x4 gasolina | B109: Bancas centrales | J109: NO
A110: Pick Up doble cabina 4x4 gasolina | B110: Defensa | J110: NO
A111: Pick Up doble cabina 4x4 gasolina | B111: Carpa de platón | J111: NO
A112: Pick Up doble cabina 4x4 gasolina | B112: Pintura (10% del exterior del Vehículo) | J112: NO
A113: Pick Up doble cabina 4x4 gasolina | B113: Protector de platón | J113: NO
A114: Pick Up doble cabina 4x4 gasolina | B114: Llantas doble propósito | J114: NO
A115: Pick Up doble cabina 4x4 gasolina | B115: Barra antivuelco | J115: NO
A116: Pick Up doble cabina 4x4 gasolina | B116: Sistema de rastreo satelital con monitoreo | J116: NO
A117: Pick Up doble cabina 4x4 gasolina | B117: Adhesivos de emblemas (por metro cuadrado) | J117: NO
A118: Pick Up doble cabina 4x4 gasolina | B118: Alarma | J118: NO
A119: Pick Up doble cabina 4x4 gasolina | B119: Exploradoras adicionales | J119: NO
A120: Pick Up doble cabina 4x4 gasolina | B120: Forros para los asientos | J120: NO
A121: Pick Up doble cabina 4x4 gasolina | B121: Barra de luces, sistema de perifoneo y sirena | J121: NO
A122: Pick Up doble cabina 4x4 gasolina | B122: Winche y bomper | J122: NO
A123: Pick Up doble cabina 4x4 gasolina | B123: Cámara de reversa | J123: NO
A124: Pick Up doble cabina 4x4 gasolina | B124: Dispositivo de localización vehicular AVL | J124: NO
A125: Pick Up doble cabina 4x4 gasolina | B125: Gancho trasero de fijación | J125: NO
A126: Pick Up doble cabina 4x4 gasolina | B126: Luces perimetrales | J126: NO
A127: Pick Up doble cabina 4x4 gasolina | B127: Película de seguridad (por vidrio) | J127: NO
A128: Pick Up doble cabina 4x4 gasolina | B128: Sensor de reversa | J128: NO
A129: Pick Up doble cabina 4x4 gasolina | B129: Seguros antirrobo, para espejos, pernos y repuesto | J129: NO
A130: Pick Up doble cabina 4x4 gasolina | B130: Vidrio polarizado (por vidrio) | J130: NO
A131: Pick Up cabina sencilla 4x4 gasolina | B131: Adaptación a gas natural (cuando el Vehículo es a gasolina) | J131: NO
A132: Pick Up cabina sencilla 4x4 gasolina | B132: Bancas centrales | J132: NO
A133: Pick Up cabina sencilla 4x4 gasolina | B133: Defensa | J133: NO
A134: Pick Up cabina sencilla 4x4 gasolina | B134: Carpa de platón | J134: NO
A135: Pick Up cabina sencilla 4x4 gasolina | B135: Pintura (10% del exterior del Vehículo) | J135: NO
A136: Pick Up cabina sencilla 4x4 gasolina | B136: Protector de platón | J136: NO
A137: Pick Up cabina sencilla 4x4 gasolina | B137: Llantas doble propósito | J137: NO
A138: Pick Up cabina sencilla 4x4 gasolina | B138: Barra antivuelco | J138: NO
A139: Pick Up cabina sencilla 4x4 gasolina | B139: Sistema de rastreo satelital con monitoreo | J139: NO
A140: Pick Up cabina sencilla 4x4 gasolina | B140: Adhesivos de emblemas (por metro cuadrado) | J140: NO
A141: Pick Up cabina sencilla 4x4 gasolina | B141: Alarma | J141: NO
A142: Pick Up cabina sencilla 4x4 gasolina | B142: Exploradoras adicionales | J142: NO
A143: Pick Up cabina sencilla 4x4 gasolina | B143: Forros para los asientos | J143: NO
A144: Pick Up cabina sencilla 4x4 gasolina | B144: Barra de luces, sistema de perifoneo y sirena | J144: NO
A145: Pick Up cabina sencilla 4x4 gasolina | B145: Winche y bomper | J145: NO
A146: Pick Up cabina sencilla 4x4 gasolina | B146: Cámara de reversa | J146: NO
A147: Pick Up cabina sencilla 4x4 gasolina | B147: Dispositivo de localización vehicular AVL | J147: NO
A148: Pick Up cabina sencilla 4x4 gasolina | B148: Gancho trasero de fijación | J148: NO
A149: Pick Up cabina sencilla 4x4 gasolina | B149: Luces perimetrales | J149: NO
A150: Pick Up cabina sencilla 4x4 gasolina | B150: Película de seguridad (por vidrio) | J150: NO
A151: Pick Up cabina sencilla 4x4 gasolina | B151: Sensor de reversa | J151: NO
A152: Pick Up cabina sencilla 4x4 gasolina | B152: Seguros antirrobo, para espejos, pernos y repuesto | J152: NO
A153: Pick Up cabina sencilla 4x4 gasolina | B153: Vidrio polarizado (por vidrio) | J153: NO
A154: Pick Up cabina sencilla 4x4 gasolina | B154: Radio Móvil | J154: NO
A155: Pick Up doble cabina 4x2 diésel | B155: Adaptación a gas natural (cuando el Vehículo es a gasolina) | J155: NO
A156: Pick Up doble cabina 4x2 diésel | B156: Bancas centrales | J156: NO
A157: Pick Up doble cabina 4x2 diésel | B157: Defensa | J157: NO
A158: Pick Up doble cabina 4x2 diésel | B158: Carpa de platón | J158: NO
A159: Pick Up doble cabina 4x2 diésel | B159: Pintura (10% del exterior del Vehículo) | J159: NO
A160: Pick Up doble cabina 4x2 diésel | B160: Protector de platón | J160: NO
A161: Pick Up doble cabina 4x2 diésel | B161: Llantas doble propósito | J161: NO
A162: Pick Up doble cabina 4x2 diésel | B162: Barra antivuelco | J162: NO
A163: Pick Up doble cabina 4x2 diésel | B163: Sistema de rastreo satelital con monitoreo | J163: NO
A164: Pick Up doble cabina 4x2 diésel | B164: Adhesivos de emblemas (por metro cuadrado) | J164: NO
A165: Pick Up doble cabina 4x2 diésel | B165: Alarma | J165: NO
A166: Pick Up doble cabina 4x2 diésel | B166: Exploradoras adicionales | J166: NO
A167: Pick Up doble cabina 4x2 diésel | B167: Forros para los asientos | J167: NO
A168: Pick Up doble cabina 4x2 diésel | B168: Barra de luces, sistema de perifoneo y sirena | J168: NO
A169: Pick Up doble cabina 4x2 diésel | B169: Winche y bomper | J169: NO
A170: Pick Up doble cabina 4x2 diésel | B170: Cámara de reversa | J170: NO
A171: Pick Up doble cabina 4x2 diésel | B171: Dispositivo de localización vehicular AVL | J171: NO
A172: Pick Up doble cabina 4x2 diésel | B172: Gancho trasero de fijación | J172: NO
A173: Pick Up doble cabina 4x2 diésel | B173: Luces perimetrales | J173: NO
A174: Pick Up doble cabina 4x2 diésel | B174: Película de seguridad (por vidrio) | J174: NO
A175: Pick Up doble cabina 4x2 diésel | B175: Sensor de reversa | J175: NO
A176: Pick Up doble cabina 4x2 diésel | B176: Seguros antirrobo, para espejos, pernos y repuesto | J176: NO
A177: Pick Up doble cabina 4x2 diésel | B177: Vidrio polarizado (por vidrio) | J177: NO
A178: Pick Up doble cabina 4x2 diésel | B178: Radio Móvil | J178: NO
A179: Pick Up doble cabina 4x2 gasolina | B179: Adaptación a gas natural (cuando el Vehículo es a gasolina) | J179: NO
A180: Pick Up doble cabina 4x2 gasolina | B180: Bancas centrales | J180: NO
A181: Pick Up doble cabina 4x2 gasolina | B181: Defensa | J181: NO
A182: Pick Up doble cabina 4x2 gasolina | B182: Carpa de platón | J182: NO
A183: Pick Up doble cabina 4x2 gasolina | B183: Pintura (10% del exterior del Vehículo) | J183: NO
A184: Pick Up doble cabina 4x2 gasolina | B184: Protector de platón | J184: NO
A185: Pick Up doble cabina 4x2 gasolina | B185: Llantas doble propósito | J185: NO
A186: Pick Up doble cabina 4x2 gasolina | B186: Barra antivuelco | J186: NO
A187: Pick Up doble cabina 4x2 gasolina | B187: Sistema de rastreo satelital con monitoreo | J187: NO
A188: Pick Up doble cabina 4x2 gasolina | B188: Adhesivos de emblemas (por metro cuadrado) | J188: NO
A189: Pick Up doble cabina 4x2 gasolina | B189: Alarma | J189: NO
A190: Pick Up doble cabina 4x2 gasolina | B190: Exploradoras adicionales | J190: NO
A191: Pick Up doble cabina 4x2 gasolina | B191: Forros para los asientos | J191: NO
A192: Pick Up doble cabina 4x2 gasolina | B192: Barra de luces, sistema de perifoneo y sirena | J192: NO
A193: Pick Up doble cabina 4x2 gasolina | B193: Winche y bomper | J193: NO
A194: Pick Up doble cabina 4x2 gasolina | B194: Cámara de reversa | J194: NO
A195: Pick Up doble cabina 4x2 gasolina | B195: Dispositivo de localización vehicular AVL | J195: NO
A196: Pick Up doble cabina 4x2 gasolina | B196: Gancho trasero de fijación | J196: NO
A197: Pick Up doble cabina 4x2 gasolina | B197: Luces perimetrales | J197: NO
A198: Pick Up doble cabina 4x2 gasolina | B198: Película de seguridad (por vidrio) | J198: NO
A199: Pick Up doble cabina 4x2 gasolina | B199: Sensor de reversa | J199: NO
A200: Pick Up doble cabina 4x2 gasolina | B200: Seguros antirrobo, para espejos, pernos y repuesto | J200: NO
... 584 more rows

Sheet TempAccesorios (hidden)
A1: Campero Camioneta 4x2 gasolina | B1: Adaptación a gas natural (Cuando el Vehículo es a gasolina) | J1: NO
A2: Campero Camioneta 4x2 gasolina | B2: Defensa | J2: NO
A3: Campero Camioneta 4x2 gasolina | B3: Pintura (10% del exterior del Vehículo) | J3: NO
A4: Campero Camioneta 4x2 gasolina | B4: Piso en poliuretano | J4: NO
A5: Campero Camioneta 4x2 gasolina | B5: Llantas doble propósito | J5: NO
A6: Campero Camioneta 4x2 gasolina | B6: Cojinería en cuero | J6: NO
A7: Campero Camioneta 4x2 gasolina | B7: Sistema de rastreo satelital con monitoreo | J7: NO
A8: Campero Camioneta 4x2 gasolina | B8: Adhesivos de emblemas (por metro cuadrado) | J8: NO
A9: Campero Camioneta 4x2 gasolina | B9: Alarma | J9: NO
A10: Campero Camioneta 4x2 gasolina | B10: Exploradoras adicionales | J10: NO
A11: Campero Camioneta 4x2 gasolina | B11: Forros para los asientos (por asiento) | J11: NO
A12: Campero Camioneta 4x2 gasolina | B12: Barra de luces, sistema de perifoneo y sirena | J12: NO
A13: Campero Camioneta 4x2 gasolina | B13: Winche y bomper | J13: NO
A14: Campero Camioneta 4x2 gasolina | B14: Cámara de reversa | J14: NO
A15: Campero Camioneta 4x2 gasolina | B15: Gancho trasero de fijación | J15: NO
A16: Campero Camioneta 4x2 gasolina | B16: Luces perimetrales | J16: NO
A17: Campero Camioneta 4x2 gasolina | B17: Película de seguridad (por vidrio) | J17: NO
A18: Campero Camioneta 4x2 gasolina | B18: Sensor de reversa | J18: NO
A19: Campero Camioneta 4x2 gasolina | B19: Dispositivo de localización vehicular AVL | J19: NO
A20: Campero Camioneta 4x2 gasolina | B20: Seguros antirrobo, para espejos, pernos y repuesto | J20: NO
A21: Campero Camioneta 4x2 gasolina | B21: Vidrio polarizado (por vidrio) | J21: NO
A22: Campero Camioneta 4x2 gasolina | B22: Radio Móvil | J22: NO

Sheet Consolidado (hidden)
A1: ultrallave | B1: VehiculosSeleccion | C1: Marca-Referencia 1 2 3 | D1: Proveedor | E1: Segmento | F1: Cilindraje | G1: Adecuación | H1: Intervalo de precio (en millones $) | I1: Combustible | J1: Referencia | K1: Marca | L1: Código Fasecolda | M1: referencia 1 | N1: referencia 2 | O1: referencia 3 | P1: Precio referencia (2019) | Q1: 1 | R1: Precio final de 1 und | S1: 2 a 10 | T1: Precio final de 2 a 10 und | U1: 11 a 20 | V1: Precio final de 11 a 20 und | W1: 21 a 30 | X1: Precio final de 21 a 30 und | Y1: 31 a 40 | Z1: Precio final de 31 a 40 und | AA1: Mayor a 40 | AB1: Precio final de mayor a 40 und | AC1: Precio del Mantenimiento Preventivo | AD1: Precio de la Adecuación | AE1: Adaptación a gas natural (Cuando el Vehículo es a gasolina) | AF1: Bancas centrales | AG1: Carrocería pasajeros urbana | AH1: Carrocería pasajeros municipal | AI1: Defensa | AJ1: Carpa de platón | AK1: Pintura (10% del exterior del Vehículo) | AL1: Protector de platón | AM1: Piso en poliuretano | AN1: Llantas doble propósito | AO1: Barra antivuelco | AP1: Cojinería en cuero | AQ1: Sistema de rastreo satelital con monitoreo | AR1: Adhesivos de emblemas (por metro cuadrado) | AS1: Alarma | AT1: Exploradoras adicionales | AU1: Forros para los asientos (por asiento) | AV1: Forros para los asientos | AW1: Barra de luces, sistema de perifoneo y sirena | AX1: Winche y bomper | AY1: Cámara de reversa | AZ1: Gancho trasero de fijación | BA1: Luces perimetrales | BB1: Película de seguridad (por vidrio) | BC1: Sensor de reversa | BD1: Dispositivo de localización vehicular AVL | BE1: Seguros antirrobo, para espejos, pernos y repuesto | BF1: Vidrio polarizado (por vidrio) | BG1: Plataforma adaptada para estacas | BH1: Furgón | BI1: Aire acondicionado | BJ1: Precio cargador | BK1: Radio Móvil | BL1: Rampa para discapacitados | BM1: Disponible 1 | BN1: Disponible 2 | BO1: Disponible 3 | BP1: Disponible 4 | BQ1: Activo | BR1: VrActualizado | BS1: TipCaracteristica | BT1: Tramsmisiontipouso | BU1: carroceriaarea | BV1: cod
A2: =B2&C2&D2 -> VehículoEspecialCamiónMayorde14toneladasyhasta17toneladasydosejesVolquetasencillaIntervalodeprecio1CHEVROLET FVR [2] 700P FORWARD [CORTO] Euro IV MT 7800CC TD 4X2Automayor S.A. | B2: =SUBSTITUTE(SUBSTITUTE(SUBSTITUTE(E2&F2&G2&H2,".","")," ",""),"-","") -> VehículoEspecialCamiónMayorde14toneladasyhasta17toneladasydosejesVolquetasencillaIntervalodeprecio1 | C2: =K2&" "&M2&" "&N2&" "&O2 -> CHEVROLET FVR [2] 700P FORWARD [CORTO] Euro IV MT 7800CC TD 4X2 | D2: Automayor S.A. | E2: Vehículo Especial | F2: Camión Mayor de 14 toneladas y hasta 17 toneladas y dos ejes | G2: Volqueta sencilla | H2: Intervalo de precio 1 | I2: Diésel | J2: FVR [2] 700P FORWARD [CORTO] Euro IV MT 7800CC TD 4X2 | K2: CHEVROLET | L2: 1611147 | M2: FVR [2] | N2: 700P FORWARD [CORTO] Euro IV | O2: MT 7800CC TD 4X2 | P2: 226400000 | Q2: 0.1 | R2: =$P2*(1-Q2) -> 203760000 | S2: 0.1 | T2: =$P2*(1-S2) -> 203760000 | U2: 0.1 | V2: =$P2*(1-U2) -> 203760000 | W2: 0.1 | X2: =$P2*(1-W2) -> 203760000 | Y2: 0.1 | Z2: =$P2*(1-Y2) -> 203760000 | AA2: 0.1 | AB2: =$P2*(1-AA2) -> 203760000 | AC2: 20675512 | AD2: 31095354.4 | AR2: 57717 | AS2: 384780 | AX2: 6156480 | AZ2: 833690 | BA2: 2565200 | BB2: 57717 | BC2: 384780 | BD2: 1173579 | BG2: 25039943.28 | BH2: 25652000 | BI2: 3847800 | BK2: 4200000 | BQ2: 1 | BS2: Caracteristica | BT2: No Aplica | BU2: No Aplica | BV2: S42
A3: VehículoEspecialCamiónMayorde14toneladasyhasta17toneladasydosejesVolquetasencillaIntervalodeprecio1FREIGHTLINER M2 106 [CORTO] [230HP] MT 6400CC TD 4X2Motores y Máquinas S.A. | B3: VehículoEspecialCamiónMayorde14toneladasyhasta17toneladasydosejesVolquetasencillaIntervalodeprecio1 | C3: FREIGHTLINER M2 106 [CORTO] [230HP] MT 6400CC TD 4X2 | D3: Motores y Máquinas S.A. | E3: Vehículo Especial | F3: Camión Mayor de 14 toneladas y hasta 17 toneladas y dos ejes | G3: Volqueta sencilla | H3: Intervalo de precio 1 | I3: Diésel | J3: M2 106 [CORTO] [230HP] MT 6400CC TD 4X2 | K3: FREIGHTLINER | L3: 2926084 | M3: M2 | N3: 106 [CORTO] [230HP] | O3: MT 6400CC TD 4X2 | P3: 195600000 | Q3: 0.02 | R3: 191688000 | S3: 0.02 | T3: 191688000 | U3: 0.02 | V3: 191688000 | W3: 0.02 | X3: 191688000 | Y3: 0.02 | Z3: 191688000 | AA3: 0.02 | AB3: 191688000 | AC3: 7806323 | AD3: 1 | AL3: 867879.3103 | AO3: 705151.9397 | AR3: 130181.8966 | AS3: 401394.181 | AT3: 542424.569 | AX3: 7051519.397 | AY3: 379697.1983 | AZ3: 922121.7672 | BA3: 1247576.509 | BB3: 45021.23922 | BC3: 135606.1422 | BD3: 1627273.707 | BF3: 65090.94828 | BG3: 20880000 | BH3: 20880000 | BI3: 3770000 | BQ3: 0 | BS3: Caracteristica | BT3: No Aplica | BU3: No Aplica | BV3: S42
A4: VehículoEspecialCamiónMayorde72toneladashasta105toneladasydosejesVolquetasencillaIntervalodeprecio1HINO DUTRO CITY [300] [2] EURO IV MT 4000CC TD 4X2Praco Didacol S.A.S. | B4: VehículoEspecialCamiónMayorde72toneladashasta105toneladasydosejesVolquetasencillaIntervalodeprecio1 | C4: HINO DUTRO CITY [300] [2] EURO IV MT 4000CC TD 4X2 | D4: Praco Didacol S.A.S. | E4: Vehículo Especial | F4: Camión Mayor de 7.2 toneladas hasta 10.5 toneladas y dos ejes | G4: Volqueta sencilla | H4: Intervalo de precio 1 | I4: Diésel | J4: DUTRO CITY [300] [2] EURO IV MT 4000CC TD 4X2 | K4: HINO | L4: 3711043 | M4: DUTRO | N4: CITY [300] [2] EURO IV | O4: MT 4000CC TD 4X2 | P4: 116900000 | Q4: 0.055 | R4: 110470500 | S4: 0.055 | T4: 110470500 | U4: 0.055 | V4: 110470500 | W4: 0.055 | X4: 110470500 | Y4: 0.055 | Z4: 110470500 | AA4: 0.055 | AB4: 110470500 | AC4: 12510000 | AD4: 21253000 | AR4: 84500 | AS4: 848000 | AX4: 7420000 | BA4: 1320000 | BB4: 159000 | BC4: 487600 | BD4: 381600 | BI4: 3816000 | BQ4: 0 | BS4: Caracteristica | BT4: No Aplica | BU4: No Aplica | BV4: S132
A5: VehículoEspecialCamiónMayorde14toneladasyhasta17toneladasydosejesVolquetasencillaIntervalodeprecio1VOLKSWAGEN CONSTELLATION 17.230 [3560MM] MT 4600CC TD 4X2Unión Temporal Los Coches-Iberplas-2014 | B5: VehículoEspecialCamiónMayorde14toneladasyhasta17toneladasydosejesVolquetasencillaIntervalodeprecio1 | C5: VOLKSWAGEN CONSTELLATION 17.230 [3560MM] MT 4600CC TD 4X2 | D5: Unión Temporal Los Coches-Iberplas-2014 | E5: Vehículo Especial | F5: Camión Mayor de 14 toneladas y hasta 17 toneladas y dos ejes | G5: Volqueta sencilla | H5: Intervalo de precio 1 | I5: Diésel | J5: CONSTELLATION 17.230 [3560MM] MT 4600CC TD 4X2 | K5: VOLKSWAGEN | L5: 9211029 | M5: CONSTELLATION | N5: 17.230 [3560MM] | O5: MT 4600CC TD 4X2 | P5: 197000000 | Q5: 0.06 | R5: 185180000 | S5: 0.06 | T5: 185180000 | U5: 0.06 | V5: 185180000 | W5: 0.06 | X5: 185180000 | Y5: 0.06 | Z5: 185180000 | AA5: 0.06 | AB5: 0 | AC5: 6996000 | AD5: 20988000 | BK5: 2980000 | BQ5: 1 | BS5: Caracteristica | BT5: No Aplica | BU5: No Aplica | BV5: S42
A6: VehículoEspecialCamiónMayorde17toneladasytresejesVolquetadobletroqueIntervalodeprecio1HINO FM 8J [500] MT 7700CC TD 6X4Praco Didacol S.A.S. | B6: VehículoEspecialCamiónMayorde17toneladasytresejesVolquetadobletroqueIntervalodeprecio1 | C6: HINO FM 8J [500] MT 7700CC TD 6X4 | D6: Praco Didacol S.A.S. | E6: Vehículo Especial | F6: Camión Mayor de 17 toneladas y tres ejes | G6: Volqueta doble troque | H6: Intervalo de precio 1 | I6: Diésel | J6: FM 8J [500] MT 7700CC TD 6X4 | K6: HINO | L6: 3711038 | M6: FM | N6: 8J [500] | O6: MT 7700CC TD 6X4 | P6: 245100000 | Q6: 0.055 | R6: 231619500 | S6: 0.055 | T6: 231619500 | U6: 0.055 | V6: 231619500 | W6: 0.055 | X6: 231619500 | Y6: 0.055 | Z6: 231619500 | AA6: 0.055 | AB6: 231619500 | AC6: 23000000 | AD6: 33200000 | AR6: 84500 | AS6: 848000 | AX6: 5300000 | AZ6: 2430000 | BA6: 1320000 | BB6: 159000 | BC6: 487600 | BD6: 381600 | BG6: 27051200 | BH6: 23977200 | BQ6: 1 | BS6: Caracteristica | BT6: No Aplica | BU6: No Aplica | BV6: S105
A7: VehículoEspecialCamiónMayorde17toneladasytresejesVolquetadobletroqueIntervalodeprecio2FREIGHTLINER M2 106 [LARGO] MT 6400CC TD 6X4Motores y Máquinas S.A. | B7: VehículoEspecialCamiónMayorde17toneladasytresejesVolquetadobletroqueIntervalodeprecio2 | C7: FREIGHTLINER M2 106 [LARGO] MT 6400CC TD 6X4 | D7: Motores y Máquinas S.A. | E7: Vehículo Especial | F7: Camión Mayor de 17 toneladas y tres ejes | G7: Volqueta doble troque | H7: Intervalo de precio 2 | I7: Diésel | J7: M2 106 [LARGO] MT 6400CC TD 6X4 | K7: FREIGHTLINER | L7: 2926083 | M7: M2 | N7: 106 [LARGO] | O7: MT 6400CC TD 6X4 | P7: 260000000 | Q7: 0.02 | R7: 254800000 | S7: 0.02 | T7: 254800000 | U7: 0.02 | V7: 254800000 | W7: 0.02 | X7: 254800000 | Y7: 0.02 | Z7: 254800000 | AA7: 0.02 | AB7: 254800000 | AC7: 7806323 | AD7: 1 | AL7: 867879.3103 | AO7: 705151.9397 | AR7: 130181.8966 | AS7: 401394.181 | AT7: 542424.569 | AX7: 7051519.397 | AY7: 379697.1983 | AZ7: 922121.7672 | BA7: 1247576.509 | BB7: 45021.23922 | BC7: 135606.1422 | BD7: 1627273.707 | BF7: 65090.94828 | BG7: 20880000 | BH7: 20880000 | BI7: 3770000 | BQ7: 0 | BS7: Caracteristica | BT7: No Aplica | BU7: No Aplica | BV7: S130
A8: VehículoEspecialCamiónMayorde17toneladasytresejesVolquetadobletroqueIntervalodeprecio2INTERNATIONAL 7600 WORKSTAR [335HP] MT TD 6X4 [STD]Navitrans S.A.S. | B8: VehículoEspecialCamiónMayorde17toneladasytresejesVolquetadobletroqueIntervalodeprecio2 | C8: INTERNATIONAL 7600 WORKSTAR [335HP] MT TD 6X4 [STD] | D8: Navitrans S.A.S. | E8: Vehículo Especial | F8: Camión Mayor de 17 toneladas y tres ejes | G8: Volqueta doble troque | H8: Intervalo de precio 2 | I8: Diésel | J8: 7600 WORKSTAR [335HP] MT TD 6X4 [FULL] AA | K8: INTERNATIONAL | L8: 3626099 | M8: 7600 | N8: WORKSTAR [335HP] | O8: MT TD 6X4 [STD] | P8: 412000000 | Q8: 0.005 | R8: 409940000 | S8: 0.01 | T8: 407880000 | U8: 0.015 | V8: 405820000 | W8: 0.02 | X8: 403760000 | Y8: 0.025 | Z8: 401700000 | AA8: 0.03 | AB8: 399640000 | AC8: 14000000 | AD8: 1 | AL8: 867879.3103 | AO8: 705151.9397 | AR8: 130181.8966 | AS8: 401394.181 | AT8: 542424.569 | AX8: 7051519.397 | AY8: 379697.1983 | AZ8: 922121.7672 | BA8: 1247576.509 | BB8: 45021.23922 | BC8: 135606.1422 | BD8: 1627273.707 | BF8: 65090.94828 | BQ8: 1 | BS8: Caracteristica | BT8: No Aplica | BU8: No Aplica | BV8: S130
A9: VehículoEspecialCamiónMayorde17toneladasytresejesVolquetaDobleTroqueIntervalodeprecio1MACK GRANITE GU813 STEEL MT 13000CC TD 6X4Praco Didacol S.A.S. | B9: VehículoEspecialCamiónMayorde17toneladasytresejesVolquetaDobleTroqueIntervalodeprecio1 | C9: MACK GRANITE GU813 STEEL MT 13000CC TD 6X4 | D9: Praco Didacol S.A.S. | E9: Vehículo Especial | F9: Camión Mayor de 17 toneladas y tres ejes | G9: Volqueta Doble Troque | H9: Intervalo de precio 1 | I9: Diésel | J9: GRANITE GU813 STEEL MT 13000CC TD 6X4 | K9: MACK | L9: 5426086 | M9: GRANITE | N9: GU813 STEEL | O9: MT 13000CC TD 6X4 | P9: 470300000 | Q9: 0.05 | R9: 446785000 | S9: 0.05 | T9: 446785000 | U9: 0.05 | V9: 446785000 | W9: 0.05 | X9: 446785000 | Y9: 0.05 | Z9: 446785000 | AA9: 0.05 | AB9: 446785000 | AC9: 14850000 | AD9: 43354000 | AR9: 84500 | AS9: 848000 | BA9: 1320000 | BB9: 159000 | BC9: 487600 | BD9: 530000 | BQ9: 1 | BS9: Peso bruto vehícular | BT9: No Aplica | BU9: No Aplica | BV9: S105
A10: VehículoEspecialCamiónMayorde72toneladashasta105toneladasydosejesVehiculoBienestarIntervalodeprecio3CHEVROLET FRR 700P FORWARD (187 HP) MT 5200CC TD 4X2Automayor S.A. | B10: VehículoEspecialCamiónMayorde72toneladashasta105toneladasydosejesVehiculoBienestarIntervalodeprecio3 | C10: CHEVROLET FRR 700P FORWARD (187 HP) MT 5200CC TD 4X2 | D10: Automayor S.A. | E10: Vehículo Especial | F10: Camión Mayor de 7.2 toneladas hasta 10.5 toneladas y dos ejes | G10: Vehiculo Bienestar | H10: Intervalo de precio 3 | I10: Diésel | J10: FRR | K10: CHEVROLET | L10: 1611132 | M10: FRR | N10: 700P FORWARD (187 HP) | O10: MT 5200CC TD 4X2 | P10: 165600000 | Q10: 0.062 | R10: =P10*(1-Q10) -> 155332800 | S10: 0.062 | T10: =P10*(1-S10) -> 155332800 | U10: 0.062 | V10: =P10*(1-U10) -> 155332800 | W10: 0.062 | X10: =P10*(1-W10) -> 155332800 | Y10: 0.062 | Z10: =P10*(1-Y10) -> 155332800 | AA10: 0.062 | AB10: =P10*(1-AA10) -> 155332800 | AC10: 14925616.2 | AD10: 408100000 | AR10: 57717 | AS10: 384780 | AX10: 6156480 | AZ10: 833690 | BA10: 2565200 | BB10: 57717 | BC10: 384780 | BD10: 1173579 | BG10: 19966490.72 | BH10: 20521600 | BI10: 3847800 | BK10: 4200000 | BQ10: 1 | BS10: Peso bruto vehícular | BT10: No Aplica | BU10: No Aplica | BV10: S31
A11: VehículoEspecialCamiónMayorde72toneladashasta105toneladasydosejesVehiculoBienestarIntervalodeprecio3HINO FC 9J [500] [207HP] MT 5100CC TD 4X2Praco Didacol S.A.S. | B11: VehículoEspecialCamiónMayorde72toneladashasta105toneladasydosejesVehiculoBienestarIntervalodeprecio3 | C11: HINO FC 9J [500] [207HP] MT 5100CC TD 4X2 | D11: Praco Didacol S.A.S. | E11: Vehículo Especial | F11: Camión Mayor de 7.2 toneladas hasta 10.5 toneladas y dos ejes | G11: Vehiculo Bienestar | H11: Intervalo de precio 3 | I11: Diésel | J11: FC 9J [500] [207HP] MT 5100CC TD 4X2 | K11: HINO | L11: 3711037 | M11: FC | N11: 9J [500] [207HP] | O11: MT 5100CC TD 4X2 | P11: 151700000 | Q11: 0.055 | R11: =P11*(1-Q11) -> 143356500 | S11: 0.055 | T11: =P11*(1-S11) -> 143356500 | U11: 0.055 | V11: =P11*(1-U11) -> 143356500 | W11: 0.055 | X11: =P11*(1-W11) -> 143356500 | Y11: 0.055 | Z11: =P11*(1-Y11) -> 143356500 | AA11: 0.055 | AB11: =P11*(1-AA11) -> 143356500 | AC11: 14850000 | AD11: 219420000 | AR11: 84500 | AS11: 848000 | AX11: 7420000 | AZ11: 2430000 | BA11: 1320000 | BB11: 159000 | BC11: 487600 | BD11: 381600 | BI11: 4876000 | BQ11: 1 | BS11: Peso bruto vehícular | BT11: No Aplica | BU11: No Aplica | BV11: S181
A12: VehículoEspecialCamiónMayorde72toneladashasta105toneladasydosejesVehiculoBienestarIntervalodeprecio3VOLKSWAGEN CONSTELLATION 15.190 [4800MM] MT 4600CC TD 4X2Unión Temporal Los Coches-Iberplas-2014 | B12: VehículoEspecialCamiónMayorde72toneladashasta105toneladasydosejesVehiculoBienestarIntervalodeprecio3 | C12: VOLKSWAGEN CONSTELLATION 15.190 [4800MM] MT 4600CC TD 4X2 | D12: Unión Temporal Los Coches-Iberplas-2014 | E12: Vehículo Especial | F12: Camión Mayor de 7.2 toneladas hasta 10.5 toneladas y dos ejes | G12: Vehiculo Bienestar | H12: Intervalo de precio 3 | I12: Diésel | J12: COSTELLATION 15-190 | K12: VOLKSWAGEN | L12: 9211030 | M12: CONSTELLATION | N12: 15.190 [4800MM] | O12: MT 4600CC TD 4X2 | P12: 196000000 | Q12: 0.06 | R12: =P12*(1-Q12) -> 184240000 | S12: 0.06 | T12: =P12*(1-S12) -> 184240000 | U12: 0.06 | V12: =P12*(1-U12) -> 184240000 | W12: 0.06 | X12: =P12*(1-W12) -> 184240000 | Y12: 0.06 | Z12: =P12*(1-Y12) -> 184240000 | AA12: 0.06 | AB12: =P12*(1-AA12) -> 184240000 | AC12: 6360000 | AD12: 195888 | BK12: 2980000 | BQ12: 1 | BS12: Caracteristica | BT12: No Aplica | BU12: No Aplica | BV12: S181
A13: VehículoEspecialCamiónMayorde72toneladashasta105toneladasydosejesVehiculoBienestarIntervalodeprecio3IVECO EUROCARGO ML110EL18 MT 3900CC TD 4X2 ABSNavitrans S.A.S. | B13: VehículoEspecialCamiónMayorde72toneladashasta105toneladasydosejesVehiculoBienestarIntervalodeprecio3 | C13: IVECO EUROCARGO ML110EL18 MT 3900CC TD 4X2 ABS | D13: Navitrans S.A.S. | E13: Vehículo Especial | F13: Camión Mayor de 7.2 toneladas hasta 10.5 toneladas y dos ejes | G13: Vehiculo Bienestar | H13: Intervalo de precio 3 | I13: Diesel | J13: ML110EL18 | K13: IVECO | L13: 10211019 | M13: EUROCARGO | N13: ML110EL18 | O13: MT 3900CC TD 4X2 ABS | P13: 171000000 | Q13: 0.005 | R13: =P13*(1-Q13) -> 170145000 | S13: 0.01 | T13: =P13*(1-S13) -> 169290000 | U13: 0.015 | V13: =P13*(1-U13) -> 168435000 | W13: 0.02 | X13: =P13*(1-W13) -> 167580000 | Y13: 0.025 | Z13: =P13*(1-Y13) -> 166725000 | AA13: 0.03 | AB13: =P13*(1-AA13) -> 165870000 | AC13: 18000000 | AD13: 295000000 | AR13: 70000 | AS13: 300000 | AZ13: 800000 | BA13: 1900000 | BB13: 30000 | BC13: 300000 | BD13: 1800000 | BG13: 11000000 | BH13: 10500000 | BQ13: 1 | BS13: Cilindraje | BT13: Transmisión | BU13: No Aplica | BV13: S181
A14: VehículoEspecialMicrobúsde10a19pasajerosVanderetenidosIntervalodeprecio3IVECO DAILY 50C14N [4100MM] MT 3000CC 4X2 [GNC]Navitrans S.A.S. | B14: VehículoEspecialMicrobúsde10a19pasajerosVanderetenidosIntervalodeprecio3 | C14: IVECO DAILY 50C14N [4100MM] MT 3000CC 4X2 [GNC] | D14: Navitrans S.A.S. | E14: Vehículo Especial | F14: Microbús de 10 a 19 pasajeros | G14: Van de retenidos | H14: Intervalo de precio 3 | I14: Gas | J14: DAILY 50C14N [4100MM] MT 3000CC 4X2 [GNC] | K14: IVECO | L14: 10207006 | M14: DAILY | N14: 50C14N [4100MM] | O14: MT 3000CC 4X2 [GNC] | P14: 158000000 | Q14: 0.005 | R14: =$P14*(1-Q14) -> 157210000 | S14: 0.01 | T14: =$P14*(1-S14) -> 156420000 | U14: 0.015 | V14: =$P14*(1-U14) -> 155630000 | W14: 0.02 | X14: =$P14*(1-W14) -> 154840000 | Y14: 0.025 | Z14: =$P14*(1-Y14) -> 154050000 | AA14: 0.03 | AB14: =$P14*(1-AA14) -> 153260000 | AC14: 7000000 | AD14: 35000000 | AL14: 867879.3103 | AO14: 705151.9397 | AR14: 130181.8966 | AS14: 401394.181 | AT14: 542424.569 | AX14: 7051519.397 | AY14: 379697.1983 | AZ14: 922121.7672 | BA14: 1247576.509 | BB14: 45021.23922 | BC14: 135606.1422 | BD14: 1627273.707 | BF14: 65090.94828 | BQ14: 1 | BS14: Caracteristica | BT14: No Aplica | BU14: No Aplica | BV14: S120
A15: VehículoEspecialMicrobúsde10a19pasajerosVandeRetenidosIntervalodeprecio2NISSAN URVAN [E26] NV350 MT 2500CC TD 4X2 AADistribuidora Nissan S.A. | B15: VehículoEspecialMicrobúsde10a19pasajerosVandeRetenidosIntervalodeprecio2 | C15: NISSAN URVAN [E26] NV350 MT 2500CC TD 4X2 AA | D15: Distribuidora Nissan S.A. | E15: Vehículo Especial | F15: Microbús de 10 a 19 pasajeros | G15: Van de Retenidos | H15: Intervalo de precio 2 | I15: Diésel | J15: URVAN [E26] NV350 MT 2500CC TD 4X2 AA | K15: NISSAN | L15: 6407009 | M15: URVAN [E26] | N15: NV350 | O15: MT 2500CC TD 4X2 AA | P15: 102500000 | Q15: 0.01 | R15: =$P15*(1-Q15) -> 101475000 | S15: 0.01 | T15: =$P15*(1-S15) -> 101475000 | U15: 0.01 | V15: =$P15*(1-U15) -> 101475000 | W15: 0.01 | X15: =$P15*(1-W15) -> 101475000 | Y15: 0.01 | Z15: =$P15*(1-Y15) -> 101475000 | AA15: 0.01 | AB15: =$P15*(1-AA15) -> 101475000 | AC15: 5989000 | AD15: 29150000 | AN15: 2213280 | AP15: 1200000 | AQ15: 2213280 | AR15: 371000 | AS15: 853342 | AT15: 806618 | AU15: 96000 | AV15: 288000 | AY15: 816200 | BA15: 2067000 | BB15: 63600 | BC15: 567460 | BD15: 1378000 | BE15: 612341 | BF15: 84800 | BK15: 3921000 | BQ15: 1 | BS15: Caracteristica | BT15: No Aplica | BU15: No Aplica | BV15: S136
A16: VehículoEspecialMicrobúsde10a19pasajerosVanderetenidosIntervalodeprecio2VOLKSWAGEN CRAFTER 35 PANEL MT 2500CC TD AAUnión Temporal Los Coches-Iberplas-2014 | B16: VehículoEspecialMicrobúsde10a19pasajerosVanderetenidosIntervalodeprecio2 | C16: VOLKSWAGEN CRAFTER 35 PANEL MT 2500CC TD AA | D16: Unión Temporal Los Coches-Iberplas-2014 | E16: Vehículo Especial | F16: Microbús de 10 a 19 pasajeros | G16: Van de retenidos | H16: Intervalo de precio 2 | I16: Diésel | J16: CRAFTER 35 PANEL MT 2500CC TD AA | K16: VOLKSWAGEN | L16: 9207007 | M16: CRAFTER 35 | N16: PANEL | O16: MT 2500CC TD AA | P16: 111600000 | Q16: 0.06 | R16: =$P16*(1-Q16) -> 104904000 | S16: 0.06 | T16: =$P16*(1-S16) -> 104904000 | U16: 0.06 | V16: =$P16*(1-U16) -> 104904000 | W16: 0.06 | X16: =$P16*(1-W16) -> 104904000 | Y16: 0.06 | Z16: =$P16*(1-Y16) -> 104904000 | AA16: 0.06 | AB16: =$P16*(1-AA16) -> 104904000 | AC16: 3800000 | AD16: 18000000 | AI16: 510000 | AK16: 600000 | AM16: 2000000 | AN16: 700000 | AQ16: 1800000 | AR16: 220000 | AS16: 325000 | AT16: 500000 | AU16: 1700000 | AW16: 4650000 | AX16: 4000000 | AY16: 600000 | AZ16: 900000 | BA16: 1900000 | BB16: 65000 | BC16: 170000 | BD16: 1100000 | BE16: 650000 | BF16: 90000 | BK16: 2980000 | BQ16: 0 | BS16: Caracteristica | BT16: No Aplica | BU16: No Aplica | BV16: S136
A17: VehículoEspecialMicrobúsde10a19pasajerosVanderetenidosIntervalodeprecio1VOLKSWAGEN TRANSPORTER KOMBI T6 MT 2000CC TD 4X2 AAUnión Temporal Los Coches-Iberplas-2014 | B17: VehículoEspecialMicrobúsde10a19pasajerosVanderetenidosIntervalodeprecio1 | C17: VOLKSWAGEN TRANSPORTER KOMBI T6 MT 2000CC TD 4X2 AA | D17: Unión Temporal Los Coches-Iberplas-2014 | E17: Vehículo Especial | F17: Microbús de 10 a 19 pasajeros | G17: Van de retenidos | H17: Intervalo de precio 1 | I17: Diésel | J17: TRANSPORTER KOMBI T6 MT 2000CC TD 4X2 AA | K17: VOLKSWAGEN | L17: 9207018 | M17: TRANSPORTER | N17: KOMBI T6 | O17: MT 2000CC TD 4X2 AA | P17: 90000000 | Q17: 0.06 | R17: =$P17*(1-Q17) -> 84600000 | S17: 0.06 | T17: =$P17*(1-S17) -> 84600000 | U17: 0.06 | V17: =$P17*(1-U17) -> 84600000 | W17: 0.06 | X17: =$P17*(1-W17) -> 84600000 | Y17: 0.06 | Z17: =$P17*(1-Y17) -> 84600000 | AA17: 0.06 | AB17: =$P17*(1-AA17) -> 84600000 | AC17: 4197600 | AD17: 19820000 | AI17: 520000 | AK17: 660000 | AM17: 2200000 | AN17: 770000 | AQ17: 1900000 | AR17: 240000 | AS17: 325000 | AT17: 500000 | AU17: 1700000 | AW17: 4970000 | AX17: 4300000 | AY17: 660000 | AZ17: 990000 | BA17: 2090000 | BB17: 65000 | BC17: 187000 | BD17: 1200000 | BE17: 650000 | BF17: 90000 | BK17: 2980000 | BQ17: 1 | BS17: Caracteristica | BT17: No Aplica | BU17: No Aplica | BV17: S175
A18: VehículoEspecialCamiónMayorde72toneladashasta105toneladasydosejesUnidadTácticaIntervalodeprecio3CHEVROLET NQR [2] 700P REWARD [153HP] MT 5200CC TD 4X2 [FA] ABSAutomayor S.A. | B18: VehículoEspecialCamiónMayorde72toneladashasta105toneladasydosejesUnidadTácticaIntervalodeprecio3 | C18: CHEVROLET NQR [2] 700P REWARD [153HP] MT 5200CC TD 4X2 [FA] ABS | D18: Automayor S.A. | E18: Vehículo Especial | F18: Camión Mayor de 7.2 toneladas hasta 10.5 toneladas y dos ejes | G18: Unidad Táctica | H18: Intervalo de precio 3 | I18: Diésel | J18: NQR(2) 700P REWARD (153HP) MT 5200CC TD 4X2(FA) ABS | K18: CHEVROLET | L18: 1611157 | M18: NQR [2] | N18: 700P REWARD [153HP] | O18: MT 5200CC TD 4X2 [FA] ABS | P18: 146200000 | Q18: 0.062 | R18: =P18-(P18*Q18) -> 137135600 | S18: 0.062 | T18: =+R18 -> 137135600 | U18: 0.062 | V18: =+T18 -> 137135600 | W18: 0.062 | X18: =+V18 -> 137135600 | Y18: 0.062 | Z18: =+X18 -> 137135600 | AA18: 0.062 | AB18: =+Z18 -> 137135600 | AC18: 13399322.2 | AD18: 171152504 | AR18: 57717 | AS18: 384780 | AX18: 6156480 | AZ18: 833690 | BA18: 2565200 | BB18: 57717 | BC18: 384780 | BD18: 1173579 | BG18: 16693039 | BH18: 17315100 | BI18: 3847800 | BK18: 4200000 | BQ18: 1 | BS18: Peso bruto vehícular | BT18: Transmisión | BU18: No Aplica | BV18: S180
A19: VehículoEspecialCamiónMayorde72toneladashasta105toneladasydosejesUnidadTácticaIntervalodeprecio1FUSO CANTER 7.5M MT 4900CC TD 4X2Motores y Máquinas S.A. | B19: VehículoEspecialCamiónMayorde72toneladashasta105toneladasydosejesUnidadTácticaIntervalodeprecio1 | C19: FUSO CANTER 7.5M MT 4900CC TD 4X2 | D19: Motores y Máquinas S.A. | E19: Vehículo Especial | F19: Camión Mayor de 7.2 toneladas hasta 10.5 toneladas y dos ejes | G19: Unidad Táctica | H19: Intervalo de precio 1 | I19: Diésel | J19: CANTER 7.5M MT 4900CC TD 4X2 | K19: FUSO | L19: 39811002 | M19: CANTER | N19: 7.5M | O19: MT 4900CC TD 4X2 | P19: 97000000 | Q19: 0.02 | R19: =$P19*(1-Q19) -> 95060000 | S19: 0.02 | T19: =$P19*(1-S19) -> 95060000 | U19: 0.02 | V19: =$P19*(1-U19) -> 95060000 | W19: 0.02 | X19: =$P19*(1-W19) -> 95060000 | Y19: 0.02 | Z19: =$P19*(1-Y19) -> 95060000 | AA19: 0.02 | AB19: =$P19*(1-AA19) -> 95060000 | AC19: 7718453.6 | AR19: 253605 | AS19: 293058.2 | AX19: 15148672 | AZ19: 1253823.12 | BA19: 3108087.48 | BB19: 72277.16 | BC19: 171758.16 | BD19: 1208850.5 | BG19: 20880000 | BH19: 20880000 | BI19: 4395820 | BK19: 3013000 | BQ19: 1 | BS19: Peso bruto vehícular | BT19: No Aplica | BU19: No Aplica | BV19: S93
A20: VehículoEspecialCamiónMayorde72toneladashasta105toneladasydosejesUnidadTácticaIntervalodeprecio2HINO DUTRO CITY [300] [2] EURO IV MT 4000CC TD 4X2Praco Didacol S.A.S. | B20: VehículoEspecialCamiónMayorde72toneladashasta105toneladasydosejesUnidadTácticaIntervalodeprecio2 | C20: HINO DUTRO CITY [300] [2] EURO IV MT 4000CC TD 4X2 | D20: Praco Didacol S.A.S. | E20: Vehículo Especial | F20: Camión Mayor de 7.2 toneladas hasta 10.5 toneladas y dos ejes | G20: Unidad Táctica | H20: Intervalo de precio 2 | I20: Diésel | J20: DUTRO CITY [300] [2] EURO IV MT 4000CC TD 4X2 | K20: HINO | L20: 3711043 | M20: DUTRO | N20: CITY [300] [2] EURO IV | O20: MT 4000CC TD 4X2 | P20: 116900000 | Q20: 0.055 | R20: =P20*(1-Q20) -> 110470500 | S20: 0.055 | T20: =P20*(1-S20) -> 110470500 | U20: 0.055 | V20: =P20*(1-U20) -> 110470500 | W20: 0.055 | X20: =P20*(1-W20) -> 110470500 | Y20: 0.055 | Z20: =P20*(1-Y20) -> 110470500 | AA20: 0.055 | AB20: =P20*(1-AA20) -> 110470500 | AC20: 12510000 | AD20: 135000000 | AR20: 84500 | AS20: 848000 | AX20: 7420000 | BA20: 1320000 | BB20: 159000 | BC20: 487600 | BD20: 381600 | BI20: 3816000 | BQ20: 0 | BS20: Peso bruto vehícular | BT20: No Aplica | BU20: No Aplica | BV20: S184
A21: VehículoEspecialCamiónMayorde72toneladashasta105toneladasydosejesUnidadTácticaIntervalodeprecio3VOLKSWAGEN DELIVERY 10-160 (4300MM) MT 3800CC TD 4X2Unión Temporal Los Coches-Iberplas-2014 | B21: VehículoEspecialCamiónMayorde72toneladashasta105toneladasydosejesUnidadTácticaIntervalodeprecio3 | C21: VOLKSWAGEN DELIVERY 10-160 (4300MM) MT 3800CC TD 4X2 | D21: Unión Temporal Los Coches-Iberplas-2014 | E21: Vehículo Especial | F21: Camión Mayor de 7.2 toneladas hasta 10.5 toneladas y dos ejes | G21: Unidad Táctica | H21: Intervalo de precio 3 | I21: Diésel | J21: 10-160 DELIVERY | K21: VOLKSWAGEN | L21: 9211019 | M21: DELIVERY | N21: 10-160 (4300MM) | O21: MT 3800CC TD 4X2 | P21: 118900000 | Q21: 0.06 | R21: =P21*(1-Q21) -> 111766000 | S21: 0.06 | T21: =P21*(1-S21) -> 111766000 | U21: 0.06 | V21: =P21*(1-U21) -> 111766000 | W21: 0.06 | X21: =P21*(1-W21) -> 111766000 | Y21: 0.06 | Z21: =P21*(1-Y21) -> 111766000 | AA21: 0.06 | AB21: =P21*(1-AA21) -> 111766000 | AC21: 7420000 | AD21: 84800000 | BK21: 2980000 | BQ21: 1 | BS21: Peso bruto vehícular | BT21: No Aplica | BU21: No Aplica | BV21: S181
A22: VehículoEspecialMicrobúsde10a19pasajerosUnidadmóvilmigratoria2Intervalodeprecio4MERCEDES BENZ SPRINTER 515 EURO V MT 2200CC TD 4X2 [INT] [19PSJ]Motores y Máquinas S.A. | B22: VehículoEspecialMicrobúsde10a19pasajerosUnidadmóvilmigratoria2Intervalodeprecio4 | C22: MERCEDES BENZ SPRINTER 515 EURO V MT 2200CC TD 4X2 [INT] [19PSJ] | D22: Motores y Máquinas S.A. | E22: Vehículo Especial | F22: Microbús de 10 a 19 pasajeros | G22: Unidad móvil migratoria 2 | H22: Intervalo de precio 4 | I22: Diésel | J22: =M22&" "&N22&" "&O22 -> SPRINTER 515 EURO V MT 2200CC TD 4X2 [INT] [19PSJ] | K22: MERCEDES BENZ | L22: 5803102 | M22: SPRINTER | N22: 515 EURO V | O22: MT 2200CC TD 4X2 [INT] [19PSJ] | P22: 209300000 | Q22: 0.02 | R22: 193158000 | S22: 0.02 | T22: 193158000 | U22: 0.02 | V22: 193158000 | W22: 0.02 | X22: 193158000 | Y22: 0.02 | Z22: 193158000 | AA22: 0.02 | AB22: 193158000 | AC22: 12618000 | AD22: 131950000 | AK22: 1048234 | AM22: 2810788.22 | AN22: 3565888.76 | AP22: 14114978.02 | AQ22: 3481574.24 | AR22: 253605 | AS22: 216313.14 | AT22: 1517308.38 | AU22: 169070 | AW22: 7258377.56 | AX22: 14391238.4 | AY22: 242179.26 | AZ22: 1189406.92 | BA22: 3108086.42 | BB22: 72277.16 | BC22: 112429.96 | BD22: 1208850.5 | BE22: 377953.6 | BF22: 56216.04 | BK22: 3013000 | BQ22: 1 | BS22: Caracteristica | BT22: No Aplica | BU22: No Aplica
A23: VehículoEspecialMicrobúsde10a19pasajerosUnidadmóvilmigratoria2Intervalodeprecio2RENAULT MASTER [3] 2.3L MT 2300CC TD 4X2 2AARenault Sociedad de Fabricación de Automotores S.A. | B23: VehículoEspecialMicrobúsde10a19pasajerosUnidadmóvilmigratoria2Intervalodeprecio2 | C23: RENAULT MASTER [3] 2.3L MT 2300CC TD 4X2 2AA | D23: Renault Sociedad de Fabricación de Automotores S.A. | E23: Vehículo Especial | F23: Microbús de 10 a 19 pasajeros | G23: Unidad móvil migratoria 2 | H23: Intervalo de precio 2 | I23: Diésel | J23: =M23&" "&N23&" "&O23 -> MASTER [3] 2.3L MT 2300CC TD 4X2 2AA | K23: RENAULT | L23: 8007015 | M23: MASTER [3] | N23: 2.3L | O23: MT 2300CC TD 4X2 2AA | P23: 117500000 | Q23: 0.08 | R23: =P23*(1-Q23) -> 108100000 | S23: 0.085 | T23: =P23*(1-S23) -> 107512500 | U23: 0.087 | V23: =P23*(1-U23) -> 107277500 | W23: 0.088 | X23: =P23*(1-W23) -> 107160000 | Y23: 0.089 | Z23: =P23*(1-Y23) -> 107042500 | AA23: 0.09 | AB23: =P23*(1-AA23) -> 106925000 | AC23: 5414500 | AD23: 103486000 | AE23: 1 | AI23: 1541000 | AK23: 1160000 | AM23: 3214000 | AN23: 2694000 | AP23: 932000 | AQ23: 3380000 | AR23: 435000 | AS23: 315000 | AT23: 666000 | AU23: 312375 | AW23: 5605000 | AX23: 10000000 | AY23: 543000 | AZ23: 1275000 | BA23: 2974000 | BB23: 58000 | BC23: 450000 | BD23: 2300000 | BE23: 478000 | BF23: 58000 | BK23: 5353810 | BQ23: 1 | BS23: Caracteristica | BT23: No Aplica | BU23: No Aplica
A24: VehículoEspecialMicrobúsde10a19pasajerosUnidadMóvildeSeguridadTurísticaIntervalodeprecio4MERCEDES BENZ SPRINTER 515 EURO V MT 2200CC TD 4X2 Motores y Máquinas S.A. | B24: VehículoEspecialMicrobúsde10a19pasajerosUnidadMóvildeSeguridadTurísticaIntervalodeprecio4 | C24: MERCEDES BENZ SPRINTER 515 EURO V MT 2200CC TD 4X2 | D24: Motores y Máquinas S.A. | E24: Vehículo Especial | F24: Microbús de 10 a 19 pasajeros | G24: Unidad Móvil de Seguridad Turística | H24: Intervalo de precio 4 | I24: Diésel | J24: SPRINTER 515 EURO V MT 2200CC TD 4X2 | K24: MERCEDES BENZ | L24: 5807007 | M24: SPRINTER | N24: 515 EURO V | O24: MT 2200CC TD 4X2 | P24: 179500000 | Q24: 0.02 | R24: =$P24*(1-Q24) -> 175910000 | S24: 0.02 | T24: =$P24*(1-S24) -> 175910000 | U24: 0.02 | V24: =$P24*(1-U24) -> 175910000 | W24: 0.02 | X24: =$P24*(1-W24) -> 175910000 | Y24: 0.02 | Z24: =$P24*(1-Y24) -> 175910000 | AA24: 0.02 | AB24: =$P24*(1-AA24) -> 175910000 | AC24: 9328731 | AD24: 190000000 | AE24: 1 | AI24: 757625 | AK24: 899000 | AL24: 867879.3103 | AM24: 2410625 | AN24: 3058224 | AO24: 705151.9397 | AQ24: 2985913 | AR24: 130181.8966 | AS24: 401394.181 | AT24: 542424.569 | AU24: 145000 | AW24: 6225024 | AX24: 7051519.397 | AY24: 379697.1983 | AZ24: 922121.7672 | BA24: 1247576.509 | BB24: 45021.23922 | BC24: 135606.1422 | BD24: 1627273.707 | BE24: 324146 | BF24: 65090.94828 | BQ24: 0 | BS24: Caracteristica | BT24: No Aplica | BU24: No Aplica | BV24: S129
A25: VehículoEspecialMicrobúsde10a19pasajerosUnidadMóvildeSeguridadTurísticaIntervalodeprecio4MERCEDES BENZ SPRINTER 515 EURO V MT 2200CC TD 4X2 [INT] [19PSJ]Motores y Máquinas S.A. | B25: VehículoEspecialMicrobúsde10a19pasajerosUnidadMóvildeSeguridadTurísticaIntervalodeprecio4 | C25: MERCEDES BENZ SPRINTER 515 EURO V MT 2200CC TD 4X2 [INT] [19PSJ] | D25: Motores y Máquinas S.A. | E25: Vehículo Especial | F25: Microbús de 10 a 19 pasajeros | G25: Unidad Móvil de Seguridad Turística | H25: Intervalo de precio 4 | I25: Diésel | J25: SPRINTER 515 EURO V MT 2200CC TD 4X2 [INT] [19PSJ] | K25: MERCEDES BENZ | L25: 5803102 | M25: SPRINTER | N25: 515 EURO V | O25: MT 2200CC TD 4X2 [INT] [19PSJ] | P25: 209300000 | Q25: 0.02 | R25: =$P25*(1-Q25) -> 205114000 | S25: 0.02 | T25: =$P25*(1-S25) -> 205114000 | U25: 0.02 | V25: =$P25*(1-U25) -> 205114000 | W25: 0.02 | X25: =$P25*(1-W25) -> 205114000 | Y25: 0.02 | Z25: =$P25*(1-Y25) -> 205114000 | AA25: 0.02 | AB25: =$P25*(1-AA25) -> 205114000 | AC25: 12617667.6 | AD25: 221540000 | AE25: 1 | AK25: 1048234 | AM25: 2810788.22 | AN25: 3565888.76 | AP25: 14114978.02 | AQ25: 3481574.24 | AR25: 253605 | AS25: 216313.14 | AT25: 1517308.38 | AU25: 169070 | AW25: 7258377.56 | AX25: 14391238.4 | AY25: 242179.26 | AZ25: 1189406.92 | BA25: 3108086.42 | BB25: 72277.16 | BC25: 112429.96 | BD25: 1208850.5 | BE25: 377953.6 | BF25: 56216.04 | BK25: 3013000 | BQ25: 1 | BS25: Caracteristica | BT25: No Aplica | BU25: No Aplica | BV25: S129
A26: VehículoEspecialMicrobúsde10a19pasajerosUnidadMóvildeSeguridadTurísticaIntervalodeprecio2RENAULT MASTER [3] 2.3L MT 2300CC TD 4X2 2AARenault Sociedad de Fabricación de Automotores S.A. | B26: VehículoEspecialMicrobúsde10a19pasajerosUnidadMóvildeSeguridadTurísticaIntervalodeprecio2 | C26: RENAULT MASTER [3] 2.3L MT 2300CC TD 4X2 2AA | D26: Renault Sociedad de Fabricación de Automotores S.A. | E26: Vehículo Especial | F26: Microbús de 10 a 19 pasajeros | G26: Unidad Móvil de Seguridad Turística | H26: Intervalo de precio 2 | I26: Diésel | J26: MASTER [3] 2.3L MT 2300CC TD 4X2 2AA | K26: RENAULT | L26: 8007015 | M26: MASTER [3] | N26: 2.3L | O26: MT 2300CC TD 4X2 2AA | P26: 117500000 | Q26: 0.08 | R26: =$P26*(1-Q26) -> 108100000 | S26: 0.085 | T26: =$P26*(1-S26) -> 107512500 | U26: 0.087 | V26: =$P26*(1-U26) -> 107277500 | W26: 0.088 | X26: =$P26*(1-W26) -> 107160000 | Y26: 0.089 | Z26: =$P26*(1-Y26) -> 107042500 | AA26: 0.09 | AB26: =$P26*(1-AA26) -> 106925000 | AC26: 5414500 | AD26: 127730000 | AE26: 1 | AI26: 1541000 | AK26: 1160000 | AM26: 3214000 | AN26: 2694000 | AP26: 932000 | AQ26: 3380000 | AR26: 435000 | AS26: 315000 | AT26: 666000 | AU26: 312375 | AW26: 5605000 | AX26: 10000000 | AY26: 543000 | AZ26: 1275000 | BA26: 2974000 | BB26: 58000 | BC26: 450000 | BD26: 2300000 | BE26: 478000 | BF26: 58000 | BK26: 5353810 | BQ26: 1 | BS26: Caracteristica | BT26: No Aplica | BU26: No Aplica | BV26: S153
A27: VehículoEspecialMicrobúsde10a19pasajerosUnidadMóvildeSeguridadTurísticaIntervalodeprecio4VOLKSWAGEN CRAFTER 50 MAXI MT 2000CC TD 4X2 [INT] AAUnión Temporal Los Coches-Iberplas-2014 | B27: VehículoEspecialMicrobúsde10a19pasajerosUnidadMóvildeSeguridadTurísticaIntervalodeprecio4 | C27: VOLKSWAGEN CRAFTER 50 MAXI MT 2000CC TD 4X2 [INT] AA | D27: Unión Temporal Los Coches-Iberplas-2014 | E27: Vehículo Especial | F27: Microbús de 10 a 19 pasajeros | G27: Unidad Móvil de Seguridad Turística | H27: Intervalo de precio 4 | I27: Diésel | J27: CRAFTER 50 MAXI MT 2000CC TD 4X2 [INT] AA | K27: VOLKSWAGEN | L27: 9203030 | M27: CRAFTER | N27: 50 MAXI | O27: MT 2000CC TD 4X2 [INT] AA | P27: 193200000 | Q27: 0.06 | R27: =$P27*(1-Q27) -> 181608000 | S27: 0.06 | T27: =$P27*(1-S27) -> 181608000 | U27: 0.06 | V27: =$P27*(1-U27) -> 181608000 | W27: 0.06 | X27: =$P27*(1-W27) -> 181608000 | Y27: 0.06 | Z27: =$P27*(1-Y27) -> 181608000 | AA27: 0.06 | AB27: =$P27*(1-AA27) -> 181608000 | AC27: 5300000 | AD27: 216240000 | AI27: 520000 | AK27: 660000 | AM27: 2200000 | AN27: 770000 | AQ27: 1900000 | AR27: 240000 | AS27: 325000 | AT27: 500000 | AU27: 1700000 | AW27: 4970000 | AX27: 4300000 | AY27: 660000 | AZ27: 990000 | BA27: 2090000 | BB27: 65000 | BC27: 187000 | BD27: 1200000 | BE27: 650000 | BF27: 90000 | BK27: 2980000 | BQ27: 1 | BS27: Caracteristica | BT27: No Aplica | BU27: No Aplica | BV27: S129
A28: VehículoEspecialMicrobúsde10a19pasajerosUnidadMóvildeInvestigacióndeIncendiosIntervalodeprecio4MERCEDES BENZ SPRINTER 515 EURO V MT 2200CC TD 4X2 [INT] [19PSJ]Motores y Máquinas S.A. | B28: VehículoEspecialMicrobúsde10a19pasajerosUnidadMóvildeInvestigacióndeIncendiosIntervalodeprecio4 | C28: MERCEDES BENZ SPRINTER 515 EURO V MT 2200CC TD 4X2 [INT] [19PSJ] | D28: Motores y Máquinas S.A. | E28: Vehículo Especial | F28: Microbús de 10 a 19 pasajeros | G28: Unidad Móvil de Investigación de Incendios | H28: Intervalo de precio 4 | I28: Diésel | J28: Sprinter 515 EURO V MT 2200CC TD 4X2 [INT] [19PSJ] | K28: MERCEDES BENZ | L28: 5803102 | M28: SPRINTER | N28: 515 EURO V | O28: MT 2200CC TD 4X2 [INT] [19PSJ] | P28: 209300000 | Q28: 0.02 | R28: 193158000 | S28: 0.02 | T28: 193158000 | U28: 0.02 | V28: 193158000 | W28: 0.02 | X28: 193158000 | Y28: 0.02 | Z28: 193158000 | AA28: 0.02 | AB28: 193158000 | AC28: 12617667.6 | AD28: 326500000 | BK28: 3013000 | BQ28: 1 | BS28: Peso bruto vehícular | BT28: No Aplica | BU28: No Aplica
A29: VehículoEspecialMicrobúsde10a19pasajerosUnidadMóvildeInvestigacióndeIncendiosIntervalodeprecio4IVECO DAILY 50C17 [3950MM] MT 3000CC TD 4X2 [19PSJ]Navitrans S.A.S. | B29: VehículoEspecialMicrobúsde10a19pasajerosUnidadMóvildeInvestigacióndeIncendiosIntervalodeprecio4 | C29: IVECO DAILY 50C17 [3950MM] MT 3000CC TD 4X2 [19PSJ] | D29: Navitrans S.A.S. | E29: Vehículo Especial | F29: Microbús de 10 a 19 pasajeros | G29: Unidad Móvil de Investigación de Incendios | H29: Intervalo de precio 4 | I29: Diésel | J29: DAILY 50C17 [3950MM] MT 3000CC TD 4X2 [19PSJ] | K29: IVECO | L29: 10203019 | M29: DAILY | N29: 50C17 [3950MM] | O29: MT 3000CC TD 4X2 [19PSJ] | P29: 188000000 | Q29: 0.005 | R29: 149250000 | S29: 0.01 | T29: 148500000 | U29: 0.015 | V29: 147750000 | W29: 0.02 | X29: 147000000 | Y29: 0.025 | Z29: 146250000 | AA29: 0.03 | AB29: 145500000 | AC29: 16000000 | AD29: 355000000 | BQ29: 1 | BS29: Peso bruto vehícular | BT29: No Aplica | BU29: No Aplica
A30: VehículoEspecialMicrobúsde10a19pasajerosUnidadMóvildeInvestigacióndeIncendiosIntervalodeprecio2RENAULT MASTER [3] 2.3L MT 2300CC TD 4X2 2AARenault Sociedad de Fabricación de Automotores S.A. | B30: VehículoEspecialMicrobúsde10a19pasajerosUnidadMóvildeInvestigacióndeIncendiosIntervalodeprecio2 | C30: RENAULT MASTER [3] 2.3L MT 2300CC TD 4X2 2AA | D30: Renault Sociedad de Fabricación de Automotores S.A. | E30: Vehículo Especial | F30: Microbús de 10 a 19 pasajeros | G30: Unidad Móvil de Investigación de Incendios | H30: Intervalo de precio 2 | I30: Diésel | J30: MASTER [3] 2.3L MT 2300CC TD 4X2 2AA | K30: RENAULT | L30: 8007015 | M30: MASTER [3] | N30: 2.3L | O30: MT 2300CC TD 4X2 2AA | P30: 117500000 | Q30: 0.08 | R30: 108100000 | S30: 0.085 | T30: 107512500 | U30: 0.087 | V30: 107277500 | W30: 0.088 | X30: 107160000 | Y30: 0.089 | Z30: 107042500 | AA30: 0.09 | AB30: 106925000 | AC30: 5414500 | AD30: 203500000 | BK30: 5353810 | BQ30: 1 | BS30: Peso bruto vehícular | BT30: No Aplica | BU30: No Aplica
A31: VehículoEspecialChasisDobleCabinaGasolinamayora5449ccUnidadmóvildeinvestigaciónIntervalodeprecio1RAM RAM [4][FL] 2500 CREW CAB [LARAMIE] TP 5700CC 4X4 6ABUnión Temporal Los Coches-Iberplas-2014 | B31: VehículoEspecialChasisDobleCabinaGasolinamayora5449ccUnidadmóvildeinvestigaciónIntervalodeprecio1 | C31: RAM RAM [4][FL] 2500 CREW CAB [LARAMIE] TP 5700CC 4X4 6AB | D31: Unión Temporal Los Coches-Iberplas-2014 | E31: Vehículo Especial | F31: Chasis Doble Cabina Gasolina mayor a 5.449cc | G31: Unidad móvil de investigación | H31: Intervalo de precio 1 | I31: Gasolina | J31: RAM [4][FL] 2500 CREW CAB [LARAMIE] TP 5700CC 4X4 6AB | K31: RAM | L31: 2421013 | M31: RAM [4][FL] | N31: 2500 CREW CAB [LARAMIE] | O31: TP 5700CC 4X4 6AB | P31: 160000000 | Q31: 0.03 | R31: =P31*(1-Q31) -> 155200000 | S31: 0.03 | T31: =P31*(1-S31) -> 155200000 | U31: 0.03 | V31: =P31*(1-U31) -> 155200000 | W31: 0.03 | X31: =P31*(1-W31) -> 155200000 | Y31: 0.03 | Z31: =P31*(1-Y31) -> 155200000 | AA31: 0.03 | AB31: =P31*(1-AA31) -> 155200000 | AC31: 13038000 | AD31: 47760000 | AL31: 867879.3103 | AO31: 705151.9397 | AR31: 130181.8966 | AS31: 401394.181 | AT31: 542424.569 | AX31: 7051519.397 | AY31: 379697.1983 | AZ31: 922121.7672 | BA31: 1247576.509 | BB31: 45021.23922 | BC31: 135606.1422 | BD31: 1627273.707 | BF31: 65090.94828 | BK31: 2980000 | BQ31: 1 | BS31: Peso bruto vehícular | BT31: No Aplica | BU31: No Aplica
A32: VehículoEspecialBusde30pasajerosa39pasajerosUnidadMóvilIntervalodeprecio2CHEVROLET FRR 700P FORWARD (BUS)(187HP) MT 5200CC TD 4X2Automayor S.A. | B32: VehículoEspecialBusde30pasajerosa39pasajerosUnidadMóvilIntervalodeprecio2 | C32: CHEVROLET FRR 700P FORWARD (BUS)(187HP) MT 5200CC TD 4X2 | D32: Automayor S.A. | E32: Vehículo Especial | F32: Bus de 30 pasajeros a 39 pasajeros | G32: Unidad Móvil | H32: Intervalo de precio 2 | I32: Diesel | J32: FRR 700P FORWARD(BUS) (187HP) MT 5200CC TD 4X2 | K32: CHEVROLET | L32: 1611140 | M32: FRR | N32: 700P FORWARD (BUS)(187HP) | O32: MT 5200CC TD 4X2 | P32: 166100000 | Q32: 0.12 | R32: =P32*(1-Q32) -> 146168000 | S32: 0.12 | T32: =P32*(1-S32) -> 146168000 | U32: 0.12 | V32: =P32*(1-U32) -> 146168000 | W32: 0.12 | X32: =P32*(1-W32) -> 146168000 | Y32: 0.12 | Z32: =P32*(1-Y32) -> 146168000 | AA32: 0.12 | AB32: =P32*(1-AA32) -> 146168000 | AC32: 14925616.2 | AD32: 618294179.5 | AG32: 107738400 | AH32: 127939350 | AK32: 128260 | AR32: 57717 | AS32: 384780 | AT32: 128260 | AU32: 1923900 | AY32: 513040 | BA32: 2565200 | BB32: 57717 | BC32: 384780 | BD32: 1173579 | BF32: 57717 | BI32: 23086800 | BK32: 4200000 | BL32: 21000000 | BQ32: 1 | BS32: Caracteristica | BT32: No Aplica | BU32: No Aplica | BV32: S177
A33: VehículoEspecialBusde30pasajerosa39pasajerosUnidadMóvilIntervalodeprecio2HINO FC 9J [BUSETON LWB] MT 5100CC TD 4X2Praco Didacol S.A.S. | B33: VehículoEspecialBusde30pasajerosa39pasajerosUnidadMóvilIntervalodeprecio2 | C33: HINO FC 9J [BUSETON LWB] MT 5100CC TD 4X2 | D33: Praco Didacol S.A.S. | E33: Vehículo Especial | F33: Bus de 30 pasajeros a 39 pasajeros | G33: Unidad Móvil | H33: Intervalo de precio 2 | I33: Diesel | J33: FC 9J [BUSETON LWB] MT 5100CC TD4X2 | K33: HINO | L33: 3711033 | M33: FC | N33: 9J [BUSETON LWB] | O33: MT 5100CC TD 4X2 | P33: 148800000 | Q33: 0.055 | R33: =P33*(1-Q33) -> 140616000 | S33: 0.055 | T33: =P33*(1-S33) -> 140616000 | U33: 0.055 | V33: =P33*(1-U33) -> 140616000 | W33: 0.055 | X33: =P33*(1-W33) -> 140616000 | Y33: 0.055 | Z33: =P33*(1-Y33) -> 140616000 | AA33: 0.055 | AB33: =P33*(1-AA33) -> 140616000 | AC33: 14850000 | AD33: 552048000 | AG33: 82400000 | AH33: 130000000 | AK33: 1900000 | AL33: 867879.3103 | AO33: 705151.9397 | AR33: 80000 | AS33: 120000 | AT33: 230000 | AU33: 86000 | AX33: 7051519.397 | AY33: 453663 | AZ33: 922121.7672 | BA33: 1247576.509 | BB33: 80000 | BC33: 290000 | BD33: 382000 | BF33: 50000 | BI33: 22100000 | BQ33: 1 | BS33: Caracteristica | BT33: No Aplica | BU33: No Aplica | BV33: S177
A34: VehículoEspecialPickUpDobleCabina4x4Diésel2450cca2849ccUnidaddecriminalísticaylevantamientodecadáveres3bandejasIntervalodeprecio1RENAULT ALASKAN ZEN MT 2500CC TD 4X4Renault Sociedad de Fabricación de Automotores S.A. | B34: VehículoEspecialPickUpDobleCabina4x4Diésel2450cca2849ccUnidaddecriminalísticaylevantamientodecadáveres3bandejasIntervalodeprecio1 | C34: RENAULT ALASKAN ZEN MT 2500CC TD 4X4 | D34: Renault Sociedad de Fabricación de Automotores S.A. | E34: Vehículo Especial | F34: Pick Up Doble Cabina 4x4 Diésel 2.450cc a 2.849cc | G34: Unidad de criminalística y levantamiento de cadáveres 3 bandejas | H34: Intervalo de precio 1 | I34: Diésel | J34: =M34&" "&N34&" "&O34 -> ALASKAN ZEN MT 2500CC TD 4X4 | K34: RENAULT | L34: 8021003 | M34: ALASKAN | N34: ZEN | O34: MT 2500CC TD 4X4 | P34: 114900000 | Q34: 0.128 | R34: 100454400 | S34: 0.128 | T34: 100454400 | U34: 0.128 | V34: 100454400 | W34: 0.128 | X34: 100454400 | Y34: 0.128 | Z34: 100454400 | AA34: 0.128 | AB34: 100454400 | AC34: 5649200 | AD34: 146162600 | BK34: 5353810 | BQ34: 1 | BS34: Caracteristica | BT34: No Aplica | BU34: No Aplica
A35: VehículoEspecialPickUpDobleCabina4x4Diésel2450cca2849ccUnidaddecriminalísticaylevantamientodecadáveres3bandejasIntervalodeprecio2RENAULT ALASKAN INTENS AT 2500CC TD 4X4Renault Sociedad de Fabricación de Automotores S.A. | B35: VehículoEspecialPickUpDobleCabina4x4Diésel2450cca2849ccUnidaddecriminalísticaylevantamientodecadáveres3bandejasIntervalodeprecio2 | C35: RENAULT ALASKAN INTENS AT 2500CC TD 4X4 | D35: Renault Sociedad de Fabricación de Automotores S.A. | E35: Vehículo Especial | F35: Pick Up Doble Cabina 4x4 Diésel 2.450cc a 2.849cc | G35: Unidad de criminalística y levantamiento de cadáveres 3 bandejas | H35: Intervalo de precio 2 | I35: Diésel | J35: =M35&" "&N35&" "&O35 -> ALASKAN INTENS AT 2500CC TD 4X4 | K35: RENAULT | L35: 8021004 | M35: ALASKAN | N35: INTENS | O35: AT 2500CC TD 4X4 | P35: 136900000 | Q35: 0.068 | R35: 129734400 | S35: 0.068 | T35: 129734400 | U35: 0.068 | V35: 129734400 | W35: 0.068 | X35: 129734400 | Y35: 0.068 | Z35: 129734400 | AA35: 0.068 | AB35: 129734400 | AC35: 5649200 | AD35: 146162600 | BK35: 5353810 | BQ35: 1 | BS35: Caracteristica | BT35: No Aplica | BU35: No Aplica
A36: VehículoEspecialChasisDobleCabinaGasolinamayora5449ccUnidaddecriminalísticaylevantamientodecadáveres3bandejasIntervalodeprecio1RAM RAM [4][FL] 2500 CREW CAB [LARAMIE] TP 5700CC 4X4 6ABUnión Temporal Los Coches-Iberplas-2014 | B36: VehículoEspecialChasisDobleCabinaGasolinamayora5449ccUnidaddecriminalísticaylevantamientodecadáveres3bandejasIntervalodeprecio1 | C36: RAM RAM [4][FL] 2500 CREW CAB [LARAMIE] TP 5700CC 4X4 6AB | D36: Unión Temporal Los Coches-Iberplas-2014 | E36: Vehículo Especial | F36: Chasis Doble Cabina Gasolina mayor a 5.449cc | G36: Unidad de criminalística y levantamiento de cadáveres 3 bandejas | H36: Intervalo de precio 1 | I36: Gasolina | J36: RAM [4][FL] 2500 CREW CAB [LARAMIE] TP 5700CC 4X4 6AB | K36: RAM | L36: 2421013 | M36: RAM [4][FL] | N36: 2500 CREW CAB [LARAMIE] | O36: TP 5700CC 4X4 6AB | P36: 160000000 | Q36: 0.03 | R36: 155200000 | S36: 0.03 | T36: 155200000 | U36: 0.03 | V36: 155200000 | W36: 0.03 | X36: 155200000 | Y36: 0.03 | Z36: 155200000 | AA36: 0.03 | AB36: 155200000 | AC36: 13038000 | AD36: 155000000 | BK36: 2980000 | BQ36: 1 | BS36: Caracteristica | BT36: No Aplica | BU36: No Aplica
A37: VehículoEspecialChasisDobleCabinaGasolinamayora3449ccUnidaddecriminalísticaylevantamientodecadáveres3bandejasIntervalodeprecio1FORD F-150 (13) LARIAT SUPER CREW TP 3500CC 4X4Unión Temporal Los Coches-Iberplas-2014 | B37: VehículoEspecialChasisDobleCabinaGasolinamayora3449ccUnidaddecriminalísticaylevantamientodecadáveres3bandejasIntervalodeprecio1 | C37: FORD F-150 (13) LARIAT SUPER CREW TP 3500CC 4X4 | D37: Unión Temporal Los Coches-Iberplas-2014 | E37: Vehículo Especial | F37: Chasis Doble Cabina Gasolina mayor a 3.449cc | G37: Unidad de criminalística y levantamiento de cadáveres 3 bandejas | H37: Intervalo de precio 1 | I37: Gasolina | J37: =M37&" "&N37&" "&O37 -> F-150 (13) LARIAT SUPER CREW TP 3500CC 4X4 | K37: FORD | L37: 3021073 | M37: F-150 (13) | N37: LARIAT SUPER CREW | O37: TP 3500CC 4X4 | P37: 174000000 | Q37: 0.03 | R37: 168780000 | S37: 0.03 | T37: 168780000 | U37: 0.03 | V37: 168780000 | W37: 0.03 | X37: 168780000 | Y37: 0.03 | Z37: 168780000 | AA37: 0.03 | AB37: 168780000 | AC37: 4770000 | AD37: 165000000 | BK37: 2980000 | BQ37: 1 | BS37: Caracteristica | BT37: No Aplica | BU37: No Aplica
A38: VehículoEspecialMicrobúsde10a19pasajerosUnidaddeCriminalística4bandejasIntervalodeprecio4MERCEDES BENZ SPRINTER 515 EURO V MT 2200CC TD 4X2 [INT] [19PSJ]Motores y Máquinas S.A. | B38: VehículoEspecialMicrobúsde10a19pasajerosUnidaddeCriminalística4bandejasIntervalodeprecio4 | C38: MERCEDES BENZ SPRINTER 515 EURO V MT 2200CC TD 4X2 [INT] [19PSJ] | D38: Motores y Máquinas S.A. | E38: Vehículo Especial | F38: Microbús de 10 a 19 pasajeros | G38: Unidad de Criminalística 4 bandejas | H38: Intervalo de precio 4 | I38: Diésel | J38: SPRINTER 515 EURO V MT 2200CC TD 4X2 [INT[ (19 PSJ] | K38: MERCEDES BENZ | L38: 5803102 | M38: SPRINTER | N38: 515 EURO V | O38: MT 2200CC TD 4X2 [INT] [19PSJ] | P38: 209300000 | Q38: 0.02 | R38: 193158000 | S38: 0.02 | T38: 193158000 | U38: 0.02 | V38: 193158000 | W38: 0.02 | X38: 193158000 | Y38: 0.02 | Z38: 193158000 | AA38: 0.02 | AB38: 193158000 | AC38: 12617667.6 | AD38: 119000000 | BK38: 3013000 | BQ38: 1 | BS38: Peso bruto vehícular | BT38: No Aplica | BU38: No Aplica
A39: VehículoEspecialMicrobúsde10a19pasajerosUnidaddeCriminalística4bandejasIntervalodeprecio2RENAULT MASTER [3] 2.3L MT 2300CC TD 4X2 2AARenault Sociedad de Fabricación de Automotores S.A. | B39: VehículoEspecialMicrobúsde10a19pasajerosUnidaddeCriminalística4bandejasIntervalodeprecio2 | C39: RENAULT MASTER [3] 2.3L MT 2300CC TD 4X2 2AA | D39: Renault Sociedad de Fabricación de Automotores S.A. | E39: Vehículo Especial | F39: Microbús de 10 a 19 pasajeros | G39: Unidad de Criminalística 4 bandejas | H39: Intervalo de precio 2 | I39: Diésel | J39: MASTER [3] 2.3L MT 2300CC TD 4X2 2AA | K39: RENAULT | L39: 8007015 | M39: MASTER [3] | N39: 2.3L | O39: MT 2300CC TD 4X2 2AA | P39: 117500000 | Q39: 0.08 | R39: 108100000 | S39: 0.085 | T39: 107512500 | U39: 0.088 | V39: 107160000 | W39: 0.088 | X39: 107160000 | Y39: 0.089 | Z39: 107042500 | AA39: 0.09 | AB39: 106925000 | AC39: 5414500 | AD39: 98600000 | BK39: 5353810 | BQ39: 1 | BS39: Peso bruto vehícular | BT39: No Aplica | BU39: No Aplica
A40: VehículoEspecialMicrobúsde10a19pasajerosUnidaddecriminalísticaIntervalodeprecio2IVECO DAILY 50C14N [4100MM] MT 3000CC 4X2 [GNC]Navitrans S.A.S. | B40: VehículoEspecialMicrobúsde10a19pasajerosUnidaddecriminalísticaIntervalodeprecio2 | C40: IVECO DAILY 50C14N [4100MM] MT 3000CC 4X2 [GNC] | D40: Navitrans S.A.S. | E40: Vehículo Especial | F40: Microbús de 10 a 19 pasajeros | G40: Unidad de criminalística | H40: Intervalo de precio 2 | I40: Gas | J40: DAILY 50C14N [4100MM] MT 3000CC 4X2 [GNC] | K40: IVECO | L40: 10207006 | M40: DAILY | N40: 50C14N [4100MM] | O40: MT 3000CC 4X2 [GNC] | P40: 158000000 | Q40: 0.005 | R40: =$P40*(1-Q40) -> 157210000 | S40: 0.01 | T40: =$P40*(1-S40) -> 156420000 | U40: 0.015 | V40: =$P40*(1-U40) -> 155630000 | W40: 0.02 | X40: =$P40*(1-W40) -> 154840000 | Y40: 0.025 | Z40: =$P40*(1-Y40) -> 154050000 | AA40: 0.03 | AB40: =$P40*(1-AA40) -> 153260000 | AC40: 7000000 | AD40: 95000000 | AL40: 867879.3103 | AO40: 705151.9397 | AR40: 130181.8966 | AS40: 401394.181 | AT40: 542424.569 | AX40: 7051519.397 | AY40: 379697.1983 | AZ40: 922121.7672 | BA40: 1247576.509 | BB40: 45021.23922 | BC40: 135606.1422 | BD40: 1627273.707 | BF40: 65090.94828 | BQ40: 1 | BS40: Caracteristica | BT40: No Aplica | BU40: No Aplica | BV40: S119
A41: VehículoEspecialChasisDobleCabinaGasolinamayora5449ccUnidaddecriminalísticaIntervalodeprecio1DODGE RAM [4][FL] 2500 CREW CAB [LARAMIE] TP 5700CC 4X4 6AB CTUnión Temporal Los Coches-Iberplas-2014 | B41: VehículoEspecialChasisDobleCabinaGasolinamayora5449ccUnidaddecriminalísticaIntervalodeprecio1 | C41: DODGE RAM [4][FL] 2500 CREW CAB [LARAMIE] TP 5700CC 4X4 6AB CT | D41: Unión Temporal Los Coches-Iberplas-2014 | E41: Vehículo Especial | F41: Chasis Doble Cabina Gasolina mayor a 5.449cc | G41: Unidad de criminalística | H41: Intervalo de precio 1 | I41: Gasolina | J41: RAM [4][FL] 2500 CREW CAB [LARAMIE] TP 5700CC 4X4 6AB CT | K41: DODGE | L41: 2421011 | M41: RAM [4][FL] | N41: 2500 CREW CAB [LARAMIE] | O41: TP 5700CC 4X4 6AB CT | P41: 164700000 | Q41: 0.03 | R41: 159759000 | S41: 0.03 | T41: 159759000 | U41: 0.03 | V41: 159759000 | W41: 0.03 | X41: 159759000 | Y41: 0.03 | Z41: 159759000 | AA41: 0.03 | AB41: 159759000 | AC41: 13038000 | AD41: 130592000 | AL41: 867879.3103 | AO41: 705151.9397 | AR41: 130181.8966 | AS41: 401394.181 | AT41: 542424.569 | AX41: 7051519.397 | AY41: 379697.1983 | AZ41: 922121.7672 | BA41: 1247576.509 | BB41: 45021.23922 | BC41: 135606.1422 | BD41: 1627273.707 | BF41: 65090.94828 | BK41: 2980000 | BQ41: 1 | BS41: Caracteristica | BT41: No Aplica | BU41: No Aplica | BV41: S140
A42: VehículoEspecialChasisDobleCabinaGasolinamayora5449ccUnidaddecriminalísticaIntervalodeprecio1DODGE RAM [4][FL] 2500 POWER WAGON TP 6400CC 4X4Unión Temporal Los Coches-Iberplas-2014 | B42: VehículoEspecialChasisDobleCabinaGasolinamayora5449ccUnidaddecriminalísticaIntervalodeprecio1 | C42: DODGE RAM [4][FL] 2500 POWER WAGON TP 6400CC 4X4 | D42: Unión Temporal Los Coches-Iberplas-2014 | E42: Vehículo Especial | F42: Chasis Doble Cabina Gasolina mayor a 5.449cc | G42: Unidad de criminalística | H42: Intervalo de precio 1 | I42: Gasolina | J42: RAM [4][FL] 2500 POWER WAGON TP 6400CC 4X4 | K42: DODGE | L42: 2421012 | M42: RAM [4][FL] | N42: 2500 POWER WAGON | O42: TP 6400CC 4X4 | P42: 200000000 | Q42: 0.03 | R42: 194000000 | S42: 0.03 | T42: 194000000 | U42: 0.03 | V42: 194000000 | W42: 0.03 | X42: 194000000 | Y42: 0.03 | Z42: 194000000 | AA42: 0.03 | AB42: 194000000 | AC42: 13038000 | AD42: 130592000 | AL42: 867879.3103 | AO42: 705151.9397 | AR42: 130181.8966 | AS42: 401394.181 | AT42: 542424.569 | AX42: 7051519.397 | AY42: 379697.1983 | AZ42: 922121.7672 | BA42: 1247576.509 | BB42: 45021.23922 | BC42: 135606.1422 | BD42: 1627273.707 | BF42: 65090.94828 | BK42: 2980000 | BQ42: 1 | BS42: Caracteristica | BT42: No Aplica | BU42: No Aplica | BV42: S140
A43: VehículoEspecialMicrobúsde10a19pasajerosUnidaddecriminalísticaIntervalodeprecio2IVECO DAILY 50C17 [3950MM] MT 3000CC TD 4X2 [19PSJ]Navitrans S.A.S. | B43: VehículoEspecialMicrobúsde10a19pasajerosUnidaddecriminalísticaIntervalodeprecio2 | C43: IVECO DAILY 50C17 [3950MM] MT 3000CC TD 4X2 [19PSJ] | D43: Navitrans S.A.S. | E43: Vehículo Especial | F43: Microbús de 10 a 19 pasajeros | G43: Unidad de criminalística | H43: Intervalo de precio 2 | I43: Diésel | J43: =M43&" "&N43&" "&O43 -> DAILY 50C17 [3950MM] MT 3000CC TD 4X2 [19PSJ] | K43: IVECO | L43: 10203019 | M43: DAILY | N43: 50C17 [3950MM] | O43: MT 3000CC TD 4X2 [19PSJ] | P43: 188000000 | Q43: 0.005 | R43: 187060000 | S43: 0.01 | T43: 186120000 | U43: 0.015 | V43: 185180000 | W43: 0.02 | X43: 184240000 | Y43: 0.025 | Z43: 183300000 | AA43: 0.03 | AB43: 182360000 | AC43: 7420000 | AD43: 100700000 | AQ43: 1724910 | AS43: 371000 | AT43: 550000 | BC43: 143100 | BE43: 318000 | BQ43: 1 | BS43: Caracteristica | BT43: No Aplica | BU43: No Aplica | BV43: S119
A44: VehículoEspecialMicrobúsde10a19pasajerosUnidaddecriminalísticaIntervalodeprecio1VOLKSWAGEN CRAFTER 35 PANEL MT 2500CC TD AAUnión Temporal Los Coches-Iberplas-2014 | B44: VehículoEspecialMicrobúsde10a19pasajerosUnidaddecriminalísticaIntervalodeprecio1 | C44: VOLKSWAGEN CRAFTER 35 PANEL MT 2500CC TD AA | D44: Unión Temporal Los Coches-Iberplas-2014 | E44: Vehículo Especial | F44: Microbús de 10 a 19 pasajeros | G44: Unidad de criminalística | H44: Intervalo de precio 1 | I44: Diésel | J44: CRAFTER 35 PANEL MT 2500CC TD AA | K44: VOLKSWAGEN | L44: 9207007 | M44: CRAFTER 35 | N44: PANEL | O44: MT 2500CC TD AA | P44: 111600000 | Q44: 0.06 | R44: 104904000 | S44: 0.06 | T44: 104904000 | U44: 0.06 | V44: 104904000 | W44: 0.06 | X44: 104904000 | Y44: 0.06 | Z44: 104904000 | AA44: 0.06 | AB44: 104904000 | AC44: 3800000 | AD44: 85000000 | AI44: 510000 | AK44: 600000 | AM44: 2000000 | AN44: 700000 | AQ44: 1800000 | AR44: 220000 | AS44: 325000 | AT44: 500000 | AU44: 1700000 | AW44: 4650000 | AX44: 4000000 | AY44: 600000 | AZ44: 900000 | BA44: 1900000 | BB44: 65000 | BC44: 170000 | BD44: 1100000 | BE44: 650000 | BF44: 90000 | BK44: 2980000 | BQ44: 0 | BS44: Caracteristica | BT44: No Aplica | BU44: No Aplica | BV44: S167
A45: VehículoEspecialBusetónTransporteMasivoIntervalodeprecio1CHEVROLET NQR [2] 700P REWARD [BUSETON] [153HP] EURO V MT 5200CC TD 4X2 [FA] ABSAutomayor S.A. | B45: VehículoEspecialBusetónTransporteMasivoIntervalodeprecio1 | C45: CHEVROLET NQR [2] 700P REWARD [BUSETON] [153HP] EURO V MT 5200CC TD 4X2 [FA] ABS | D45: Automayor S.A. | E45: Vehículo Especial | F45: Busetón | G45: Transporte Masivo | H45: Intervalo de precio 1 | I45: Diésel | J45: NQR [2] 700P REWARD [BUSETON] [153HP] EURO V MT 5200CC TD 4X2 [FA] ABS | K45: CHEVROLET | L45: 1611162 | M45: NQR [2] | N45: 700P REWARD [BUSETON] [153HP] EURO V | O45: MT 5200CC TD 4X2 [FA] ABS | P45: 166700000 | Q45: 0.062 | R45: 156364600 | S45: 0.062 | T45: 156364600 | U45: 0.062 | V45: 156364600 | W45: 0.062 | X45: 156364600 | Y45: 0.062 | Z45: 156364600 | AA45: 0.062 | AB45: 156364600 | AC45: 13399322.2 | AD45: 82582500 | AG45: 87537450 | AH45: 114472050 | AK45: 128260 | AR45: 57717 | AS45: 384780 | AT45: 128260 | AU45: 1539120 | AY45: 513040 | BA45: 2565200 | BB45: 57717 | BC45: 384780 | BD45: 1173579 | BF45: 57717 | BI45: 19239000 | BK45: 4200000 | BQ45: 1 | BS45: Caracteristica | BT45: No Aplica | BU45: No Aplica | BV45: S72
A46: VehículoEspecialBusetónGasTransporteMasivoIntervalodeprecio1AGRALE MA 10.197 5.9L [4500MM] MT 5900CC GNC 4X2 ABS BUSNavitrans S.A.S. | B46: VehículoEspecialBusetónGasTransporteMasivoIntervalodeprecio1 | C46: AGRALE MA 10.197 5.9L [4500MM] MT 5900CC GNC 4X2 ABS BUS | D46: Navitrans S.A.S. | E46: Vehículo Especial | F46: Busetón Gas | G46: Transporte Masivo | H46: Intervalo de precio 1 | I46: Gas | J46: MA 10.197 5.9L [4500MM] MT 5900CC GNC 4X2 ABS BUS | K46: AGRALE | L46: 10411015 | M46: MA 10.197 | N46: 5.9L [4500MM] | O46: MT 5900CC GNC 4X2 ABS BUS | P46: 335900000 | Q46: 0.005 | R46: 334220500 | S46: 0.01 | T46: 332541000 | U46: 0.015 | V46: 330861500 | W46: 0.02 | X46: 329182000 | Y46: 0.025 | Z46: 327502500 | AA46: 0.03 | AB46: 325823000 | AC46: 11000000 | AD46: 117000000 | BQ46: 1 | BS46: Caracteristica | BT46: No Aplica | BU46: No Aplica | BV46: S173
A47: VehículoEspecialChasisDobleCabinaDiéselmayora2449ccTransportedecaninosIntervalodeprecio2CHEVROLET DMAX [3] [FL] 2.5L WORK MT 2500CC 4X4 TD ABS 2ABAutomayor S.A. | B47: VehículoEspecialChasisDobleCabinaDiéselmayora2449ccTransportedecaninosIntervalodeprecio2 | C47: CHEVROLET DMAX [3] [FL] 2.5L WORK MT 2500CC 4X4 TD ABS 2AB | D47: Automayor S.A. | E47: Vehículo Especial | F47: Chasis Doble Cabina Diésel mayor a 2.449cc | G47: Transporte de caninos | H47: Intervalo de precio 2 | I47: Diésel | J47: DMAX [3] [FL] 2.5L WORK MT 2500CC 4X4 TD ABS 2AB | K47: CHEVROLET | L47: 1621096 | M47: DMAX [3] [FL] | N47: 2.5L WORK | O47: MT 2500CC 4X4 TD ABS 2AB | P47: 108500000 | Q47: 0.074 | R47: 100471000 | S47: 0.074 | T47: 100471000 | U47: 0.074 | V47: 100471000 | W47: 0.074 | X47: 100471000 | Y47: 0.074 | Z47: 100471000 | AA47: 0.074 | AB47: 100471000 | AC47: 4489100 | AD47: 48469454 | AF47: 769560 | AI47: 2565200 | AJ47: 1154340 | AK47: 769560 | AL47: 1154340 | AN47: 1154340 | AO47: 1051732 | AQ47: 1923900 | AR47: 57717 | AS47: 12826 | AT47: 718256 | AV47: 384780 | AW47: 6413000 | AX47: 6156480 | AY47: 577170 | AZ47: 769560 | BA47: 2565200 | BB47: 57717 | BC47: 256520 | BD47: 1173579 | BE47: 448910 | BF47: 57717 | BK47: 4200000 | BQ47: 1 | BS47: Caracteristica | BT47: No Aplica | BU47: No Aplica | BV47: S22
A48: VehículoEspecialChasisDobleCabinaDiéselmayora2449ccTransportedecaninosIntervalodeprecio2CHEVROLET DMAX [3] [FL] 2.5L FULL MT 2500CC 4X4 TD ABS 2ABAutomayor S.A. | B48: VehículoEspecialChasisDobleCabinaDiéselmayora2449ccTransportedecaninosIntervalodeprecio2 | C48: CHEVROLET DMAX [3] [FL] 2.5L FULL MT 2500CC 4X4 TD ABS 2AB | D48: Automayor S.A. | E48: Vehículo Especial | F48: Chasis Doble Cabina Diésel mayor a 2.449cc | G48: Transporte de caninos | H48: Intervalo de precio 2 | I48: Diésel | J48: DMAX [3] [FL] 2.5L FULL MT 2500CC 4X4 TD ABS 2AB | K48: CHEVROLET | L48: 1621095 | M48: DMAX [3] [FL] | N48: 2.5L FULL | O48: MT 2500CC 4X4 TD ABS 2AB | P48: 120000000 | Q48: 0.07 | R48: 111600000 | S48: 0.07 | T48: 111600000 | U48: 0.07 | V48: 111600000 | W48: 0.07 | X48: 111600000 | Y48: 0.07 | Z48: 111600000 | AA48: 0.07 | AB48: 111600000 | AC48: 4489100 | AD48: 48469454 | AF48: 769560 | AI48: 2565200 | AJ48: 1154340 | AK48: 769560 | AL48: 1154340 | AN48: 1154340 | AO48: 1051732 | AQ48: 1923900 | AR48: 57717 | AS48: 12826 | AT48: 718256 | AV48: 384780 | AW48: 6413000 | AX48: 6156480 | AY48: 577170 | AZ48: 769560 | BA48: 2565200 | BB48: 57717 | BC48: 256520 | BD48: 1173579 | BE48: 448910 | BF48: 57717 | BK48: 4200000 | BQ48: 1 | BS48: Caracteristica | BT48: No Aplica | BU48: No Aplica | BV48: S22
A49: VehículoEspecialChasisDobleCabinaDiéselmayora2449ccTransportedecaninosIntervalodeprecio3FORD RANGER LIMITED TP 3200CC TD 4X4Unión Temporal Los Coches-Iberplas-2014 | B49: VehículoEspecialChasisDobleCabinaDiéselmayora2449ccTransportedecaninosIntervalodeprecio3 | C49: FORD RANGER LIMITED TP 3200CC TD 4X4 | D49: Unión Temporal Los Coches-Iberplas-2014 | E49: Vehículo Especial | F49: Chasis Doble Cabina Diésel mayor a 2.449cc | G49: Transporte de caninos | H49: Intervalo de precio 3 | I49: Diésel | J49: RANGER LIMITED TP 3200CC TD 4X4 | K49: FORD | L49: 3021071 | M49: RANGER | N49: LIMITED | O49: TP 3200CC TD 4X4 | P49: 137500000 | Q49: 0.032 | R49: 133100000 | S49: 0.032 | T49: 133100000 | U49: 0.032 | V49: 133100000 | W49: 0.032 | X49: 133100000 | Y49: 0.032 | Z49: 133100000 | AA49: 0.032 | AB49: 133100000 | AC49: 6360000 | AD49: 40810000 | AF49: 2149200 | AI49: 1050000 | AJ49: 722520 | AK49: 313200 | AL49: 1026000 | AN49: 2313360 | AO49: 1296000 | AQ49: 1188000 | AR49: 75600 | AS49: 221400 | AT49: 810000 | AW49: 4622400 | AX49: 7009200 | AY49: 432000 | AZ49: 918000 | BA49: 1188000 | BB49: 27561.6 | BC49: 216000 | BD49: 1188000 | BE49: 132840 | BF49: 54000 | BK49: 2980000 | BQ49: 1 | BS49: Caracteristica | BT49: No Aplica | BU49: No Aplica | BV49: S96
A50: VehículoEspecialChasisDobleCabinaDiéselmayora2449ccTransportedecaninosIntervalodeprecio1NISSAN NP 300 FRONTIER [2] S MT 2500CC 4X4 TD AA 2AB ABSDistribuidora Nissan S.A. | B50: VehículoEspecialChasisDobleCabinaDiéselmayora2449ccTransportedecaninosIntervalodeprecio1 | C50: NISSAN NP 300 FRONTIER [2] S MT 2500CC 4X4 TD AA 2AB ABS | D50: Distribuidora Nissan S.A. | E50: Vehículo Especial | F50: Chasis Doble Cabina Diésel mayor a 2.449cc | G50: Transporte de caninos | H50: Intervalo de precio 1 | I50: Diésel | J50: NP 300 FRONTIER [2] S MT 2500CC 4X4 TD AA 2AB ABS | K50: NISSAN | L50: 6421064 | M50: NP 300 FRONTIER [2] | N50: S | O50: MT 2500CC 4X4 TD AA 2AB ABS | P50: 107000000 | Q50: 0.03 | R50: 103790000 | S50: 0.03 | T50: 103790000 | U50: 0.03 | V50: 103790000 | W50: 0.03 | X50: 103790000 | Y50: 0.03 | Z50: 103790000 | AA50: 0.03 | AB50: 103790000 | AC50: 5459000 | AD50: 42400000 | AF50: 625400 | AI50: 5485500 | AJ50: 826906 | AK50: 991100 | AL50: 0 | AN50: 2213280 | AO50: 1027945.6 | AQ50: 2213280 | AR50: 371000 | AS50: 853342.4 | AT50: 806617.6 | AV50: 478314.4 | AW50: 4934512 | AX50: 9667200 | AY50: 816200 | AZ50: 922200 | BA50: 2067000 | BB50: 63600 | BC50: 567460.4 | BD50: 1378000 | BE50: 612340.8 | BF50: 84800 | BK50: 3921000 | BQ50: 1 | BS50: Caracteristica | BT50: No Aplica | BU50: No Aplica | BV50: S134
A51: VehículoEspecialChasisDobleCabinaDiéselmayora2449ccTransportedecaninosIntervalodeprecio1NISSAN NP 300 FRONTIER [2] S SPORT MT 2500CC 4X4 TD AA 2AB ABSDistribuidora Nissan S.A. | B51: VehículoEspecialChasisDobleCabinaDiéselmayora2449ccTransportedecaninosIntervalodeprecio1 | C51: NISSAN NP 300 FRONTIER [2] S SPORT MT 2500CC 4X4 TD AA 2AB ABS | D51: Distribuidora Nissan S.A. | E51: Vehículo Especial | F51: Chasis Doble Cabina Diésel mayor a 2.449cc | G51: Transporte de caninos | H51: Intervalo de precio 1 | I51: Diésel | J51: NP 300 FRONTIER [2] S SPORT MT 2500CC 4X4 TD AA 2AB ABS | K51: NISSAN | L51: 6421068 | M51: NP 300 FRONTIER [2] | N51: S SPORT | O51: MT 2500CC 4X4 TD AA 2AB ABS | P51: 110500000 | Q51: 0.062 | R51: 103649000 | S51: 0.062 | T51: 103649000 | U51: 0.062 | V51: 103649000 | W51: 0.062 | X51: 103649000 | Y51: 0.062 | Z51: 103649000 | AA51: 0.062 | AB51: 103649000 | AC51: 5459000 | AD51: 40412033.6 | AF51: 625400 | AI51: 5485500 | AJ51: 826906 | AK51: 991100 | AL51: 0 | AN51: 2213280 | AO51: 1027945.6 | AQ51: 2213280 | AR51: 371000 | AS51: 853342.4 | AT51: 0 | AV51: 478314.4 | AW51: 4934512 | AX51: 9667200 | AY51: 816200 | AZ51: 922200 | BA51: 2067000 | BB51: 63600 | BC51: 567460.4 | BD51: 1378000 | BE51: 612340.8 | BF51: 84800 | BK51: 3921000 | BQ51: 1 | BS51: Caracteristica | BT51: No Aplica | BU51: No Aplica | BV51: S134
A52: VehículoEspecialMicrobúsde10a19pasajerosTransportedecaninosIntervalodeprecio1VOLKSWAGEN CRAFTER 35 PANEL MT 2500CC TD AAUnión Temporal Los Coches-Iberplas-2014 | B52: VehículoEspecialMicrobúsde10a19pasajerosTransportedecaninosIntervalodeprecio1 | C52: VOLKSWAGEN CRAFTER 35 PANEL MT 2500CC TD AA | D52: Unión Temporal Los Coches-Iberplas-2014 | E52: Vehículo Especial | F52: Microbús de 10 a 19 pasajeros | G52: Transporte de caninos | H52: Intervalo de precio 1 | I52: Diésel | J52: CRAFTER 35 PANEL MT 2500CC TD AA | K52: VOLKSWAGEN | L52: 9207007 | M52: CRAFTER 35 | N52: PANEL | O52: MT 2500CC TD AA | P52: 111600000 | Q52: 0.06 | R52: 104904000 | S52: 0.06 | T52: 104904000 | U52: 0.06 | V52: 104904000 | W52: 0.06 | X52: 104904000 | Y52: 0.06 | Z52: 104904000 | AA52: 0.06 | AB52: 104904000 | AC52: 3800000 | AD52: 22600000 | AI52: 510000 | AK52: 600000 | AM52: 2000000 | AN52: 700000 | AQ52: 1800000 | AR52: 220000 | AS52: 325000 | AT52: 500000 | AU52: 1700000 | AW52: 4650000 | AX52: 4000000 | AY52: 600000 | AZ52: 900000 | BA52: 1900000 | BB52: 65000 | BC52: 170000 | BD52: 1100000 | BE52: 650000 | BF52: 90000 | BK52: 2980000 | BQ52: 0 | BS52: Caracteristica | BT52: No Aplica | BU52: No Aplica | BV52: S166
A53: VehículoEspecialChasisDobleCabinaDiéselmayora2449ccTransportedeCaninosIntervalodeprecio1NISSAN NP 300 FRONTIER [2] XE MT 2500CC 4X4 TD AA 2AB ABS CRDistribuidora Nissan S.A. | B53: VehículoEspecialChasisDobleCabinaDiéselmayora2449ccTransportedeCaninosIntervalodeprecio1 | C53: NISSAN NP 300 FRONTIER [2] XE MT 2500CC 4X4 TD AA 2AB ABS CR | D53: Distribuidora Nissan S.A. | E53: Vehículo Especial | F53: Chasis Doble Cabina Diésel mayor a 2.449cc | G53: Transporte de Caninos | H53: Intervalo de precio 1 | I53: Diésel | J53: FRONTIER XE MT 2.5 L | K53: NISSAN | L53: 6421063 | M53: NP 300 FRONTIER [2] | N53: XE | O53: MT 2500CC 4X4 TD AA 2AB ABS CR | P53: 120500000 | Q53: 0.03 | R53: 118825000 | S53: 0.03 | T53: =P53*(1-S53) -> 116885000 | U53: 0.03 | V53: =P53*(1-U53) -> 116885000 | W53: 0.03 | X53: =P53*(1-W53) -> 116885000 | Y53: 0.03 | Z53: =P53*(1-Y53) -> 116885000 | AA53: 0.03 | AB53: =P53*(1-AA53) -> 116885000 | AC53: 5459000 | AD53: 42400000 | AF53: 625400 | AI53: 5485500 | AJ53: 826906 | AK53: 991100 | AL53: 0 | AN53: 2213280 | AO53: 1027945.6 | AQ53: 2213280 | AR53: 371000 | AS53: 853342.4 | AT53: 0 | AV53: 478314.4 | AW53: 4934512 | AX53: 9667200 | AY53: 816200 | AZ53: 922200 | BA53: 2067000 | BB53: 63600 | BC53: 567460.4 | BD53: 1378000 | BE53: 612340.8 | BF53: 84800 | BK53: 3921000 | BQ53: 1 | BS53: Cilindraje | BT53: Transmisión | BU53: No Aplica | BV53: S185
A54: VehículoEspecialTractocamionesSemirremolqueVolcoIntervalodeprecio3MACK ANTHEM ELITE MT TD 6X4Praco Didacol S.A.S. | B54: VehículoEspecialTractocamionesSemirremolqueVolcoIntervalodeprecio3 | C54: MACK ANTHEM ELITE MT TD 6X4 | D54: Praco Didacol S.A.S. | E54: Vehículo Especial | F54: Tractocamiones | G54: Semirremolque Volco | H54: Intervalo de precio 3 | I54: Diésel | J54: ANTHEM ELITE MT TD 6X4 | K54: MACK | L54: 5422101 | M54: ANTHEM | N54: ELITE | O54: MT TD 6X4 | P54: 412000000 | Q54: 0.08 | R54: =$P54*(1-Q54) -> 379040000 | S54: 0.08 | T54: =$P54*(1-S54) -> 379040000 | U54: 0.08 | V54: =$P54*(1-U54) -> 379040000 | W54: 0.08 | X54: =$P54*(1-W54) -> 379040000 | Y54: 0.08 | Z54: =$P54*(1-Y54) -> 379040000 | AA54: 0.08 | AB54: =$P54*(1-AA54) -> 379040000 | AC54: 7420000 | AD54: 116398600 | AR54: 84500 | AS54: 848000 | BA54: 1320000 | BB54: 159000 | BC54: 487600 | BD54: 530000 | BQ54: 1 | BS54: Caracteristica | BT54: No Aplica | BU54: No Aplica | BV54: S125
A55: VehículoEspecialTractocamionesSemirremolquevolcoIntervalodeprecio1VOLKSWAGEN TRACTOR [TITAN] 18.310 MT 8300CC TD 4X2Unión Temporal Los Coches-Iberplas-2014 | B55: VehículoEspecialTractocamionesSemirremolquevolcoIntervalodeprecio1 | C55: VOLKSWAGEN TRACTOR [TITAN] 18.310 MT 8300CC TD 4X2 | D55: Unión Temporal Los Coches-Iberplas-2014 | E55: Vehículo Especial | F55: Tractocamiones | G55: Semirremolque volco | H55: Intervalo de precio 1 | I55: Diésel | J55: TRACTOR [TITAN] 18.310 MT 8300CC TD 4X2 | K55: VOLKSWAGEN | L55: 9222002 | M55: TRACTOR [TITAN] | N55: 18.310 | O55: MT 8300CC TD 4X2 | P55: 162500000 | Q55: 0.06 | R55: 152750000 | S55: 0.06 | T55: 152750000 | U55: 0.06 | V55: 152750000 | W55: 0.06 | X55: 152750000 | Y55: 0.06 | Z55: 152750000 | AA55: 0.06 | AB55: 152750000 | AC55: 7000000 | AD55: 87000000 | BK55: 2980000 | BQ55: 0 | BS55: Caracteristica | BT55: No Aplica | BU55: No Aplica | BV55: S172
A56: VehículoEspecialTractocamionesSemirremolqueTanqueIntervalodeprecio3MACK ANTHEM ELITE MT TD 6X4Praco Didacol S.A.S. | B56: VehículoEspecialTractocamionesSemirremolqueTanqueIntervalodeprecio3 | C56: MACK ANTHEM ELITE MT TD 6X4 | D56: Praco Didacol S.A.S. | E56: Vehículo Especial | F56: Tractocamiones | G56: Semirremolque Tanque | H56: Intervalo de precio 3 | I56: Diésel | J56: ANTHEM ELITE MT TD 6X4 | K56: MACK | L56: 5422101 | M56: ANTHEM | N56: ELITE | O56: MT TD 6X4 | P56: 412000000 | Q56: 0.08 | R56: 379040000 | S56: 0.08 | T56: 379040000 | U56: 0.08 | V56: 379040000 | W56: 0.08 | X56: 379040000 | Y56: 0.08 | Z56: 379040000 | AA56: 0.08 | AB56: 379040000 | AC56: 7420000 | AD56: 164747320 | AR56: 84500 | AS56: 848000 | BA56: 1320000 | BB56: 159000 | BC56: 487600 | BD56: 530000 | BQ56: 1 | BS56: Caracteristica | BT56: No Aplica | BU56: No Aplica | BV56: S124
A57: VehículoEspecialTractocamionesSemirremolquetanqueIntervalodeprecio1VOLKSWAGEN TRACTOR [TITAN] 18.310 MT 8300CC TD 4X2Unión Temporal Los Coches-Iberplas-2014 | B57: VehículoEspecialTractocamionesSemirremolquetanqueIntervalodeprecio1 | C57: VOLKSWAGEN TRACTOR [TITAN] 18.310 MT 8300CC TD 4X2 | D57: Unión Temporal Los Coches-Iberplas-2014 | E57: Vehículo Especial | F57: Tractocamiones | G57: Semirremolque tanque | H57: Intervalo de precio 1 | I57: Diésel | J57: TRACTOR [TITAN] 18.310 MT 8300CC TD 4X2 | K57: VOLKSWAGEN | L57: 9222002 | M57: TRACTOR [TITAN] | N57: 18.310 | O57: MT 8300CC TD 4X2 | P57: 162500000 | Q57: 0.06 | R57: 152750000 | S57: 0.06 | T57: 152750000 | U57: 0.06 | V57: 152750000 | W57: 0.06 | X57: 152750000 | Y57: 0.06 | Z57: 152750000 | AA57: 0.06 | AB57: 152750000 | AC57: 7000000 | AD57: 144000000 | BK57: 2980000 | BQ57: 0 | BS57: Caracteristica | BT57: No Aplica | BU57: No Aplica | BV57: S171
A58: VehículoEspecialTractocamionesSemirremolquePlataformaEstacasIntervalodeprecio3MACK ANTHEM ELITE MT TD 6X4Praco Didacol S.A.S. | B58: VehículoEspecialTractocamionesSemirremolquePlataformaEstacasIntervalodeprecio3 | C58: MACK ANTHEM ELITE MT TD 6X4 | D58: Praco Didacol S.A.S. | E58: Vehículo Especial | F58: Tractocamiones | G58: Semirremolque Plataforma Estacas | H58: Intervalo de precio 3 | I58: Diésel | J58: ANTHEM ELITE MT TD 6X4 | K58: MACK | L58: 5422101 | M58: ANTHEM | N58: ELITE | O58: MT TD 6X4 | P58: 412000000 | Q58: 0.08 | R58: 379040000 | S58: 0.08 | T58: 379040000 | U58: 0.08 | V58: 379040000 | W58: 0.08 | X58: 379040000 | Y58: 0.08 | Z58: 379040000 | AA58: 0.08 | AB58: 379040000 | AC58: 7420000 | AD58: 104781000 | AR58: 84500 | AS58: 848000 | BA58: 1320000 | BB58: 159000 | BC58: 487600 | BD58: 530000 | BQ58: 1 | BS58: Caracteristica | BT58: No Aplica | BU58: No Aplica | BV58: S123
A59: VehículoEspecialTractocamionesSemirremolqueplataformaestacasIntervalodeprecio1VOLKSWAGEN TRACTOR [TITAN] 18.310 MT 8300CC TD 4X2Unión Temporal Los Coches-Iberplas-2014 | B59: VehículoEspecialTractocamionesSemirremolqueplataformaestacasIntervalodeprecio1 | C59: VOLKSWAGEN TRACTOR [TITAN] 18.310 MT 8300CC TD 4X2 | D59: Unión Temporal Los Coches-Iberplas-2014 | E59: Vehículo Especial | F59: Tractocamiones | G59: Semirremolque plataforma estacas | H59: Intervalo de precio 1 | I59: Diésel | J59: TRACTOR [TITAN] 18.310 MT 8300CC TD 4X2 | K59: VOLKSWAGEN | L59: 9222002 | M59: TRACTOR [TITAN] | N59: 18.310 | O59: MT 8300CC TD 4X2 | P59: 162500000 | Q59: 0.06 | R59: 152750000 | S59: 0.06 | T59: 152750000 | U59: 0.06 | V59: 152750000 | W59: 0.06 | X59: 152750000 | Y59: 0.06 | Z59: 152750000 | AA59: 0.06 | AB59: 152750000 | AC59: 7000000 | AD59: 59000000 | BK59: 2980000 | BQ59: 0 | BS59: Caracteristica | BT59: No Aplica | BU59: No Aplica | BV59: S170
A60: VehículoEspecialTractocamionesSemirremolqueFurgónIntervalodeprecio3MACK ANTHEM ELITE MT TD 6X4Praco Didacol S.A.S. | B60: VehículoEspecialTractocamionesSemirremolqueFurgónIntervalodeprecio3 | C60: MACK ANTHEM ELITE MT TD 6X4 | D60: Praco Didacol S.A.S. | E60: Vehículo Especial | F60: Tractocamiones | G60: Semirremolque Furgón | H60: Intervalo de precio 3 | I60: Diésel | J60: ANTHEM ELITE MT TD 6X4 | K60: MACK | L60: 5422101 | M60: ANTHEM | N60: ELITE | O60: MT TD 6X4 | P60: 412000000 | Q60: 0.08 | R60: 379040000 | S60: 0.08 | T60: 379040000 | U60: 0.08 | V60: 379040000 | W60: 0.08 | X60: 379040000 | Y60: 0.08 | Z60: 379040000 | AA60: 0.08 | AB60: 379040000 | AC60: 7420000 | AD60: 134641200 | AR60: 84500 | AS60: 848000 | BA60: 1320000 | BB60: 159000 | BC60: 487600 | BD60: 530000 | BQ60: 1 | BS60: Caracteristica | BT60: No Aplica | BU60: No Aplica | BV60: S122
A61: VehículoEspecialTractocamionesSemirremolquefurgónIntervalodeprecio1VOLKSWAGEN TRACTOR [TITAN] 18.310 MT 8300CC TD 4X2Unión Temporal Los Coches-Iberplas-2014 | B61: VehículoEspecialTractocamionesSemirremolquefurgónIntervalodeprecio1 | C61: VOLKSWAGEN TRACTOR [TITAN] 18.310 MT 8300CC TD 4X2 | D61: Unión Temporal Los Coches-Iberplas-2014 | E61: Vehículo Especial | F61: Tractocamiones | G61: Semirremolque furgón | H61: Intervalo de precio 1 | I61: Diésel | J61: TRACTOR [TITAN] 18.310 MT 8300CC TD 4X2 | K61: VOLKSWAGEN | L61: 9222002 | M61: TRACTOR [TITAN] | N61: 18.310 | O61: MT 8300CC TD 4X2 | P61: 162500000 | Q61: 0.06 | R61: 152750000 | S61: 0.06 | T61: 152750000 | U61: 0.06 | V61: 152750000 | W61: 0.06 | X61: 152750000 | Y61: 0.06 | Z61: 152750000 | AA61: 0.06 | AB61: 152750000 | AC61: 7000000 | AD61: 86000000 | BK61: 2980000 | BQ61: 0 | BS61: Caracteristica | BT61: No Aplica | BU61: No Aplica | BV61: S169
A62: VehículoEspecialTractocamionesSemirremolquecamabajaIntervalodeprecio3INTERNATIONAL PROSTAR BASICA EURO IV MT TD 6X4Navitrans S.A.S. | B62: VehículoEspecialTractocamionesSemirremolquecamabajaIntervalodeprecio3 | C62: INTERNATIONAL PROSTAR BASICA EURO IV MT TD 6X4 | D62: Navitrans S.A.S. | E62: Vehículo Especial | F62: Tractocamiones | G62: Semirremolque cama baja | H62: Intervalo de precio 3 | I62: Diésel | J62: PROSTAR BASICA EURO IV MT TD 6X4 | K62: INTERNATIONAL | L62: 3622112 | M62: PROSTAR | N62: BASICA EURO IV | O62: MT TD 6X4 | P62: 410700000 | Q62: 0.005 | R62: 408646500 | S62: 0.01 | T62: 406593000 | U62: 0.015 | V62: 404539500 | W62: 0.02 | X62: 402486000 | Y62: 0.025 | Z62: 400432500 | AA62: 0.03 | AB62: 398379000 | AC62: 16000000 | AD62: 135000000 | AL62: 867879.3103 | AO62: 705151.9397 | AR62: 130181.8966 | AS62: 401394.181 | AT62: 542424.569 | AX62: 7051519.397 | AY62: 379697.1983 | AZ62: 922121.7672 | BA62: 1247576.509 | BB62: 45021.23922 | BC62: 135606.1422 | BD62: 1627273.707 | BF62: 65090.94828 | BQ62: 1 | BS62: Caracteristica | BT62: No Aplica | BU62: No Aplica | BV62: S107
A63: VehículoEspecialTractocamionesSemirremolquecamabajaIntervalodeprecio3MACK ANTHEM ELITE MT TD 6X4Praco Didacol S.A.S. | B63: VehículoEspecialTractocamionesSemirremolquecamabajaIntervalodeprecio3 | C63: MACK ANTHEM ELITE MT TD 6X4 | D63: Praco Didacol S.A.S. | E63: Vehículo Especial | F63: Tractocamiones | G63: Semirremolque cama baja | H63: Intervalo de precio 3 | I63: Diésel | J63: ANTHEM ELITE MT TD 6X4 | K63: MACK | L63: 5422101 | M63: ANTHEM | N63: ELITE | O63: MT TD 6X4 | P63: 412000000 | Q63: 0.08 | R63: 379040000 | S63: 0.08 | T63: 379040000 | U63: 0.08 | V63: 379040000 | W63: 0.08 | X63: 379040000 | Y63: 0.08 | Z63: 379040000 | AA63: 0.08 | AB63: 379040000 | AC63: 7420000 | AD63: 152004000 | AR63: 84500 | AS63: 848000 | BA63: 1320000 | BB63: 159000 | BC63: 487600 | BD63: 530000 | BQ63: 1 | BS63: Caracteristica | BT63: No Aplica | BU63: No Aplica | BV63: S107
A64: VehículoEspecialTractocamionesSemirremolquecamabajaIntervalodeprecio1VOLKSWAGEN TRACTOR [TITAN] 18.310 MT 8300CC TD 4X2Unión Temporal Los Coches-Iberplas-2014 | B64: VehículoEspecialTractocamionesSemirremolquecamabajaIntervalodeprecio1 | C64: VOLKSWAGEN TRACTOR [TITAN] 18.310 MT 8300CC TD 4X2 | D64: Unión Temporal Los Coches-Iberplas-2014 | E64: Vehículo Especial | F64: Tractocamiones | G64: Semirremolque cama baja | H64: Intervalo de precio 1 | I64: Diésel | J64: TRACTOR [TITAN] 18.310 MT 8300CC TD 4X2 | K64: VOLKSWAGEN | L64: 9222002 | M64: TRACTOR [TITAN] | N64: 18.310 | O64: MT 8300CC TD 4X2 | P64: 162500000 | Q64: 0.06 | R64: 152750000 | S64: 0.06 | T64: 152750000 | U64: 0.06 | V64: 152750000 | W64: 0.06 | X64: 152750000 | Y64: 0.06 | Z64: 152750000 | AA64: 0.06 | AB64: 152750000 | AC64: 7000000 | AD64: 75000000 | BK64: 2980000 | BQ64: 0 | BS64: Caracteristica | BT64: No Aplica | BU64: No Aplica | BV64: S168
A65: VehículoEspecialTractocamionesSemiremolqueVolcoIntervalodeprecio3HINO SG1A F7B [500] MT 8900CC TD 4X2Praco Didacol S.A.S. | B65: VehículoEspecialTractocamionesSemiremolqueVolcoIntervalodeprecio3 | C65: HINO SG1A F7B [500] MT 8900CC TD 4X2 | D65: Praco Didacol S.A.S. | E65: Vehículo Especial | F65: Tractocamiones | G65: Semiremolque Volco | H65: Intervalo de precio 3 | I65: Diésel | J65: SG1A F7B [500] MT 8900CC TD 4X2 | K65: HINO | L65: 3722008 | M65: SG1A | N65: F7B [500] | O65: MT 8900CC TD 4X2 | P65: 252600000 | Q65: 0.055 | R65: =P65-(P65*Q65) -> 238707000 | S65: 0.055 | T65: =P65-(P65*S65) -> 238707000 | U65: 0.055 | V65: =P65-(P65*U65) -> 238707000 | W65: 0.055 | X65: =P65-(P65*W65) -> 238707000 | Y65: 0.055 | Z65: =P65-(P65*Y65) -> 238707000 | AA65: 0.055 | AB65: =P65-(P65*AA65) -> 238707000 | AC65: 23624000 | AD65: 128048000 | AR65: 84500 | AS65: 848000 | BA65: 1320000 | BB65: 159000 | BC65: 487600 | BD65: 530000 | BQ65: 1 | BS65: Peso bruto vehícular | BT65: No Aplica | BU65: No Aplica | BV65: S123
A66: =B66&C66&D66 -> VehículoEspecialTractocamionesSemiremolqueVolcoIntervalodeprecio3MACK ANTHEM ELITE MT TD 6X4Praco Didacol S.A.S. | B66: =SUBSTITUTE(SUBSTITUTE(SUBSTITUTE(E66&F66&G66&H66,".","")," ",""),"-","") -> VehículoEspecialTractocamionesSemiremolqueVolcoIntervalodeprecio3 | C66: =K66&" "&M66&" "&N66&" "&O66 -> MACK ANTHEM ELITE MT TD 6X4 | D66: Praco Didacol S.A.S. | E66: Vehículo Especial | F66: Tractocamiones | G66: Semiremolque Volco | H66: Intervalo de precio 3 | I66: Diésel | J66: ANTHEM ELITE MT TD 6X4 | K66: MACK | L66: 5422101 | M66: ANTHEM | N66: ELITE | O66: MT TD 6X4 | P66: 412000000 | Q66: 0.08 | R66: 379040000 | S66: 0.08 | T66: 379040000 | U66: 0.08 | V66: 379040000 | W66: 0.08 | X66: 379040000 | Y66: 0.08 | Z66: 379040000 | AA66: 0.08 | AB66: 379040000 | AC66: 7420000 | AD66: 116398600 | AR66: 84500 | AS66: 848000 | BA66: 1320000 | BB66: 159000 | BC66: 487600 | BD66: 530000 | BQ66: 1 | BS66: Caracteristica | BT66: No Aplica | BU66: No Aplica | BV66: S123
A67: VehículoEspecialTractocamionesSemiremolqueTanqueIntervalodeprecio3HINO SG1A F7B [500] MT 8900CC TD 4X2Praco Didacol S.A.S. | B67: VehículoEspecialTractocamionesSemiremolqueTanqueIntervalodeprecio3 | C67: HINO SG1A F7B [500] MT 8900CC TD 4X2 | D67: Praco Didacol S.A.S. | E67: Vehículo Especial | F67: Tractocamiones | G67: Semiremolque Tanque | H67: Intervalo de precio 3 | I67: Diésel | J67: SG1A F7B [500] MT 8900CC TD 4X2 | K67: HINO | L67: 3722008 | M67: SG1A | N67: F7B [500] | O67: MT 8900CC TD 4X2 | P67: 252600000 | Q67: 0.055 | R67: =P67-(P67*Q67) -> 238707000 | S67: 0.055 | T67: =P67-(P67*S67) -> 238707000 | U67: 0.055 | V67: =P67-(P67*U67) -> 238707000 | W67: 0.055 | X67: =P67-(P67*W67) -> 238707000 | Y67: 0.055 | Z67: =P67-(P67*Y67) -> 238707000 | AA67: 0.055 | AB67: =P67-(P67*AA67) -> 238707000 | AC67: 23624000 | AD67: 181260000 | AR67: 84500 | AS67: 848000 | BA67: 1320000 | BB67: 159000 | BC67: 487600 | BD67: 530000 | BQ67: 1 | BS67: Peso bruto vehícular | BT67: No Aplica | BU67: No Aplica | BV67: S123
A68: VehículoEspecialTractocamionesSemiremolqueTanqueIntervalodeprecio3MACK ANTHEM ELITE MT TD 6X4Praco Didacol S.A.S. | B68: VehículoEspecialTractocamionesSemiremolqueTanqueIntervalodeprecio3 | C68: MACK ANTHEM ELITE MT TD 6X4 | D68: Praco Didacol S.A.S. | E68: Vehículo Especial | F68: Tractocamiones | G68: Semiremolque Tanque | H68: Intervalo de precio 3 | I68: Diésel | J68: ANTHEM ELITE MT TD 6X4 | K68: MACK | L68: 5422101 | M68: ANTHEM | N68: ELITE | O68: MT TD 6X4 | P68: 412000000 | Q68: 0.08 | R68: 379040000 | S68: 0.08 | T68: 379040000 | U68: 0.08 | V68: 379040000 | W68: 0.08 | X68: 379040000 | Y68: 0.08 | Z68: 379040000 | AA68: 0.08 | AB68: 379040000 | AC68: 7420000 | AD68: 164747320 | AR68: 84500 | AS68: 848000 | BA68: 1320000 | BB68: 159000 | BC68: 487600 | BD68: 530000 | BQ68: 1 | BS68: Caracteristica | BT68: No Aplica | BU68: No Aplica | BV68: S123
A69: VehículoEspecialTractocamionesSemiremolquePlataformaEstacasIntervalodeprecio3HINO SG1A F7B [500] MT 8900CC TD 4X2Praco Didacol S.A.S. | B69: VehículoEspecialTractocamionesSemiremolquePlataformaEstacasIntervalodeprecio3 | C69: HINO SG1A F7B [500] MT 8900CC TD 4X2 | D69: Praco Didacol S.A.S. | E69: Vehículo Especial | F69: Tractocamiones | G69: Semiremolque Plataforma Estacas | H69: Intervalo de precio 3 | I69: Diésel | J69: SG1A F7B [500] MT 8900CC TD 4X2 | K69: HINO | L69: 3722008 | M69: SG1A | N69: F7B [500] | O69: MT 8900CC TD 4X2 | P69: 252600000 | Q69: 0.055 | R69: =P69-(P69*Q69) -> 238707000 | S69: 0.055 | T69: =P69-(P69*S69) -> 238707000 | U69: 0.055 | V69: =P69-(P69*U69) -> 238707000 | W69: 0.055 | X69: =P69-(P69*W69) -> 238707000 | Y69: 0.055 | Z69: =P69-(P69*Y69) -> 238707000 | AA69: 0.055 | AB69: =P69-(P69*AA69) -> 238707000 | AC69: 23624000 | AD69: 115328000 | AR69: 84500 | AS69: 848000 | BA69: 1320000 | BB69: 159000 | BC69: 487600 | BD69: 530000 | BQ69: 1 | BS69: Peso bruto vehícular | BT69: No Aplica | BU69: No Aplica | BV69: S123
A70: VehículoEspecialTractocamionesSemiremolquePlataformaEstacasIntervalodeprecio3MACK ANTHEM ELITE MT TD 6X4Praco Didacol S.A.S. | B70: VehículoEspecialTractocamionesSemiremolquePlataformaEstacasIntervalodeprecio3 | C70: MACK ANTHEM ELITE MT TD 6X4 | D70: Praco Didacol S.A.S. | E70: Vehículo Especial | F70: Tractocamiones | G70: Semiremolque Plataforma Estacas | H70: Intervalo de precio 3 | I70: Diésel | J70: ANTHEM ELITE MT TD 6X4 | K70: MACK | L70: 5422101 | M70: ANTHEM | N70: ELITE | O70: MT TD 6X4 | P70: 412000000 | Q70: 0.08 | R70: 379040000 | S70: 0.08 | T70: 379040000 | U70: 0.08 | V70: 379040000 | W70: 0.08 | X70: 379040000 | Y70: 0.08 | Z70: 379040000 | AA70: 0.08 | AB70: 379040000 | AC70: 7420000 | AD70: 104781000 | AR70: 84500 | AS70: 848000 | BA70: 1320000 | BB70: 159000 | BC70: 487600 | BD70: 530000 | BQ70: 1 | BS70: Caracteristica | BT70: No Aplica | BU70: No Aplica | BV70: S123
A71: VehículoEspecialTractocamionesSemiremolqueFurgonIntervalodeprecio3HINO SG1A F7B [500] MT 8900CC TD 4X2Praco Didacol S.A.S. | B71: VehículoEspecialTractocamionesSemiremolqueFurgonIntervalodeprecio3 | C71: HINO SG1A F7B [500] MT 8900CC TD 4X2 | D71: Praco Didacol S.A.S. | E71: Vehículo Especial | F71: Tractocamiones | G71: Semiremolque Furgon | H71: Intervalo de precio 3 | I71: Diésel | J71: SG1A F7B [500] MT 8900CC TD 4X2 | K71: HINO | L71: 3722008 | M71: SG1A | N71: F7B [500] | O71: MT 8900CC TD 4X2 | P71: 252600000 | Q71: 0.055 | R71: =P71-(P71*Q71) -> 238707000 | S71: 0.055 | T71: =P71-(P71*S71) -> 238707000 | U71: 0.055 | V71: =P71-(P71*U71) -> 238707000 | W71: 0.055 | X71: =P71-(P71*W71) -> 238707000 | Y71: 0.055 | Z71: =P71-(P71*Y71) -> 238707000 | AA71: 0.055 | AB71: =P71-(P71*AA71) -> 238707000 | AC71: 23624000 | AD71: 148400000 | AR71: 84500 | AS71: 848000 | BA71: 1320000 | BB71: 159000 | BC71: 487600 | BD71: 530000 | BQ71: 1 | BS71: Peso bruto vehícular | BT71: No Aplica | BU71: No Aplica | BV71: S123
A72: VehículoEspecialTractocamionesSemiremolqueFurgonIntervalodeprecio3MACK ANTHEM ELITE MT TD 6X4Praco Didacol S.A.S. | B72: VehículoEspecialTractocamionesSemiremolqueFurgonIntervalodeprecio3 | C72: MACK ANTHEM ELITE MT TD 6X4 | D72: Praco Didacol S.A.S. | E72: Vehículo Especial | F72: Tractocamiones | G72: Semiremolque Furgon | H72: Intervalo de precio 3 | I72: Diésel | J72: ANTHEM ELITE MT TD 6X4 | K72: MACK | L72: 5422101 | M72: ANTHEM | N72: ELITE | O72: MT TD 6X4 | P72: 412000000 | Q72: 0.08 | R72: 379040000 | S72: 0.08 | T72: 379040000 | U72: 0.08 | V72: 379040000 | W72: 0.08 | X72: 379040000 | Y72: 0.08 | Z72: 379040000 | AA72: 0.08 | AB72: 379040000 | AC72: 7420000 | AD72: 134641200 | AR72: 84500 | AS72: 848000 | BA72: 1320000 | BB72: 159000 | BC72: 487600 | BD72: 530000 | BQ72: 1 | BS72: Caracteristica | BT72: No Aplica | BU72: No Aplica | BV72: S123
A73: VehículoEspecialTractocamionesSemiRemolquecamaBajaIntervalodeprecio3HINO SG1A F7B [500] MT 8900CC TD 4X2Praco Didacol S.A.S. | B73: VehículoEspecialTractocamionesSemiRemolquecamaBajaIntervalodeprecio3 | C73: HINO SG1A F7B [500] MT 8900CC TD 4X2 | D73: Praco Didacol S.A.S. | E73: Vehículo Especial | F73: Tractocamiones | G73: Semi Remolque cama Baja | H73: Intervalo de precio 3 | I73: Diésel | J73: SG1A F7B [500] MT 8900CC TD 4X2 | K73: HINO | L73: 3722008 | M73: SG1A | N73: F7B [500] | O73: MT 8900CC TD 4X2 | P73: 252600000 | Q73: 0.055 | R73: =P73-(P73*Q73) -> 238707000 | S73: 0.055 | T73: =P73-(P73*S73) -> 238707000 | U73: 0.055 | V73: =P73-(P73*U73) -> 238707000 | W73: 0.055 | X73: =P73-(P73*W73) -> 238707000 | Y73: 0.055 | Z73: =P73-(P73*Y73) -> 238707000 | AA73: 0.055 | AB73: =P73-(P73*AA73) -> 238707000 | AC73: 23624000 | AD73: 167480000 | AR73: 84500 | AS73: 848000 | BA73: 1320000 | BB73: 159000 | BC73: 487600 | BD73: 530000 | BQ73: 1 | BS73: Peso bruto vehícular | BT73: No Aplica | BU73: No Aplica | BV73: S123
A74: VehículoEspecialTractocamionesSemiRemolquecamaBajaIntervalodeprecio3MACK ANTHEM ELITE MT TD 6X4Praco Didacol S.A.S. | B74: VehículoEspecialTractocamionesSemiRemolquecamaBajaIntervalodeprecio3 | C74: MACK ANTHEM ELITE MT TD 6X4 | D74: Praco Didacol S.A.S. | E74: Vehículo Especial | F74: Tractocamiones | G74: Semi Remolque cama Baja | H74: Intervalo de precio 3 | I74: Diésel | J74: ANTHEM ELITE MT TD 6X4 | K74: MACK | L74: 5422101 | M74: ANTHEM | N74: ELITE | O74: MT TD 6X4 | P74: 412000000 | Q74: 0.08 | R74: 379040000 | S74: 0.08 | T74: 379040000 | U74: 0.08 | V74: 379040000 | W74: 0.08 | X74: 379040000 | Y74: 0.08 | Z74: 379040000 | AA74: 0.08 | AB74: 379040000 | AC74: 7420000 | AD74: 152004000 | AR74: 84500 | AS74: 848000 | BA74: 1320000 | BB74: 159000 | BC74: 487600 | BD74: 530000 | BQ74: 1 | BS74: Caracteristica | BT74: No Aplica | BU74: No Aplica | BV74: S123
A75: VehículoEspecialCamiónMayorde14toneladasyhasta17toneladasydosejesRecolectordebasuraIntervalodeprecio1HINO GH 8J [500] [LARGO] MT 7700CC TD 4X2Praco Didacol S.A.S. | B75: VehículoEspecialCamiónMayorde14toneladasyhasta17toneladasydosejesRecolectordebasuraIntervalodeprecio1 | C75: HINO GH 8J [500] [LARGO] MT 7700CC TD 4X2 | D75: Praco Didacol S.A.S. | E75: Vehículo Especial | F75: Camión Mayor de 14 toneladas y hasta 17 toneladas y dos ejes | G75: Recolector de basura | H75: Intervalo de precio 1 | I75: Diésel | J75: GH 8J [500] [LARGO] MT 7700CC TD 4X2 | K75: HINO | L75: 3711034 | M75: GH | N75: 8J [500] [LARGO] | O75: MT 7700CC TD 4X2 | P75: 219800000 | Q75: 0.055 | R75: 207711000 | S75: 0.055 | T75: 207711000 | U75: 0.055 | V75: 207711000 | W75: 0.055 | X75: 207711000 | Y75: 0.055 | Z75: 207711000 | AA75: 0.055 | AB75: 207711000 | AC75: 20700000 | AD75: 148400000 | AR75: 84500 | AS75: 848000 | AX75: 7051519.397 | AZ75: 2430000 | BA75: 1320000 | BB75: 159000 | BC75: 487600 | BD75: 381600 | BG75: 28280800 | BH75: 24592000 | BQ75: 1 | BS75: Caracteristica | BT75: No Aplica | BU75: No Aplica
A76: VehículoEspecialCamiónMayorde17toneladasytresejesRecolectordebasuraIntervalodeprecio1HINO FM 8J [500] [LARGO] MT 7700CC TD 6X4Praco Didacol S.A.S. | B76: VehículoEspecialCamiónMayorde17toneladasytresejesRecolectordebasuraIntervalodeprecio1 | C76: HINO FM 8J [500] [LARGO] MT 7700CC TD 6X4 | D76: Praco Didacol S.A.S. | E76: Vehículo Especial | F76: Camión Mayor de 17 toneladas y tres ejes | G76: Recolector de basura | H76: Intervalo de precio 1 | I76: Diésel | J76: FM 8J [500] [LARGO] MT 7700CC TD 6X4 | K76: HINO | L76: 3711048 | M76: FM | N76: 8J [500] [LARGO] | O76: MT 7700CC TD 6X4 | P76: 246100000 | Q76: 0.055 | R76: 232564500 | S76: 0.055 | T76: 232564500 | U76: 0.055 | V76: 232564500 | W76: 0.055 | X76: 232564500 | Y76: 0.055 | Z76: 232564500 | AA76: 0.055 | AB76: 232564500 | AC76: 14850000 | AD76: 159000000 | AR76: 84500 | AS76: 848000 | AX76: 7420000 | AZ76: 2430000 | BA76: 1320000 | BB76: 159000 | BC76: 487600 | BD76: 381600 | BQ76: 1 | BS76: Caracteristica | BT76: No Aplica | BU76: No Aplica
A77: VehículoEspecialCamiónMayorde14toneladasyhasta17toneladasydosejesRecolectordebasuraIntervalodeprecio1CHEVROLET FVR(2) 700P FORWARD CORTO EURO IV MT 7800CC TD 4X2Automayor S.A. | B77: VehículoEspecialCamiónMayorde14toneladasyhasta17toneladasydosejesRecolectordebasuraIntervalodeprecio1 | C77: CHEVROLET FVR(2) 700P FORWARD CORTO EURO IV MT 7800CC TD 4X2 | D77: Automayor S.A. | E77: Vehículo Especial | F77: Camión Mayor de 14 toneladas y hasta 17 toneladas y dos ejes | G77: Recolector de basura | H77: Intervalo de precio 1 | I77: Diésel | J77: FVR(2) 700P FORWARD CORTO EURO IV MT 7800CC TD 4X2 | K77: CHEVROLET | L77: 1611147 | M77: FVR(2) | N77: 700P FORWARD CORTO EURO IV | O77: MT 7800CC TD 4X2 | P77: 226400000 | Q77: 0.1 | R77: 198630000 | S77: 0.1 | T77: 198630000 | U77: 0.1 | V77: 198630000 | W77: 0.1 | X77: 198630000 | Y77: 0.1 | Z77: 198630000 | AA77: 0.1 | AB77: 198630000 | AC77: 20675512 | AD77: 209743321.5 | AR77: 57717 | AS77: 384780 | AX77: 6156480 | AZ77: 833690 | BA77: 2565200 | BB77: 57717 | BC77: 384780 | BD77: 1173579 | BG77: 25039943.28 | BH77: 25652000 | BI77: 3847800 | BK77: 4200000 | BQ77: 1 | BS77: Caracteristica | BT77: No Aplica | BU77: No Aplica
A78: VehículoEspecialCamperocamionetade1850cc2249ccProteccióndemenoresIntervalodeprecio1RENAULT DUSTER [FL] DYNAMIQUE MT 2000CC 4X4Renault Sociedad de Fabricación de Automotores S.A. | B78: VehículoEspecialCamperocamionetade1850cc2249ccProteccióndemenoresIntervalodeprecio1 | C78: RENAULT DUSTER [FL] DYNAMIQUE MT 2000CC 4X4 | D78: Renault Sociedad de Fabricación de Automotores S.A. | E78: Vehículo Especial | F78: Campero camioneta de 1.850cc - 2.249cc | G78: Protección de menores | H78: Intervalo de precio 1 | I78: Gasolina | J78: DUSTER [FL] DYNAMIQUE MT 2000CC 4X4 | K78: RENAULT | L78: 8008014 | M78: DUSTER [FL] | N78: DYNAMIQUE | O78: MT 2000CC 4X4 | P78: 66900000 | Q78: 0.075 | R78: =$P78*(1-Q78) -> 61882500 | S78: 0.08 | T78: =$P78*(1-S78) -> 61548000 | U78: 0.082 | V78: =$P78*(1-U78) -> 61414200 | W78: 0.083 | X78: =$P78*(1-W78) -> 61347300 | Y78: 0.084 | Z78: =$P78*(1-Y78) -> 61280400 | AA78: 0.085 | AB78: =$P78*(1-AA78) -> 61213500 | AC78: 4081700 | AD78: 18444000 | AE78: 4150000 | AI78: 710000 | AK78: 680000 | AL78: 867879.3103 | AM78: 2950000 | AN78: 2750000 | AO78: 705151.9397 | AP78: 1850000 | AQ78: 3550000 | AR78: 461100 | AS78: 325000 | AT78: 542424.569 | AU78: 280000 | AW78: 5920000 | AX78: 10000000 | AY78: 379697.1983 | AZ78: 1370000 | BA78: 2974000 | BB78: 51400 | BC78: 135606.1422 | BD78: 2300000 | BE78: 410000 | BF78: 51400 | BK78: 5353810 | BQ78: 1 | BS78: Caracteristica | BT78: No Aplica | BU78: No Aplica | BV78: S139
A79: VehículoEspecialMicrobúsde10a19pasajerosPaneldeVigilanciaIntervalodeprecio2NISSAN URVAN [E26] NV350 MT 2500CC TD 4X2 AADistribuidora Nissan S.A. | B79: VehículoEspecialMicrobúsde10a19pasajerosPaneldeVigilanciaIntervalodeprecio2 | C79: NISSAN URVAN [E26] NV350 MT 2500CC TD 4X2 AA | D79: Distribuidora Nissan S.A. | E79: Vehículo Especial | F79: Microbús de 10 a 19 pasajeros | G79: Panel de Vigilancia | H79: Intervalo de precio 2 | I79: Diésel | J79: URVAN [E26] NV350 MT 2500CC TD 4X2 AA | K79: NISSAN | L79: 6407009 | M79: URVAN [E26] | N79: NV350 | O79: MT 2500CC TD 4X2 AA | P79: 102500000 | Q79: 0.01 | R79: =$P79*(1-Q79) -> 101475000 | S79: 0.01 | T79: =$P79*(1-S79) -> 101475000 | U79: 0.01 | V79: =$P79*(1-U79) -> 101475000 | W79: 0.01 | X79: =$P79*(1-W79) -> 101475000 | Y79: 0.01 | Z79: =$P79*(1-Y79) -> 101475000 | AA79: 0.01 | AB79: =$P79*(1-AA79) -> 101475000 | AC79: 5989000 | AD79: 13780000 | AN79: 2213280 | AP79: 1200000 | AQ79: 2213280 | AR79: 371000 | AS79: 853342 | AT79: 806618 | AU79: 96000 | AV79: 288000 | AY79: 816200 | BA79: 2067000 | BB79: 63600 | BC79: 567460 | BD79: 1378000 | BE79: 612341 | BF79: 84800 | BK79: 3921000 | BQ79: 1 | BS79: Caracteristica | BT79: No Aplica | BU79: No Aplica | BV79: S135
A80: VehículoEspecialMicrobúsde10a19pasajerosPaneldeVigilanciaIntervalodeprecio1RENAULT TRAFIC 1.6L TECHO ALTO MT 1600CC AA 2TRenault Sociedad de Fabricación de Automotores S.A. | B80: VehículoEspecialMicrobúsde10a19pasajerosPaneldeVigilanciaIntervalodeprecio1 | C80: RENAULT TRAFIC 1.6L TECHO ALTO MT 1600CC AA 2T | D80: Renault Sociedad de Fabricación de Automotores S.A. | E80: Vehículo Especial | F80: Microbús de 10 a 19 pasajeros | G80: Panel de Vigilancia | H80: Intervalo de precio 1 | I80: Diésel | J80: TRAFIC 1.6L TECHO ALTO MT 1600CC AA 2T | K80: RENAULT | L80: 8007018 | M80: TRAFIC | N80: 1.6L TECHO ALTO | O80: MT 1600CC AA 2T | P80: 95700000 | Q80: 0.07 | R80: =$P80*(1-Q80) -> 89001000 | S80: 0.075 | T80: =$P80*(1-S80) -> 88522500 | U80: 0.077 | V80: =$P80*(1-U80) -> 88331100 | W80: 0.078 | X80: =$P80*(1-W80) -> 88235400 | Y80: 0.079 | Z80: =$P80*(1-Y80) -> 88139700 | AA80: 0.08 | AB80: =$P80*(1-AA80) -> 88044000 | AC80: 4486300 | AD80: 23002000 | AE80: 1 | AI80: 1541000 | AK80: 1160000 | AM80: 2538000 | AN80: 2694000 | AP80: 932000 | AQ80: 3380000 | AR80: 435000 | AS80: 379000 | AT80: 516000 | AU80: 312375 | AW80: 5605000 | AX80: 10000000 | AY80: 543000 | AZ80: 1275000 | BA80: 2974000 | BB80: 58000 | BC80: 450000 | BD80: 2300000 | BE80: 478000 | BF80: 58000 | BK80: 5353810 | BQ80: 1 | BS80: Caracteristica | BT80: No Aplica | BU80: No Aplica | BV80: S144
A81: VehículoEspecialMicrobúsde10a19pasajerosPaneldeVigilanciaIntervalodeprecio1RENAULT TRAFIC 1.6L MT 1600CC AA 2TRenault Sociedad de Fabricación de Automotores S.A. | B81: VehículoEspecialMicrobúsde10a19pasajerosPaneldeVigilanciaIntervalodeprecio1 | C81: RENAULT TRAFIC 1.6L MT 1600CC AA 2T | D81: Renault Sociedad de Fabricación de Automotores S.A. | E81: Vehículo Especial | F81: Microbús de 10 a 19 pasajeros | G81: Panel de Vigilancia | H81: Intervalo de precio 1 | I81: Diésel | J81: TRAFIC 1.6L MT 1600CC AA 2T | K81: RENAULT | L81: 8007017 | M81: TRAFIC | N81: 1.6L | O81: MT 1600CC AA 2T | P81: 91700000 | Q81: 0.07 | R81: =$P81*(1-Q81) -> 85281000 | S81: 0.075 | T81: =$P81*(1-S81) -> 84822500 | U81: 0.077 | V81: =$P81*(1-U81) -> 84639100 | W81: 0.078 | X81: =$P81*(1-W81) -> 84547400 | Y81: 0.079 | Z81: =$P81*(1-Y81) -> 84455700 | AA81: 0.08 | AB81: =$P81*(1-AA81) -> 84364000 | AC81: 4486300 | AD81: 23002000 | AE81: 1 | AI81: 1541000 | AK81: 1160000 | AM81: 2538000 | AN81: 2694000 | AP81: 932000 | AQ81: 3380000 | AR81: 435000 | AS81: 379000 | AT81: 516000 | AU81: 312375 | AW81: 5605000 | AX81: 10000000 | AY81: 543000 | AZ81: 1275000 | BA81: 2974000 | BB81: 58000 | BC81: 450000 | BD81: 2300000 | BE81: 478000 | BF81: 58000 | BK81: 5353810 | BQ81: 1 | BS81: Caracteristica | BT81: No Aplica | BU81: No Aplica | BV81: S144
A82: VehículoEspecialMicrobúsde10a19pasajerosPaneldeVigilanciaIntervalodeprecio3VOLKSWAGEN TRANSPORTER KOMBI T6 MT 2000CC TD 4X2 AAUnión Temporal Los Coches-Iberplas-2014 | B82: VehículoEspecialMicrobúsde10a19pasajerosPaneldeVigilanciaIntervalodeprecio3 | C82: VOLKSWAGEN TRANSPORTER KOMBI T6 MT 2000CC TD 4X2 AA | D82: Unión Temporal Los Coches-Iberplas-2014 | E82: Vehículo Especial | F82: Microbús de 10 a 19 pasajeros | G82: Panel de Vigilancia | H82: Intervalo de precio 3 | I82: Diésel | J82: TRANSPORTER KOMBI T6 MT 2000CC TD 4X2 AA | K82: VOLKSWAGEN | L82: 9207018 | M82: TRANSPORTER | N82: KOMBI T6 | O82: MT 2000CC TD 4X2 AA | P82: 90000000 | Q82: 0.06 | R82: =$P82*(1-Q82) -> 84600000 | S82: 0.06 | T82: =$P82*(1-S82) -> 84600000 | U82: 0.06 | V82: =$P82*(1-U82) -> 84600000 | W82: 0.06 | X82: =$P82*(1-W82) -> 84600000 | Y82: 0.06 | Z82: =$P82*(1-Y82) -> 84600000 | AA82: 0.06 | AB82: =$P82*(1-AA82) -> 84600000 | AC82: 4197600 | AD82: 13992000 | AI82: 520000 | AK82: 660000 | AM82: 2200000 | AN82: 770000 | AQ82: 1900000 | AR82: 240000 | AS82: 325000 | AT82: 500000 | AU82: 1700000 | AW82: 4970000 | AX82: 4300000 | AY82: 660000 | AZ82: 990000 | BA82: 2090000 | BB82: 65000 | BC82: 187000 | BD82: 1200000 | BE82: 650000 | BF82: 90000 | BK82: 2980000 | BQ82: 1 | BS82: Caracteristica | BT82: No Aplica | BU82: No Aplica | BV82: S174
A83: VehículoEspecialChasiscabinasencilladiésel2450cc2849ccNecromóvil3bandejasIntervalodeprecio1CHEVROLET DMAX [3] [FL] 2.5L MT 2500CC 4X4 TD ABS 2ABAutomayor S.A. | B83: VehículoEspecialChasiscabinasencilladiésel2450cc2849ccNecromóvil3bandejasIntervalodeprecio1 | C83: CHEVROLET DMAX [3] [FL] 2.5L MT 2500CC 4X4 TD ABS 2AB | D83: Automayor S.A. | E83: Vehículo Especial | F83: Chasis cabina sencilla diésel 2.450cc - 2.849cc | G83: Necromóvil 3 bandejas | H83: Intervalo de precio 1 | I83: Diésel | J83: =M83&" "&N83&" "&O83 -> DMAX [3] [FL] 2.5L MT 2500CC 4X4 TD ABS 2AB | K83: CHEVROLET | L83: 1620133 | M83: DMAX [3] [FL] | N83: 2.5L | O83: MT 2500CC 4X4 TD ABS 2AB | P83: 96900000 | Q83: 0.074 | R83: =P83*(1-Q83) -> 89729400 | S83: 0.074 | T83: =$P$83*(1-S83) -> 89729400 | U83: 0.074 | V83: =$P$83*(1-U83) -> 89729400 | W83: 0.074 | X83: =$P$83*(1-W83) -> 89729400 | Y83: 0.074 | Z83: =$P$83*(1-Y83) -> 89729400 | AA83: 0.074 | AB83: =$P$83*(1-AA83) -> 89729400 | AC83: 4489100 | AD83: 68794000 | AF83: 769560 | AI83: 2565200 | AJ83: 1154340 | AK83: 769560 | AL83: 1154340 | AN83: 1154340 | AO83: 1051732 | AQ83: 1923900 | AR83: 57717 | AS83: 12826 | AT83: 718256 | AV83: 384780 | AW83: 6413000 | AX83: 6156480 | AY83: 577170 | AZ83: 769560 | BA83: 2565200 | BB83: 57717 | BC83: 256520 | BD83: 1173579 | BE83: 448910 | BF83: 57717 | BK83: 4200000 | BQ83: 1 | BS83: Peso bruto vehícular | BT83: No Aplica | BU83: No Aplica
A84: VehículoEspecialChasiscabinasencillagasolinamayora2450ccNecromóvil3bandejasIntervalodeprecio1NISSAN NP 300 FRONTIER [2] 2.5L MT 2500CC 4X2Distribuidora Nissan S.A. | B84: VehículoEspecialChasiscabinasencillagasolinamayora2450ccNecromóvil3bandejasIntervalodeprecio1 | C84: NISSAN NP 300 FRONTIER [2] 2.5L MT 2500CC 4X2 | D84: Distribuidora Nissan S.A. | E84: Vehículo Especial | F84: Chasis cabina sencilla gasolina mayor a 2.450cc | G84: Necromóvil 3 bandejas | H84: Intervalo de precio 1 | I84: Gasolina | J84: NP 300 FRONTIER [2] 2.5L MT 2500CC 4X2 | K84: NISSAN | L84: 6411095 | M84: NP 300 FRONTIER [2] | N84: 2.5L | O84: MT 2500CC 4X2 | P84: 61000000 | Q84: 0.01 | R84: 60390000 | S84: 0.01 | T84: 60390000 | U84: 0.01 | V84: 60390000 | W84: 0.01 | X84: 60390000 | Y84: 0.01 | Z84: 60390000 | AA84: 0.01 | AB84: 60390000 | AC84: 6500000 | AD84: 95000000 | AF84: 590000 | AI84: 5175000 | AJ84: 780100 | AK84: 935000 | AN84: 2450000 | AO84: 969760 | AP84: 1500000 | AQ84: 2088000 | AR84: 350000 | AS84: 650000 | AT84: 760960 | AV84: 451240 | AW84: 4655200 | AX84: 4350000 | AY84: 770000 | AZ84: 870000 | BA84: 1950000 | BB84: 60000 | BC84: 535340 | BD84: 1300000 | BE84: 577680 | BF84: 80000 | BK84: 3921000 | BQ84: 1 | BS84: Peso bruto vehícular | BT84: No Aplica | BU84: No Aplica
A85: VehículoEspecialChasiscabinasencilladiésel2450cc2849ccNecromóvil3bandejasIntervalodeprecio1NISSAN NP 300 FRONTIER [2] 2.5L MT2500 CC TD 4X4 AA 2AB ABSDistribuidora Nissan S.A. | B85: VehículoEspecialChasiscabinasencilladiésel2450cc2849ccNecromóvil3bandejasIntervalodeprecio1 | C85: NISSAN NP 300 FRONTIER [2] 2.5L MT2500 CC TD 4X4 AA 2AB ABS | D85: Distribuidora Nissan S.A. | E85: Vehículo Especial | F85: Chasis cabina sencilla diésel 2.450cc - 2.849cc | G85: Necromóvil 3 bandejas | H85: Intervalo de precio 1 | I85: Diésel | J85: NP 300 FRONTIER [2] 2.5L MT2500 CC TD 4X4 AA 2AB ABS | K85: NISSAN | L85: 6411092 | M85: NP 300 FRONTIER [2] | N85: 2.5L | O85: MT2500 CC TD 4X4 AA 2AB ABS | P85: 100000000 | Q85: 0.026 | R85: 97400000 | S85: 0.026 | T85: 97400000 | U85: 0.026 | V85: 97400000 | W85: 0.026 | X85: 97400000 | Y85: 0.026 | Z85: 97400000 | AA85: 0.026 | AB85: 97400000 | AC85: 6500000 | AD85: 95000000 | AF85: 590000 | AI85: 5175000 | AJ85: 780100 | AK85: 935000 | AN85: 2450000 | AO85: 969760 | AP85: 1500000 | AQ85: 2088000 | AR85: 350000 | AS85: 650000 | AT85: 760960 | AV85: 451240 | AW85: 4655200 | AX85: 4350000 | AY85: 770000 | AZ85: 870000 | BA85: 1950000 | BB85: 60000 | BC85: 535340 | BD85: 1300000 | BE85: 577680 | BF85: 80000 | BK85: 3921000 | BQ85: 1 | BS85: Peso bruto vehícular | BT85: No Aplica | BU85: No Aplica
A86: VehículoEspecialChasiscabinasencilladiésel2450cc2849ccNecromóvil3bandejasIntervalodeprecio1NISSAN NP 300 FRONTIER [2] 2.5L MT 2500CC TD 4X2 AADistribuidora Nissan S.A. | B86: VehículoEspecialChasiscabinasencilladiésel2450cc2849ccNecromóvil3bandejasIntervalodeprecio1 | C86: NISSAN NP 300 FRONTIER [2] 2.5L MT 2500CC TD 4X2 AA | D86: Distribuidora Nissan S.A. | E86: Vehículo Especial | F86: Chasis cabina sencilla diésel 2.450cc - 2.849cc | G86: Necromóvil 3 bandejas | H86: Intervalo de precio 1 | I86: Diésel | J86: NP 300 FRONTIER [2] 2.5L MT 2500CC TD 4X2 AA | K86: NISSAN | L86: 6411093 | M86: NP 300 FRONTIER [2] | N86: 2.5L | O86: MT 2500CC TD 4X2 AA | P86: 72000000 | Q86: 0.005 | R86: 71640000 | S86: 0.005 | T86: 71640000 | U86: 0.005 | V86: 71640000 | W86: 0.005 | X86: 71640000 | Y86: 0.005 | Z86: 71640000 | AA86: 0.005 | AB86: 71640000 | AC86: 6500000 | AD86: 95000000 | AF86: 590000 | AI86: 5175000 | AJ86: 780100 | AK86: 935000 | AN86: 2450000 | AO86: 969760 | AP86: 1500000 | AQ86: 2088000 | AR86: 350000 | AS86: 650000 | AT86: 760960 | AV86: 451240 | AW86: 4655200 | AX86: 4350000 | AY86: 770000 | AZ86: 870000 | BA86: 1950000 | BB86: 60000 | BC86: 535340 | BD86: 1300000 | BE86: 577680 | BF86: 80000 | BK86: 3921000 | BQ86: 1 | BS86: Peso bruto vehícular | BT86: No Aplica | BU86: No Aplica
A87: VehículoEspecialChasiscabinasencilladiésel1950cc2449ccNecromóvil3bandejasIntervalodeprecio2VOLKSWAGEN AMAROK FL TRENDLINE MT2000CC 4X4Unión Temporal Los Coches-Iberplas-2014 | B87: VehículoEspecialChasiscabinasencilladiésel1950cc2449ccNecromóvil3bandejasIntervalodeprecio2 | C87: VOLKSWAGEN AMAROK FL TRENDLINE MT2000CC 4X4 | D87: Unión Temporal Los Coches-Iberplas-2014 | E87: Vehículo Especial | F87: Chasis cabina sencilla diésel 1.950cc - 2.449cc | G87: Necromóvil 3 bandejas | H87: Intervalo de precio 2 | I87: Diésel | J87: AMAROK FL TRENDLINE MT2000CC 4X4 | K87: VOLKSWAGEN | L87: 9220009 | M87: AMAROK FL | N87: TRENDLINE | O87: MT2000CC 4X4 | P87: 113000000 | Q87: 0.06 | R87: 85540000 | S87: 0.06 | T87: 85540000 | U87: 0.06 | V87: 85540000 | W87: 0.06 | X87: 85540000 | Y87: 0.06 | Z87: 85540000 | AA87: 0.06 | AB87: 85540000 | AC87: 4770000 | AD87: 159000000 | AE87: 5720000 | AF87: 715000 | AI87: 520000 | AJ87: 1000000 | AK87: 660000 | AL87: 867879.3103 | AN87: 770000 | AO87: 705151.9397 | AQ87: 1900000 | AR87: 75600 | AS87: 401394.181 | AT87: 542424.569 | AV87: 500000 | AW87: 4970000 | AX87: 7051519.397 | AY87: 379697.1983 | AZ87: 922121.7672 | BA87: 1247576.509 | BB87: 45021.23922 | BC87: 135606.1422 | BD87: 1627273.707 | BE87: 650000 | BF87: 65090.94828 | BK87: 2980000 | BQ87: 1 | BS87: Peso bruto vehícular | BT87: No Aplica | BU87: No Aplica
A88: VehículoEspecialChasiscabinasencillagasolinamayora2849ccNecromóvil3bandejasIntervalodeprecio2FORD F150 (13) XLT TP 3500CC 4X4Unión Temporal Los Coches-Iberplas-2014 | B88: VehículoEspecialChasiscabinasencillagasolinamayora2849ccNecromóvil3bandejasIntervalodeprecio2 | C88: FORD F150 (13) XLT TP 3500CC 4X4 | D88: Unión Temporal Los Coches-Iberplas-2014 | E88: Vehículo Especial | F88: Chasis cabina sencilla gasolina mayor a 2.849cc | G88: Necromóvil 3 bandejas | H88: Intervalo de precio 2 | I88: Gasolina | J88: F150 (13) XLT TP 3500CC 4X4 | K88: FORD | L88: 3020095 | M88: F150 (13) | N88: XLT | O88: TP 3500CC 4X4 | P88: 120900000 | Q88: 0.03 | R88: 117273000 | S88: 0.03 | T88: 117273000 | U88: 0.03 | V88: 117273000 | W88: 0.03 | X88: 117273000 | Y88: 0.03 | Z88: 117273000 | AA88: 0.03 | AB88: 117273000 | AC88: 4770000 | AD88: 159000000 | AE88: 5720000 | AF88: 715000 | AI88: 520000 | AJ88: 1000000 | AK88: 660000 | AL88: 867879.3103 | AN88: 770000 | AO88: 705151.9397 | AQ88: 1900000 | AR88: 75600 | AS88: 401394.181 | AT88: 542424.569 | AV88: 500000 | AW88: 4970000 | AX88: 7051519.397 | AY88: 379697.1983 | AZ88: 922121.7672 | BA88: 1247576.509 | BB88: 45021.23922 | BC88: 135606.1422 | BD88: 1627273.707 | BE88: 650000 | BF88: 65090.94828 | BK88: 2980000 | BQ88: 1 | BS88: Peso bruto vehícular | BT88: No Aplica | BU88: No Aplica
A89: VehículoEspecialCamiónMayorde17toneladasytresejesMezcladoraIntervalodeprecio2VOLKSWAGEN CONSTELLATION 31.330 (LV:9824MM)LARGO MT8900CC TD 6X4Unión Temporal Los Coches-Iberplas-2014 | B89: VehículoEspecialCamiónMayorde17toneladasytresejesMezcladoraIntervalodeprecio2 | C89: VOLKSWAGEN CONSTELLATION 31.330 (LV:9824MM)LARGO MT8900CC TD 6X4 | D89: Unión Temporal Los Coches-Iberplas-2014 | E89: Vehículo Especial | F89: Camión Mayor de 17 toneladas y tres ejes | G89: Mezcladora | H89: Intervalo de precio 2 | I89: Diésel | J89: CONSTELLATION 31.330 (LV:9824MM)LARGO MT8900CC TD 6X4 | K89: VOLKSWAGEN | L89: 9211027 | M89: CONSTELLATION | N89: 31.330 (LV:9824MM)LARGO | O89: MT8900CC TD 6X4 | P89: 327000000 | Q89: 0.06 | R89: =$P89*(1-Q89) -> 307380000 | S89: 0.06 | T89: =$P89*(1-S89) -> 307380000 | U89: 0.06 | V89: =$P89*(1-U89) -> 307380000 | W89: 0.06 | X89: =$P89*(1-W89) -> 307380000 | Y89: 0.06 | Z89: =$P89*(1-Y89) -> 307380000 | AA89: 0.06 | AB89: =$P89*(1-AA89) -> 307380000 | AC89: 8162000 | AD89: 169600000 | BK89: 2980000 | BQ89: 1 | BS89: Caracteristica | BT89: No Aplica | BU89: No Aplica | BV89: S165
A90: VehículoEspecialCamiónMayorde17toneladasytresejesMezcladoraIntervalodeprecio2MACK GRANITE GU813MX MTTD6X4Praco Didacol S.A.S. | B90: VehículoEspecialCamiónMayorde17toneladasytresejesMezcladoraIntervalodeprecio2 | C90: MACK GRANITE GU813MX MTTD6X4 | D90: Praco Didacol S.A.S. | E90: Vehículo Especial | F90: Camión Mayor de 17 toneladas y tres ejes | G90: Mezcladora | H90: Intervalo de precio 2 | I90: Diésel | J90: GRANITE GU813MX MTTD6X4 | K90: MACK | L90: 5411003 | M90: GRANITE | N90: GU813MX | O90: MTTD6X4 | P90: 420400000 | Q90: 0.08 | R90: =$P90*(1-Q90) -> 386768000 | S90: 0.08 | T90: =$P90*(1-S90) -> 386768000 | U90: 0.08 | V90: =$P90*(1-U90) -> 386768000 | W90: 0.08 | X90: =$P90*(1-W90) -> 386768000 | Y90: 0.08 | Z90: =$P90*(1-Y90) -> 386768000 | AA90: 0.08 | AB90: =$P90*(1-AA90) -> 386768000 | AC90: 7420000 | AD90: 131567200 | AR90: 84500 | AS90: 848000 | BA90: 1320000 | BB90: 159000 | BC90: 487600 | BD90: 530000 | BQ90: 1 | BS90: Caracteristica | BT90: No Aplica | BU90: No Aplica | BV90: S165
A91: VehículoEspecialCamiónMayorde17toneladasytresejesMezcladoraIntervalodeprecio2INTERNATIONAL 7600 WORKSTAR [336HP] MX MT TD 6X4 [STD] AANavitrans S.A.S. | B91: VehículoEspecialCamiónMayorde17toneladasytresejesMezcladoraIntervalodeprecio2 | C91: INTERNATIONAL 7600 WORKSTAR [336HP] MX MT TD 6X4 [STD] AA | D91: Navitrans S.A.S. | E91: Vehículo Especial | F91: Camión Mayor de 17 toneladas y tres ejes | G91: Mezcladora | H91: Intervalo de precio 2 | I91: Diésel | J91: 7600 WORKSTAR [336HP] MX MT TD 6X4 [STD] AA | K91: INTERNATIONAL | L91: 3611109 | M91: 7600 | N91: WORKSTAR [336HP] MX | O91: MT TD 6X4 [STD] AA | P91: 398600000 | Q91: 0.005 | R91: =$P91*(1-Q91) -> 396607000 | S91: 0.01 | T91: =$P91*(1-S91) -> 394614000 | U91: 0.015 | V91: =$P91*(1-U91) -> 392621000 | W91: 0.02 | X91: =$P91*(1-W91) -> 390628000 | Y91: 0.025 | Z91: =$P91*(1-Y91) -> 388635000 | AA91: 0.03 | AB91: =$P91*(1-AA91) -> 386642000 | AC91: 14000000 | AD91: 120000000 | BQ91: 1 | BS91: Caracteristica | BT91: No Aplica | BU91: No Aplica | BV91: S165
A92: VehículoEspecialCamiónMayorde17toneladasytresejesMezcladoraIntervalodeprecio2HINO FS2P NUD [700] MT 10500CC TD 6X4Praco Didacol S.A.S. | B92: VehículoEspecialCamiónMayorde17toneladasytresejesMezcladoraIntervalodeprecio2 | C92: HINO FS2P NUD [700] MT 10500CC TD 6X4 | D92: Praco Didacol S.A.S. | E92: Vehículo Especial | F92: Camión Mayor de 17 toneladas y tres ejes | G92: Mezcladora | H92: Intervalo de precio 2 | I92: Diésel | J92: FS2P NUD [700] MT 10500CC TD 6X4 | K92: HINO | L92: 3711050 | M92: FS2P | N92: NUD [700] | O92: MT 10500CC TD 6X4 | P92: 323000000 | Q92: 0.055 | R92: =P92-(P92*Q92) -> 305235000 | S92: 0.055 | T92: =P92-(P92*S92) -> 305235000 | U92: 0.055 | V92: =P92-(P92*U92) -> 305235000 | W92: 0.055 | X92: =P92-(P92*W92) -> 305235000 | Y92: 0.055 | Z92: =P92-(P92*Y92) -> 305235000 | AA92: 0.055 | AB92: =P92-(P92*AA92) -> 305235000 | AC92: 29031000 | AD92: 129108000 | AR92: 84500 | AS92: 848000 | AX92: 7420000 | AZ92: 2430000 | BA92: 1320000 | BB92: 159000 | BC92: 487600 | BD92: 381600 | BQ92: 1 | BS92: Caracteristica | BT92: No Aplica | BU92: No Aplica | BV92: S165
A93: VehículoEspecialCamiónMayorde17toneladasytresejesMezcladoraIntervalodeprecio2MACK GRANITE GU813MX MTTD6X4Praco Didacol S.A.S. | B93: VehículoEspecialCamiónMayorde17toneladasytresejesMezcladoraIntervalodeprecio2 | C93: MACK GRANITE GU813MX MTTD6X4 | D93: Praco Didacol S.A.S. | E93: Vehículo Especial | F93: Camión Mayor de 17 toneladas y tres ejes | G93: Mezcladora | H93: Intervalo de precio 2 | I93: Diésel | J93: GU813 MX | K93: MACK | L93: 5411003 | M93: GRANITE | N93: GU813MX | O93: MTTD6X4 | P93: 420400000 | Q93: 0.08 | R93: =$P93*(1-Q93) -> 386768000 | S93: 0.08 | T93: =$P93*(1-S93) -> 386768000 | U93: 0.08 | V93: =$P93*(1-U93) -> 386768000 | W93: 0.08 | X93: =$P93*(1-W93) -> 386768000 | Y93: 0.08 | Z93: =$P93*(1-Y93) -> 386768000 | AA93: 0.08 | AB93: =$P93*(1-AA93) -> 386768000 | AC93: 7420000 | AD93: 131567200 | AR93: 84500 | AS93: 848000 | BA93: 1320000 | BB93: 159000 | BC93: 487600 | BD93: 530000 | BQ93: 1 | BS93: Caracteristica | BT93: No Aplica | BU93: No Aplica | BV93: S165
A94: VehículoEspecialCamiónMayorde14toneladasyhasta17toneladasydosejesIrrigadordeEmulsiónAsfálticaIntervalodeprecio1CHEVROLET FVR(2) 700P FORWARD(CORTO) EURO IV MT 7800CC TD 4X2Automayor S.A. | B94: VehículoEspecialCamiónMayorde14toneladasyhasta17toneladasydosejesIrrigadordeEmulsiónAsfálticaIntervalodeprecio1 | C94: CHEVROLET FVR(2) 700P FORWARD(CORTO) EURO IV MT 7800CC TD 4X2 | D94: Automayor S.A. | E94: Vehículo Especial | F94: Camión Mayor de 14 toneladas y hasta 17 toneladas y dos ejes | G94: Irrigador de Emulsión Asfáltica | H94: Intervalo de precio 1 | I94: Diésel | J94: FVR(2) 700P FORWARD(CORTO) EURO IV MT 7800CC TD 4X2 | K94: CHEVROLET | L94: 1611147 | M94: FVR(2) | N94: 700P FORWARD(CORTO) EURO IV | O94: MT 7800CC TD 4X2 | P94: 226400000 | Q94: 0.1 | R94: =P94*(1-Q94) -> 203760000 | S94: 0.1 | T94: =P94*(1-S94) -> 203760000 | U94: 0.1 | V94: =P94*(1-U94) -> 203760000 | W94: 0.1 | X94: =P94*(1-W94) -> 203760000 | Y94: 0.1 | Z94: =P94*(1-Y94) -> 203760000 | AA94: 0.1 | AB94: =P94*(1-AA94) -> 203760000 | AC94: 20675512 | AD94: 495550000 | AR94: 52470 | AS94: 384780 | AX94: 6156480 | AZ94: 833690 | BA94: 2565200 | BB94: 57717 | BC94: 384780 | BD94: 1173579 | BG94: 25039943.28 | BH94: 25652000 | BI94: 3847800 | BK94: 4200000 | BQ94: 1 | BS94: Cilindraje | BT94: Transmisión | BU94: No Aplica | BV94: S182
A95: VehículoEspecialCamiónMayorde14toneladasyhasta17toneladasydosejesIrrigadordeEmulsiónAsfálticaIntervalodeprecio1INTERNATIONAL 4300 DURASTAR (6000MM) EURO V MT TD 4X2 (STD) AA ABSNavitrans S.A.S. | B95: VehículoEspecialCamiónMayorde14toneladasyhasta17toneladasydosejesIrrigadordeEmulsiónAsfálticaIntervalodeprecio1 | C95: INTERNATIONAL 4300 DURASTAR (6000MM) EURO V MT TD 4X2 (STD) AA ABS | D95: Navitrans S.A.S. | E95: Vehículo Especial | F95: Camión Mayor de 14 toneladas y hasta 17 toneladas y dos ejes | G95: Irrigador de Emulsión Asfáltica | H95: Intervalo de precio 1 | I95: Diésel | J95: 4300 DURASTAR (6000MM) EURO V MT TD 4X2 (STD) AA ABS | K95: INTERNATIONAL | L95: 3611110 | M95: 4300 | N95: DURASTAR (6000MM) EURO V | O95: MT TD 4X2 (STD) AA ABS | P95: 222000000 | Q95: 0.005 | R95: =P95*(1-Q95) -> 220890000 | S95: 0.01 | T95: =P95*(1-S95) -> 219780000 | U95: 0.015 | V95: =P95*(1-U95) -> 218670000 | W95: 0.02 | X95: =P95*(1-W95) -> 217560000 | Y95: 0.025 | Z95: =P95*(1-Y95) -> 216450000 | AA95: 0.03 | AB95: =P95*(1-AA95) -> 215340000 | AC95: 12000000 | AD95: 498000000 | AR95: 70000 | AS95: 300000 | AZ95: 800000 | BA95: 1900000 | BB95: 30000 | BC95: 300000 | BD95: 1800000 | BG95: 11000000 | BH95: 10500000 | BQ95: 1 | BS95: Cilindraje | BT95: Transmisión | BU95: No Aplica | BV95: S182
A96: VehículoEspecialCamiónMayorde14toneladasyhasta17toneladasydosejesIrrigadordeEmulsiónAsfálticaIntervalodeprecio1INTERNATIONAL 4300 DURASTAR (6000MM) EURO V MT TD 4X2 (FULL) ABSNavitrans S.A.S. | B96: VehículoEspecialCamiónMayorde14toneladasyhasta17toneladasydosejesIrrigadordeEmulsiónAsfálticaIntervalodeprecio1 | C96: INTERNATIONAL 4300 DURASTAR (6000MM) EURO V MT TD 4X2 (FULL) ABS | D96: Navitrans S.A.S. | E96: Vehículo Especial | F96: Camión Mayor de 14 toneladas y hasta 17 toneladas y dos ejes | G96: Irrigador de Emulsión Asfáltica | H96: Intervalo de precio 1 | I96: Diésel | J96: 4300 DURASTAR (6000MM) EURO V MT TD 4X2 (FULL) ABS | K96: INTERNATIONAL | L96: 3611112 | M96: 4300 | N96: DURASTAR (6000MM) EURO V | O96: MT TD 4X2 (FULL) ABS | P96: 229000000 | Q96: 0.005 | R96: =P96*(1-Q96) -> 227855000 | S96: 0.01 | T96: =P96*(1-S96) -> 226710000 | U96: 0.015 | V96: =P96*(1-U96) -> 225565000 | W96: 0.02 | X96: =P96*(1-W96) -> 224420000 | Y96: 0.025 | Z96: =P96*(1-Y96) -> 223275000 | AA96: 0.03 | AB96: =P96*(1-AA96) -> 222130000 | AC96: 12000000 | AD96: 498000000 | AR96: 70000 | AS96: 300000 | AZ96: 800000 | BA96: 1900000 | BB96: 30000 | BC96: 300000 | BD96: 1800000 | BG96: 11000000 | BH96: 10500000 | BQ96: 1 | BS96: Cilindraje | BT96: Transmisión | BU96: No Aplica | BV96: S182
A97: VehículoEspecialCamiónMayorde14toneladasyhasta17toneladasydosejesIrrigadordeEmulsiónAsfálticaIntervalodeprecio1IVECO TECTOR 170E28(4185 MM) MT 5900 CC TD 4X2 ABSNavitrans S.A.S. | B97: VehículoEspecialCamiónMayorde14toneladasyhasta17toneladasydosejesIrrigadordeEmulsiónAsfálticaIntervalodeprecio1 | C97: IVECO TECTOR 170E28(4185 MM) MT 5900 CC TD 4X2 ABS | D97: Navitrans S.A.S. | E97: Vehículo Especial | F97: Camión Mayor de 14 toneladas y hasta 17 toneladas y dos ejes | G97: Irrigador de Emulsión Asfáltica | H97: Intervalo de precio 1 | I97: Diésel | J97: TECTOR 170E28(4185 MM) MT 5900 CC TD 4X2 ABS | K97: IVECO | L97: 10211020 | M97: TECTOR | N97: 170E28(4185 MM) | O97: MT 5900 CC TD 4X2 ABS | P97: 192000000 | Q97: 0.005 | R97: =P97*(1-Q97) -> 191040000 | S97: 0.01 | T97: =P97*(1-S97) -> 190080000 | U97: 0.015 | V97: =P97*(1-U97) -> 189120000 | W97: 0.02 | X97: =P97*(1-W97) -> 188160000 | Y97: 0.025 | Z97: =P97*(1-Y97) -> 187200000 | AA97: 0.03 | AB97: =P97*(1-AA97) -> 186240000 | AC97: 11000000 | AD97: 498000000 | AR97: 70000 | AS97: 300000 | AZ97: 800000 | BA97: 1900000 | BB97: 30000 | BC97: 300000 | BD97: 1800000 | BG97: 11000000 | BH97: 10500000 | BQ97: 1 | BS97: Cilindraje | BT97: Transmisión | BU97: No Aplica | BV97: S182
A98: VehículoEspecialCamiónMayorde14toneladasyhasta17toneladasydosejesIrrigadordeEmulsiónAsfálticaIntervalodeprecio1HINO FG 8J [500] LIGHT MT 7700CC TD 4X2Praco Didacol S.A.S. | B98: VehículoEspecialCamiónMayorde14toneladasyhasta17toneladasydosejesIrrigadordeEmulsiónAsfálticaIntervalodeprecio1 | C98: HINO FG 8J [500] LIGHT MT 7700CC TD 4X2 | D98: Praco Didacol S.A.S. | E98: Vehículo Especial | F98: Camión Mayor de 14 toneladas y hasta 17 toneladas y dos ejes | G98: Irrigador de Emulsión Asfáltica | H98: Intervalo de precio 1 | I98: Diésel | J98: FG 8J [500] LIGHT MT 7700CC TD 4X2 | K98: HINO | L98: 3711045 | M98: FG | N98: 8J [500] LIGHT | O98: MT 7700CC TD 4X2 | P98: 204200000 | Q98: 0.055 | R98: =P98*(1-Q98) -> 192969000 | S98: 0.055 | T98: =P98*(1-S98) -> 192969000 | U98: 0.055 | V98: =P98*(1-U98) -> 192969000 | W98: 0.055 | X98: =P98*(1-W98) -> 192969000 | Y98: 0.055 | Z98: =P98*(1-Y98) -> 192969000 | AA98: 0.055 | AB98: =P98*(1-AA98) -> 192969000 | AC98: 20700000 | AD98: 330720000 | AR98: 84500 | AS98: 848000 | AX98: 5300000 | AZ98: 2430000 | BA98: 1320000 | BB98: 159000 | BC98: 487600 | BD98: 381600 | BG98: 27051200 | BH98: 23977200 | BI98: 4876000 | BQ98: 1 | BS98: Cilindraje | BT98: Transmisión | BU98: No Aplica | BV98: S182
A99: VehículoEspecialCamiónMayorde17toneladasytresejesGrúadeRescateIntervalodeprecio2VOLKSWAGEN CONSTELLATION 31.330 (LV:9824MM)LARGO MT8900CC TD 6X4Unión Temporal Los Coches-Iberplas-2014 | B99: VehículoEspecialCamiónMayorde17toneladasytresejesGrúadeRescateIntervalodeprecio2 | C99: VOLKSWAGEN CONSTELLATION 31.330 (LV:9824MM)LARGO MT8900CC TD 6X4 | D99: Unión Temporal Los Coches-Iberplas-2014 | E99: Vehículo Especial | F99: Camión Mayor de 17 toneladas y tres ejes | G99: Grúa de Rescate | H99: Intervalo de precio 2 | I99: Diésel | J99: CONSTELLATION 31.330 (LV:9824MM)LARGO MT8900CC TD 6X4 | K99: VOLKSWAGEN | L99: 9211027 | M99: CONSTELLATION | N99: 31.330 (LV:9824MM)LARGO | O99: MT8900CC TD 6X4 | P99: 327000000 | Q99: 0.06 | R99: =$P99*(1-Q99) -> 307380000 | S99: 0.06 | T99: =$P99*(1-S99) -> 307380000 | U99: 0.06 | V99: =$P99*(1-U99) -> 307380000 | W99: 0.06 | X99: =$P99*(1-W99) -> 307380000 | Y99: 0.06 | Z99: =$P99*(1-Y99) -> 307380000 | AA99: 0.06 | AB99: =$P99*(1-AA99) -> 307380000 | AC99: 8162000 | AD99: 256520000 | BK99: 2980000 | BQ99: 1 | BS99: Caracteristica | BT99: No Aplica | BU99: No Aplica | BV99: S121
A100: VehículoEspecialCamiónMayorde17toneladasytresejesGrúadeRescateIntervalodeprecio2INTERNATIONAL 7600 WORKSTAR [404HP] MT TD 6X4 [STD] AANavitrans S.A.S. | B100: VehículoEspecialCamiónMayorde17toneladasytresejesGrúadeRescateIntervalodeprecio2 | C100: INTERNATIONAL 7600 WORKSTAR [404HP] MT TD 6X4 [STD] AA | D100: Navitrans S.A.S. | E100: Vehículo Especial | F100: Camión Mayor de 17 toneladas y tres ejes | G100: Grúa de Rescate | H100: Intervalo de precio 2 | I100: Diésel | J100: 7600 WORKSTAR [404HP] MT TD 6X4 [STD] AA | K100: INTERNATIONAL | L100: 3611108 | M100: 7600 | N100: WORKSTAR [404HP] | O100: MT TD 6X4 [STD] AA | P100: 395300000 | Q100: 0.005 | R100: =$P100*(1-Q100) -> 393323500 | S100: 0.01 | T100: =$P100*(1-S100) -> 391347000 | U100: 0.015 | V100: =$P100*(1-U100) -> 389370500 | W100: 0.02 | X100: =$P100*(1-W100) -> 387394000 | Y100: 0.025 | Z100: =$P100*(1-Y100) -> 385417500 | AA100: 0.03 | AB100: =$P100*(1-AA100) -> 383441000 | AC100: 16000000 | AD100: 235000000 | BQ100: 1 | BS100: Caracteristica | BT100: No Aplica | BU100: No Aplica | BV100: S121
A101: VehículoEspecialCamiónMayorde17toneladasytresejesGrúadeRescateIntervalodeprecio2CHEVROLET FVZ 700P FORWARD(LARGO) EURO IV MT 7800CC TD 6X4Automayor S.A. | B101: VehículoEspecialCamiónMayorde17toneladasytresejesGrúadeRescateIntervalodeprecio2 | C101: CHEVROLET FVZ 700P FORWARD(LARGO) EURO IV MT 7800CC TD 6X4 | D101: Automayor S.A. | E101: Vehículo Especial | F101: Camión Mayor de 17 toneladas y tres ejes | G101: Grúa de Rescate | H101: Intervalo de precio 2 | I101: Diésel | J101: FVZ 700P FORWARD(LARGO) EURO IV MT 7800CC TD 6X4 | K101: CHEVROLET | L101: 1611153 | M101: FVZ | N101: 700P FORWARD(LARGO) EURO IV | O101: MT 7800CC TD 6X4 | P101: 264100000 | Q101: 0.1 | R101: =$P101*(1-Q101) -> 237690000 | S101: 0.1 | T101: =$P101*(1-S101) -> 237690000 | U101: 0.1 | V101: =$P101*(1-U101) -> 237690000 | W101: 0.1 | X101: =$P101*(1-W101) -> 237690000 | Y101: 0.1 | Z101: =$P101*(1-Y101) -> 237690000 | AA101: 0.1 | AB101: =$P101*(1-AA101) -> 237690000 | AC101: 15158000 | AD101: 208970520 | AR101: 49500 | AS101: 330000 | AX101: 5280000 | AZ101: 715000 | BA101: 2200000 | BB101: 49500 | BC101: 330000 | BD101: 1006500 | BQ101: 0 | BS101: Caracteristica | BT101: No Aplica | BU101: No Aplica | BV101: S121
A102: VehículoEspecialCamiónMayorde17toneladasytresejesGrúadeRescateIntervalodeprecio2HINO FM1A L7D [500] MT 8900CC TD 6X4Praco Didacol S.A.S. | B102: VehículoEspecialCamiónMayorde17toneladasytresejesGrúadeRescateIntervalodeprecio2 | C102: HINO FM1A L7D [500] MT 8900CC TD 6X4 | D102: Praco Didacol S.A.S. | E102: Vehículo Especial | F102: Camión Mayor de 17 toneladas y tres ejes | G102: Grúa de Rescate | H102: Intervalo de precio 2 | I102: Diésel | J102: FM1A L7D [500] MT 8900CC TD 6X4 | K102: HINO | L102: 3711049 | M102: FM1A | N102: L7D [500] | O102: MT 8900CC TD 6X4 | P102: 296100000 | Q102: 0.055 | R102: =$P$423-($P$423*Q102) -> 138159000 | S102: 0.055 | T102: =$P$423-($P$423*S102) -> 138159000 | U102: 0.055 | V102: =$P$423-($P$423*U102) -> 138159000 | W102: 0.055 | X102: =$P$423-($P$423*W102) -> 138159000 | Y102: 0.055 | Z102: =$P$423-($P$423*Y102) -> 138159000 | AA102: 0.055 | AB102: =$P$423-($P$423*AA102) -> 138159000 | AC102: 23624000 | AD102: 245072000 | AR102: 84500 | AS102: 848000 | AX102: 7420000 | AZ102: 2430000 | BA102: 1320000 | BB102: 159000 | BC102: 487600 | BD102: 381600 | BQ102: 1 | BS102: Caracteristica | BT102: No Aplica | BU102: No Aplica | BV102: S165
A103: VehículoEspecialCamiónMayorde72toneladashasta105toneladasydosejesGruaCamaBajaIntervalodeprecio3CHEVROLET FRR 700P FORWARD (187 HP) MT 5200CC TD 4X2Automayor S.A. | B103: VehículoEspecialCamiónMayorde72toneladashasta105toneladasydosejesGruaCamaBajaIntervalodeprecio3 | C103: CHEVROLET FRR 700P FORWARD (187 HP) MT 5200CC TD 4X2 | D103: Automayor S.A. | E103: Vehículo Especial | F103: Camión Mayor de 7.2 toneladas hasta 10.5 toneladas y dos ejes | G103: Grua Cama Baja | H103: Intervalo de precio 3 | I103: Diésel | J103: FRR 700P FORWARD (187 HP) MT 5200CC TD 4X2 | K103: CHEVROLET | L103: 1611132 | M103: FRR | N103: 700P FORWARD (187 HP) | O103: MT 5200CC TD 4X2 | P103: 165600000 | Q103: 0.062 | R103: =P103*(1-Q103) -> 155332800 | S103: 0.062 | T103: =P103*(1-S103) -> 155332800 | U103: 0.062 | V103: 150361400 | W103: 0.062 | X103: =P103*(1-W103) -> 155332800 | Y103: 0.062 | Z103: =P103*(1-Y103) -> 155332800 | AA103: 0.062 | AB103: =P103*(1-AA103) -> 155332800 | AC103: 14925616.2 | AD103: 104940000 | AR103: 57717 | AS103: 384780 | AX103: 6156480 | AZ103: 833690 | BA103: 2565200 | BB103: 57717 | BC103: 384780 | BD103: 1173579 | BG103: 19966490.72 | BH103: 20521600 | BI103: 3847800 | BK103: 4200000 | BQ103: 1 | BS103: Peso bruto vehícular | BT103: No Aplica | BU103: No Aplica | BV103: S31
A104: VehículoEspecialCamiónMayorde72toneladashasta105toneladasydosejesGruaCamaBajaIntervalodeprecio3IVECO EUROCARGO ML110EL18 MT 3900CC TD 4X2 ABSNavitrans S.A.S. | B104: VehículoEspecialCamiónMayorde72toneladashasta105toneladasydosejesGruaCamaBajaIntervalodeprecio3 | C104: IVECO EUROCARGO ML110EL18 MT 3900CC TD 4X2 ABS | D104: Navitrans S.A.S. | E104: Vehículo Especial | F104: Camión Mayor de 7.2 toneladas hasta 10.5 toneladas y dos ejes | G104: Grua Cama Baja | H104: Intervalo de precio 3 | I104: Diésel | J104: EUROCARGO ML110EL18 MT 3900CC TD 4X2 ABS | K104: IVECO | L104: 10211019 | M104: EUROCARGO | N104: ML110EL18 | O104: MT 3900CC TD 4X2 ABS | P104: 171000000 | Q104: 0.005 | R104: =P104*(1-Q104) -> 170145000 | S104: 0.01 | T104: =P104*(1-S104) -> 169290000 | U104: 0.015 | V104: =P104*(1-U104) -> 168435000 | W104: 0.02 | X104: =P104*(1-W104) -> 167580000 | Y104: 0.025 | Z104: =P104*(1-Y104) -> 166725000 | AA104: 0.03 | AB104: =P104*(1-AA104) -> 165870000 | AC104: 10000000 | AD104: 85000000 | AR104: 70000 | AS104: 300000 | AZ104: 800000 | BA104: 1900000 | BB104: 30000 | BC104: 300000 | BD104: 1800000 | BG104: 11000000 | BH104: 10500000 | BQ104: 1 | BS104: Peso bruto vehícular | BT104: No Aplica | BU104: No Aplica | BV104: S181
A105: VehículoEspecialCamiónMayorde72toneladashasta105toneladasydosejesGruaCamaBajaIntervalodeprecio2HINO DUTRO CITY [300] [2] EURO IV MT 4000CC TD 4X2Praco Didacol S.A.S. | B105: VehículoEspecialCamiónMayorde72toneladashasta105toneladasydosejesGruaCamaBajaIntervalodeprecio2 | C105: HINO DUTRO CITY [300] [2] EURO IV MT 4000CC TD 4X2 | D105: Praco Didacol S.A.S. | E105: Vehículo Especial | F105: Camión Mayor de 7.2 toneladas hasta 10.5 toneladas y dos ejes | G105: Grua Cama Baja | H105: Intervalo de precio 2 | I105: Diésel | J105: DUTRO CITY [300] [2] EURO IV MT 4000CC TD 4X2 | K105: HINO | L105: 3711043 | M105: DUTRO | N105: CITY [300] [2] EURO IV | O105: MT 4000CC TD 4X2 | P105: 116900000 | Q105: 0.055 | R105: =P105*(1-Q105) -> 110470500 | S105: 0.055 | T105: =P105*(1-S105) -> 110470500 | U105: 0.055 | V105: =P105*(1-U105) -> 110470500 | W105: 0.055 | X105: =P105*(1-W105) -> 110470500 | Y105: 0.055 | Z105: =P105*(1-Y105) -> 110470500 | AA105: 0.055 | AB105: =P105*(1-AA105) -> 110470500 | AC105: 12510000 | AD105: 66300000 | AR105: 84500 | AS105: 848000 | AX105: 7420000 | BA105: 1320000 | BB105: 159000 | BC105: 487600 | BD105: 381600 | BI105: 3816000 | BQ105: 1 | BS105: Peso bruto vehícular | BT105: No Aplica | BU105: No Aplica | BV105: S181
A106: VehículoEspecialCamiónMayorde72toneladashasta105toneladasydosejesGruaCamaBajaIntervalodeprecio3HINO FC 9J [500] [207HP] MT 5100CC TD 4X2Praco Didacol S.A.S. | B106: VehículoEspecialCamiónMayorde72toneladashasta105toneladasydosejesGruaCamaBajaIntervalodeprecio3 | C106: HINO FC 9J [500] [207HP] MT 5100CC TD 4X2 | D106: Praco Didacol S.A.S. | E106: Vehículo Especial | F106: Camión Mayor de 7.2 toneladas hasta 10.5 toneladas y dos ejes | G106: Grua Cama Baja | H106: Intervalo de precio 3 | I106: Diésel | J106: FC 9J [500] [207HP] MT 5100CC TD 4X2 | K106: HINO | L106: 3711037 | M106: FC | N106: 9J [500] [207HP] | O106: MT 5100CC TD 4X2 | P106: 151700000 | Q106: 0.055 | R106: =P106*(1-Q106) -> 143356500 | S106: 0.055 | T106: =P106*(1-S106) -> 143356500 | U106: 0.055 | V106: =P106*(1-U106) -> 143356500 | W106: 0.055 | X106: =P106*(1-W106) -> 143356500 | Y106: 0.055 | Z106: =P106*(1-Y106) -> 143356500 | AA106: 0.055 | AB106: =P106*(1-AA106) -> 143356500 | AC106: 14850000 | AD106: 70278000 | AR106: 84500 | AS106: 848000 | AX106: 7420000 | AZ106: 2430000 | BA106: 1320000 | BB106: 159000 | BC106: 487600 | BD106: 381600 | BI106: 4876000 | BQ106: 1 | BS106: Peso bruto vehícular | BT106: No Aplica | BU106: No Aplica | BV106: S181
A107: VehículoEspecialCamiónMayorde72toneladashasta105toneladasydosejesFurgónSimuladorMotocicletasIntervalodeprecio3CHEVROLET FRR 700P FORWARD [187HP] MT 5200CC TD 4X2Automayor S.A. | B107: VehículoEspecialCamiónMayorde72toneladashasta105toneladasydosejesFurgónSimuladorMotocicletasIntervalodeprecio3 | C107: CHEVROLET FRR 700P FORWARD [187HP] MT 5200CC TD 4X2 | D107: Automayor S.A. | E107: Vehículo Especial | F107: Camión Mayor de 7.2 toneladas hasta 10.5 toneladas y dos ejes | G107: Furgón Simulador Motocicletas | H107: Intervalo de precio 3 | I107: Diésel | J107: FRR 700P FORWARD [187HP] MT 5200CC TD 4X2 | K107: CHEVROLET | L107: 1611132 | M107: FRR | N107: 700P FORWARD [187HP] | O107: MT 5200CC TD 4X2 | P107: 165600000 | Q107: 0.062 | R107: =$P107*(1-Q107) -> 155332800 | S107: 0.062 | T107: =$P107*(1-S107) -> 155332800 | U107: 0.062 | V107: =$P107*(1-U107) -> 155332800 | W107: 0.062 | X107: =$P107*(1-W107) -> 155332800 | Y107: 0.062 | Z107: =$P107*(1-Y107) -> 155332800 | AA107: 0.062 | AB107: =$P107*(1-AA107) -> 155332800 | AC107: 14925616.2 | AD107: 201138719.8 | AR107: 57717 | AS107: 384780 | AX107: 6156480 | AZ107: 833690 | BA107: 2565200 | BB107: 57717 | BC107: 384780 | BD107: 1173579 | BG107: 19966490.72 | BH107: 20521600 | BI107: 3847800 | BK107: 4200000 | BQ107: 1 | BS107: Caracteristica | BT107: No Aplica | BU107: No Aplica | BV107: S31
A108: VehículoEspecialCamiónMayorde72toneladashasta105toneladasydosejesFurgónSimuladorMotocicletasIntervalodeprecio1VOLKSWAGEN DELIVERY 9.160 (3300 mm) MT 3800CC TD 4X2Unión Temporal Los Coches-Iberplas-2014 | B108: VehículoEspecialCamiónMayorde72toneladashasta105toneladasydosejesFurgónSimuladorMotocicletasIntervalodeprecio1 | C108: VOLKSWAGEN DELIVERY 9.160 (3300 mm) MT 3800CC TD 4X2 | D108: Unión Temporal Los Coches-Iberplas-2014 | E108: Vehículo Especial | F108: Camión Mayor de 7.2 toneladas hasta 10.5 toneladas y dos ejes | G108: Furgón Simulador Motocicletas | H108: Intervalo de precio 1 | I108: Diésel | J108: DELIVERY 9.160 (3300 mm) MT 3800CC TD 4X2 | K108: VOLKSWAGEN | L108: 9211022 | M108: DELIVERY | N108: 9.160 (3300 mm) | O108: MT 3800CC TD 4X2 | P108: 112000000 | Q108: 0.05 | R108: 106400000 | S108: 0.05 | T108: 106400000 | U108: 0.05 | V108: 106400000 | W108: 0.05 | X108: 106400000 | Y108: 0.05 | Z108: 106400000 | AA108: 0.05 | AB108: 106400000 | AC108: 8162000 | AD108: 187726000 | BK108: 2980000 | BQ108: 1 | BS108: Caracteristica | BT108: No Aplica | BU108: No Aplica | BV108: S176
A109: VehículoEspecialCamiónMayorde72toneladashasta105toneladasydosejesCompactadordebasuraIntervalodeprecio1CHEVROLET FRR 700P FORWARD [187HP] MT 5200CC TD 4X2Automayor S.A. | B109: VehículoEspecialCamiónMayorde72toneladashasta105toneladasydosejesCompactadordebasuraIntervalodeprecio1 | C109: CHEVROLET FRR 700P FORWARD [187HP] MT 5200CC TD 4X2 | D109: Automayor S.A. | E109: Vehículo Especial | F109: Camión Mayor de 7.2 toneladas hasta 10.5 toneladas y dos ejes | G109: Compactador de basura | H109: Intervalo de precio 1 | I109: Diésel | J109: FRR 700P FORWARD [187HP] MT 5200CC TD 4X2 | K109: CHEVROLET | L109: 1611132 | M109: FRR | N109: 700P FORWARD [187HP] | O109: MT 5200CC TD 4X2 | P109: 165600000 | Q109: 0.062 | R109: 155332800 | S109: 0.062 | T109: 155332800 | U109: 0.062 | V109: 155332800 | W109: 0.062 | X109: 155332800 | Y109: 0.062 | Z109: 155332800 | AA109: 0.062 | AB109: 155332800 | AC109: 14925616.2 | AD109: 106327540 | AR109: 57717 | AS109: 384780 | AX109: 6156480 | AZ109: 833690 | BA109: 2565200 | BB109: 57717 | BC109: 384780 | BD109: 1173579 | BG109: 19966490.72 | BH109: 20521600 | BI109: 3847800 | BK109: 4200000 | BQ109: 1 | BS109: Caracteristica | BT109: No Aplica | BU109: No Aplica | BV109: S30
A110: VehículoEspecialCamiónMayorde14toneladasyhasta17toneladasydosejesCompactadordebasuraIntervalodeprecio1CHEVROLET FTR [2] 700P FORWARD Euro IV MT 7800CC TD 4X2Automayor S.A. | B110: VehículoEspecialCamiónMayorde14toneladasyhasta17toneladasydosejesCompactadordebasuraIntervalodeprecio1 | C110: CHEVROLET FTR [2] 700P FORWARD Euro IV MT 7800CC TD 4X2 | D110: Automayor S.A. | E110: Vehículo Especial | F110: Camión Mayor de 14 toneladas y hasta 17 toneladas y dos ejes | G110: Compactador de basura | H110: Intervalo de precio 1 | I110: Diésel | J110: FTR [2] 700P FORWARD Euro IV MT 7800CC TD 4X2 | K110: CHEVROLET | L110: 1611146 | M110: FTR [2] | N110: 700P FORWARD Euro IV | O110: MT 7800CC TD 4X2 | P110: 215400000 | Q110: 0.1 | R110: 193860000 | S110: 0.1 | T110: 193860000 | U110: 0.1 | V110: 193860000 | W110: 0.1 | X110: 193860000 | Y110: 0.1 | Z110: 193860000 | AA110: 0.1 | AB110: 193860000 | AC110: 18741955.3 | AD110: 125053500 | AR110: 57717 | AS110: 384780 | AX110: 6156480 | AZ110: 833690 | BA110: 2565200 | BB110: 57717 | BC110: 384780 | BD110: 1173579 | BG110: 23730665.2 | BH110: 24369400 | BI110: 3847800 | BK110: 4200000 | BQ110: 1 | BS110: Caracteristica | BT110: No Aplica | BU110: No Aplica | BV110: S38
A111: VehículoEspecialCamiónMayorde14toneladasyhasta17toneladasydosejesCompactadordebasuraIntervalodeprecio1CHEVROLET FVR [2] 700P FORWARD [CORTO] Euro IV MT 7800CC TD 4X2Automayor S.A. | B111: VehículoEspecialCamiónMayorde14toneladasyhasta17toneladasydosejesCompactadordebasuraIntervalodeprecio1 | C111: CHEVROLET FVR [2] 700P FORWARD [CORTO] Euro IV MT 7800CC TD 4X2 | D111: Automayor S.A. | E111: Vehículo Especial | F111: Camión Mayor de 14 toneladas y hasta 17 toneladas y dos ejes | G111: Compactador de basura | H111: Intervalo de precio 1 | I111: Diésel | J111: FVR [2] 700P FORWARD [CORTO] Euro IV MT 7800CC TD 4X2 | K111: CHEVROLET | L111: 1611147 | M111: FVR [2] | N111: 700P FORWARD [CORTO] Euro IV | O111: MT 7800CC TD 4X2 | P111: 226400000 | Q111: 0.1 | R111: 203760000 | S111: 0.1 | T111: 203760000 | U111: 0.1 | V111: 203760000 | W111: 0.1 | X111: 203760000 | Y111: 0.1 | Z111: 203760000 | AA111: 0.1 | AB111: 203760000 | AC111: 20675512 | AD111: 135375864.8 | AR111: 57717 | AS111: 384780 | AX111: 6156480 | AZ111: 833690 | BA111: 2565200 | BB111: 57717 | BC111: 384780 | BD111: 1173579 | BG111: 25039943.28 | BH111: 25652000 | BI111: 3847800 | BK111: 4200000 | BQ111: 1 | BS111: Caracteristica | BT111: No Aplica | BU111: No Aplica | BV111: S38
A112: VehículoEspecialCamiónMayorde14toneladasyhasta17toneladasydosejesCompactadordebasuraIntervalodeprecio1CHEVROLET FVR [2] 700P FORWARD LWB Euro IV MT 7800CC TD 4X2Automayor S.A. | B112: VehículoEspecialCamiónMayorde14toneladasyhasta17toneladasydosejesCompactadordebasuraIntervalodeprecio1 | C112: CHEVROLET FVR [2] 700P FORWARD LWB Euro IV MT 7800CC TD 4X2 | D112: Automayor S.A. | E112: Vehículo Especial | F112: Camión Mayor de 14 toneladas y hasta 17 toneladas y dos ejes | G112: Compactador de basura | H112: Intervalo de precio 1 | I112: Diésel | J112: FVR [2] 700P FORWARD LWB Euro IV MT 7800CC TD 4X2 | K112: CHEVROLET | L112: 1611148 | M112: FVR [2] | N112: 700P FORWARD LWB Euro IV | O112: MT 7800CC TD 4X2 | P112: 237500000 | Q112: 0.1 | R112: 213750000 | S112: 0.1 | T112: 213750000 | U112: 0.1 | V112: 213750000 | W112: 0.1 | X112: 213750000 | Y112: 0.1 | Z112: 213750000 | AA112: 0.1 | AB112: 213750000 | AC112: 20675512 | AD112: 135375864.8 | AR112: 57717 | AS112: 384780 | AX112: 6156480 | AZ112: 833690 | BA112: 2565200 | BB112: 57717 | BC112: 384780 | BD112: 1173579 | BG112: 26934600 | BH112: 27575900 | BI112: 3847800 | BK112: 4200000 | BQ112: 1 | BS112: Caracteristica | BT112: No Aplica | BU112: No Aplica | BV112: S38
A113: VehículoEspecialCamiónMayorde17toneladasytresejesCompactadordebasuraIntervalodeprecio2CHEVROLET FVZ 700P FORWARD [CORTO] EURO IV MT 7800CC TD 6X4Automayor S.A. | B113: VehículoEspecialCamiónMayorde17toneladasytresejesCompactadordebasuraIntervalodeprecio2 | C113: CHEVROLET FVZ 700P FORWARD [CORTO] EURO IV MT 7800CC TD 6X4 | D113: Automayor S.A. | E113: Vehículo Especial | F113: Camión Mayor de 17 toneladas y tres ejes | G113: Compactador de basura | H113: Intervalo de precio 2 | I113: Diésel | J113: FVZ 700P FORWARD [CORTO] EURO IV MT 7800CC TD 6X4 | K113: CHEVROLET | L113: 1611152 | M113: FVZ | N113: 700P FORWARD [CORTO] EURO IV | O113: MT 7800CC TD 6X4 | P113: 255300000 | Q113: 0.08 | R113: 234876000 | S113: 0.08 | T113: 234876000 | U113: 0.08 | V113: 234876000 | W113: 0.08 | X113: 234876000 | Y113: 0.08 | Z113: 234876000 | AA113: 0.08 | AB113: 234876000 | AC113: 23086800 | AD113: 160386564.8 | AR113: 52470 | AS113: 349800 | AX113: 5596800 | AZ113: 757900 | BA113: 2200000 | BB113: 52470 | BC113: 349800 | BD113: 1066890 | BK113: 4200000 | BQ113: 1 | BS113: Caracteristica | BT113: No Aplica | BU113: No Aplica | BV113: S50
A114: VehículoEspecialCamiónMayorde17toneladasytresejesCompactadordebasuraIntervalodeprecio2CHEVROLET FVZ 700P FORWARD [LARGO] EURO IV MT 7800CC TD 6X4Automayor S.A. | B114: VehículoEspecialCamiónMayorde17toneladasytresejesCompactadordebasuraIntervalodeprecio2 | C114: CHEVROLET FVZ 700P FORWARD [LARGO] EURO IV MT 7800CC TD 6X4 | D114: Automayor S.A. | E114: Vehículo Especial | F114: Camión Mayor de 17 toneladas y tres ejes | G114: Compactador de basura | H114: Intervalo de precio 2 | I114: Diésel | J114: FVZ 700P FORWARD [LARGO] EURO IV MT 7800CC TD 6X4 | K114: CHEVROLET | L114: 1611153 | M114: FVZ | N114: 700P FORWARD [LARGO] EURO IV | O114: MT 7800CC TD 6X4 | P114: 264100000 | Q114: 0.08 | R114: 242972000 | S114: 0.08 | T114: 242972000 | U114: 0.08 | V114: 242972000 | W114: 0.08 | X114: 242972000 | Y114: 0.08 | Z114: 242972000 | AA114: 0.08 | AB114: 242972000 | AC114: 20988000 | AD114: 138754000 | AR114: 52470 | AS114: 349800 | AX114: 5596800 | AZ114: 757900 | BA114: 2200000 | BB114: 52470 | BC114: 349800 | BD114: 1066890 | BQ114: 0 | BS114: Caracteristica | BT114: No Aplica | BU114: No Aplica | BV114: S50
A115: VehículoEspecialCamiónMayorde17toneladasytresejesCompactadordebasuraIntervalodeprecio2FREIGHTLINER M2 106 [LARGO] [230HP] MT 6400CC TD 6X4Motores y Máquinas S.A. | B115: VehículoEspecialCamiónMayorde17toneladasytresejesCompactadordebasuraIntervalodeprecio2 | C115: FREIGHTLINER M2 106 [LARGO] [230HP] MT 6400CC TD 6X4 | D115: Motores y Máquinas S.A. | E115: Vehículo Especial | F115: Camión Mayor de 17 toneladas y tres ejes | G115: Compactador de basura | H115: Intervalo de precio 2 | I115: Diésel | J115: M2 106 [LARGO] [230HP] MT 6400CC TD 6X4 | K115: FREIGHTLINER | L115: 2911006 | M115: M2 | N115: 106 [LARGO] [230HP] | O115: MT 6400CC TD 6X4 | P115: 266800000 | Q115: 0.02 | R115: 261464000 | S115: 0.02 | T115: 261464000 | U115: 0.02 | V115: 261464000 | W115: 0.02 | X115: 261464000 | Y115: 0.02 | Z115: 261464000 | AA115: 0.02 | AB115: 261464000 | AC115: 7806323 | AD115: 158000000 | AL115: 867879.3103 | AO115: 705151.9397 | AR115: 130181.8966 | AS115: 401394.181 | AT115: 542424.569 | AX115: 7051519.397 | AY115: 379697.1983 | AZ115: 922121.7672 | BA115: 1247576.509 | BB115: 45021.23922 | BC115: 135606.1422 | BD115: 1627273.707 | BF115: 65090.94828 | BG115: 20880000 | BH115: 20880000 | BI115: 3770000 | BQ115: 0 | BS115: Caracteristica | BT115: No Aplica | BU115: No Aplica | BV115: S50
A116: VehículoEspecialCamiónMayorde17toneladasytresejesCompactadordebasuraIntervalodeprecio1HINO FM 8J [500] MT 7700CC TD 6X4Praco Didacol S.A.S. | B116: VehículoEspecialCamiónMayorde17toneladasytresejesCompactadordebasuraIntervalodeprecio1 | C116: HINO FM 8J [500] MT 7700CC TD 6X4 | D116: Praco Didacol S.A.S. | E116: Vehículo Especial | F116: Camión Mayor de 17 toneladas y tres ejes | G116: Compactador de basura | H116: Intervalo de precio 1 | I116: Diésel | J116: FM 8J [500] MT 7700CC TD 6X4 | K116: HINO | L116: 3711038 | M116: FM | N116: 8J [500] | O116: MT 7700CC TD 6X4 | P116: 245100000 | Q116: 0.055 | R116: 231619500 | S116: 0.055 | T116: 231619500 | U116: 0.055 | V116: 231619500 | W116: 0.055 | X116: 231619500 | Y116: 0.055 | Z116: 231619500 | AA116: 0.055 | AB116: 231619500 | AC116: 23000000 | AD116: 125080000 | AR116: 84500 | AS116: 848000 | AX116: 5300000 | AZ116: 2430000 | BA116: 1320000 | BB116: 159000 | BC116: 487600 | BD116: 381600 | BG116: 27051200 | BH116: 23977200 | BQ116: 1 | BS116: Caracteristica | BT116: No Aplica | BU116: No Aplica | BV116: S104
A117: VehículoEspecialCamiónMayorde72toneladashasta105toneladasydosejesCompactadordebasuraIntervalodeprecio1VOLKSWAGEN DELIVERY 10.160 [4300mm] MT 3800CC TD 4X2Unión Temporal Los Coches-Iberplas-2014 | B117: VehículoEspecialCamiónMayorde72toneladashasta105toneladasydosejesCompactadordebasuraIntervalodeprecio1 | C117: VOLKSWAGEN DELIVERY 10.160 [4300mm] MT 3800CC TD 4X2 | D117: Unión Temporal Los Coches-Iberplas-2014 | E117: Vehículo Especial | F117: Camión Mayor de 7.2 toneladas hasta 10.5 toneladas y dos ejes | G117: Compactador de basura | H117: Intervalo de precio 1 | I117: Diésel | J117: DELIVERY 10.160 [4300mm] MT 3800CC TD 4X2 | K117: VOLKSWAGEN | L117: 9211019 | M117: DELIVERY | N117: 10.160 [4300mm] | O117: MT 3800CC TD 4X2 | P117: 118900000 | Q117: 0.06 | R117: 111766000 | S117: 0.06 | T117: 111766000 | U117: 0.06 | V117: 111766000 | W117: 0.06 | X117: 111766000 | Y117: 0.06 | Z117: 111766000 | AA117: 0.06 | AB117: 111766000 | AC117: 6996000 | AD117: 72080000 | AL117: 867879.3103 | AO117: 705151.9397 | AR117: 130181.8966 | AS117: 401394.181 | AT117: 542424.569 | AX117: 7051519.397 | AY117: 379697.1983 | AZ117: 922121.7672 | BA117: 1247576.509 | BB117: 45021.23922 | BC117: 135606.1422 | BD117: 1627273.707 | BF117: 65090.94828 | BK117: 2980000 | BQ117: 1 | BS117: Caracteristica | BT117: No Aplica | BU117: No Aplica | BV117: S30
A118: VehículoEspecialCamiónMayorde72toneladashasta105toneladasydosejesCompactadordebasuraIntervalodeprecio2HINO FC 9J [500] [207HP] MT 5100CC TD 4X2Praco Didacol S.A.S. | B118: VehículoEspecialCamiónMayorde72toneladashasta105toneladasydosejesCompactadordebasuraIntervalodeprecio2 | C118: HINO FC 9J [500] [207HP] MT 5100CC TD 4X2 | D118: Praco Didacol S.A.S. | E118: Vehículo Especial | F118: Camión Mayor de 7.2 toneladas hasta 10.5 toneladas y dos ejes | G118: Compactador de basura | H118: Intervalo de precio 2 | I118: Diésel | J118: FC 9J [500] [207HP] MT 5100CC TD 4X2 | K118: HINO | L118: 3711037 | M118: FC | N118: 9J [500] [207HP] | O118: MT 5100CC TD 4X2 | P118: 151700000 | Q118: 0.055 | R118: 143356500 | S118: 0.055 | T118: 143356500 | U118: 0.055 | V118: 143356500 | W118: 0.055 | X118: 143356500 | Y118: 0.055 | Z118: 143356500 | AA118: 0.055 | AB118: 143356500 | AC118: 14850000 | AD118: 71020000 | AR118: 84500 | AS118: 848000 | AX118: 7420000 | AZ118: 2430000 | BA118: 1320000 | BB118: 159000 | BC118: 487600 | BD118: 381600 | BI118: 4876000 | BQ118: 1 | BS118: Caracteristica | BT118: No Aplica | BU118: No Aplica | BV118: S133
A119: VehículoEspecialCamiónMayorde14toneladasyhasta17toneladasydosejesCompactadordebasuraIntervalodeprecio1VOLKSWAGEN CONSTELLATION 15.190 [4800MM] MT 4600CC TD 4X2Unión Temporal Los Coches-Iberplas-2014 | B119: VehículoEspecialCamiónMayorde14toneladasyhasta17toneladasydosejesCompactadordebasuraIntervalodeprecio1 | C119: VOLKSWAGEN CONSTELLATION 15.190 [4800MM] MT 4600CC TD 4X2 | D119: Unión Temporal Los Coches-Iberplas-2014 | E119: Vehículo Especial | F119: Camión Mayor de 14 toneladas y hasta 17 toneladas y dos ejes | G119: Compactador de basura | H119: Intervalo de precio 1 | I119: Diésel | J119: WORKER 15.190 [4800MM] MT 4600CC TD 4X2 | K119: VOLKSWAGEN | L119: 9211030 | M119: CONSTELLATION | N119: 15.190 [4800MM] | O119: MT 4600CC TD 4X2 | P119: 196000000 | Q119: 0.06 | R119: 184240000 | S119: 0.06 | T119: 184240000 | U119: 0.06 | V119: 184240000 | W119: 0.06 | X119: 184240000 | Y119: 0.06 | Z119: 184240000 | AA119: 0.06 | AB119: 184240000 | AC119: 6996000 | AD119: 101760000 | BK119: 2980000 | BQ119: 1 | BS119: Caracteristica | BT119: No Aplica | BU119: No Aplica | BV119: S38
A120: VehículoEspecialCamiónMayorde72toneladashasta105toneladasydosejesClínicaVeterinariaIntervalodeprecio3CHEVROLET FRR 700P FORWARD 187 HP MT 5200CC TD 4X2 Automayor S.A. | B120: VehículoEspecialCamiónMayorde72toneladashasta105toneladasydosejesClínicaVeterinariaIntervalodeprecio3 | C120: CHEVROLET FRR 700P FORWARD 187 HP MT 5200CC TD 4X2 | D120: Automayor S.A. | E120: Vehículo Especial | F120: Camión Mayor de 7.2 toneladas hasta 10.5 toneladas y dos ejes | G120: Clínica Veterinaria | H120: Intervalo de precio 3 | I120: Diésel | J120: =M120&" "&N120&" "&O120 -> FRR 700P FORWARD 187 HP MT 5200CC TD 4X2 | K120: CHEVROLET | L120: 1611132 | M120: FRR | N120: 700P FORWARD 187 HP | O120: MT 5200CC TD 4X2 | P120: 165600000 | Q120: 0.062 | R120: =P120*(1-Q120) -> 155332800 | S120: 0.062 | T120: =P120*(1-S120) -> 155332800 | U120: 0.062 | V120: =P120*(1-U120) -> 155332800 | W120: 0.062 | X120: =P120*(1-W120) -> 155332800 | Y120: 0.062 | Z120: =P120*(1-Y120) -> 155332800 | AA120: 0.062 | AB120: =P120*(1-AA120) -> 155332800 | AC120: 14925616.2 | AD120: 288295700 | AR120: 57717 | AS120: 384780 | AX120: 6156480 | AZ120: 833690 | BA120: 2565200 | BB120: 57717 | BC120: 384780 | BD120: 1173579 | BG120: 19966490.72 | BH120: 20521600 | BI120: 3847800 | BK120: 4200000 | BQ120: 1 | BS120: Peso bruto vehícular | BT120: No Aplica | BU120: No Aplica
A121: VehículoEspecialCamiónMayorde72toneladashasta105toneladasydosejesClínicaVeterinariaIntervalodeprecio3CHEVROLET NQR(2) 700P REWARD 153HP MT 5200CC TD 4X2 (FA) ABSAutomayor S.A. | B121: VehículoEspecialCamiónMayorde72toneladashasta105toneladasydosejesClínicaVeterinariaIntervalodeprecio3 | C121: CHEVROLET NQR(2) 700P REWARD 153HP MT 5200CC TD 4X2 (FA) ABS | D121: Automayor S.A. | E121: Vehículo Especial | F121: Camión Mayor de 7.2 toneladas hasta 10.5 toneladas y dos ejes | G121: Clínica Veterinaria | H121: Intervalo de precio 3 | I121: Diésel | J121: =M121&" "&N121&" "&O121 -> NQR(2) 700P REWARD 153HP MT 5200CC TD 4X2 (FA) ABS | K121: CHEVROLET | L121: 1611157 | M121: NQR(2) | N121: 700P REWARD 153HP | O121: MT 5200CC TD 4X2 (FA) ABS | P121: 146200000 | Q121: 0.062 | R121: =P121*(1-Q121) -> 137135600 | S121: 0.062 | T121: =P121*(1-S121) -> 137135600 | U121: 0.062 | V121: =P121*(1-U121) -> 137135600 | W121: 0.062 | X121: =P121*(1-W121) -> 137135600 | Y121: 0.062 | Z121: =P121*(1-Y121) -> 137135600 | AA121: 0.062 | AB121: =P121*(1-AA121) -> 137135600 | AC121: 13399322.2 | AD121: 288295700 | AR121: 57717 | AS121: 384780 | AX121: 6156480 | AZ121: 833690 | BA121: 2565200 | BB121: 57717 | BC121: 384780 | BD121: 1173579 | BG121: 16693039 | BH121: 17315100 | BI121: 3847800 | BK121: 4200000 | BQ121: 1 | BS121: Peso bruto vehícular | BT121: No Aplica | BU121: No Aplica
A122: VehículoEspecialCamiónMayorde72toneladashasta105toneladasydosejesClínicaVeterinariaIntervalodeprecio3HINO FC 9J [500] [207HP] MT 5100CC TD 4X2Praco Didacol S.A.S. | B122: VehículoEspecialCamiónMayorde72toneladashasta105toneladasydosejesClínicaVeterinariaIntervalodeprecio3 | C122: HINO FC 9J [500] [207HP] MT 5100CC TD 4X2 | D122: Praco Didacol S.A.S. | E122: Vehículo Especial | F122: Camión Mayor de 7.2 toneladas hasta 10.5 toneladas y dos ejes | G122: Clínica Veterinaria | H122: Intervalo de precio 3 | I122: Diésel | J122: FC 9J [500] [207HP] MT 5100CC TD 4X2 | K122: HINO | L122: 3711037 | M122: FC | N122: 9J [500] [207HP] | O122: MT 5100CC TD 4X2 | P122: 151700000 | Q122: 0.055 | R122: 143356500 | S122: 0.055 | T122: 143356500 | U122: 0.055 | V122: 143356500 | W122: 0.055 | X122: 143356500 | Y122: 0.055 | Z122: 143356500 | AA122: 0.055 | AB122: 143356500 | AC122: 14850000 | AD122: 485000000 | BQ122: 1 | BS122: Peso bruto vehícular | BT122: No Aplica | BU122: No Aplica
A123: VehículoEspecialBusde40pasajerosa50pasajerosChivaIntervalodeprecio1CHEVROLET FRR 700P FORWARD [BUS][187HP] MT 5200CC TD 4X2Automayor S.A. | B123: VehículoEspecialBusde40pasajerosa50pasajerosChivaIntervalodeprecio1 | C123: CHEVROLET FRR 700P FORWARD [BUS][187HP] MT 5200CC TD 4X2 | D123: Automayor S.A. | E123: Vehículo Especial | F123: Bus de 40 pasajeros a 50 pasajeros | G123: Chiva | H123: Intervalo de precio 1 | I123: Diésel | J123: FRR 700P FORWARD [BUS][187HP] MT 5200CC TD 4X2 | K123: CHEVROLET | L123: 1611140 | M123: FRR | N123: 700P FORWARD [BUS][187HP] | O123: MT 5200CC TD 4X2 | P123: 166100000 | Q123: 0.12 | R123: =$P123*(1-Q123) -> 146168000 | S123: 0.12 | T123: =$P123*(1-S123) -> 146168000 | U123: 0.12 | V123: =$P123*(1-U123) -> 146168000 | W123: 0.12 | X123: =$P123*(1-W123) -> 146168000 | Y123: 0.12 | Z123: =$P123*(1-Y123) -> 146168000 | AA123: 0.12 | AB123: =$P123*(1-AA123) -> 146168000 | AC123: 14925616.2 | AD123: 94271100 | AG123: 107738400 | AH123: 127939350 | AK123: 128260 | AR123: 57717 | AS123: 384780 | AT123: 128260 | AU123: 1923900 | AY123: 513040 | BA123: 2565200 | BB123: 57717 | BC123: 384780 | BD123: 1173579 | BF123: 57717 | BI123: 23086800 | BK123: 4200000 | BQ123: 1 | BS123: Caracteristica | BT123: No Aplica | BU123: No Aplica | BV123: S35
A124: VehículoEspecialCamiónMayorde14toneladasyhasta17toneladasydosejesCarrotanqueCombustibleIntervalodeprecio1CHEVROLET FVR [2] 700P FORWARD LWB Euro IV MT 7800CC TD 4X2Automayor S.A. | B124: VehículoEspecialCamiónMayorde14toneladasyhasta17toneladasydosejesCarrotanqueCombustibleIntervalodeprecio1 | C124: CHEVROLET FVR [2] 700P FORWARD LWB Euro IV MT 7800CC TD 4X2 | D124: Automayor S.A. | E124: Vehículo Especial | F124: Camión Mayor de 14 toneladas y hasta 17 toneladas y dos ejes | G124: Carrotanque - Combustible | H124: Intervalo de precio 1 | I124: Diésel | J124: FVR [2] 700P FORWARD LWB Euro IV MT 7800CC TD 4X2 | K124: CHEVROLET | L124: 1611148 | M124: FVR [2] | N124: 700P FORWARD LWB Euro IV | O124: MT 7800CC TD 4X2 | P124: 237500000 | Q124: 0.1 | R124: 213750000 | S124: 0.1 | T124: 213750000 | U124: 0.1 | V124: 213750000 | W124: 0.1 | X124: 213750000 | Y124: 0.1 | Z124: 213750000 | AA124: 0.1 | AB124: 213750000 | AC124: 20675512 | AD124: 323215200 | AR124: 57717 | AS124: 384780 | AX124: 6156480 | AZ124: 833690 | BA124: 2565200 | BB124: 57717 | BC124: 384780 | BD124: 1173579 | BG124: 26934600 | BH124: 27575900 | BI124: 3847800 | BK124: 4200000 | BQ124: 1 | BS124: Caracteristica | BT124: No Aplica | BU124: No Aplica | BV124: S48
A125: VehículoEspecialCamiónMayorde17toneladasytresejesCarrotanqueCombustibleIntervalodeprecio2CHEVROLET FVZ 700P FORWARD [LARGO] EURO IV MT 7800CC TD 6X4Automayor S.A. | B125: VehículoEspecialCamiónMayorde17toneladasytresejesCarrotanqueCombustibleIntervalodeprecio2 | C125: CHEVROLET FVZ 700P FORWARD [LARGO] EURO IV MT 7800CC TD 6X4 | D125: Automayor S.A. | E125: Vehículo Especial | F125: Camión Mayor de 17 toneladas y tres ejes | G125: Carrotanque - Combustible | H125: Intervalo de precio 2 | I125: Diésel | J125: FVZ 700P FORWARD [LARGO] EURO IV MT 7800CC TD 6X4 | K125: CHEVROLET | L125: 1611153 | M125: FVZ | N125: 700P FORWARD [LARGO] EURO IV | O125: MT 7800CC TD 6X4 | P125: 264100000 | Q125: 0.08 | R125: 242972000 | S125: 0.08 | T125: 242972000 | U125: 0.08 | V125: 242972000 | W125: 0.08 | X125: 242972000 | Y125: 0.08 | Z125: 242972000 | AA125: 0.08 | AB125: 242972000 | AC125: 20988000 | AD125: 443080000 | AR125: 52470 | AS125: 349800 | AX125: 5596800 | AZ125: 757900 | BA125: 2200000 | BB125: 52470 | BC125: 349800 | BD125: 1066890 | BQ125: 0 | BS125: Caracteristica | BT125: No Aplica | BU125: No Aplica | BV125: S51
A126: VehículoEspecialCamiónMayorde17toneladasytresejesCarrotanqueCombustibleIntervalodeprecio1HINO FM 8J [500] [LARGO] MT 7700CC TD 6X4Praco Didacol S.A.S. | B126: VehículoEspecialCamiónMayorde17toneladasytresejesCarrotanqueCombustibleIntervalodeprecio1 | C126: HINO FM 8J [500] [LARGO] MT 7700CC TD 6X4 | D126: Praco Didacol S.A.S. | E126: Vehículo Especial | F126: Camión Mayor de 17 toneladas y tres ejes | G126: Carrotanque - Combustible | H126: Intervalo de precio 1 | I126: Diésel | J126: FM 8J [500] [LARGO] MT 7700CC TD 6X4 | K126: HINO | L126: 3711048 | M126: FM | N126: 8J [500] [LARGO] | O126: MT 7700CC TD 6X4 | P126: 246100000 | Q126: 0.055 | R126: 232564500 | S126: 0.055 | T126: 232564500 | U126: 0.055 | V126: 232564500 | W126: 0.055 | X126: 232564500 | Y126: 0.055 | Z126: 232564500 | AA126: 0.055 | AB126: 232564500 | AC126: 20700000 | AD126: 228400000 | AR126: 84500 | AS126: 848000 | AX126: 7420000 | AZ126: 2430000 | BA126: 1320000 | BB126: 159000 | BC126: 487600 | BD126: 381600 | BQ126: 0 | BS126: Caracteristica | BT126: No Aplica | BU126: No Aplica | BV126: S102
A127: VehículoEspecialCamiónMayorde14toneladasyhasta17toneladasydosejesCarrotanqueCombustibleIntervalodeprecio1HINO GH 8J [500] [LARGO] MT 7700CC TD 4X2Praco Didacol S.A.S. | B127: VehículoEspecialCamiónMayorde14toneladasyhasta17toneladasydosejesCarrotanqueCombustibleIntervalodeprecio1 | C127: HINO GH 8J [500] [LARGO] MT 7700CC TD 4X2 | D127: Praco Didacol S.A.S. | E127: Vehículo Especial | F127: Camión Mayor de 14 toneladas y hasta 17 toneladas y dos ejes | G127: Carrotanque - Combustible | H127: Intervalo de precio 1 | I127: Diésel | J127: GH 8J [500] [LARGO] MT 7700CC TD 4X2 | K127: HINO | L127: 3711034 | M127: GH | N127: 8J [500] [LARGO] | O127: MT 7700CC TD 4X2 | P127: 219800000 | Q127: 0.055 | R127: 207711000 | S127: 0.055 | T127: 207711000 | U127: 0.055 | V127: 207711000 | W127: 0.055 | X127: 207711000 | Y127: 0.055 | Z127: 207711000 | AA127: 0.055 | AB127: 207711000 | AC127: 20700000 | AD127: 201796000 | AR127: 84500 | AS127: 848000 | AX127: 7051519.397 | AZ127: 2430000 | BA127: 1320000 | BB127: 159000 | BC127: 487600 | BD127: 381600 | BG127: 28280800 | BH127: 24592000 | BQ127: 0 | BS127: Caracteristica | BT127: No Aplica | BU127: No Aplica | BV127: S48
A128: VehículoEspecialCamiónMayorde14toneladasyhasta17toneladasydosejesCarrotanqueCombustibleIntervalodeprecio1VOLKSWAGEN CONSTELLATION 15.190 [4800MM] MT 4600CC TD 4X2Unión Temporal Los Coches-Iberplas-2014 | B128: VehículoEspecialCamiónMayorde14toneladasyhasta17toneladasydosejesCarrotanqueCombustibleIntervalodeprecio1 | C128: VOLKSWAGEN CONSTELLATION 15.190 [4800MM] MT 4600CC TD 4X2 | D128: Unión Temporal Los Coches-Iberplas-2014 | E128: Vehículo Especial | F128: Camión Mayor de 14 toneladas y hasta 17 toneladas y dos ejes | G128: Carrotanque - Combustible | H128: Intervalo de precio 1 | I128: Diésel | J128: WORKER 15.190 [4800MM] MT 4600CC TD 4X2 | K128: VOLKSWAGEN | L128: 9211030 | M128: CONSTELLATION | N128: 15.190 [4800MM] | O128: MT 4600CC TD 4X2 | P128: 196000000 | Q128: 0.06 | R128: 184240000 | S128: 0.06 | T128: 184240000 | U128: 0.06 | V128: 184240000 | W128: 0.06 | X128: 184240000 | Y128: 0.06 | Z128: 184240000 | AA128: 0.06 | AB128: 184240000 | AC128: 6996000 | BK128: 2980000 | BQ128: 1 | BS128: Caracteristica | BT128: No Aplica | BU128: No Aplica | BV128: S48
A129: VehículoEspecialCamiónMayorde72toneladashasta105toneladasydosejesCarrotanqueCombustibleIntervalodeprecio3CHEVROLET NQR [2] 700P REWARD [153HP] MT 5200CC TD 4X2 [FA] ABSAutomayor S.A. | B129: VehículoEspecialCamiónMayorde72toneladashasta105toneladasydosejesCarrotanqueCombustibleIntervalodeprecio3 | C129: CHEVROLET NQR [2] 700P REWARD [153HP] MT 5200CC TD 4X2 [FA] ABS | D129: Automayor S.A. | E129: Vehículo Especial | F129: Camión Mayor de 7.2 toneladas hasta 10.5 toneladas y dos ejes | G129: Carrotanque - Combustible | H129: Intervalo de precio 3 | I129: Diésel | J129: NQR(2) 700P REWARD(153HP) MT 5200CC TD 4X2(FA) ABS | K129: CHEVROLET | L129: 1611157 | M129: NQR [2] | N129: 700P REWARD [153HP] | O129: MT 5200CC TD 4X2 [FA] ABS | P129: 146200000 | Q129: 0.062 | R129: =P129-(P129*Q129) -> 137135600 | S129: 0.062 | T129: =+R129 -> 137135600 | U129: 0.062 | V129: =+T129 -> 137135600 | W129: 0.062 | X129: =+V129 -> 137135600 | Y129: 0.062 | Z129: =+X129 -> 137135600 | AA129: 0.062 | AB129: =+Z129 -> 137135600 | AC129: 13399322.2 | AD129: 174900000 | AR129: 57717 | AS129: 384780 | AX129: 6156480 | AZ129: 833690 | BA129: 2565200 | BB129: 57717 | BC129: 384780 | BD129: 1173579 | BG129: 16693039 | BH129: 17315100 | BI129: 3847800 | BK129: 4200000 | BQ129: 1 | BS129: Cilindraje | BT129: Transmisión | BU129: No Aplica | BV129: S181
A130: =B130&C130&D130 -> VehículoEspecialCamiónMayorde72toneladashasta105toneladasydosejesCarrotanqueCombustibleIntervalodeprecio3IVECO EUROCARGO ML110EL18 MT3900CC TD 4X2 ABSNavitrans S.A.S. | B130: =SUBSTITUTE(SUBSTITUTE(SUBSTITUTE(E130&F130&G130&H130,".","")," ",""),"-","") -> VehículoEspecialCamiónMayorde72toneladashasta105toneladasydosejesCarrotanqueCombustibleIntervalodeprecio3 | C130: =K130&" "&M130&" "&N130&" "&O130 -> IVECO EUROCARGO ML110EL18 MT3900CC TD 4X2 ABS | D130: Navitrans S.A.S. | E130: Vehículo Especial | F130: Camión Mayor de 7.2 toneladas hasta 10.5 toneladas y dos ejes | G130: Carrotanque - Combustible | H130: Intervalo de precio 3 | I130: Diésel | J130: EUROCARGO ML110EL18 MT3900CC TD 4X2 ABS | K130: IVECO | L130: 10211019 | M130: EUROCARGO | N130: ML110EL18 | O130: MT3900CC TD 4X2 ABS | P130: 171000000 | Q130: 0.005 | R130: =P130*(1-Q130) -> 170145000 | S130: 0.01 | T130: =P130*(1-S130) -> 169290000 | U130: 0.015 | V130: =P130*(1-U130) -> 168435000 | W130: 0.02 | X130: =P130*(1-W130) -> 167580000 | Y130: 0.025 | Z130: =P130*(1-Y130) -> 166725000 | AA130: 0.03 | AB130: =P130*(1-AA130) -> 165870000 | AC130: 10000000 | AD130: 169000000 | AR130: 70000 | AS130: 300000 | AZ130: 800000 | BA130: 1900000 | BB130: 30000 | BC130: 300000 | BD130: 1800000 | BG130: 11000000 | BH130: 10500000 | BQ130: 1 | BS130: Cilindraje | BT130: Transmisión | BU130: No Aplica | BV130: S181
A131: VehículoEspecialCamiónMayorde72toneladashasta105toneladasydosejesCarrotanqueCombustibleIntervalodeprecio2HINO DUTRO CITY [300] [2] EURO IV MT 4000CC TD 4X2Praco Didacol S.A.S. | B131: VehículoEspecialCamiónMayorde72toneladashasta105toneladasydosejesCarrotanqueCombustibleIntervalodeprecio2 | C131: HINO DUTRO CITY [300] [2] EURO IV MT 4000CC TD 4X2 | D131: Praco Didacol S.A.S. | E131: Vehículo Especial | F131: Camión Mayor de 7.2 toneladas hasta 10.5 toneladas y dos ejes | G131: Carrotanque - Combustible | H131: Intervalo de precio 2 | I131: Diésel | J131: DUTRO CITY [300] [2] EURO IV MT 4000CC TD 4X2 | K131: HINO | L131: 3711043 | M131: DUTRO | N131: CITY [300] [2] EURO IV | O131: MT 4000CC TD 4X2 | P131: 116900000 | Q131: 0.055 | R131: =P131*(1-Q131) -> 110470500 | S131: 0.055 | T131: =P131*(1-S131) -> 110470500 | U131: 0.055 | V131: =P131*(1-U131) -> 110470500 | W131: 0.055 | X131: =P131*(1-W131) -> 110470500 | Y131: 0.055 | Z131: =P131*(1-Y131) -> 110470500 | AA131: 0.055 | AB131: =P131*(1-AA131) -> 110470500 | AC131: 12510000 | AD131: 91478000 | AR131: 84500 | AS131: 848000 | AX131: 7420000 | BA131: 1320000 | BB131: 159000 | BC131: 487600 | BD131: 381600 | BI131: 3816000 | BQ131: 0 | BS131: Cilindraje | BT131: Transmisión | BU131: No Aplica | BV131: S184
A132: VehículoEspecialCamiónMayorde14toneladasyhasta17toneladasydosejesCarrotanqueAguaIntervalodeprecio1CHEVROLET FTR [2] 700P FORWARD Euro IV MT 7800CC TD 4X2Automayor S.A. | B132: VehículoEspecialCamiónMayorde14toneladasyhasta17toneladasydosejesCarrotanqueAguaIntervalodeprecio1 | C132: CHEVROLET FTR [2] 700P FORWARD Euro IV MT 7800CC TD 4X2 | D132: Automayor S.A. | E132: Vehículo Especial | F132: Camión Mayor de 14 toneladas y hasta 17 toneladas y dos ejes | G132: Carrotanque - Agua | H132: Intervalo de precio 1 | I132: Diésel | J132: FTR [2] 700P FORWARD Euro IV MT 7800CC TD 4X2 | K132: CHEVROLET | L132: 1611146 | M132: FTR [2] | N132: 700P FORWARD Euro IV | O132: MT 7800CC TD 4X2 | P132: 215400000 | Q132: 0.1 | R132: =$P132*(1-Q132) -> 193860000 | S132: 0.1 | T132: =$P132*(1-S132) -> 193860000 | U132: 0.1 | V132: =$P132*(1-U132) -> 193860000 | W132: 0.1 | X132: =$P132*(1-W132) -> 193860000 | Y132: 0.1 | Z132: =$P132*(1-Y132) -> 193860000 | AA132: 0.1 | AB132: =$P132*(1-AA132) -> 193860000 | AC132: 18741955.3 | AD132: 130825200 | AR132: 57717 | AS132: 384780 | AX132: 6156480 | AZ132: 833690 | BA132: 2565200 | BB132: 57717 | BC132: 384780 | BD132: 1173579 | BG132: 23730665.2 | BH132: 24369400 | BI132: 3847800 | BK132: 4200000 | BQ132: 1 | BS132: Caracteristica | BT132: No Aplica | BU132: No Aplica | BV132: S37
A133: VehículoEspecialCamiónMayorde14toneladasyhasta17toneladasydosejesCarrotanqueAguaIntervalodeprecio1CHEVROLET FVR [2] 700P FORWARD [CORTO] Euro IV MT 7800CC TD 4X2Automayor S.A. | B133: VehículoEspecialCamiónMayorde14toneladasyhasta17toneladasydosejesCarrotanqueAguaIntervalodeprecio1 | C133: CHEVROLET FVR [2] 700P FORWARD [CORTO] Euro IV MT 7800CC TD 4X2 | D133: Automayor S.A. | E133: Vehículo Especial | F133: Camión Mayor de 14 toneladas y hasta 17 toneladas y dos ejes | G133: Carrotanque - Agua | H133: Intervalo de precio 1 | I133: Diésel | J133: FVR [2] 700P FORWARD [CORTO] Euro IV MT 7800CC TD 4X2 | K133: CHEVROLET | L133: 1611147 | M133: FVR [2] | N133: 700P FORWARD [CORTO] Euro IV | O133: MT 7800CC TD 4X2 | P133: 226400000 | Q133: 0.1 | R133: 203760000 | S133: 0.1 | T133: 203760000 | U133: 0.1 | V133: 203760000 | W133: 0.1 | X133: 203760000 | Y133: 0.1 | Z133: 203760000 | AA133: 0.1 | AB133: 203760000 | AC133: 20675512 | AD133: 135019302 | AR133: 57717 | AS133: 384780 | AX133: 6156480 | AZ133: 833690 | BA133: 2565200 | BB133: 57717 | BC133: 384780 | BD133: 1173579 | BG133: 25039943.28 | BH133: 25652000 | BI133: 3847800 | BK133: 4200000 | BQ133: 1 | BS133: Caracteristica | BT133: No Aplica | BU133: No Aplica | BV133: S37
A134: VehículoEspecialCamiónMayorde14toneladasyhasta17toneladasydosejesCarrotanqueAguaIntervalodeprecio1CHEVROLET FVR [2] 700P FORWARD LWB Euro IV MT 7800CC TD 4X2Automayor S.A. | B134: VehículoEspecialCamiónMayorde14toneladasyhasta17toneladasydosejesCarrotanqueAguaIntervalodeprecio1 | C134: CHEVROLET FVR [2] 700P FORWARD LWB Euro IV MT 7800CC TD 4X2 | D134: Automayor S.A. | E134: Vehículo Especial | F134: Camión Mayor de 14 toneladas y hasta 17 toneladas y dos ejes | G134: Carrotanque - Agua | H134: Intervalo de precio 1 | I134: Diésel | J134: FVR [2] 700P FORWARD LWB Euro IV MT 7800CC TD 4X2 | K134: CHEVROLET | L134: 1611148 | M134: FVR [2] | N134: 700P FORWARD LWB Euro IV | O134: MT 7800CC TD 4X2 | P134: 237500000 | Q134: 0.1 | R134: 213750000 | S134: 0.1 | T134: 213750000 | U134: 0.1 | V134: 213750000 | W134: 0.1 | X134: 213750000 | Y134: 0.1 | Z134: 213750000 | AA134: 0.1 | AB134: 213750000 | AC134: 20675512 | AD134: 135019302 | AR134: 57717 | AS134: 384780 | AX134: 6156480 | AZ134: 833690 | BA134: 2565200 | BB134: 57717 | BC134: 384780 | BD134: 1173579 | BG134: 26934600 | BH134: 27575900 | BI134: 3847800 | BK134: 4200000 | BQ134: 1 | BS134: Caracteristica | BT134: No Aplica | BU134: No Aplica | BV134: S37
A135: VehículoEspecialCamiónMayorde17toneladasytresejesCarrotanqueAguaIntervalodeprecio2CHEVROLET FVZ 700P FORWARD [CORTO] EURO IV MT 7800CC TD 6X4Automayor S.A. | B135: VehículoEspecialCamiónMayorde17toneladasytresejesCarrotanqueAguaIntervalodeprecio2 | C135: CHEVROLET FVZ 700P FORWARD [CORTO] EURO IV MT 7800CC TD 6X4 | D135: Automayor S.A. | E135: Vehículo Especial | F135: Camión Mayor de 17 toneladas y tres ejes | G135: Carrotanque - Agua | H135: Intervalo de precio 2 | I135: Diésel | J135: FVZ 700P FORWARD [CORTO] EURO IV MT 7800CC TD 6X4 | K135: CHEVROLET | L135: 1611152 | M135: FVZ | N135: 700P FORWARD [CORTO] EURO IV | O135: MT 7800CC TD 6X4 | P135: 255300000 | Q135: 0.08 | R135: 234876000 | S135: 0.08 | T135: 234876000 | U135: 0.08 | V135: 234876000 | W135: 0.08 | X135: 234876000 | Y135: 0.08 | Z135: 234876000 | AA135: 0.08 | AB135: 234876000 | AC135: 23086800 | AD135: 160386564.8 | AR135: 52470 | AS135: 349800 | AX135: 5596800 | AZ135: 757900 | BA135: 2200000 | BB135: 52470 | BC135: 349800 | BD135: 1066890 | BK135: 4200000 | BQ135: 1 | BS135: Caracteristica | BT135: No Aplica | BU135: No Aplica | BV135: S49
A136: VehículoEspecialCamiónMayorde17toneladasytresejesCarrotanqueAguaIntervalodeprecio2CHEVROLET FVZ 700P FORWARD [LARGO] EURO IV MT 7800CC TD 6X4Automayor S.A. | B136: VehículoEspecialCamiónMayorde17toneladasytresejesCarrotanqueAguaIntervalodeprecio2 | C136: CHEVROLET FVZ 700P FORWARD [LARGO] EURO IV MT 7800CC TD 6X4 | D136: Automayor S.A. | E136: Vehículo Especial | F136: Camión Mayor de 17 toneladas y tres ejes | G136: Carrotanque - Agua | H136: Intervalo de precio 2 | I136: Diésel | J136: FVZ 700P FORWARD [LARGO] EURO IV MT 7800CC TD 6X4 | K136: CHEVROLET | L136: 1611153 | M136: FVZ | N136: 700P FORWARD [LARGO] EURO IV | O136: MT 7800CC TD 6X4 | P136: 264100000 | Q136: 0.08 | R136: 242972000 | S136: 0.08 | T136: 242972000 | U136: 0.08 | V136: 242972000 | W136: 0.08 | X136: 242972000 | Y136: 0.08 | Z136: 242972000 | AA136: 0.08 | AB136: 242972000 | AC136: 20988000 | AD136: 145805968 | AR136: 52470 | AS136: 349800 | AX136: 5596800 | AZ136: 757900 | BA136: 2200000 | BB136: 52470 | BC136: 349800 | BD136: 1066890 | BQ136: 0 | BS136: Caracteristica | BT136: No Aplica | BU136: No Aplica | BV136: S49
A137: VehículoEspecialCamiónMayorde17toneladasytresejesCarrotanqueAguaIntervalodeprecio1FREIGHTLINER M2 106 [LARGO] [230HP] MT 6400CC TD 6X4Motores y Máquinas S.A. | B137: VehículoEspecialCamiónMayorde17toneladasytresejesCarrotanqueAguaIntervalodeprecio1 | C137: FREIGHTLINER M2 106 [LARGO] [230HP] MT 6400CC TD 6X4 | D137: Motores y Máquinas S.A. | E137: Vehículo Especial | F137: Camión Mayor de 17 toneladas y tres ejes | G137: Carrotanque - Agua | H137: Intervalo de precio 1 | I137: Diésel | J137: M2 106 [LARGO] [230HP] MT 6400CC TD 6X4 | K137: FREIGHTLINER | L137: 2911006 | M137: M2 | N137: 106 [LARGO] [230HP] | O137: MT 6400CC TD 6X4 | P137: 266800000 | Q137: 0.02 | R137: 261464000 | S137: 0.02 | T137: 261464000 | U137: 0.02 | V137: 261464000 | W137: 0.02 | X137: 261464000 | Y137: 0.02 | Z137: 261464000 | AA137: 0.02 | AB137: 261464000 | AC137: 7806323 | AD137: 162500000 | AL137: 867879.3103 | AO137: 705151.9397 | AR137: 130181.8966 | AS137: 401394.181 | AT137: 542424.569 | AX137: 7051519.397 | AY137: 379697.1983 | AZ137: 922121.7672 | BA137: 1247576.509 | BB137: 45021.23922 | BC137: 135606.1422 | BD137: 1627273.707 | BF137: 65090.94828 | BG137: 20880000 | BH137: 20880000 | BI137: 3770000 | BQ137: 0 | BS137: Caracteristica | BT137: No Aplica | BU137: No Aplica | BV137: S98
A138: VehículoEspecialCamiónMayorde17toneladasytresejesCarrotanqueAguaIntervalodeprecio1HINO FM 8J [500] [LARGO] MT 7700CC TD 6X4Praco Didacol S.A.S. | B138: VehículoEspecialCamiónMayorde17toneladasytresejesCarrotanqueAguaIntervalodeprecio1 | C138: HINO FM 8J [500] [LARGO] MT 7700CC TD 6X4 | D138: Praco Didacol S.A.S. | E138: Vehículo Especial | F138: Camión Mayor de 17 toneladas y tres ejes | G138: Carrotanque - Agua | H138: Intervalo de precio 1 | I138: Diésel | J138: FM 8J [500] [LARGO] MT 7700CC TD 6X4 | K138: HINO | L138: 3711048 | M138: FM | N138: 8J [500] [LARGO] | O138: MT 7700CC TD 6X4 | P138: 246100000 | Q138: 0.055 | R138: 232564500 | S138: 0.055 | T138: 232564500 | U138: 0.055 | V138: 232564500 | W138: 0.055 | X138: 232564500 | Y138: 0.055 | Z138: 232564500 | AA138: 0.055 | AB138: 232564500 | AC138: 20700000 | AD138: 125493000 | AR138: 84500 | AS138: 848000 | AX138: 7420000 | AZ138: 2430000 | BA138: 1320000 | BB138: 159000 | BC138: 487600 | BD138: 381600 | BQ138: 0 | BS138: Caracteristica | BT138: No Aplica | BU138: No Aplica | BV138: S98
A139: VehículoEspecialCamiónMayorde14toneladasyhasta17toneladasydosejesCarrotanqueAguaIntervalodeprecio1HINO GH 8J [500] [LARGO] MT 7700CC TD 4X2Praco Didacol S.A.S. | B139: VehículoEspecialCamiónMayorde14toneladasyhasta17toneladasydosejesCarrotanqueAguaIntervalodeprecio1 | C139: HINO GH 8J [500] [LARGO] MT 7700CC TD 4X2 | D139: Praco Didacol S.A.S. | E139: Vehículo Especial | F139: Camión Mayor de 14 toneladas y hasta 17 toneladas y dos ejes | G139: Carrotanque - Agua | H139: Intervalo de precio 1 | I139: Diésel | J139: GH 8J [500] [LARGO] MT 7700CC TD 4X2 | K139: HINO | L139: 3711034 | M139: GH | N139: 8J [500] [LARGO] | O139: MT 7700CC TD 4X2 | P139: 219800000 | Q139: 0.055 | R139: 207711000 | S139: 0.055 | T139: 207711000 | U139: 0.055 | V139: 207711000 | W139: 0.055 | X139: 207711000 | Y139: 0.055 | Z139: 207711000 | AA139: 0.055 | AB139: 207711000 | AC139: 20700000 | AD139: 110646000 | AR139: 84500 | AS139: 848000 | AX139: 7051519.397 | AZ139: 2430000 | BA139: 1320000 | BB139: 159000 | BC139: 487600 | BD139: 381600 | BG139: 28280800 | BH139: 24592000 | BQ139: 0 | BS139: Caracteristica | BT139: No Aplica | BU139: No Aplica | BV139: S37
A140: VehículoEspecialCamiónMayorde72toneladashasta105toneladasydosejesCarrotanqueAguaIntervalodeprecio3CHEVROLET NQR [2] 700P REWARD [153HP] MT 5200CC TD 4X2 [FA] ABSAutomayor S.A. | B140: VehículoEspecialCamiónMayorde72toneladashasta105toneladasydosejesCarrotanqueAguaIntervalodeprecio3 | C140: CHEVROLET NQR [2] 700P REWARD [153HP] MT 5200CC TD 4X2 [FA] ABS | D140: Automayor S.A. | E140: Vehículo Especial | F140: Camión Mayor de 7.2 toneladas hasta 10.5 toneladas y dos ejes | G140: Carrotanque - Agua | H140: Intervalo de precio 3 | I140: Diésel | J140: NQR(2) 700P REWARD (153HP) MT 5200CC TD 4X2(FA) ABS | K140: CHEVROLET | L140: 1611157 | M140: NQR [2] | N140: 700P REWARD [153HP] | O140: MT 5200CC TD 4X2 [FA] ABS | P140: 146200000 | Q140: 0.062 | R140: =P140-(P140*Q140) -> 137135600 | S140: 0.062 | T140: =+R140 -> 137135600 | U140: 0.062 | V140: =+T140 -> 137135600 | W140: 0.062 | X140: =+V140 -> 137135600 | Y140: 0.062 | Z140: =+X140 -> 137135600 | AA140: 0.062 | AB140: =+Z140 -> 137135600 | AC140: 12181202 | AD140: 128260000 | AR140: 57717 | AS140: 384780 | AX140: 6156480 | AZ140: 833690 | BA140: 2565200 | BB140: 57717 | BC140: 384780 | BD140: 1173579 | BG140: 16693039 | BH140: 17315100 | BI140: 3847800 | BK140: 4200000 | BQ140: 1 | BS140: Cilindraje | BT140: Transmisión | BU140: No Aplica | BV140: S180
A141: VehículoEspecialCamiónMayorde72toneladashasta105toneladasydosejesCarrotanqueAguaIntervalodeprecio3IVECO EUROCARGO ML110EL18 MT 3900CC TD 4X2 ABSNavitrans S.A.S. | B141: VehículoEspecialCamiónMayorde72toneladashasta105toneladasydosejesCarrotanqueAguaIntervalodeprecio3 | C141: IVECO EUROCARGO ML110EL18 MT 3900CC TD 4X2 ABS | D141: Navitrans S.A.S. | E141: Vehículo Especial | F141: Camión Mayor de 7.2 toneladas hasta 10.5 toneladas y dos ejes | G141: Carrotanque - Agua | H141: Intervalo de precio 3 | I141: Diésel | J141: EUROCARGO ML110EL18 MT 3900CC TD 4X2 ABS | K141: IVECO | L141: 10211019 | M141: EUROCARGO | N141: ML110EL18 | O141: MT 3900CC TD 4X2 ABS | P141: 171000000 | Q141: 0.005 | R141: =P141*(1-Q141) -> 170145000 | S141: 0.01 | T141: =P141*(1-S141) -> 169290000 | U141: 0.02 | V141: =P141*(1-U141) -> 167580000 | W141: 0.025 | X141: =P141*(1-W141) -> 166725000 | Y141: 0.03 | Z141: =P141*(1-Y141) -> 165870000 | AA141: 0.035 | AB141: =P141*(1-AA141) -> 165015000 | AC141: 10000000 | AD141: 120000000 | AR141: 70000 | AS141: 300000 | AZ141: 800000 | BA141: 1900000 | BB141: 30000 | BC141: 300000 | BD141: 1800000 | BG141: 11000000 | BH141: 10500000 | BQ141: 1 | BS141: Cilindraje | BT141: Transmisión | BU141: No Aplica | BV141: S180
A142: VehículoEspecialCamiónMayorde72toneladashasta105toneladasydosejesCarrotanqueAguaIntervalodeprecio2HINO DUTRO CITY [300] [2] EURO IV MT 4000CC TD 4X2Praco Didacol S.A.S. | B142: VehículoEspecialCamiónMayorde72toneladashasta105toneladasydosejesCarrotanqueAguaIntervalodeprecio2 | C142: HINO DUTRO CITY [300] [2] EURO IV MT 4000CC TD 4X2 | D142: Praco Didacol S.A.S. | E142: Vehículo Especial | F142: Camión Mayor de 7.2 toneladas hasta 10.5 toneladas y dos ejes | G142: Carrotanque - Agua | H142: Intervalo de precio 2 | I142: Diésel | J142: DUTRO CITY [300] [2] EURO IV MT 4000CC TD 4X2 | K142: HINO | L142: 3711043 | M142: DUTRO | N142: CITY [300] [2] EURO IV | O142: MT 4000CC TD 4X2 | P142: 116900000 | Q142: 0.055 | R142: 110470500 | S142: 0.055 | T142: 110470500 | U142: 0.055 | V142: 110470500 | W142: 0.055 | X142: 110470500 | Y142: 0.055 | Z142: 110470500 | AA142: 0.055 | AB142: 110470500 | AC142: 12510000 | AD142: 81991000 | AR142: 84500 | AS142: 848000 | AX142: 7420000 | BA142: 1320000 | BB142: 159000 | BC142: 487600 | BD142: 381600 | BI142: 3816000 | BQ142: 0 | BS142: Cilindraje | BT142: Transmisión | BU142: No Aplica | BV142: S184
A143: VehículoEspecialChasisDobleCabinaDiésel2450cc2849ccCapaceteIntervalodeprecio2CHEVROLET DMAX [3] [FL] 2.5L WORK MT 2500CC 4X4 TD ABS 2ABAutomayor S.A. | B143: VehículoEspecialChasisDobleCabinaDiésel2450cc2849ccCapaceteIntervalodeprecio2 | C143: CHEVROLET DMAX [3] [FL] 2.5L WORK MT 2500CC 4X4 TD ABS 2AB | D143: Automayor S.A. | E143: Vehículo Especial | F143: Chasis Doble Cabina Diésel 2.450cc - 2.849cc | G143: Capacete | H143: Intervalo de precio 2 | I143: Diésel | J143: DMAX [3] [FL] 2.5L WORK MT 2500CC 4X4 TD ABS 2AB | K143: CHEVROLET | L143: 1621096 | M143: DMAX [3] [FL] | N143: 2.5L WORK | O143: MT 2500CC 4X4 TD ABS 2AB | P143: 108500000 | Q143: 0.074 | R143: 100471000 | S143: 0.074 | T143: 100471000 | U143: 0.074 | V143: 100471000 | W143: 0.074 | X143: 100471000 | Y143: 0.074 | Z143: 100471000 | AA143: 0.074 | AB143: 100471000 | AC143: 4489100 | AD143: 8199576 | AF143: 769560 | AI143: 2565200 | AJ143: 1154340 | AK143: 769560 | AL143: 1154340 | AN143: 1154340 | AO143: 1051732 | AQ143: 1923900 | AR143: 57717 | AS143: 12826 | AT143: 718256 | AV143: 384780 | AW143: 6413000 | AX143: 6156480 | AY143: 577170 | AZ143: 769560 | BA143: 2565200 | BB143: 57717 | BC143: 256520 | BD143: 1173579 | BE143: 448910 | BF143: 57717 | BK143: 4200000 | BQ143: 1 | BS143: Peso bruto vehícular | BT143: No Aplica | BU143: No Aplica
A144: VehículoEspecialChasisDobleCabinaDiésel2450cc2849ccCapaceteIntervalodeprecio2CHEVROLET DMAX [3] [FL] 2.5L FULL MT 2500CC 4X4 TD ABS 2ABAutomayor S.A. | B144: VehículoEspecialChasisDobleCabinaDiésel2450cc2849ccCapaceteIntervalodeprecio2 | C144: CHEVROLET DMAX [3] [FL] 2.5L FULL MT 2500CC 4X4 TD ABS 2AB | D144: Automayor S.A. | E144: Vehículo Especial | F144: Chasis Doble Cabina Diésel 2.450cc - 2.849cc | G144: Capacete | H144: Intervalo de precio 2 | I144: Diésel | J144: DMAX [3] [FL] 2.5L FULL MT 2500CC 4X4 TD ABS 2AB | K144: CHEVROLET | L144: 1621095 | M144: DMAX [3] [FL] | N144: 2.5L FULL | O144: MT 2500CC 4X4 TD ABS 2AB | P144: 120000000 | Q144: 0.07 | R144: 111600000 | S144: 0.07 | T144: 111600000 | U144: 0.07 | V144: 111600000 | W144: 0.07 | X144: 111600000 | Y144: 0.07 | Z144: 111600000 | AA144: 0.07 | AB144: 111600000 | AC144: 4489100 | AD144: 8199576 | AF144: 769560 | AI144: 2565200 | AJ144: 1154340 | AK144: 769560 | AL144: 1154340 | AN144: 1154340 | AO144: 1051732 | AQ144: 1923900 | AR144: 57717 | AS144: 12826 | AT144: 718256 | AV144: 384780 | AW144: 6413000 | AX144: 6156480 | AY144: 577170 | AZ144: 769560 | BA144: 2565200 | BB144: 57717 | BC144: 256520 | BD144: 1173579 | BE144: 448910 | BF144: 57717 | BK144: 4200000 | BQ144: 1 | BS144: Peso bruto vehícular | BT144: No Aplica | BU144: No Aplica
A145: VehículoEspecialChasisDobleCabinaDiésel2450cc2849ccCapaceteIntervalodeprecio3CHEVROLET COLORADO LTZ MT 2800CC 4X4 TDAutomayor S.A. | B145: VehículoEspecialChasisDobleCabinaDiésel2450cc2849ccCapaceteIntervalodeprecio3 | C145: CHEVROLET COLORADO LTZ MT 2800CC 4X4 TD | D145: Automayor S.A. | E145: Vehículo Especial | F145: Chasis Doble Cabina Diésel 2.450cc - 2.849cc | G145: Capacete | H145: Intervalo de precio 3 | I145: Diésel | J145: COLORADO LTZ MT 2800CC 4X4 TD | K145: CHEVROLET | L145: 1621094 | M145: COLORADO | N145: LTZ | O145: MT 2800CC 4X4 TD | P145: 139700000 | Q145: 0.05 | R145: 132715000 | S145: 0.05 | T145: 132715000 | U145: 0.05 | V145: 132715000 | W145: 0.05 | X145: 132715000 | Y145: 0.05 | Z145: 132715000 | AA145: 0.05 | AB145: 132715000 | AC145: 8800000 | AD145: 8199576 | AF145: 699600 | AI145: 2332000 | AJ145: 1049400 | AK145: 699600 | AL145: 1049400 | AN145: 1049400 | AO145: 956120 | AQ145: 1749000 | AR145: 52470 | AS145: 11660 | AT145: 652960 | AV145: 349800 | AW145: 5830000 | AX145: 5596800 | AY145: 524700 | AZ145: 699600 | BA145: 2332000 | BB145: 52470 | BC145: 233200 | BD145: 1066890 | BE145: 408100 | BF145: 52470 | BK145: 4200000 | BQ145: 1 | BS145: Peso bruto vehícular | BT145: No Aplica | BU145: No Aplica
A146: VehículoEspecialChasisDobleCabinaDiésel2450cc2849ccCapaceteIntervalodeprecio3CHEVROLET COLORADO HIGH COUNTRY TP 2800CC 4X4 TDAutomayor S.A. | B146: VehículoEspecialChasisDobleCabinaDiésel2450cc2849ccCapaceteIntervalodeprecio3 | C146: CHEVROLET COLORADO HIGH COUNTRY TP 2800CC 4X4 TD | D146: Automayor S.A. | E146: Vehículo Especial | F146: Chasis Doble Cabina Diésel 2.450cc - 2.849cc | G146: Capacete | H146: Intervalo de precio 3 | I146: Diésel | J146: COLORADO HIGH COUNTRY TP 2800CC 4X4 TD | K146: CHEVROLET | L146: 1621093 | M146: COLORADO | N146: HIGH COUNTRY | O146: TP 2800CC 4X4 TD | P146: 155100000 | Q146: 0.05 | R146: 147345000 | S146: 0.05 | T146: 147345000 | U146: 0.05 | V146: 147345000 | W146: 0.05 | X146: 147345000 | Y146: 0.05 | Z146: 147345000 | AA146: 0.05 | AB146: 147345000 | AC146: 8800000 | AD146: 8199576 | AF146: 699600 | AI146: 2332000 | AJ146: 1049400 | AK146: 699600 | AL146: 1049400 | AN146: 1049400 | AO146: 956120 | AQ146: 1749000 | AR146: 52470 | AS146: 11660 | AT146: 652960 | AV146: 349800 | AW146: 5830000 | AX146: 5596800 | AY146: 524700 | AZ146: 699600 | BA146: 2332000 | BB146: 52470 | BC146: 233200 | BD146: 1066890 | BE146: 408100 | BF146: 52470 | BK146: 4200000 | BQ146: 1 | BS146: Peso bruto vehícular | BT146: No Aplica | BU146: No Aplica
A147: VehículoEspecialChasisDobleCabinaDiésel2450cc2849ccCapaceteIntervalodeprecio1NISSAN NP 300 FRONTIER [2] 2.5L MT 2500CC TD 4X2 AA 2AB ABSDistribuidora Nissan S.A. | B147: VehículoEspecialChasisDobleCabinaDiésel2450cc2849ccCapaceteIntervalodeprecio1 | C147: NISSAN NP 300 FRONTIER [2] 2.5L MT 2500CC TD 4X2 AA 2AB ABS | D147: Distribuidora Nissan S.A. | E147: Vehículo Especial | F147: Chasis Doble Cabina Diésel 2.450cc - 2.849cc | G147: Capacete | H147: Intervalo de precio 1 | I147: Diésel | J147: =M147&" "&N147&" "&O147 -> NP 300 FRONTIER [2] 2.5L MT 2500CC TD 4X2 AA 2AB ABS | K147: NISSAN | L147: 6421069 | M147: NP 300 FRONTIER [2] | N147: 2.5L | O147: MT 2500CC TD 4X2 AA 2AB ABS | P147: 90000000 | Q147: 0.01 | R147: 89100000 | S147: 0.01 | T147: 89100000 | U147: 0.01 | V147: 89100000 | W147: 0.01 | X147: 89100000 | Y147: 0.01 | Z147: 89100000 | AA147: 0.01 | AB147: 89100000 | AC147: 6000000 | AD147: 8000000 | AI147: 5485500 | AJ147: 826906 | AK147: 991100 | AN147: 2213280 | AO147: 1027945.6 | AP147: 2000000 | AQ147: 2213280 | AR147: 371000 | AS147: 853342.4 | AT147: 806618 | AU147: 96000 | AV147: 478314.4 | AW147: 4934512 | AX147: 9667200 | AY147: 816200 | AZ147: 922200 | BA147: 2067000 | BB147: 63600 | BC147: 567460.4 | BD147: 1378000 | BE147: 612340.8 | BF147: 84800 | BK147: 3921000 | BQ147: 1 | BS147: Peso bruto vehícular | BT147: No Aplica | BU147: No Aplica
A148: VehículoEspecialChasisDobleCabinaDiésel2450cc2849ccCapaceteIntervalodeprecio1NISSAN NP 300 FRONTIER [2] S MT 2500CC 4X4 TD AA 2AB ABSDistribuidora Nissan S.A. | B148: VehículoEspecialChasisDobleCabinaDiésel2450cc2849ccCapaceteIntervalodeprecio1 | C148: NISSAN NP 300 FRONTIER [2] S MT 2500CC 4X4 TD AA 2AB ABS | D148: Distribuidora Nissan S.A. | E148: Vehículo Especial | F148: Chasis Doble Cabina Diésel 2.450cc - 2.849cc | G148: Capacete | H148: Intervalo de precio 1 | I148: Diésel | J148: =M148&" "&N148&" "&O148 -> NP 300 FRONTIER [2] S MT 2500CC 4X4 TD AA 2AB ABS | K148: NISSAN | L148: 6421064 | M148: NP 300 FRONTIER [2] | N148: S | O148: MT 2500CC 4X4 TD AA 2AB ABS | P148: 110500 | Q148: 0.03 | R148: 107185 | S148: 0.03 | T148: 107185 | U148: 0.03 | V148: 107185 | W148: 0.03 | X148: 107185 | Y148: 0.03 | Z148: 107185 | AA148: 0.03 | AB148: 107185 | AC148: 6000000 | AD148: 8000000 | AI148: 5485500 | AJ148: 826906 | AK148: 991100 | AN148: 2213280 | AO148: 1027945.6 | AP148: 2000000 | AQ148: 2213280 | AR148: 371000 | AS148: 853342.4 | AT148: 806618 | AU148: 96000 | AV148: 478314.4 | AW148: 4934512 | AX148: 9667200 | AY148: 816200 | AZ148: 922200 | BA148: 2067000 | BB148: 63600 | BC148: 567460.4 | BD148: 1378000 | BE148: 612340.8 | BF148: 84800 | BK148: 3921000 | BQ148: 1 | BS148: Peso bruto vehícular | BT148: No Aplica | BU148: No Aplica
A149: VehículoEspecialChasisDobleCabinaDiésel2450cc2849ccCapaceteIntervalodeprecio2NISSAN NP 300 FRONTIER [2] XE MT 2500CC 4X4 TD AA 2AB ABS CRDistribuidora Nissan S.A. | B149: VehículoEspecialChasisDobleCabinaDiésel2450cc2849ccCapaceteIntervalodeprecio2 | C149: NISSAN NP 300 FRONTIER [2] XE MT 2500CC 4X4 TD AA 2AB ABS CR | D149: Distribuidora Nissan S.A. | E149: Vehículo Especial | F149: Chasis Doble Cabina Diésel 2.450cc - 2.849cc | G149: Capacete | H149: Intervalo de precio 2 | I149: Diésel | J149: FRONTIER XE MT 2.5 L | K149: NISSAN | L149: 6421063 | M149: NP 300 FRONTIER [2] | N149: XE | O149: MT 2500CC 4X4 TD AA 2AB ABS CR | P149: 120500000 | Q149: 0.08 | R149: 110860000 | S149: 0.08 | T149: 110860000 | U149: 0.08 | V149: 110860000 | W149: 0.08 | X149: 110860000 | Y149: 0.08 | Z149: 110860000 | AA149: 0.08 | AB149: 110860000 | AC149: 6000000 | AD149: 8000000 | AI149: 5485500 | AJ149: 826906 | AK149: 991100 | AN149: 2213280 | AO149: 1027945.6 | AP149: 2000000 | AQ149: 2213280 | AR149: 371000 | AS149: 853342.4 | AT149: 806618 | AU149: 96000 | AV149: 478314.4 | AW149: 4934512 | AX149: 9667200 | AY149: 816200 | AZ149: 922200 | BA149: 2067000 | BB149: 63600 | BC149: 567460.4 | BD149: 1378000 | BE149: 612340.8 | BF149: 84800 | BK149: 3921000 | BQ149: 1 | BS149: Peso bruto vehícular | BT149: No Aplica | BU149: No Aplica
A150: VehículoEspecialChasisDobleCabinaDiésel2450cc2849ccCapaceteIntervalodeprecio3NISSAN NP 300 FRONTIER [2] LE MT 2500CC 4X4 TD AA 2AB ABS CRDistribuidora Nissan S.A. | B150: VehículoEspecialChasisDobleCabinaDiésel2450cc2849ccCapaceteIntervalodeprecio3 | C150: NISSAN NP 300 FRONTIER [2] LE MT 2500CC 4X4 TD AA 2AB ABS CR | D150: Distribuidora Nissan S.A. | E150: Vehículo Especial | F150: Chasis Doble Cabina Diésel 2.450cc - 2.849cc | G150: Capacete | H150: Intervalo de precio 3 | I150: Diésel | J150: FRONTIER LE MT 2.5 L | K150: NISSAN | L150: 6421062 | M150: NP 300 FRONTIER [2] | N150: LE | O150: MT 2500CC 4X4 TD AA 2AB ABS CR | P150: 130000000 | Q150: 0.01 | R150: 128700000 | S150: 0.01 | T150: 128700000 | U150: 0.01 | V150: 128700000 | W150: 0.01 | X150: 128700000 | Y150: 0.01 | Z150: 128700000 | AA150: 0.01 | AB150: 128700000 | AC150: 6000000 | AD150: 8000000 | AI150: 5485500 | AJ150: 826906 | AK150: 991100 | AN150: 2213280 | AO150: 1027945.6 | AP150: 2000000 | AQ150: 2213280 | AR150: 371000 | AS150: 853342.4 | AT150: 806618 | AU150: 96000 | AV150: 478314.4 | AW150: 4934512 | AX150: 9667200 | AY150: 816200 | AZ150: 922200 | BA150: 2067000 | BB150: 63600 | BC150: 567460.4 | BD150: 1378000 | BE150: 612340.8 | BF150: 84800 | BK150: 3921000 | BQ150: 1 | BS150: Peso bruto vehícular | BT150: No Aplica | BU150: No Aplica
A151: VehículoEspecialChasisDobleCabinaDiésel2450cc2849ccCapaceteIntervalodeprecio3NISSAN NP 300 FRONTIER [2] LE ATY 2500CC 4X4 TD AA 2AB ABS CRDistribuidora Nissan S.A. | B151: VehículoEspecialChasisDobleCabinaDiésel2450cc2849ccCapaceteIntervalodeprecio3 | C151: NISSAN NP 300 FRONTIER [2] LE ATY 2500CC 4X4 TD AA 2AB ABS CR | D151: Distribuidora Nissan S.A. | E151: Vehículo Especial | F151: Chasis Doble Cabina Diésel 2.450cc - 2.849cc | G151: Capacete | H151: Intervalo de precio 3 | I151: Diésel | J151: FRONTIER LE AT 2.5 L | K151: NISSAN | L151: 6421061 | M151: NP 300 FRONTIER [2] | N151: LE | O151: ATY 2500CC 4X4 TD AA 2AB ABS CR | P151: 132000000 | Q151: 0.01 | R151: 130680000 | S151: 0.01 | T151: 130680000 | U151: 0.01 | V151: 130680000 | W151: 0.01 | X151: 130680000 | Y151: 0.01 | Z151: 130680000 | AA151: 0.01 | AB151: 130680000 | AC151: 6000000 | AD151: 8000000 | AI151: 5485500 | AJ151: 826906 | AK151: 991100 | AN151: 2213280 | AO151: 1027945.6 | AP151: 2000000 | AQ151: 2213280 | AR151: 371000 | AS151: 853342.4 | AT151: 806618 | AU151: 96000 | AV151: 478314.4 | AW151: 4934512 | AX151: 9667200 | AY151: 816200 | AZ151: 922200 | BA151: 2067000 | BB151: 63600 | BC151: 567460.4 | BD151: 1378000 | BE151: 612340.8 | BF151: 84800 | BK151: 3921000 | BQ151: 1 | BS151: Peso bruto vehícular | BT151: No Aplica | BU151: No Aplica
A152: VehículoEspecialMicrobúsde10a19pasajerosCAIMóvil2Intervalodeprecio4MERCEDES BENZ SPRINTER 415 SUSI MT 2200CC TD 4X2 [INT] [17PSJ] 2AAMotores y Máquinas S.A. | B152: VehículoEspecialMicrobúsde10a19pasajerosCAIMóvil2Intervalodeprecio4 | C152: MERCEDES BENZ SPRINTER 415 SUSI MT 2200CC TD 4X2 [INT] [17PSJ] 2AA | D152: Motores y Máquinas S.A. | E152: Vehículo Especial | F152: Microbús de 10 a 19 pasajeros | G152: CAI Móvil 2 | H152: Intervalo de precio 4 | I152: Diésel | J152: SPRINTER 415 SUSI MT 2200CC TD 4X2 [INT] [17PSJ] 2AA | K152: MERCEDES BENZ | L152: 5803106 | M152: SPRINTER | N152: 415 SUSI | O152: MT 2200CC TD 4X2 [INT] [17PSJ] 2AA | P152: 179000000 | Q152: 0.02 | R152: =$P152*(1-Q152) -> 175420000 | S152: 0.02 | T152: =$P152*(1-S152) -> 175420000 | U152: 0.02 | V152: =$P152*(1-U152) -> 175420000 | W152: 0.02 | X152: =$P152*(1-W152) -> 175420000 | Y152: 0.02 | Z152: =$P152*(1-Y152) -> 175420000 | AA152: 0.02 | AB152: =$P152*(1-AA152) -> 175420000 | AC152: 10261208.1 | AD152: 133512500 | AE152: 1 | AI152: 757625 | AK152: 899000 | AL152: 867879.3103 | AM152: 2410625 | AN152: 3058224 | AO152: 705151.9397 | AQ152: 2985913 | AR152: 130181.8966 | AS152: 401394.181 | AT152: 542424.569 | AU152: 145000 | AW152: 6225024 | AX152: 7051519.397 | AY152: 379697.1983 | AZ152: 922121.7672 | BA152: 1247576.509 | BB152: 45021.23922 | BC152: 135606.1422 | BD152: 1627273.707 | BE152: 324146 | BF152: 65090.94828 | BQ152: 0 | BS152: Caracteristica | BT152: No Aplica | BU152: No Aplica | BV152: S128
A153: VehículoEspecialMicrobúsde10a19pasajerosCAIMóvil2Intervalodeprecio4MERCEDES BENZ SPRINTER 515 EURO V MT 2200CC TD 4X2 Motores y Máquinas S.A. | B153: VehículoEspecialMicrobúsde10a19pasajerosCAIMóvil2Intervalodeprecio4 | C153: MERCEDES BENZ SPRINTER 515 EURO V MT 2200CC TD 4X2 | D153: Motores y Máquinas S.A. | E153: Vehículo Especial | F153: Microbús de 10 a 19 pasajeros | G153: CAI Móvil 2 | H153: Intervalo de precio 4 | I153: Diésel | J153: SPRINTER 515 EURO V MT 2200CC TD 4X2 | K153: MERCEDES BENZ | L153: 5807007 | M153: SPRINTER | N153: 515 EURO V | O153: MT 2200CC TD 4X2 | P153: 179500000 | Q153: 0.02 | R153: 175910000 | S153: 0.02 | T153: 175910000 | U153: 0.02 | V153: 175910000 | W153: 0.02 | X153: 175910000 | Y153: 0.02 | Z153: 175910000 | AA153: 0.02 | AB153: 175910000 | AC153: 9328731 | AD153: 121375000 | AE153: 1 | AI153: 757625 | AK153: 899000 | AL153: 867879.3103 | AM153: 2410625 | AN153: 3058224 | AO153: 705151.9397 | AQ153: 2985913 | AR153: 130181.8966 | AS153: 401394.181 | AT153: 542424.569 | AU153: 145000 | AW153: 6225024 | AX153: 7051519.397 | AY153: 379697.1983 | AZ153: 922121.7672 | BA153: 1247576.509 | BB153: 45021.23922 | BC153: 135606.1422 | BD153: 1627273.707 | BE153: 324146 | BF153: 65090.94828 | BQ153: 0 | BS153: Caracteristica | BT153: No Aplica | BU153: No Aplica | BV153: S128
A154: VehículoEspecialMicrobúsde10a19pasajerosCAIMóvil2Intervalodeprecio4MERCEDES BENZ SPRINTER 515 EURO V MT 2200CC TD 4X2 [INT] [19PSJ]Motores y Máquinas S.A. | B154: VehículoEspecialMicrobúsde10a19pasajerosCAIMóvil2Intervalodeprecio4 | C154: MERCEDES BENZ SPRINTER 515 EURO V MT 2200CC TD 4X2 [INT] [19PSJ] | D154: Motores y Máquinas S.A. | E154: Vehículo Especial | F154: Microbús de 10 a 19 pasajeros | G154: CAI Móvil 2 | H154: Intervalo de precio 4 | I154: Diésel | J154: SPRINTER 515 EURO V MT 2200CC TD 4X2 [INT] [19PSJ] | K154: MERCEDES BENZ | L154: 5803102 | M154: SPRINTER | N154: 515 EURO V | O154: MT 2200CC TD 4X2 [INT] [19PSJ] | P154: 209300000 | Q154: 0.02 | R154: 205114000 | S154: 0.02 | T154: 205114000 | U154: 0.02 | V154: 205114000 | W154: 0.02 | X154: 205114000 | Y154: 0.02 | Z154: 205114000 | AA154: 0.02 | AB154: 205114000 | AC154: 12617667.6 | AD154: 141523250 | AE154: 1 | AK154: 1048234 | AM154: 2810788.22 | AN154: 3565888.76 | AP154: 14114978.02 | AQ154: 3481574.24 | AR154: 253605 | AS154: 216313.14 | AT154: 1517308.38 | AU154: 169070 | AW154: 7258377.56 | AX154: 14391238.4 | AY154: 242179.26 | AZ154: 1189406.92 | BA154: 3108086.42 | BB154: 72277.16 | BC154: 112429.96 | BD154: 1208850.5 | BE154: 377953.6 | BF154: 56216.04 | BK154: 3013000 | BQ154: 1 | BS154: Caracteristica | BT154: No Aplica | BU154: No Aplica | BV154: S128
A155: VehículoEspecialMicrobúsde10a19pasajerosCAIMóvil2Intervalodeprecio2RENAULT MASTER [3] 2.3L MT 2300CC TD 4X2 2AARenault Sociedad de Fabricación de Automotores S.A. | B155: VehículoEspecialMicrobúsde10a19pasajerosCAIMóvil2Intervalodeprecio2 | C155: RENAULT MASTER [3] 2.3L MT 2300CC TD 4X2 2AA | D155: Renault Sociedad de Fabricación de Automotores S.A. | E155: Vehículo Especial | F155: Microbús de 10 a 19 pasajeros | G155: CAI Móvil 2 | H155: Intervalo de precio 2 | I155: Diésel | J155: MASTER [3] 2.3L MT 2300CC TD 4X2 2AA | K155: RENAULT | L155: 8007015 | M155: MASTER [3] | N155: 2.3L | O155: MT 2300CC TD 4X2 2AA | P155: 117500000 | Q155: 0.08 | R155: 108100000 | S155: 0.085 | T155: 107512500 | U155: 0.087 | V155: 107277500 | W155: 0.088 | X155: 107160000 | Y155: 0.089 | Z155: 107042500 | AA155: 0.09 | AB155: 106925000 | AC155: 5414500 | AD155: 113102000 | AE155: 1 | AI155: 1541000 | AK155: 1160000 | AM155: 3214000 | AN155: 2694000 | AP155: 932000 | AQ155: 3380000 | AR155: 435000 | AS155: 315000 | AT155: 666000 | AU155: 312375 | AW155: 5605000 | AX155: 10000000 | AY155: 543000 | AZ155: 1275000 | BA155: 2974000 | BB155: 58000 | BC155: 450000 | BD155: 2300000 | BE155: 478000 | BF155: 58000 | BK155: 5353810 | BQ155: 1 | BS155: Caracteristica | BT155: No Aplica | BU155: No Aplica | BV155: S152
A156: VehículoEspecialMicrobúsde10a19pasajerosCAIMóvil2Intervalodeprecio4VOLKSWAGEN CRAFTER 50 MAXI MT 2000CC TD 4X2 [INT] AAUnión Temporal Los Coches-Iberplas-2014 | B156: VehículoEspecialMicrobúsde10a19pasajerosCAIMóvil2Intervalodeprecio4 | C156: VOLKSWAGEN CRAFTER 50 MAXI MT 2000CC TD 4X2 [INT] AA | D156: Unión Temporal Los Coches-Iberplas-2014 | E156: Vehículo Especial | F156: Microbús de 10 a 19 pasajeros | G156: CAI Móvil 2 | H156: Intervalo de precio 4 | I156: Diésel | J156: CRAFTER 50 MAXI MT 2000CC TD 4X2 [INT] AA | K156: VOLKSWAGEN | L156: 9203030 | M156: CRAFTER | N156: 50 MAXI | O156: MT 2000CC TD 4X2 [INT] AA | P156: 193200000 | Q156: 0.06 | R156: 181608000 | S156: 0.06 | T156: 181608000 | U156: 0.06 | V156: 181608000 | W156: 0.06 | X156: 181608000 | Y156: 0.06 | Z156: 181608000 | AA156: 0.06 | AB156: 181608000 | AC156: 5300000 | AD156: 130380000 | AI156: 520000 | AK156: 660000 | AM156: 2200000 | AN156: 770000 | AQ156: 1900000 | AR156: 240000 | AS156: 325000 | AT156: 500000 | AU156: 1700000 | AW156: 4970000 | AX156: 4300000 | AY156: 660000 | AZ156: 990000 | BA156: 2090000 | BB156: 65000 | BC156: 187000 | BD156: 1200000 | BE156: 650000 | BF156: 90000 | BK156: 2980000 | BQ156: 1 | BS156: Caracteristica | BT156: No Aplica | BU156: No Aplica | BV156: S128
A157: VehículoEspecialMicrobúsde10a19pasajerosCAImóvilIntervalodeprecio2MERCEDES BENZ SPRINTER 515 EURO V MT 2200CC TD 4X2Motores y Máquinas S.A. | B157: VehículoEspecialMicrobúsde10a19pasajerosCAImóvilIntervalodeprecio2 | C157: MERCEDES BENZ SPRINTER 515 EURO V MT 2200CC TD 4X2 | D157: Motores y Máquinas S.A. | E157: Vehículo Especial | F157: Microbús de 10 a 19 pasajeros | G157: CAI móvil | H157: Intervalo de precio 2 | I157: Diésel | J157: SPRINTER 515 EURO V MT 2200CC TD 4X2 | K157: MERCEDES BENZ | L157: 5807007 | M157: SPRINTER | N157: 515 EURO V | O157: MT 2200CC TD 4X2 | P157: 179500000 | Q157: 0.02 | R157: 175910000 | S157: 0.02 | T157: 175910000 | U157: 0.02 | V157: 175910000 | W157: 0.02 | X157: 175910000 | Y157: 0.02 | Z157: 175910000 | AA157: 0.02 | AB157: 175910000 | AC157: 9328731 | AD157: 136470588 | AE157: 1 | AL157: 867879.3103 | AO157: 705151.9397 | AR157: 130181.8966 | AS157: 401394.181 | AT157: 542424.569 | AX157: 7051519.397 | AY157: 379697.1983 | AZ157: 922121.7672 | BA157: 1247576.509 | BB157: 45021.23922 | BC157: 135606.1422 | BD157: 1627273.707 | BF157: 65090.94828 | BQ157: 0 | BS157: Caracteristica | BT157: No Aplica | BU157: No Aplica | BV157: S149
A158: VehículoEspecialMicrobúsde10a19pasajerosCAImóvilIntervalodeprecio1RENAULT MASTER [3] 2.3L MT 2300CC TD 4X2 2AARenault Sociedad de Fabricación de Automotores S.A. | B158: VehículoEspecialMicrobúsde10a19pasajerosCAImóvilIntervalodeprecio1 | C158: RENAULT MASTER [3] 2.3L MT 2300CC TD 4X2 2AA | D158: Renault Sociedad de Fabricación de Automotores S.A. | E158: Vehículo Especial | F158: Microbús de 10 a 19 pasajeros | G158: CAI móvil | H158: Intervalo de precio 1 | I158: Diésel | J158: MASTER [3] 2.3L MT 2300CC TD 4X2 2AA | K158: RENAULT | L158: 8007015 | M158: MASTER [3] | N158: 2.3L | O158: MT 2300CC TD 4X2 2AA | P158: 117500000 | Q158: 0.08 | R158: 108100000 | S158: 0.085 | T158: 107512500 | U158: 0.087 | V158: 107277500 | W158: 0.088 | X158: 107160000 | Y158: 0.089 | Z158: 107042500 | AA158: 0.09 | AB158: 106925000 | AC158: 5414500 | AD158: 166950000 | AE158: 1 | AI158: 1541000 | AK158: 1160000 | AM158: 3214000 | AN158: 2694000 | AP158: 932000 | AQ158: 3380000 | AR158: 435000 | AS158: 315000 | AT158: 666000 | AU158: 312375 | AW158: 5605000 | AX158: 10000000 | AY158: 543000 | AZ158: 1275000 | BA158: 2974000 | BB158: 58000 | BC158: 450000 | BD158: 2300000 | BE158: 478000 | BF158: 58000 | BK158: 5353810 | BQ158: 1 | BS158: Caracteristica | BT158: No Aplica | BU158: No Aplica | BV158: S151
A159: VehículoEspecialMicrobúsde10a19pasajerosCAImóvilIntervalodeprecio2VOLKSWAGEN CRAFTER 35 PANEL MT 2500CC TD AAUnión Temporal Los Coches-Iberplas-2014 | B159: VehículoEspecialMicrobúsde10a19pasajerosCAImóvilIntervalodeprecio2 | C159: VOLKSWAGEN CRAFTER 35 PANEL MT 2500CC TD AA | D159: Unión Temporal Los Coches-Iberplas-2014 | E159: Vehículo Especial | F159: Microbús de 10 a 19 pasajeros | G159: CAI móvil | H159: Intervalo de precio 2 | I159: Diésel | J159: CRAFTER 35 PANEL MT 2500CC TD AA | K159: VOLKSWAGEN | L159: 9207007 | M159: CRAFTER 35 | N159: PANEL | O159: MT 2500CC TD AA | P159: 111600000 | Q159: 0.06 | R159: 104904000 | S159: 0.06 | T159: 104904000 | U159: 0.06 | V159: 104904000 | W159: 0.06 | X159: 104904000 | Y159: 0.06 | Z159: 104904000 | AA159: 0.06 | AB159: 104904000 | AC159: 3800000 | AD159: 116000000 | AI159: 510000 | AK159: 600000 | AM159: 2000000 | AN159: 700000 | AQ159: 1800000 | AR159: 220000 | AS159: 325000 | AT159: 500000 | AU159: 1700000 | AW159: 4650000 | AX159: 4000000 | AY159: 600000 | AZ159: 900000 | BA159: 1900000 | BB159: 65000 | BC159: 170000 | BD159: 1100000 | BE159: 650000 | BF159: 90000 | BK159: 2980000 | BQ159: 0 | BS159: Caracteristica | BT159: No Aplica | BU159: No Aplica | BV159: S149
A160: VehículoEspecialBusde40pasajerosa50pasajerosBusinteractivoIntervalodeprecio1CHEVROLET LV 152 MT 15700CC TD 4X2Automayor S.A. | B160: VehículoEspecialBusde40pasajerosa50pasajerosBusinteractivoIntervalodeprecio1 | C160: CHEVROLET LV 152 MT 15700CC TD 4X2 | D160: Automayor S.A. | E160: Vehículo Especial | F160: Bus de 40 pasajeros a 50 pasajeros | G160: Bus interactivo | H160: Intervalo de precio 1 | I160: Diésel | J160: LV 152 MT 15700CC TD 4X2 | K160: CHEVROLET | L160: 1611142 | M160: LV | N160: 152 | O160: MT 15700CC TD 4X2 | P160: 301100000 | Q160: 0.08 | R160: 277012000 | S160: 0.08 | T160: 277012000 | U160: 0.08 | V160: 277012000 | W160: 0.08 | X160: 277012000 | Y160: 0.08 | Z160: 277012000 | AA160: 0.08 | AB160: 277012000 | AC160: 23086800 | AD160: 703000000 | AG160: 202009500 | AH160: 261650400 | AI160: 757625 | AK160: 128260 | AP160: 2006970.905 | AQ160: 1188000 | AR160: 57717 | AS160: 384780 | AT160: 128260 | AU160: 4489100 | AX160: 7009200 | AY160: 513040 | AZ160: 756000 | BA160: 2565200 | BB160: 57717 | BC160: 384780 | BD160: 1173579 | BE160: 132840 | BF160: 57717 | BI160: 32065000 | BK160: 4200000 | BL160: 21000000 | BQ160: 1 | BS160: Caracteristica | BT160: No Aplica | BU160: No Aplica | BV160: S65
A161: VehículoEspecialBusde40pasajerosa50pasajerosBusinteractivoIntervalodeprecio2CHEVROLET LV 452 MT 15700CC TD 4X2Automayor S.A. | B161: VehículoEspecialBusde40pasajerosa50pasajerosBusinteractivoIntervalodeprecio2 | C161: CHEVROLET LV 452 MT 15700CC TD 4X2 | D161: Automayor S.A. | E161: Vehículo Especial | F161: Bus de 40 pasajeros a 50 pasajeros | G161: Bus interactivo | H161: Intervalo de precio 2 | I161: Diésel | J161: LV 452 MT 15700CC TD 4X2 | K161: CHEVROLET | L161: 1611143 | M161: LV | N161: 452 | O161: MT 15700CC TD 4X2 | P161: 309200000 | Q161: 0.054 | R161: 292503200 | S161: 0.054 | T161: 292503200 | U161: 0.054 | V161: 292503200 | W161: 0.054 | X161: 292503200 | Y161: 0.054 | Z161: 292503200 | AA161: 0.054 | AB161: 292503200 | AC161: 19800000 | AD161: 773300000 | AG161: 173250000 | AH161: 224400000 | AI161: 757625 | AK161: 110000 | AP161: 2006970.905 | AQ161: 1188000 | AR161: 75600 | AS161: 330000 | AT161: 110000 | AU161: 3850000 | AX161: 7009200 | AY161: 440000 | AZ161: 756000 | BA161: 2200000 | BB161: 27561.6 | BC161: 330000 | BD161: 1188000 | BE161: 132840 | BF161: 54000 | BI161: 27500000 | BQ161: 0 | BS161: Caracteristica | BT161: No Aplica | BU161: No Aplica | BV161: S70
A162: VehículoEspecialBusde40pasajerosa50pasajerosBusinfanciayadolescenciaIntervalodeprecio1CHEVROLET LV 152 MT 15700CC TD 4X2Automayor S.A. | B162: VehículoEspecialBusde40pasajerosa50pasajerosBusinfanciayadolescenciaIntervalodeprecio1 | C162: CHEVROLET LV 152 MT 15700CC TD 4X2 | D162: Automayor S.A. | E162: Vehículo Especial | F162: Bus de 40 pasajeros a 50 pasajeros | G162: Bus infancia y adolescencia | H162: Intervalo de precio 1 | I162: Diésel | J162: LV 152 MT 15700CC TD 4X2 | K162: CHEVROLET | L162: 1611142 | M162: LV | N162: 152 | O162: MT 15700CC TD 4X2 | P162: 301100000 | Q162: 0.08 | R162: 277012000 | S162: 0.08 | T162: 277012000 | U162: 0.08 | V162: 277012000 | W162: 0.08 | X162: 277012000 | Y162: 0.08 | Z162: 277012000 | AA162: 0.08 | AB162: 277012000 | AC162: 23086800 | AD162: 703000000 | AG162: 202009500 | AH162: 261650400 | AI162: 757625 | AK162: 128260 | AP162: 2006970.905 | AQ162: 1188000 | AR162: 57717 | AS162: 384780 | AT162: 128260 | AU162: 4489100 | AX162: 7009200 | AY162: 513040 | AZ162: 756000 | BA162: 2565200 | BB162: 57717 | BC162: 384780 | BD162: 1173579 | BE162: 132840 | BF162: 57717 | BI162: 32065000 | BK162: 4200000 | BL162: 21000000 | BQ162: 1 | BS162: Caracteristica | BT162: No Aplica | BU162: No Aplica | BV162: S61
A163: VehículoEspecialBusde40pasajerosa50pasajerosBusinfanciayadolescenciaIntervalodeprecio2CHEVROLET LV 452 MT 15700CC TD 4X2Automayor S.A. | B163: VehículoEspecialBusde40pasajerosa50pasajerosBusinfanciayadolescenciaIntervalodeprecio2 | C163: CHEVROLET LV 452 MT 15700CC TD 4X2 | D163: Automayor S.A. | E163: Vehículo Especial | F163: Bus de 40 pasajeros a 50 pasajeros | G163: Bus infancia y adolescencia | H163: Intervalo de precio 2 | I163: Diésel | J163: LV 452 MT 15700CC TD 4X2 | K163: CHEVROLET | L163: 1611143 | M163: LV | N163: 452 | O163: MT 15700CC TD 4X2 | P163: 309200000 | Q163: 0.054 | R163: 292503200 | S163: 0.054 | T163: 292503200 | U163: 0.054 | V163: 292503200 | W163: 0.054 | X163: 292503200 | Y163: 0.054 | Z163: 292503200 | AA163: 0.054 | AB163: 292503200 | AC163: 19800000 | AD163: 773300000 | AG163: 173250000 | AH163: 224400000 | AI163: 757625 | AK163: 110000 | AP163: 2006970.905 | AQ163: 1188000 | AR163: 75600 | AS163: 330000 | AT163: 110000 | AU163: 3850000 | AX163: 7009200 | AY163: 440000 | AZ163: 756000 | BA163: 2200000 | BB163: 27561.6 | BC163: 330000 | BD163: 1188000 | BE163: 132840 | BF163: 54000 | BI163: 27500000 | BQ163: 0 | BS163: Caracteristica | BT163: No Aplica | BU163: No Aplica | BV163: S69
A164: VehículoEspecialBusde40pasajerosa50pasajerosBusdiscapacitadosIntervalodeprecio1CHEVROLET FRR 700P FORWARD [BUS][187HP] MT 5200CC TD 4X2Automayor S.A. | B164: VehículoEspecialBusde40pasajerosa50pasajerosBusdiscapacitadosIntervalodeprecio1 | C164: CHEVROLET FRR 700P FORWARD [BUS][187HP] MT 5200CC TD 4X2 | D164: Automayor S.A. | E164: Vehículo Especial | F164: Bus de 40 pasajeros a 50 pasajeros | G164: Bus discapacitados | H164: Intervalo de precio 1 | I164: Diésel | J164: FRR 700P FORWARD [BUS][187HP] MT 5200CC TD 4X2 | K164: CHEVROLET | L164: 1611140 | M164: FRR | N164: 700P FORWARD [BUS][187HP] | O164: MT 5200CC TD 4X2 | P164: 166100000 | Q164: 0.12 | R164: 146168000 | S164: 0.12 | T164: 146168000 | U164: 0.12 | V164: 146168000 | W164: 0.12 | X164: 146168000 | Y164: 0.12 | Z164: 146168000 | AA164: 0.12 | AB164: 146168000 | AC164: 14925616.2 | AD164: 126592620 | AG164: 107738400 | AH164: 127939350 | AK164: 128260 | AR164: 57717 | AS164: 384780 | AT164: 128260 | AU164: 1923900 | AY164: 513040 | BA164: 2565200 | BB164: 57717 | BC164: 384780 | BD164: 1173579 | BF164: 57717 | BI164: 23086800 | BK164: 4200000 | BQ164: 1 | BS164: Caracteristica | BT164: No Aplica | BU164: No Aplica | BV164: S33
A165: VehículoEspecialBusde40pasajerosa50pasajerosBusdiscapacitadosIntervalodeprecio1CHEVROLET LV 152 MT 15700CC TD 4X2Automayor S.A. | B165: VehículoEspecialBusde40pasajerosa50pasajerosBusdiscapacitadosIntervalodeprecio1 | C165: CHEVROLET LV 152 MT 15700CC TD 4X2 | D165: Automayor S.A. | E165: Vehículo Especial | F165: Bus de 40 pasajeros a 50 pasajeros | G165: Bus discapacitados | H165: Intervalo de precio 1 | I165: Diésel | J165: LV 152 MT 15700CC TD 4X2 | K165: CHEVROLET | L165: 1611142 | M165: LV | N165: 152 | O165: MT 15700CC TD 4X2 | P165: 301100000 | Q165: 0.08 | R165: 277012000 | S165: 0.08 | T165: 277012000 | U165: 0.08 | V165: 277012000 | W165: 0.08 | X165: 277012000 | Y165: 0.08 | Z165: 277012000 | AA165: 0.08 | AB165: 277012000 | AC165: 23086800 | AD165: 219000000 | AG165: 202009500 | AH165: 261650400 | AI165: 757625 | AK165: 128260 | AP165: 2006970.905 | AQ165: 1188000 | AR165: 57717 | AS165: 384780 | AT165: 128260 | AU165: 4489100 | AX165: 7009200 | AY165: 513040 | AZ165: 756000 | BA165: 2565200 | BB165: 57717 | BC165: 384780 | BD165: 1173579 | BE165: 132840 | BF165: 57717 | BI165: 32065000 | BK165: 4200000 | BL165: 21000000 | BQ165: 1 | BS165: Caracteristica | BT165: No Aplica | BU165: No Aplica | BV165: S33
A166: VehículoEspecialBusde40pasajerosa50pasajerosBusdiscapacitadosIntervalodeprecio2CHEVROLET LV 452 MT 15700CC TD 4X2Automayor S.A. | B166: VehículoEspecialBusde40pasajerosa50pasajerosBusdiscapacitadosIntervalodeprecio2 | C166: CHEVROLET LV 452 MT 15700CC TD 4X2 | D166: Automayor S.A. | E166: Vehículo Especial | F166: Bus de 40 pasajeros a 50 pasajeros | G166: Bus discapacitados | H166: Intervalo de precio 2 | I166: Diésel | J166: LV 452 MT 15700CC TD 4X2 | K166: CHEVROLET | L166: 1611143 | M166: LV | N166: 452 | O166: MT 15700CC TD 4X2 | P166: 309200000 | Q166: 0.054 | R166: 292503200 | S166: 0.054 | T166: 292503200 | U166: 0.054 | V166: 292503200 | W166: 0.054 | X166: 292503200 | Y166: 0.054 | Z166: 292503200 | AA166: 0.054 | AB166: 292503200 | AC166: 19800000 | AD166: 240900000 | AG166: 173250000 | AH166: 224400000 | AI166: 757625 | AK166: 110000 | AP166: 2006970.905 | AQ166: 1188000 | AR166: 75600 | AS166: 330000 | AT166: 110000 | AU166: 3850000 | AX166: 7009200 | AY166: 440000 | AZ166: 756000 | BA166: 2200000 | BB166: 27561.6 | BC166: 330000 | BD166: 1188000 | BE166: 132840 | BF166: 54000 | BI166: 27500000 | BQ166: 0 | BS166: Caracteristica | BT166: No Aplica | BU166: No Aplica | BV166: S68
A167: VehículoEspecialChasiscabinasencillagasolinamayora2450ccAmbulanciaTAM2Intervalodeprecio1NISSAN NP 300 FRONTIER [2] 2.5L MT 2500CC 4X2Distribuidora Nissan S.A. | B167: VehículoEspecialChasiscabinasencillagasolinamayora2450ccAmbulanciaTAM2Intervalodeprecio1 | C167: NISSAN NP 300 FRONTIER [2] 2.5L MT 2500CC 4X2 | D167: Distribuidora Nissan S.A. | E167: Vehículo Especial | F167: Chasis cabina sencilla gasolina mayor a 2.450cc | G167: Ambulancia TAM 2 | H167: Intervalo de precio 1 | I167: Gasolina | J167: CHASIS FRONTIER 4X2 GASOLINA | K167: NISSAN | L167: 6411095 | M167: NP 300 FRONTIER [2] | N167: 2.5L | O167: MT 2500CC 4X2 | P167: 61000000 | Q167: 0.01 | R167: 60390000 | S167: 0.01 | T167: 60390000 | U167: 0.01 | V167: 60390000 | W167: 0.01 | X167: 60390000 | Y167: 0.01 | Z167: 60390000 | AA167: 0.01 | AB167: 60390000 | AC167: 6500000 | AD167: 129000000 | AE167: 4400000 | AF167: 590000 | AI167: 5175000 | AJ167: 780100 | AK167: 935000 | AN167: 2450000 | AO167: 969760 | AP167: 1500000 | AQ167: 2088000 | AR167: 350000 | AS167: 650000 | AT167: 760960 | AV167: 451240 | AW167: 4655200 | AX167: 4350000 | AY167: 770000 | AZ167: 870000 | BA167: 1950000 | BB167: 60000 | BC167: 535340 | BD167: 1300000 | BE167: 577680 | BF167: 80000 | BK167: 3921000 | BQ167: 1 | BS167: Peso bruto vehícular | BT167: No Aplica | BU167: No Aplica
A168: VehículoEspecialChasiscabinasencillagasolina1950cc2449ccAmbulanciaTAM2Intervalodeprecio2VOLKSWAGEN PICK-UP CS TRENDLINE T MT 2000CC 4X4 2 ABUnión Temporal Los Coches-Iberplas-2014 | B168: VehículoEspecialChasiscabinasencillagasolina1950cc2449ccAmbulanciaTAM2Intervalodeprecio2 | C168: VOLKSWAGEN PICK-UP CS TRENDLINE T MT 2000CC 4X4 2 AB | D168: Unión Temporal Los Coches-Iberplas-2014 | E168: Vehículo Especial | F168: Chasis cabina sencilla gasolina 1.950cc - 2.449cc | G168: Ambulancia TAM 2 | H168: Intervalo de precio 2 | I168: Diésel | J168: AMAROK CS 4X4 | K168: VOLKSWAGEN | L168: 9220011 | M168: PICK-UP CS | N168: TRENDLINE T | O168: MT 2000CC 4X4 2 AB | P168: 118000000 | Q168: 0.06 | R168: 85540000 | S168: 0.06 | T168: 85540000 | U168: 0.06 | V168: 85540000 | W168: 0.06 | X168: 85540000 | Y168: 0.06 | Z168: 85540000 | AA168: 0.06 | AB168: 85540000 | AC168: 4770000 | AD168: 156880000 | AE168: 5720000 | AF168: 715000 | AI168: 520000 | AJ168: 1000000 | AK168: 660000 | AL168: 867879.3103 | AN168: 770000 | AO168: 705151.9397 | AQ168: 1900000 | AR168: 75600 | AS168: 401394.181 | AT168: 542424.569 | AV168: 500000 | AW168: 4970000 | AX168: 7051519.397 | AY168: 379697.1983 | AZ168: 922121.7672 | BA168: 1247576.509 | BB168: 45021.23922 | BC168: 135606.1422 | BD168: 1627273.707 | BE168: 650000 | BF168: 65090.94828 | BK168: 2980000 | BQ168: 1 | BS168: Peso bruto vehícular | BT168: No Aplica | BU168: No Aplica
A169: VehículoEspecialChasiscabinasencilladiésel2450cc2849ccAmbulanciaTAM2Intervalodeprecio1NISSAN NP 300 FRONTIER [2] 2.5L MT2500 CC TD 4X4 AA 2AB ABSDistribuidora Nissan S.A. | B169: VehículoEspecialChasiscabinasencilladiésel2450cc2849ccAmbulanciaTAM2Intervalodeprecio1 | C169: NISSAN NP 300 FRONTIER [2] 2.5L MT2500 CC TD 4X4 AA 2AB ABS | D169: Distribuidora Nissan S.A. | E169: Vehículo Especial | F169: Chasis cabina sencilla diésel 2.450cc - 2.849cc | G169: Ambulancia TAM 2 | H169: Intervalo de precio 1 | I169: Diésel | J169: NP 300 FRONTIER [2] 2.5L MT2500 CC TD 4X4 AA 2AB ABS | K169: NISSAN | L169: 6411092 | M169: NP 300 FRONTIER [2] | N169: 2.5L | O169: MT2500 CC TD 4X4 AA 2AB ABS | P169: 100000000 | Q169: 0.026 | R169: =P169*(1-Q169) -> 97400000 | S169: 0.026 | T169: =P169*(1-S169) -> 97400000 | U169: 0.026 | V169: =P169*(1-U169) -> 97400000 | W169: 0.026 | X169: =P169*(1-W169) -> 97400000 | Y169: 0.026 | Z169: =P169*(1-Y169) -> 97400000 | AA169: 0.026 | AB169: =P169*(1-AA169) -> 97400000 | AC169: 5150000 | AD169: 129000000 | AF169: 590000 | AI169: 5175000 | AJ169: 780100 | AK169: 935000 | AN169: 2450000 | AO169: 969760 | AP169: 1500000 | AQ169: 2088000 | AR169: 350000 | AS169: 650000 | AT169: 760960 | AV169: 451240 | AW169: 4655200 | AX169: 4350000 | AY169: 770000 | AZ169: 870000 | BA169: 1950000 | BB169: 60000 | BC169: 535340 | BD169: 1300000 | BE169: 577680 | BF169: 80000 | BK169: 3921000 | BQ169: 1 | BS169: Peso bruto vehícular | BT169: No Aplica | BU169: No Aplica
A170: VehículoEspecialChasiscabinasencilladiésel2450cc2849ccAmbulanciaTAM2Intervalodeprecio1CHEVROLET DMAX [3] [FL] 2.5L MT 2500CC 4X4 TD ABS 2ABAutomayor S.A. | B170: VehículoEspecialChasiscabinasencilladiésel2450cc2849ccAmbulanciaTAM2Intervalodeprecio1 | C170: CHEVROLET DMAX [3] [FL] 2.5L MT 2500CC 4X4 TD ABS 2AB | D170: Automayor S.A. | E170: Vehículo Especial | F170: Chasis cabina sencilla diésel 2.450cc - 2.849cc | G170: Ambulancia TAM 2 | H170: Intervalo de precio 1 | I170: Diésel | J170: =M170&" "&N170&" "&O170 -> DMAX [3] [FL] 2.5L MT 2500CC 4X4 TD ABS 2AB | K170: CHEVROLET | L170: 1620133 | M170: DMAX [3] [FL] | N170: 2.5L | O170: MT 2500CC 4X4 TD ABS 2AB | P170: 96900000 | Q170: 0.074 | R170: 89729400 | S170: 0.074 | T170: 89729400 | U170: 0.074 | V170: 89729400 | W170: 0.074 | X170: 89729400 | Y170: 0.074 | Z170: 89729400 | AA170: 0.074 | AB170: 89729400 | AC170: 4489100 | AD170: 166478991.8 | AF170: 769560 | AI170: 2565200 | AJ170: 1154340 | AK170: 769560 | AL170: 1154340 | AN170: 1154340 | AO170: 1051732 | AQ170: 1923900 | AR170: 57717 | AS170: 12826 | AT170: 718256 | AV170: 384780 | AW170: 6413000 | AX170: 6156480 | AY170: 577170 | AZ170: 769560 | BA170: 2565200 | BB170: 57717 | BC170: 256520 | BD170: 1173579 | BE170: 448910 | BF170: 57717 | BK170: 4200000 | BQ170: 1 | BS170: Peso bruto vehícular | BT170: No Aplica | BU170: No Aplica
A171: VehículoEspecialChasiscabinasencillagasolinamayora2849ccAmbulanciaTAM2Intervalodeprecio3FORD PICK-UP SENCILLA F-150 (13) XLT TP 3500CC 4X4Unión Temporal Los Coches-Iberplas-2014 | B171: VehículoEspecialChasiscabinasencillagasolinamayora2849ccAmbulanciaTAM2Intervalodeprecio3 | C171: FORD PICK-UP SENCILLA F-150 (13) XLT TP 3500CC 4X4 | D171: Unión Temporal Los Coches-Iberplas-2014 | E171: Vehículo Especial | F171: Chasis cabina sencilla gasolina mayor a 2.849cc | G171: Ambulancia TAM 2 | H171: Intervalo de precio 3 | I171: Gasolina | J171: F-150 (13) XLT TP 3500CC 4X4 | K171: FORD | L171: 3020095 | M171: PICK-UP SENCILLA | N171: F-150 (13) XLT | O171: TP 3500CC 4X4 | P171: 120900000 | Q171: 0.03 | R171: 117273000 | S171: 0.03 | T171: 117273000 | U171: 0.03 | V171: 117273000 | W171: 0.03 | X171: 117273000 | Y171: 0.03 | Z171: 117273000 | AA171: 0.03 | AB171: 117273000 | AC171: 4770000 | AD171: 156880000 | AE171: 5720000 | AF171: 715000 | AI171: 520000 | AJ171: 1000000 | AK171: 660000 | AL171: 867879.3103 | AN171: 770000 | AO171: 705151.9397 | AQ171: 1900000 | AR171: 75600 | AS171: 401394.181 | AT171: 542424.569 | AV171: 500000 | AW171: 4970000 | AX171: 7051519.397 | AY171: 379697.1983 | AZ171: 922121.7672 | BA171: 1247576.509 | BB171: 45021.23922 | BC171: 135606.1422 | BD171: 1627273.707 | BE171: 650000 | BF171: 65090.94828 | BK171: 2980000 | BQ171: 1 | BS171: Peso bruto vehícular | BT171: No Aplica | BU171: No Aplica
A172: VehículoEspecialChasiscabinasencilladiéselmayora1950cc2449ccAmbulanciaTAM2Intervalodeprecio1RENAULT MASTER [3] 2.3L MT 2300CC TD 4X2 AARenault Sociedad de Fabricación de Automotores S.A. | B172: VehículoEspecialChasiscabinasencilladiéselmayora1950cc2449ccAmbulanciaTAM2Intervalodeprecio1 | C172: RENAULT MASTER [3] 2.3L MT 2300CC TD 4X2 AA | D172: Renault Sociedad de Fabricación de Automotores S.A. | E172: Vehículo Especial | F172: Chasis cabina sencilla diésel mayor a 1.950cc - 2449cc | G172: Ambulancia TAM 2 | H172: Intervalo de precio 1 | I172: Diésel | J172: MASTER [3] 2.3L MT 2300CC TD 4X2 AA | K172: RENAULT | L172: 8011009 | M172: MASTER [3] | N172: 2.3L | O172: MT 2300CC TD 4X2 AA | P172: 71300000 | Q172: 0.08 | R172: 65596000 | S172: 0.085 | T172: 65239500 | U172: 0.087 | V172: 65096900 | W172: 0.088 | X172: 65025600 | Y172: 0.089 | Z172: 64954300 | AA172: 0.09 | AB172: 64883000 | AC172: 5414500 | AD172: 183450667 | AK172: 700000 | AM172: 3214000 | AN172: 2694000 | AP172: 7700000 | AQ172: 3380000 | AR172: 435000 | AS172: 315000 | AT172: 666000 | AU172: 268000 | AV172: 268000 | AW172: 5605000 | AX172: 10000000 | AY172: 543000 | AZ172: 1275000 | BA172: 2974000 | BB172: 48800 | BC172: 450000 | BD172: 2300000 | BE172: 478000 | BF172: 48800 | BK172: 5353810 | BQ172: 1 | BS172: Peso bruto vehícular | BT172: No Aplica | BU172: No Aplica
A173: VehículoEspecialMicrobúsde10a19pasajerosAmbulanciaTAM2Intervalodeprecio2RENAULT MASTER [3] 2.3L MT 2300CC TD 4X2 2AARenault Sociedad de Fabricación de Automotores S.A. | B173: VehículoEspecialMicrobúsde10a19pasajerosAmbulanciaTAM2Intervalodeprecio2 | C173: RENAULT MASTER [3] 2.3L MT 2300CC TD 4X2 2AA | D173: Renault Sociedad de Fabricación de Automotores S.A. | E173: Vehículo Especial | F173: Microbús de 10 a 19 pasajeros | G173: Ambulancia TAM 2 | H173: Intervalo de precio 2 | I173: Diésel | J173: =M173&" "&N173&" "&O173 -> MASTER [3] 2.3L MT 2300CC TD 4X2 2AA | K173: RENAULT | L173: 8007015 | M173: MASTER [3] | N173: 2.3L | O173: MT 2300CC TD 4X2 2AA | P173: 117500000 | Q173: 0.08 | R173: 108100000 | S173: 0.085 | T173: 107512500 | U173: 0.087 | V173: 107277500 | W173: 0.088 | X173: 107160000 | Y173: 0.089 | Z173: 107042500 | AA173: 0.09 | AB173: 106925000 | AC173: 5414500 | AD173: 165360000 | AE173: 1 | AI173: 1541000 | AK173: 1160000 | AM173: 3214000 | AN173: 2694000 | AP173: 932000 | AQ173: 3380000 | AR173: 435000 | AS173: 315000 | AT173: 666000 | AU173: 312375 | AW173: 5605000 | AX173: 10000000 | AY173: 543000 | AZ173: 1275000 | BA173: 2974000 | BB173: 58000 | BC173: 450000 | BD173: 2300000 | BE173: 478000 | BF173: 58000 | BK173: 5353810 | BQ173: 1 | BS173: Peso bruto vehícular | BT173: No Aplica | BU173: No Aplica
A174: VehículoEspecialMicrobúsde10a19pasajerosAmbulanciaTAM2Intervalodeprecio1RENAULT TRAFIC 1.6L TECHO ALTO MT 1600CC AA 2TRenault Sociedad de Fabricación de Automotores S.A. | B174: VehículoEspecialMicrobúsde10a19pasajerosAmbulanciaTAM2Intervalodeprecio1 | C174: RENAULT TRAFIC 1.6L TECHO ALTO MT 1600CC AA 2T | D174: Renault Sociedad de Fabricación de Automotores S.A. | E174: Vehículo Especial | F174: Microbús de 10 a 19 pasajeros | G174: Ambulancia TAM 2 | H174: Intervalo de precio 1 | I174: Diésel | J174: TRAFIC 1.6L TECHO ALTO MT 1600CC AA 2T | K174: RENAULT | L174: 8007018 | M174: TRAFIC | N174: 1.6L TECHO ALTO | O174: MT 1600CC AA 2T | P174: 95700000 | Q174: 0.07 | R174: 89001000 | S174: 0.075 | T174: 88522500 | U174: 0.077 | V174: 88331100 | W174: 0.078 | X174: 88235400 | Y174: 0.079 | Z174: 88139700 | AA174: 0.08 | AB174: 88044000 | AC174: 4486300 | AD174: 162533333 | AE174: 1 | AI174: 1541000 | AK174: 1160000 | AM174: 2538000 | AN174: 2694000 | AP174: 932000 | AQ174: 3380000 | AR174: 435000 | AS174: 379000 | AT174: 516000 | AU174: 312375 | AW174: 5605000 | AX174: 10000000 | AY174: 543000 | AZ174: 1275000 | BA174: 2974000 | BB174: 58000 | BC174: 450000 | BD174: 2300000 | BE174: 478000 | BF174: 58000 | BK174: 5353810 | BQ174: 1 | BS174: Peso bruto vehícular | BT174: No Aplica | BU174: No Aplica
A175: VehículoEspecialMicrobúsde10a19pasajerosAmbulanciaTAM2Intervalodeprecio4VOLKSWAGEN CAMIONETA REPARTO KOMBI T6 MT 2000CC 4X2 AAUnión Temporal Los Coches-Iberplas-2014 | B175: VehículoEspecialMicrobúsde10a19pasajerosAmbulanciaTAM2Intervalodeprecio4 | C175: VOLKSWAGEN CAMIONETA REPARTO KOMBI T6 MT 2000CC 4X2 AA | D175: Unión Temporal Los Coches-Iberplas-2014 | E175: Vehículo Especial | F175: Microbús de 10 a 19 pasajeros | G175: Ambulancia TAM 2 | H175: Intervalo de precio 4 | I175: Diésel | J175: CAMIONETA REPARTO KOMBI T6 MT 2000CC 4X2 AA | K175: VOLKSWAGEN | L175: 9207018 | M175: CAMIONETA REPARTO | N175: KOMBI T6 | O175: MT 2000CC 4X2 AA | P175: 90000000 | Q175: 0.06 | R175: 84600000 | S175: 0.06 | T175: 84600000 | U175: 0.06 | V175: 84600000 | W175: 0.06 | X175: 84600000 | Y175: 0.06 | Z175: 84600000 | AA175: 0.06 | AB175: 84600000 | AC175: 4500000 | AD175: 140000000 | AE175: 5720000 | AF175: 715000 | AI175: 520000 | AJ175: 1000000 | AK175: 660000 | AL175: 867879.3103 | AN175: 770000 | AO175: 705151.9397 | AQ175: 1900000 | AR175: 75600 | AS175: 401394.181 | AT175: 542424.569 | AV175: 500000 | AW175: 4970000 | AX175: 7051519.397 | AY175: 379697.1983 | AZ175: 922121.7672 | BA175: 1247576.509 | BB175: 45021.23922 | BC175: 135606.1422 | BD175: 1627273.707 | BE175: 650000 | BF175: 65090.94828 | BK175: 2980000 | BQ175: 1 | BS175: Peso bruto vehícular | BT175: No Aplica | BU175: No Aplica
A176: VehículoEspecialMicrobúsde10a19pasajerosAmbulanciaTAM2Intervalodeprecio1NISSAN URVAN [E26] NV350 MT 2500CC TD 4X2 AADistribuidora Nissan S.A. | B176: VehículoEspecialMicrobúsde10a19pasajerosAmbulanciaTAM2Intervalodeprecio1 | C176: NISSAN URVAN [E26] NV350 MT 2500CC TD 4X2 AA | D176: Distribuidora Nissan S.A. | E176: Vehículo Especial | F176: Microbús de 10 a 19 pasajeros | G176: Ambulancia TAM 2 | H176: Intervalo de precio 1 | I176: Diésel | J176: URVAN E26 NV350 MT 2500 CC TD 4X2 AA | K176: NISSAN | L176: 6407009 | M176: URVAN [E26] | N176: NV350 | O176: MT 2500CC TD 4X2 AA | P176: 102500000 | Q176: 0.01 | R176: 101475000 | S176: 0.01 | T176: 101475000 | U176: 0.01 | V176: 101475000 | W176: 0.01 | X176: 101475000 | Y176: 0.01 | Z176: 101475000 | AA176: 0.01 | AB176: 101475000 | AC176: 6500000 | AD176: 127000000 | AN176: 2213280 | AP176: 1200000 | AQ176: 2213280 | AR176: 371000 | AS176: 853342 | AT176: 806618 | AU176: 96000 | AV176: 288000 | AY176: 816200 | BA176: 2067000 | BB176: 63600 | BC176: 567460 | BD176: 1378000 | BE176: 612341 | BF176: 84800 | BK176: 3921000 | BQ176: 1 | BS176: Peso bruto vehícular | BT176: No Aplica | BU176: No Aplica
A177: VehículoEspecialChasiscabinasencilladiéselmayora2449ccAmbulanciaTAMIntervalodeprecio1CHEVROLET DMAX [3] [FL] 2.5L MT 2500CC 4X4 TD ABS 2ABAutomayor S.A. | B177: VehículoEspecialChasiscabinasencilladiéselmayora2449ccAmbulanciaTAMIntervalodeprecio1 | C177: CHEVROLET DMAX [3] [FL] 2.5L MT 2500CC 4X4 TD ABS 2AB | D177: Automayor S.A. | E177: Vehículo Especial | F177: Chasis cabina sencilla diésel mayor a 2.449cc | G177: Ambulancia TAM | H177: Intervalo de precio 1 | I177: Diésel | J177: =M177&" "&N177&" "&O177 -> DMAX [3] [FL] 2.5L MT 2500CC 4X4 TD ABS 2AB | K177: CHEVROLET | L177: 1620133 | M177: DMAX [3] [FL] | N177: 2.5L | O177: MT 2500CC 4X4 TD ABS 2AB | P177: 96900000 | Q177: 0.074 | R177: =$P177*(1-Q177) -> 89729400 | S177: 0.074 | T177: =$P177*(1-S177) -> 89729400 | U177: 0.074 | V177: =$P177*(1-U177) -> 89729400 | W177: 0.074 | X177: =$P177*(1-W177) -> 89729400 | Y177: 0.074 | Z177: =$P177*(1-Y177) -> 89729400 | AA177: 0.074 | AB177: =$P177*(1-AA177) -> 89729400 | AC177: 4489100 | AD177: 162248900 | AF177: 769560 | AI177: 2565200 | AJ177: 1154340 | AK177: 769560 | AL177: 1154340 | AN177: 1154340 | AO177: 1051732 | AQ177: 1923900 | AR177: 57717 | AS177: 12826 | AT177: 718256 | AV177: 384780 | AW177: 6413000 | AX177: 6156480 | AY177: 577170 | AZ177: 769560 | BA177: 2565200 | BB177: 57717 | BC177: 256520 | BD177: 1173579 | BE177: 448910 | BF177: 57717 | BK177: 4200000 | BQ177: 1 | BS177: Caracteristica | BT177: No Aplica | BU177: No Aplica | BV177: S11
A178: VehículoEspecialMicrobúsde10a19pasajerosAmbulanciaTAMIntervalodeprecio3IVECO DAILY 50C14N [4100MM] MT 3000CC 4X2 [GNC]Navitrans S.A.S. | B178: VehículoEspecialMicrobúsde10a19pasajerosAmbulanciaTAMIntervalodeprecio3 | C178: IVECO DAILY 50C14N [4100MM] MT 3000CC 4X2 [GNC] | D178: Navitrans S.A.S. | E178: Vehículo Especial | F178: Microbús de 10 a 19 pasajeros | G178: Ambulancia TAM | H178: Intervalo de precio 3 | I178: Gas | J178: DAILY 50C14N [4100MM] MT 3000CC 4X2 [GNC] | K178: IVECO | L178: 10207006 | M178: DAILY | N178: 50C14N [4100MM] | O178: MT 3000CC 4X2 [GNC] | P178: 158000000 | Q178: 0.005 | R178: 157210000 | S178: 0.01 | T178: 156420000 | U178: 0.015 | V178: 155630000 | W178: 0.02 | X178: 154840000 | Y178: 0.025 | Z178: 154050000 | AA178: 0.03 | AB178: 153260000 | AC178: 7000000 | AD178: 60000000 | AL178: 867879.3103 | AO178: 705151.9397 | AR178: 130181.8966 | AS178: 401394.181 | AT178: 542424.569 | AX178: 7051519.397 | AY178: 379697.1983 | AZ178: 922121.7672 | BA178: 1247576.509 | BB178: 45021.23922 | BC178: 135606.1422 | BD178: 1627273.707 | BF178: 65090.94828 | BQ178: 1 | BS178: Caracteristica | BT178: No Aplica | BU178: No Aplica | BV178: S116
A179: VehículoEspecialMicrobúsde10a19pasajerosAmbulanciaTAMIntervalodeprecio1RENAULT TRAFIC 1.6L TECHO ALTO MT 1600CC AA 2TRenault Sociedad de Fabricación de Automotores S.A. | B179: VehículoEspecialMicrobúsde10a19pasajerosAmbulanciaTAMIntervalodeprecio1 | C179: RENAULT TRAFIC 1.6L TECHO ALTO MT 1600CC AA 2T | D179: Renault Sociedad de Fabricación de Automotores S.A. | E179: Vehículo Especial | F179: Microbús de 10 a 19 pasajeros | G179: Ambulancia TAM | H179: Intervalo de precio 1 | I179: Diésel | J179: TRAFIC 1.6L TECHO ALTO MT 1600CC AA 2T | K179: RENAULT | L179: 8007018 | M179: TRAFIC | N179: 1.6L TECHO ALTO | O179: MT 1600CC AA 2T | P179: 95700000 | Q179: 0.07 | R179: 89001000 | S179: 0.075 | T179: 88522500 | U179: 0.077 | V179: 88331100 | W179: 0.078 | X179: 88235400 | Y179: 0.079 | Z179: 88139700 | AA179: 0.08 | AB179: 88044000 | AC179: 4486300 | AD179: 113102000 | AE179: 1 | AI179: 1541000 | AK179: 1160000 | AM179: 2538000 | AN179: 2694000 | AP179: 932000 | AQ179: 3380000 | AR179: 435000 | AS179: 379000 | AT179: 516000 | AU179: 312375 | AW179: 5605000 | AX179: 10000000 | AY179: 543000 | AZ179: 1275000 | BA179: 2974000 | BB179: 58000 | BC179: 450000 | BD179: 2300000 | BE179: 478000 | BF179: 58000 | BK179: 5353810 | BQ179: 1 | BS179: Caracteristica | BT179: No Aplica | BU179: No Aplica | BV179: S143
A180: VehículoEspecialMicrobúsde10a19pasajerosAmbulanciaTAMIntervalodeprecio2RENAULT MASTER [3] 2.3L MT 2300CC TD 4X2 2AARenault Sociedad de Fabricación de Automotores S.A. | B180: VehículoEspecialMicrobúsde10a19pasajerosAmbulanciaTAMIntervalodeprecio2 | C180: RENAULT MASTER [3] 2.3L MT 2300CC TD 4X2 2AA | D180: Renault Sociedad de Fabricación de Automotores S.A. | E180: Vehículo Especial | F180: Microbús de 10 a 19 pasajeros | G180: Ambulancia TAM | H180: Intervalo de precio 2 | I180: Diésel | J180: MASTER [3] 2.3L MT 2300CC TD 4X2 2AA | K180: RENAULT | L180: 8007015 | M180: MASTER [3] | N180: 2.3L | O180: MT 2300CC TD 4X2 2AA | P180: 117500000 | Q180: 0.08 | R180: 108100000 | S180: 0.085 | T180: 107512500 | U180: 0.087 | V180: 107277500 | W180: 0.088 | X180: 107160000 | Y180: 0.089 | Z180: 107042500 | AA180: 0.09 | AB180: 106925000 | AC180: 5414500 | AD180: 114268000 | AE180: 1 | AI180: 1541000 | AK180: 1160000 | AM180: 3214000 | AN180: 2694000 | AP180: 932000 | AQ180: 3380000 | AR180: 435000 | AS180: 315000 | AT180: 666000 | AU180: 312375 | AW180: 5605000 | AX180: 10000000 | AY180: 543000 | AZ180: 1275000 | BA180: 2974000 | BB180: 58000 | BC180: 450000 | BD180: 2300000 | BE180: 478000 | BF180: 58000 | BK180: 5353810 | BQ180: 1 | BS180: Caracteristica | BT180: No Aplica | BU180: No Aplica | BV180: S150
A181: VehículoEspecialChasiscabinasencilladiésel1950cc2449ccAmbulanciaTAMIntervalodeprecio1VOLKSWAGEN AMAROK 2.0L MT 2000CC 4X4 TD AAUnión Temporal Los Coches-Iberplas-2014 | B181: VehículoEspecialChasiscabinasencilladiésel1950cc2449ccAmbulanciaTAMIntervalodeprecio1 | C181: VOLKSWAGEN AMAROK 2.0L MT 2000CC 4X4 TD AA | D181: Unión Temporal Los Coches-Iberplas-2014 | E181: Vehículo Especial | F181: Chasis cabina sencilla diésel 1.950cc - 2.449cc | G181: Ambulancia TAM | H181: Intervalo de precio 1 | I181: Diésel | J181: AMAROK 2.0L MT 2000CC 4X4 TD AA | K181: VOLKSWAGEN | L181: 9220004 | M181: AMAROK | N181: 2.0L | O181: MT 2000CC 4X4 TD AA | P181: 108000000 | Q181: 0.06 | R181: 101520000 | S181: 0.06 | T181: 101520000 | U181: 0.06 | V181: 101520000 | W181: 0.06 | X181: 101520000 | Y181: 0.06 | Z181: 101520000 | AA181: 0.06 | AB181: 101520000 | AC181: 3816000 | AD181: 100276000 | AF181: 715000 | AI181: 520000 | AJ181: 1000000 | AK181: 660000 | AL181: 1600000 | AN181: 770000 | AO181: 935000 | AQ181: 1900000 | AR181: 240000 | AS181: 325000 | AT181: 500000 | AV181: 500000 | AW181: 4970000 | AX181: 4300000 | AY181: 770000 | AZ181: 1200000 | BA181: 900000 | BB181: 2090000 | BC181: 65000 | BD181: 187000 | BE181: 650000 | BF181: 90000 | BK181: 2980000 | BQ181: 1 | BS181: Caracteristica | BT181: No Aplica | BU181: No Aplica | BV181: S162
A182: VehículoEspecialMicrobúsde10a19pasajerosAmbulanciaTAMIntervalodeprecio2VOLKSWAGEN TRANSPORTER KOMBI T6 MT 2000CC TD 4X2 AAUnión Temporal Los Coches-Iberplas-2014 | B182: VehículoEspecialMicrobúsde10a19pasajerosAmbulanciaTAMIntervalodeprecio2 | C182: VOLKSWAGEN TRANSPORTER KOMBI T6 MT 2000CC TD 4X2 AA | D182: Unión Temporal Los Coches-Iberplas-2014 | E182: Vehículo Especial | F182: Microbús de 10 a 19 pasajeros | G182: Ambulancia TAM | H182: Intervalo de precio 2 | I182: Diésel | J182: TRANSPORTER KOMBI T6 MT 2000CC TD 4X2 AA | K182: VOLKSWAGEN | L182: 9207018 | M182: TRANSPORTER | N182: KOMBI T6 | O182: MT 2000CC TD 4X2 AA | P182: 90000000 | Q182: 0.06 | R182: 84600000 | S182: 0.06 | T182: 84600000 | U182: 0.06 | V182: 84600000 | W182: 0.06 | X182: 84600000 | Y182: 0.06 | Z182: 84600000 | AA182: 0.06 | AB182: 84600000 | AC182: 4197600 | AD182: 93280000 | AI182: 520000 | AK182: 660000 | AM182: 2200000 | AN182: 770000 | AQ182: 1900000 | AR182: 240000 | AS182: 325000 | AT182: 500000 | AU182: 1700000 | AW182: 4970000 | AX182: 4300000 | AY182: 660000 | AZ182: 990000 | BA182: 2090000 | BB182: 65000 | BC182: 187000 | BD182: 1200000 | BE182: 650000 | BF182: 90000 | BK182: 2980000 | BQ182: 1 | BS182: Caracteristica | BT182: No Aplica | BU182: No Aplica | BV182: S150
A183: VehículoEspecialChasiscabinasencillagasolinamayora2450ccAmbulanciaTAB2Intervalodeprecio1NISSAN NP 300 FRONTIER [2] 2.5L MT 2500CC 4X2Distribuidora Nissan S.A. | B183: VehículoEspecialChasiscabinasencillagasolinamayora2450ccAmbulanciaTAB2Intervalodeprecio1 | C183: NISSAN NP 300 FRONTIER [2] 2.5L MT 2500CC 4X2 | D183: Distribuidora Nissan S.A. | E183: Vehículo Especial | F183: Chasis cabina sencilla gasolina mayor a 2.450cc | G183: Ambulancia TAB 2 | H183: Intervalo de precio 1 | I183: Gasolina | J183: NP 300 FRONTIER [2] 2.5L MT 2500CC 4X2 | K183: NISSAN | L183: 6411095 | M183: NP 300 FRONTIER [2] | N183: 2.5L | O183: MT 2500CC 4X2 | P183: 61000000 | Q183: 0.01 | R183: =P183*(1-Q183) -> 60390000 | S183: 0.01 | T183: =P183*(1-S183) -> 60390000 | U183: 0.01 | V183: =P183*(1-U183) -> 60390000 | W183: 0.01 | X183: =P183*(1-W183) -> 60390000 | Y183: 0.01 | Z183: =P183*(1-Y183) -> 60390000 | AA183: 0.01 | AB183: =+Z183 -> 60390000 | AC183: 6500000 | AD183: 75000000 | AF183: 590000 | AI183: 5175000 | AJ183: 780100 | AK183: 935000 | AN183: 2450000 | AO183: 969760 | AP183: 1500000 | AQ183: 2088000 | AR183: 350000 | AS183: 650000 | AT183: 760960 | AV183: 451240 | AW183: 4655200 | AX183: 4350000 | AY183: 770000 | AZ183: 870000 | BA183: 1950000 | BB183: 60000 | BC183: 535340 | BD183: 1300000 | BE183: 577680 | BF183: 80000 | BK183: 3921000 | BQ183: 1 | BS183: Peso bruto vehícular | BT183: No Aplica | BU183: No Aplica
A184: VehículoEspecialChasiscabinasencilladiésel1950cc2449ccAmbulanciaTAB2Intervalodeprecio2VOLKSWAGEN PICK-UP CS TRENDLINE T MT 2000CC 4X4 2 ABUnión Temporal Los Coches-Iberplas-2014 | B184: VehículoEspecialChasiscabinasencilladiésel1950cc2449ccAmbulanciaTAB2Intervalodeprecio2 | C184: VOLKSWAGEN PICK-UP CS TRENDLINE T MT 2000CC 4X4 2 AB | D184: Unión Temporal Los Coches-Iberplas-2014 | E184: Vehículo Especial | F184: Chasis cabina sencilla diésel 1.950cc - 2.449cc | G184: Ambulancia TAB 2 | H184: Intervalo de precio 2 | I184: Diésel | J184: AMAROK CS 4X4 | K184: VOLKSWAGEN | L184: 9220011 | M184: PICK-UP CS | N184: TRENDLINE T | O184: MT 2000CC 4X4 2 AB | P184: 118000000 | Q184: 0.06 | R184: 85540000 | S184: 0.06 | T184: 110920000 | U184: 0.06 | V184: 110920000 | W184: 0.06 | X184: 110920000 | Y184: 0.06 | Z184: 110920000 | AA184: 0.06 | AB184: =P184*(1-AA184) -> 110920000 | AC184: 4770000 | AD184: 84800000 | AE184: 5720000 | AF184: 715000 | AI184: 520000 | AJ184: 1000000 | AK184: 660000 | AL184: 867879.3103 | AN184: 770000 | AO184: 705151.9397 | AQ184: 1900000 | AR184: 75600 | AS184: 401394.181 | AT184: 542424.569 | AV184: 500000 | AW184: 4970000 | AX184: 7051519.397 | AY184: 379697.1983 | AZ184: 922121.7672 | BA184: 1247576.509 | BB184: 45021.23922 | BC184: 135606.1422 | BD184: 1627273.707 | BE184: 650000 | BF184: 65090.94828 | BK184: 2980000 | BQ184: 1 | BS184: Peso bruto vehícular | BT184: No Aplica | BU184: No Aplica
A185: VehículoEspecialChasiscabinasencilladiésel2450cc2849ccAmbulanciaTAB2Intervalodeprecio1CHEVROLET DMAX [3] [FL] 2.5L MT 2500CC 4X4 TD ABS 2ABAutomayor S.A. | B185: VehículoEspecialChasiscabinasencilladiésel2450cc2849ccAmbulanciaTAB2Intervalodeprecio1 | C185: CHEVROLET DMAX [3] [FL] 2.5L MT 2500CC 4X4 TD ABS 2AB | D185: Automayor S.A. | E185: Vehículo Especial | F185: Chasis cabina sencilla diésel 2.450cc - 2.849cc | G185: Ambulancia TAB 2 | H185: Intervalo de precio 1 | I185: Diésel | J185: =M185&" "&N185&" "&O185 -> DMAX [3] [FL] 2.5L MT 2500CC 4X4 TD ABS 2AB | K185: CHEVROLET | L185: 1620133 | M185: DMAX [3] [FL] | N185: 2.5L | O185: MT 2500CC 4X4 TD ABS 2AB | P185: 96900000 | Q185: 0.074 | R185: =P185*(1-Q185) -> 89729400 | S185: 0.074 | T185: 89729400 | U185: 0.074 | V185: 89729400 | W185: 0.074 | X185: 89729400 | Y185: 0.074 | Z185: 89729400 | AA185: 0.074 | AB185: 89729400 | AC185: 4489100 | AD185: 90788546 | AF185: 769560 | AI185: 2565200 | AJ185: 1154340 | AK185: 769560 | AL185: 1154340 | AN185: 1154340 | AO185: 1051732 | AQ185: 1923900 | AR185: 57717 | AS185: 12826 | AT185: 718256 | AV185: 384780 | AW185: 6413000 | AX185: 6156480 | AY185: 577170 | AZ185: 769560 | BA185: 2565200 | BB185: 57717 | BC185: 256520 | BD185: 1173579 | BE185: 448910 | BF185: 57717 | BK185: 4200000 | BQ185: 1 | BS185: Peso bruto vehícular | BT185: No Aplica | BU185: No Aplica
A186: VehículoEspecialChasiscabinasencilladiésel2450cc2849ccAmbulanciaTAB2Intervalodeprecio1NISSAN NP 300 FRONTIER [2] 2.5L MT2500 CC TD 4X4 AA 2AB ABSDistribuidora Nissan S.A. | B186: VehículoEspecialChasiscabinasencilladiésel2450cc2849ccAmbulanciaTAB2Intervalodeprecio1 | C186: NISSAN NP 300 FRONTIER [2] 2.5L MT2500 CC TD 4X4 AA 2AB ABS | D186: Distribuidora Nissan S.A. | E186: Vehículo Especial | F186: Chasis cabina sencilla diésel 2.450cc - 2.849cc | G186: Ambulancia TAB 2 | H186: Intervalo de precio 1 | I186: Diésel | J186: NP 300 FRONTIER [2] 2.5L MT2500 CC TD 4X4 AA 2AB ABS | K186: NISSAN | L186: 6411092 | M186: NP 300 FRONTIER [2] | N186: 2.5L | O186: MT2500 CC TD 4X4 AA 2AB ABS | P186: 100000000 | Q186: 0.026 | R186: 97400000 | S186: 0.026 | T186: 97400000 | U186: 0.026 | V186: 97400000 | W186: 0.026 | X186: 97400000 | Y186: 0.026 | Z186: 97400000 | AA186: 0.026 | AB186: 97400000 | AC186: 5150000 | AD186: 75000000 | AF186: 590000 | AI186: 5175000 | AJ186: 780100 | AK186: 935000 | AN186: 2450000 | AO186: 969760 | AP186: 1500000 | AQ186: 2088000 | AR186: 350000 | AS186: 650000 | AT186: 760960 | AV186: 451240 | AW186: 4655200 | AX186: 4350000 | AY186: 770000 | AZ186: 870000 | BA186: 1950000 | BB186: 60000 | BC186: 535340 | BD186: 1300000 | BE186: 577680 | BF186: 80000 | BK186: 3921000 | BQ186: 1 | BS186: Peso bruto vehícular | BT186: No Aplica | BU186: No Aplica
A187: VehículoEspecialChasiscabinasencillagasolinamayora2849ccAmbulanciaTAB2Intervalodeprecio3FORD PICK-UP SENCILLA F-150 (13) XLT TP 3500CC 4X4Unión Temporal Los Coches-Iberplas-2014 | B187: VehículoEspecialChasiscabinasencillagasolinamayora2849ccAmbulanciaTAB2Intervalodeprecio3 | C187: FORD PICK-UP SENCILLA F-150 (13) XLT TP 3500CC 4X4 | D187: Unión Temporal Los Coches-Iberplas-2014 | E187: Vehículo Especial | F187: Chasis cabina sencilla gasolina mayor a 2.849cc | G187: Ambulancia TAB 2 | H187: Intervalo de precio 3 | I187: Gasolina | J187: F-150 (13) XLT TP 3500CC 4X4 | K187: FORD | L187: 3020095 | M187: PICK-UP SENCILLA | N187: F-150 (13) XLT | O187: TP 3500CC 4X4 | P187: 120900000 | Q187: 0.03 | R187: 117273000 | S187: 0.03 | T187: 117273000 | U187: 0.03 | V187: 117273000 | W187: 0.03 | X187: 117273000 | Y187: 0.03 | Z187: 117273000 | AA187: 0.03 | AB187: 117273000 | AC187: 4770000 | AD187: 84800000 | AE187: 5720000 | AF187: 715000 | AI187: 520000 | AJ187: 1000000 | AK187: 660000 | AL187: 867879.3103 | AN187: 770000 | AO187: 705151.9397 | AQ187: 1900000 | AR187: 75600 | AS187: 401394.181 | AT187: 542424.569 | AV187: 500000 | AW187: 4970000 | AX187: 7051519.397 | AY187: 379697.1983 | AZ187: 922121.7672 | BA187: 1247576.509 | BB187: 45021.23922 | BC187: 135606.1422 | BD187: 1627273.707 | BE187: 650000 | BF187: 65090.94828 | BK187: 2980000 | BQ187: 1 | BS187: Peso bruto vehícular | BT187: No Aplica | BU187: No Aplica
A188: VehículoEspecialChasiscabinasencilladiésel1950cc2449ccAmbulanciaTAB2Intervalodeprecio1RENAULT MASTER [3] 2.3L MT 2300CC TD 4X2 AARenault Sociedad de Fabricación de Automotores S.A. | B188: VehículoEspecialChasiscabinasencilladiésel1950cc2449ccAmbulanciaTAB2Intervalodeprecio1 | C188: RENAULT MASTER [3] 2.3L MT 2300CC TD 4X2 AA | D188: Renault Sociedad de Fabricación de Automotores S.A. | E188: Vehículo Especial | F188: Chasis cabina sencilla diésel 1.950cc - 2.449cc | G188: Ambulancia TAB 2 | H188: Intervalo de precio 1 | I188: Diésel | J188: MASTER [3] 2.3L MT 2300CC TD 4X2 AA | K188: RENAULT | L188: 8011009 | M188: MASTER [3] | N188: 2.3L | O188: MT 2300CC TD 4X2 AA | P188: 71300000 | Q188: 0.08 | R188: 65596000 | S188: 0.085 | T188: 65239500 | U188: 0.087 | V188: 65096900 | W188: 0.088 | X188: 65025600 | Y188: 0.089 | Z188: 64954300 | AA188: 0.09 | AB188: 64883000 | AC188: 5414500 | AD188: 96106667.02 | AK188: 700000 | AM188: 3214000 | AN188: 2694000 | AP188: 7700000 | AQ188: 3380000 | AR188: 435000 | AS188: 315000 | AT188: 666000 | AU188: 268000 | AV188: 268000 | AW188: 5605000 | AX188: 10000000 | AY188: 543000 | AZ188: 1275000 | BA188: 2974000 | BB188: 48800 | BC188: 450000 | BD188: 2300000 | BE188: 478000 | BF188: 48800 | BK188: 5353810 | BQ188: 1 | BS188: Peso bruto vehícular | BT188: No Aplica | BU188: No Aplica
A189: VehículoEspecialChasiscabinasencilladiéselmayora2450ccAmbulanciaTAB2Intervalodeprecio1NISSAN NP 300 FRONTIER [2] 2.5L MT 2500CC 4X2Distribuidora Nissan S.A. | B189: VehículoEspecialChasiscabinasencilladiéselmayora2450ccAmbulanciaTAB2Intervalodeprecio1 | C189: NISSAN NP 300 FRONTIER [2] 2.5L MT 2500CC 4X2 | D189: Distribuidora Nissan S.A. | E189: Vehículo Especial | F189: Chasis cabina sencilla diésel mayor a 2.450cc | G189: Ambulancia TAB 2 | H189: Intervalo de precio 1 | I189: Diésel | J189: NP 300 FRONTIER [2] 2.5L MT 2500CC 4X2 | K189: NISSAN | L189: 6411093 | M189: NP 300 FRONTIER [2] | N189: 2.5L | O189: MT 2500CC 4X2 | P189: 72000000 | Q189: 0.005 | R189: 71640000 | S189: 0.005 | T189: 71640000 | U189: 0.005 | V189: 71640000 | W189: 0.005 | X189: 71640000 | Y189: 0.005 | Z189: 71640000 | AA189: 0.005 | AB189: 71640000 | AC189: 6500000 | AD189: 75000000 | AF189: 590000 | AI189: 5175000 | AJ189: 780100 | AK189: 935000 | AN189: 2450000 | AO189: 969760 | AP189: 1500000 | AQ189: 2088000 | AR189: 350000 | AS189: 650000 | AT189: 760960 | AV189: 451240 | AW189: 4655200 | AX189: 4350000 | AY189: 770000 | AZ189: 870000 | BA189: 1950000 | BB189: 60000 | BC189: 535340 | BD189: 1300000 | BE189: 577680 | BF189: 80000 | BK189: 3921000 | BQ189: 1 | BS189: Peso bruto vehícular | BT189: No Aplica | BU189: No Aplica
A190: VehículoEspecialMicrobúsde10a19pasajerosAmbulanciaTAB2Intervalodeprecio2RENAULT MASTER [3] 2.3L MT 2300CC TD 4X2 2AARenault Sociedad de Fabricación de Automotores S.A. | B190: VehículoEspecialMicrobúsde10a19pasajerosAmbulanciaTAB2Intervalodeprecio2 | C190: RENAULT MASTER [3] 2.3L MT 2300CC TD 4X2 2AA | D190: Renault Sociedad de Fabricación de Automotores S.A. | E190: Vehículo Especial | F190: Microbús de 10 a 19 pasajeros | G190: Ambulancia TAB 2 | H190: Intervalo de precio 2 | I190: Diésel | J190: =M190&" "&N190&" "&O190 -> MASTER [3] 2.3L MT 2300CC TD 4X2 2AA | K190: RENAULT | L190: 8007015 | M190: MASTER [3] | N190: 2.3L | O190: MT 2300CC TD 4X2 2AA | P190: 117500000 | Q190: 0.08 | R190: 108100000 | S190: 0.085 | T190: 107512500 | U190: 0.087 | V190: 107277500 | W190: 0.088 | X190: 107160000 | Y190: 0.089 | Z190: 107042500 | AA190: 0.09 | AB190: 106925000 | AC190: 5414500 | AD190: 77026667.02 | AE190: 1 | AI190: 1541000 | AK190: 1160000 | AM190: 3214000 | AN190: 2694000 | AP190: 932000 | AQ190: 3380000 | AR190: 435000 | AS190: 315000 | AT190: 666000 | AU190: 312375 | AW190: 5605000 | AX190: 10000000 | AY190: 543000 | AZ190: 1275000 | BA190: 2974000 | BB190: 58000 | BC190: 450000 | BD190: 2300000 | BE190: 478000 | BF190: 58000 | BK190: 5353810 | BQ190: 1 | BS190: Peso bruto vehícular | BT190: No Aplica | BU190: No Aplica
A191: VehículoEspecialMicrobúsde10a19pasajerosAmbulanciaTAB2Intervalodeprecio1RENAULT TRAFIC 1.6L TECHO ALTO MT 1600CC AA 2TRenault Sociedad de Fabricación de Automotores S.A. | B191: VehículoEspecialMicrobúsde10a19pasajerosAmbulanciaTAB2Intervalodeprecio1 | C191: RENAULT TRAFIC 1.6L TECHO ALTO MT 1600CC AA 2T | D191: Renault Sociedad de Fabricación de Automotores S.A. | E191: Vehículo Especial | F191: Microbús de 10 a 19 pasajeros | G191: Ambulancia TAB 2 | H191: Intervalo de precio 1 | I191: Diésel | J191: TRAFIC 1.6L TECHO ALTO MT 1600CC AA 2T | K191: RENAULT | L191: 8007018 | M191: TRAFIC | N191: 1.6L TECHO ALTO | O191: MT 1600CC AA 2T | P191: 95700000 | Q191: 0.07 | R191: 89001000 | S191: 0.075 | T191: 88522500 | U191: 0.077 | V191: 88331100 | W191: 0.078 | X191: 88235400 | Y191: 0.079 | Z191: 88139700 | AA191: 0.08 | AB191: 88044000 | AC191: 4486300 | AD191: 74200000 | AE191: 1 | AI191: 1541000 | AK191: 1160000 | AM191: 2538000 | AN191: 2694000 | AP191: 932000 | AQ191: 3380000 | AR191: 435000 | AS191: 379000 | AT191: 516000 | AU191: 312375 | AW191: 5605000 | AX191: 10000000 | AY191: 543000 | AZ191: 1275000 | BA191: 2974000 | BB191: 58000 | BC191: 450000 | BD191: 2300000 | BE191: 478000 | BF191: 58000 | BK191: 5353810 | BQ191: 1 | BS191: Peso bruto vehícular | BT191: No Aplica | BU191: No Aplica
A192: VehículoEspecialMicrobúsde10a19pasajerosAmbulanciaTAB2Intervalodeprecio4VOLKSWAGEN CAMIONETA REPARTO KOMBI T6 MT 2000CC 4X2 AAUnión Temporal Los Coches-Iberplas-2014 | B192: VehículoEspecialMicrobúsde10a19pasajerosAmbulanciaTAB2Intervalodeprecio4 | C192: VOLKSWAGEN CAMIONETA REPARTO KOMBI T6 MT 2000CC 4X2 AA | D192: Unión Temporal Los Coches-Iberplas-2014 | E192: Vehículo Especial | F192: Microbús de 10 a 19 pasajeros | G192: Ambulancia TAB 2 | H192: Intervalo de precio 4 | I192: Diésel | J192: CAMIONETA REPARTO KOMBI T6 MT 2000CC 4X2 AA | K192: VOLKSWAGEN | L192: 9207018 | M192: CAMIONETA REPARTO | N192: KOMBI T6 | O192: MT 2000CC 4X2 AA | P192: 90000000 | Q192: 0.06 | R192: 84600000 | S192: 0.06 | T192: 84600000 | U192: 0.06 | V192: 84600000 | W192: 0.06 | X192: 84600000 | Y192: 0.06 | Z192: 84600000 | AA192: 0.06 | AB192: 84600000 | AC192: 4770000 | AD192: 74200000 | AE192: 5720000 | AF192: 715000 | AI192: 520000 | AJ192: 1000000 | AK192: 660000 | AL192: 867879.3103 | AN192: 770000 | AO192: 705151.9397 | AQ192: 1900000 | AR192: 75600 | AS192: 401394.181 | AT192: 542424.569 | AV192: 500000 | AW192: 4970000 | AX192: 7051519.397 | AY192: 379697.1983 | AZ192: 922121.7672 | BA192: 1247576.509 | BB192: 45021.23922 | BC192: 135606.1422 | BD192: 1627273.707 | BE192: 650000 | BF192: 65090.94828 | BK192: 2980000 | BQ192: 1 | BS192: Peso bruto vehícular | BT192: No Aplica | BU192: No Aplica
A193: VehículoEspecialMicrobúsde10a19pasajerosAmbulanciaTAB2Intervalodeprecio1NISSAN URVAN [E26] NV350 MT 2500CC TD 4X2 AADistribuidora Nissan S.A. | B193: VehículoEspecialMicrobúsde10a19pasajerosAmbulanciaTAB2Intervalodeprecio1 | C193: NISSAN URVAN [E26] NV350 MT 2500CC TD 4X2 AA | D193: Distribuidora Nissan S.A. | E193: Vehículo Especial | F193: Microbús de 10 a 19 pasajeros | G193: Ambulancia TAB 2 | H193: Intervalo de precio 1 | I193: Diésel | J193: URVAN E26 NV350 MT 2500 CC TD 4X2 AA | K193: NISSAN | L193: 6407009 | M193: URVAN [E26] | N193: NV350 | O193: MT 2500CC TD 4X2 AA | P193: 102500000 | Q193: 0.01 | R193: 101475000 | S193: 0.01 | T193: 101475000 | U193: 0.01 | V193: 101475000 | W193: 0.01 | X193: 101475000 | Y193: 0.01 | Z193: 101475000 | AA193: 0.01 | AB193: 101475000 | AC193: 6500000 | AD193: 127000000 | AN193: 2213280 | AP193: 1200000 | AQ193: 2213280 | AR193: 371000 | AS193: 853342 | AT193: 806618 | AU193: 96000 | AV193: 288000 | AY193: 816200 | BA193: 2067000 | BB193: 63600 | BC193: 567460 | BD193: 1378000 | BE193: 612341 | BF193: 84800 | BK193: 3921000 | BQ193: 1 | BS193: Peso bruto vehícular | BT193: No Aplica | BU193: No Aplica
A194: =B194&C194&D194 -> VehículoEspecialChasiscabinasencilladiéselmayora2449ccAmbulanciaTABIntervalodeprecio1CHEVROLET DMAX [3] [FL] 2.5L MT 2500CC 4X4 TD ABS 2ABAutomayor S.A. | B194: =SUBSTITUTE(SUBSTITUTE(SUBSTITUTE(E194&F194&G194&H194,".","")," ",""),"-","") -> VehículoEspecialChasiscabinasencilladiéselmayora2449ccAmbulanciaTABIntervalodeprecio1 | C194: =K194&" "&M194&" "&N194&" "&O194 -> CHEVROLET DMAX [3] [FL] 2.5L MT 2500CC 4X4 TD ABS 2AB | D194: Automayor S.A. | E194: Vehículo Especial | F194: Chasis cabina sencilla diésel mayor a 2.449cc | G194: Ambulancia TAB | H194: Intervalo de precio 1 | I194: Diésel | J194: =M194&" "&N194&" "&O194 -> DMAX [3] [FL] 2.5L MT 2500CC 4X4 TD ABS 2AB | K194: CHEVROLET | L194: 1620133 | M194: DMAX [3] [FL] | N194: 2.5L | O194: MT 2500CC 4X4 TD ABS 2AB | P194: 96900000 | Q194: 0.074 | R194: =$P194*(1-Q194) -> 89729400 | S194: 0.074 | T194: =$P194*(1-S194) -> 89729400 | U194: 0.074 | V194: =$P194*(1-U194) -> 89729400 | W194: 0.074 | X194: =$P194*(1-W194) -> 89729400 | Y194: 0.074 | Z194: =$P194*(1-Y194) -> 89729400 | AA194: 0.074 | AB194: =$P194*(1-AA194) -> 89729400 | AC194: 4489100 | AD194: 60282200 | AF194: 769560 | AI194: 2565200 | AJ194: 1154340 | AK194: 769560 | AL194: 1154340 | AN194: 1154340 | AO194: 1051732 | AQ194: 1923900 | AR194: 57717 | AS194: 12826 | AT194: 718256 | AV194: 384780 | AW194: 6413000 | AX194: 6156480 | AY194: 577170 | AZ194: 769560 | BA194: 2565200 | BB194: 57717 | BC194: 256520 | BD194: 1173579 | BE194: 448910 | BF194: 57717 | BK194: 4200000 | BQ194: 1 | BS194: Caracteristica | BT194: No Aplica | BU194: No Aplica | BV194: S10
A195: VehículoEspecialMicrobúsde10a19pasajerosAmbulanciaTABIntervalodeprecio3IVECO DAILY 45S17 [3300MM] MT 3000CC TD 4X2 [14PSJ] ABSNavitrans S.A.S. | B195: VehículoEspecialMicrobúsde10a19pasajerosAmbulanciaTABIntervalodeprecio3 | C195: IVECO DAILY 45S17 [3300MM] MT 3000CC TD 4X2 [14PSJ] ABS | D195: Navitrans S.A.S. | E195: Vehículo Especial | F195: Microbús de 10 a 19 pasajeros | G195: Ambulancia TAB | H195: Intervalo de precio 3 | I195: Gas | J195: =M195&" "&N195&" "&O195 -> DAILY 45S17 [3300MM] MT 3000CC TD 4X2 [14PSJ] ABS | K195: IVECO | L195: 10203021 | M195: DAILY | N195: 45S17 [3300MM] | O195: MT 3000CC TD 4X2 [14PSJ] ABS | P195: 177000000 | Q195: 0.005 | R195: 176115000 | S195: 0.01 | T195: 175230000 | U195: 0.015 | V195: 174345000 | W195: 0.02 | X195: 173460000 | Y195: 0.025 | Z195: 172575000 | AA195: 0.03 | AB195: 171690000 | AC195: 7000000 | AD195: 55000000 | AL195: 867879.3103 | AO195: 705151.9397 | AR195: 130181.8966 | AS195: 401394.181 | AT195: 542424.569 | AX195: 7051519.397 | AY195: 379697.1983 | AZ195: 922121.7672 | BA195: 1247576.509 | BB195: 45021.23922 | BC195: 135606.1422 | BD195: 1627273.707 | BF195: 65090.94828 | BQ195: 1 | BS195: Caracteristica | BT195: No Aplica | BU195: No Aplica | BV195: S116
A196: VehículoEspecialChasiscabinasencilladiéselmayora2449ccAmbulanciaTABIntervalodeprecio1NISSAN NP 300 FRONTIER [2] 2.5L MT2500 CC TD 4X4 AA 2AB ABSDistribuidora Nissan S.A. | B196: VehículoEspecialChasiscabinasencilladiéselmayora2449ccAmbulanciaTABIntervalodeprecio1 | C196: NISSAN NP 300 FRONTIER [2] 2.5L MT2500 CC TD 4X4 AA 2AB ABS | D196: Distribuidora Nissan S.A. | E196: Vehículo Especial | F196: Chasis cabina sencilla diésel mayor a 2.449cc | G196: Ambulancia TAB | H196: Intervalo de precio 1 | I196: Diésel | J196: NP 300 FRONTIER [2] 2.5L MT2500 CC TD 4X4 AA 2AB ABS | K196: NISSAN | L196: 6411092 | M196: NP 300 FRONTIER [2] | N196: 2.5L | O196: MT2500 CC TD 4X4 AA 2AB ABS | P196: 100000000 | Q196: 0.026 | R196: 97400000 | S196: 0.026 | T196: 97400000 | U196: 0.026 | V196: 97400000 | W196: 0.026 | X196: 97400000 | Y196: 0.026 | Z196: 97400000 | AA196: 0.026 | AB196: 97400000 | AC196: 5459000 | AD196: 52682000 | AI196: 5175000 | AK196: 850000 | AL196: 867879.3103 | AN196: 2288100 | AO196: 705151.9397 | AQ196: 2088000 | AR196: 130181.8966 | AS196: 401394.181 | AT196: 542424.569 | AV196: 230000 | AW196: 4655200 | AX196: 7051519.397 | AY196: 379697.1983 | AZ196: 922121.7672 | BA196: 1247576.509 | BB196: 45021.23922 | BC196: 135606.1422 | BD196: 1627273.707 | BE196: 577680 | BF196: 65090.94828 | BK196: 3921000 | BQ196: 1 | BS196: Caracteristica | BT196: No Aplica | BU196: No Aplica | BV196: S10
A197: VehículoEspecialMicrobúsde10a19pasajerosAmbulanciaTABIntervalodeprecio1RENAULT TRAFIC 1.6L TECHO ALTO MT 1600CC AA 2TRenault Sociedad de Fabricación de Automotores S.A. | B197: VehículoEspecialMicrobúsde10a19pasajerosAmbulanciaTABIntervalodeprecio1 | C197: RENAULT TRAFIC 1.6L TECHO ALTO MT 1600CC AA 2T | D197: Renault Sociedad de Fabricación de Automotores S.A. | E197: Vehículo Especial | F197: Microbús de 10 a 19 pasajeros | G197: Ambulancia TAB | H197: Intervalo de precio 1 | I197: Diésel | J197: TRAFIC 1.6L TECHO ALTO MT 1600CC AA 2T | K197: RENAULT | L197: 8007018 | M197: TRAFIC | N197: 1.6L TECHO ALTO | O197: MT 1600CC AA 2T | P197: 95700000 | Q197: 0.07 | R197: 89001000 | S197: 0.075 | T197: 88522500 | U197: 0.077 | V197: 88331100 | W197: 0.078 | X197: 88235400 | Y197: 0.079 | Z197: 88139700 | AA197: 0.08 | AB197: 88044000 | AC197: 4486300 | AD197: 47806000 | AE197: 1 | AI197: 1541000 | AK197: 1160000 | AM197: 2538000 | AN197: 2694000 | AP197: 932000 | AQ197: 3380000 | AR197: 435000 | AS197: 379000 | AT197: 516000 | AU197: 312375 | AW197: 5605000 | AX197: 10000000 | AY197: 543000 | AZ197: 1275000 | BA197: 2974000 | BB197: 58000 | BC197: 450000 | BD197: 2300000 | BE197: 478000 | BF197: 58000 | BK197: 5353810 | BQ197: 1 | BS197: Caracteristica | BT197: No Aplica | BU197: No Aplica | BV197: S142
A198: VehículoEspecialMicrobúsde10a19pasajerosAmbulanciaTABIntervalodeprecio1RENAULT TRAFIC 1.6L MT 1600CC AA 2TRenault Sociedad de Fabricación de Automotores S.A. | B198: VehículoEspecialMicrobúsde10a19pasajerosAmbulanciaTABIntervalodeprecio1 | C198: RENAULT TRAFIC 1.6L MT 1600CC AA 2T | D198: Renault Sociedad de Fabricación de Automotores S.A. | E198: Vehículo Especial | F198: Microbús de 10 a 19 pasajeros | G198: Ambulancia TAB | H198: Intervalo de precio 1 | I198: Diésel | J198: TRAFIC 1.6L MT 1600CC AA 2T | K198: RENAULT | L198: 8007017 | M198: TRAFIC | N198: 1.6L | O198: MT 1600CC AA 2T | P198: 91700000 | Q198: 0.07 | R198: 85281000 | S198: 0.075 | T198: 84822500 | U198: 0.077 | V198: 84639100 | W198: 0.078 | X198: 84547400 | Y198: 0.079 | Z198: 84455700 | AA198: 0.08 | AB198: 84364000 | AC198: 4486300 | AD198: 46640000 | AE198: 1 | AI198: 1541000 | AK198: 1160000 | AM198: 2538000 | AN198: 2694000 | AP198: 932000 | AQ198: 3380000 | AR198: 435000 | AS198: 379000 | AT198: 516000 | AU198: 312375 | AW198: 5605000 | AX198: 10000000 | AY198: 543000 | AZ198: 1275000 | BA198: 2974000 | BB198: 58000 | BC198: 450000 | BD198: 2300000 | BE198: 478000 | BF198: 58000 | BK198: 5353810 | BQ198: 1 | BS198: Caracteristica | BT198: No Aplica | BU198: No Aplica | BV198: S142
A199: VehículoEspecialMicrobúsde10a19pasajerosAmbulanciaTABIntervalodeprecio2RENAULT MASTER [3] 2.3L MT 2300CC TD 4X2 2AARenault Sociedad de Fabricación de Automotores S.A. | B199: VehículoEspecialMicrobúsde10a19pasajerosAmbulanciaTABIntervalodeprecio2 | C199: RENAULT MASTER [3] 2.3L MT 2300CC TD 4X2 2AA | D199: Renault Sociedad de Fabricación de Automotores S.A. | E199: Vehículo Especial | F199: Microbús de 10 a 19 pasajeros | G199: Ambulancia TAB | H199: Intervalo de precio 2 | I199: Diésel | J199: MASTER [3] 2.3L MT 2300CC TD 4X2 2AA | K199: RENAULT | L199: 8007015 | M199: MASTER [3] | N199: 2.3L | O199: MT 2300CC TD 4X2 2AA | P199: 117500000 | Q199: 0.08 | R199: 108100000 | S199: 0.085 | T199: 107512500 | U199: 0.087 | V199: 107277500 | W199: 0.088 | X199: 107160000 | Y199: 0.089 | Z199: 107042500 | AA199: 0.09 | AB199: 106925000 | AC199: 5414500 | AD199: 48972000 | AE199: 1 | AI199: 1541000 | AK199: 1160000 | AM199: 3214000 | AN199: 2694000 | AP199: 932000 | AQ199: 3380000 | AR199: 435000 | AS199: 315000 | AT199: 666000 | AU199: 312375 | AW199: 5605000 | AX199: 10000000 | AY199: 543000 | AZ199: 1275000 | BA199: 2974000 | BB199: 58000 | BC199: 450000 | BD199: 2300000 | BE199: 478000 | BF199: 58000 | BK199: 5353810 | BQ199: 1 | BS199: Caracteristica | BT199: No Aplica | BU199: No Aplica | BV199: S148
A200: VehículoEspecialChasiscabinasencilladiésel1950cc2449ccAmbulanciaTABIntervalodeprecio1VOLKSWAGEN AMAROK 2.0L MT 2000CC 4X4 TD AAUnión Temporal Los Coches-Iberplas-2014 | B200: VehículoEspecialChasiscabinasencilladiésel1950cc2449ccAmbulanciaTABIntervalodeprecio1 | C200: VOLKSWAGEN AMAROK 2.0L MT 2000CC 4X4 TD AA | D200: Unión Temporal Los Coches-Iberplas-2014 | E200: Vehículo Especial | F200: Chasis cabina sencilla diésel 1.950cc - 2.449cc | G200: Ambulancia TAB | H200: Intervalo de precio 1 | I200: Diésel | J200: AMAROK 2.0L MT 2000CC 4X4 TD AA | K200: VOLKSWAGEN | L200: 9220004 | M200: AMAROK | N200: 2.0L | O200: MT 2000CC 4X4 TD AA | P200: 108000000 | Q200: 0.06 | R200: 101520000 | S200: 0.06 | T200: 101520000 | U200: 0.06 | V200: 101520000 | W200: 0.06 | X200: 101520000 | Y200: 0.06 | Z200: 101520000 | AA200: 0.06 | AB200: 101520000 | AC200: 3816000 | AD200: 48972000 | AF200: 715000 | AI200: 520000 | AJ200: 1000000 | AK200: 660000 | AL200: 1600000 | AN200: 770000 | AO200: 935000 | AQ200: 1900000 | AR200: 240000 | AS200: 325000 | AT200: 500000 | AV200: 500000 | AW200: 4970000 | AX200: 4300000 | AY200: 770000 | AZ200: 1200000 | BA200: 900000 | BB200: 2090000 | BC200: 65000 | BD200: 187000 | BE200: 650000 | BF200: 90000 | BK200: 2980000 | BQ200: 1 | BS200: Caracteristica | BT200: No Aplica | BU200: No Aplica | BV200: S161
... 346 more rows

Sheet Paso a Paso (hidden)
A2: 1 | B2: Verificar en si exite en la casilla cilindraje
A3: 2 | B3: Si exite: asegurarse que sea el mismo nombre
A4: 2.1 | B4: si no existe: agregar el nombre y el resgistro completo del carro
A5: 3 | B5: Verificar en si exite en la columna A de Accesorios
A6: 3.1 | B6: Si exite: no hacer nada
A7: 3.2 | B7: si no existe: agregar el nombre concatenado y agregar los accesorios que tengan precio
A8: 4 | B8: probar
